Workbook

Sheet Introduction
A6: Interlocking Concrete Pavement Design Chart
A7: 2011-02-11
A9: Purpose:
A11: The purpose of this worksheet is to estimate the adequate pavement design structures. Designs are based on factors such as traffic, subgrade, relaibility, and service life expectations. This spreadsheet is designed to work with ASCE 58-10: Structural Design of Interlocking Concrete Pavement for Municipal Streets and Roadways.
A12: www.asce.org
A13: ASCE 58-10: Structural Design of Interlocking Concrete Pavement for Municipal Streets and Roadways
A15: Use of Macros:
A17: This spreadsheet uses embedded macros to help solve iterative design equations. If prompted, it is necessary to enable the macros within this spreadsheet.
A19: License Information:
A21: All software and computer program specifications, documentation, procedure manuals, disks and tapes utilized, processed or developed by ARA in connection with this Agreement shall be and remain the exclusive and confidential property of ARA, or of third parties from whom ARA has secured the right to use. ARA grants Licencee a nonexclusive, nontransferable Licence to use the software contained in this package. Licencee owns the media on which the software is loaded, but ARA retains title to the software and related documentation. From the date of receipt, Licencee agrees to use its best efforts to protect the Software and Related Materials from unauthorized use, reproduction, distribution, or publication.

Sheet Design Inputs
A1: Design Information
F2: Design Assistant
A3: Design Life (years) | C3: 20
A4: Initial Serviceability | C4: 4.2 | F4: ESALs | G4: 200000
A5: Terminal Serviceability | C5: 2.5 | F5: Subgrade Classification | G5: GC, SC | H5: =VLOOKUP(G5,$B$30:$H$37,7,FALSE) -> 5
A6: Reliability | C6: 0.75 | F6: Subgrade Conditions | G6: Fair
A7: ZR | C7: =-NORMSINV(C6) -> -0.6744897502 | G7: =IF(G8=B11,"Gran",IF(G8=B12,"ATB",IF(G8=B13,"CTB",IF(G8=B14,"AC","Error")))) -> CTB | H7: Subgrade Type | I7: Traffic
A8: Standard Deviation | C8: 0.45 | F8: Base Type | G8: Cement Treated Base | H8: =CONCATENATE(G7,"!$A$6:$A$",IF(OR(G8=B11,G8=B14),77,101)) -> CTB!$A$6:$A$101 | I8: =CONCATENATE(G7,"!","$F$3:$O$3") -> CTB!$F$3:$O$3
C9: Layer Coefficient | D9: Thickness
A10: Pavers and Bedding | C10: 0.44 | D10: 105 | F10: Recommended Design
A11: Base | B11: Unbound Dense Graded Base | C11: 0.14 | D11: 150
B12: Asphalt Treated Base | C12: 0.28 | D12: 100 | F12: Pavers and Bedding | G12: =SUM(IF(F12=OFFSET(INDIRECT($H$8),0,4),IF('Design Inputs'!$G$6=OFFSET(INDIRECT($H$8),0,1),IF('Design Inputs'!$H$5=INDIRECT($H$8),IF('Design Inputs'!$G$4=INDIRECT($I$8),OFFSET(INDIRECT($H$8),0,5,,10)))))) -> 105
B13: Cement Treated Base | C13: 0.2 | D13: 100 | F13: =G8 -> Cement Treated Base | G13: =SUM(IF(F13=OFFSET(INDIRECT($H$8),0,4),IF('Design Inputs'!$G$6=OFFSET(INDIRECT($H$8),0,1),IF('Design Inputs'!$H$5=INDIRECT($H$8),IF('Design Inputs'!$G$4=INDIRECT($I$8),OFFSET(INDIRECT($H$8),0,5,,10)))))) -> 100
B14: Asphalt Concrete Base | C14: 0.42 | D14: 50 | F14: =IF(OR($G$8=$B$12,$G$8=$B$13),B11,IF(G8=B14,B11,A15)) -> Unbound Dense Graded Base | G14: =SUM(IF(F14=OFFSET(INDIRECT($H$8),0,4),IF('Design Inputs'!$G$6=OFFSET(INDIRECT($H$8),0,1),IF('Design Inputs'!$H$5=INDIRECT($H$8),IF('Design Inputs'!$G$4=INDIRECT($I$8),OFFSET(INDIRECT($H$8),0,5,,10)))))) -> 100
A15: Unbound Dense Graded Subbase | C15: 0.09 | F15: =IF(OR($G$8=$B$12,$G$8=$B$13),$A$15,"") -> Unbound Dense Graded Subbase | G15: =SUM(IF(F15=OFFSET(INDIRECT($H$8),0,4),IF('Design Inputs'!$G$6=OFFSET(INDIRECT($H$8),0,1),IF('Design Inputs'!$H$5=INDIRECT($H$8),IF('Design Inputs'!$G$4=INDIRECT($I$8),OFFSET(INDIRECT($H$8),0,5,,10)))))) -> 0
A17: Traffic Estimates
A18: AADT | B18: Functional Category | C18: Percent Commercial | D18: # Lanes | E18: Estimated ESALs | F18: Total ESALs
A19: 500 | B19: Local | C19: 0.005 | D19: 2 | E19: =182.5*A19*C19*1.15*(1.57-0.083*LOG(A19/2)) -> 719.3313357 | F19: =E19*$C$3 -> 14386.62671
A20: 1000 | B20: Local | C20: 0.01 | D20: 2 | E20: 2824.887046 | F20: =E20*$C$3 -> 56497.74093
A21: 5000 | B21: Local | C21: 0.01 | D21: 2 | E21: 13515.64546 | F21: 270312.9093
A22: 10000 | B22: Minor Arterial/Collector | C22: 0.03 | D22: 2 | E22: 79520.72389 | F22: 1590414.478
A23: 15000 | B23: Major Arterial/Collector | C23: 0.05 | D23: 2 | E23: 196501.227 | F23: 3930024.539
A24: 20000 | B24: Principal Arterial | C24: 0.05 | D24: 2 | E24: 259825.25 | F24: 5196505
A25: 40000 | B25: Principal Arterial | C25: 0.05 | D25: 2 | E25: 509162.8407 | F25: 10183256.81
A27: Subgrade Support
A28: Category No. | B28: Classification | C28: Drainage Characteristics | D28: Susceptibility to Frost Action | E28: Resilient Modulus (MR) for Typical Subgrade Conditions (MPa)
E29: Good | F29: Fair | G29: Poor
A30: 1 | B30: Boulders/coubbles | C30: Excellent | D30: None | E30: 90 | F30: 80 | G30: 70 | H30: 1
A31: 2 | B31: GW, SW | C31: Excellent | D31: Negligible | E31: 80 | F31: 70 | G31: 50 | H31: 2
A32: 3 | B32: GP, SP | C32: Excellent to fair | D32: Negligible to slight | E32: 70 | F32: 50 | G32: 35 | H32: 3
A33: 4 | B33: GM, SM | C33: Fair to semi-impervious | D33: Slight to moderate | E33: 50 | F33: 35 | G33: 30 | H33: 4
A34: 5 | B34: GC, SC | C34: Practically impervious | D34: Negligible to slight | E34: 40 | F34: 30 | G34: 25 | H34: 5
A35: 6 | B35: ML, MI | C35: Typically poor | D35: Severe | E35: 30 | F35: 25 | G35: 18 | H35: 6
A36: 7 | B36: CL, MH | C36: Practically impervious | D36: Slight to severe | E36: 27 | F36: 20 | G36: 15 | H36: 7
A37: 8 | B37: CI, CH | C37: Semi-impervious to impervious | D37: Negligible to severe | E37: 25 | F37: 20 | G37: 15 | H37: 8

Sheet Design
A1: Granular Base
A2: Subgrade Category | B2: Drainage | C2: Mr (psi) | D2: Design SN (mm) | N2: Paver Thickness (mm) | X2: SN Remaining (Excluding Pavers) | AH2: Unbound Dense Graded Base Thickness (mm) | AR2: SN Remaining (excluding Pavers and Base) | BB2: Unbound Dense Graded Subbase Thickness (mm)
D3: 10000 | E3: 20000 | F3: 50000 | G3: 100000 | H3: 200000 | I3: 500000 | J3: 1000000 | K3: 2000000 | L3: 5000000 | M3: 10000000 | N3: 10000 | O3: 20000 | P3: 50000 | Q3: 100000 | R3: 200000 | S3: 500000 | T3: 1000000 | U3: 2000000 | V3: 5000000 | W3: 10000000 | X3: 10000 | Y3: 20000 | Z3: 50000 | AA3: 100000 | AB3: 200000 | AC3: 500000 | AD3: 1000000 | AE3: 2000000 | AF3: 5000000 | AG3: 10000000 | AH3: 10000 | AI3: 20000 | AJ3: 50000 | AK3: 100000 | AL3: 200000 | AM3: 500000 | AN3: 1000000 | AO3: 2000000 | AP3: 5000000 | AQ3: 10000000 | AR3: 10000 | AS3: 20000 | AT3: 50000 | AU3: 100000 | AV3: 200000 | AW3: 500000 | AX3: 1000000 | AY3: 2000000 | AZ3: 5000000 | BA3: 10000000 | BB3: 10000 | BC3: 20000 | BD3: 50000 | BE3: 100000 | BF3: 200000 | BG3: 500000 | BH3: 1000000 | BI3: 2000000 | BJ3: 5000000 | BK3: 10000000
A4: 1 | B4: Good | C4: =SUM(IF($A4='Design Inputs'!$A$30:$A$37,IF(Design!$B4=SubgradeConditions,'Design Inputs'!$E$30:$G$37)))*145.0377 -> 13053.393 | D4: =snreq(D$3,Reliability,S0,$C4,PSIi-PSIt)*25.4 -> 28.1740864 | E4: 32.3487288 | F4: 38.4175508 | G4: 43.4853842 | H4: 49.032795 | I4: 57.243345 | J4: 64.2575042 | K4: 72.101456 | L4: 83.9204824 | M4: 93.9853086 | N4: =ThickPaver -> 105 | O4: 105 | P4: 105 | Q4: 105 | R4: 105 | S4: 105 | T4: 105 | U4: 105 | V4: 105 | W4: 105 | X4: =MAX(0,D4-N4*Apaver) -> 0 | Y4: =MAX(0,E4-O4*Apaver) -> 0 | Z4: =MAX(0,F4-P4*Apaver) -> 0 | AA4: =MAX(0,G4-Q4*Apaver) -> 0 | AB4: =MAX(0,H4-R4*Apaver) -> 2.832795 | AC4: =MAX(0,I4-S4*Apaver) -> 11.043345 | AD4: =MAX(0,J4-T4*Apaver) -> 18.0575042 | AE4: =MAX(0,K4-U4*Apaver) -> 25.901456 | AF4: =MAX(0,L4-V4*Apaver) -> 37.7204824 | AG4: =MAX(0,M4-W4*Apaver) -> 47.7853086 | AH4: =IF(X4<100*Agran,100,IF(X4>200*Agran,100,ROUNDUP(X4/Agran/25,0)*25)) -> 100 | AI4: =IF(Y4<100*Agran,100,IF(Y4>200*Agran,100,ROUNDUP(Y4/Agran/25,0)*25)) -> 100 | AJ4: =IF(Z4<100*Agran,100,IF(Z4>200*Agran,100,ROUNDUP(Z4/Agran/25,0)*25)) -> 100 | AK4: =IF(AA4<100*Agran,100,IF(AA4>200*Agran,100,ROUNDUP(AA4/Agran/25,0)*25)) -> 100 | AL4: =IF(AB4<100*Agran,100,IF(AB4>200*Agran,100,ROUNDUP(AB4/Agran/25,0)*25)) -> 100 | AM4: =IF(AC4<150*Agran,150,IF(AC4>200*Agran,150,ROUNDUP(AC4/Agran/25,0)*25)) -> 150 | AN4: =IF(AD4<150*Agran,150,IF(AD4>200*Agran,150,ROUNDUP(AD4/Agran/25,0)*25)) -> 150 | AO4: =IF(AE4<150*Agran,150,IF(AE4>200*Agran,150,ROUNDUP(AE4/Agran/25,0)*25)) -> 200 | AP4: =IF(AF4<150*Agran,150,IF(AF4>200*Agran,150,ROUNDUP(AF4/Agran/25,0)*25)) -> 150 | AQ4: =IF(AG4<150*Agran,150,IF(AG4>200*Agran,150,ROUNDUP(AG4/Agran/25,0)*25)) -> 150 | AR4: =MAX(0,X4-AH4*Agran) -> 0 | AS4: =MAX(0,Y4-AI4*Agran) -> 0 | AT4: =MAX(0,Z4-AJ4*Agran) -> 0 | AU4: =MAX(0,AA4-AK4*Agran) -> 0 | AV4: =MAX(0,AB4-AL4*Agran) -> 0 | AW4: =MAX(0,AC4-AM4*Agran) -> 0 | AX4: =MAX(0,AD4-AN4*Agran) -> 0 | AY4: =MAX(0,AE4-AO4*Agran) -> 0 | AZ4: =MAX(0,AF4-AP4*Agran) -> 16.7204824 | BA4: =MAX(0,AG4-AQ4*Agran) -> 26.7853086 | BB4: =IF(AR4<=0,0,MAX(150,ROUNDUP(AR4/Asubbase/25,0)*25)) -> 0 | BC4: =IF(AS4<=0,0,MAX(150,ROUNDUP(AS4/Asubbase/25,0)*25)) -> 0 | BD4: =IF(AT4<=0,0,MAX(150,ROUNDUP(AT4/Asubbase/25,0)*25)) -> 0 | BE4: =IF(AU4<=0,0,MAX(150,ROUNDUP(AU4/Asubbase/25,0)*25)) -> 0 | BF4: =IF(AV4<=0,0,MAX(150,ROUNDUP(AV4/Asubbase/25,0)*25)) -> 0 | BG4: =IF(AW4<=0,0,MAX(150,ROUNDUP(AW4/Asubbase/25,0)*25)) -> 0 | BH4: =IF(AX4<=0,0,MAX(150,ROUNDUP(AX4/Asubbase/25,0)*25)) -> 0 | BI4: =IF(AY4<=0,0,MAX(150,ROUNDUP(AY4/Asubbase/25,0)*25)) -> 0 | BJ4: =IF(AZ4<=0,0,MAX(150,ROUNDUP(AZ4/Asubbase/25,0)*25)) -> 200 | BK4: =IF(BA4<=0,0,MAX(150,ROUNDUP(BA4/Asubbase/25,0)*25)) -> 300
A5: 1 | B5: Fair | C5: =SUM(IF($A5='Design Inputs'!$A$30:$A$37,IF(Design!$B5=SubgradeConditions,'Design Inputs'!$E$30:$G$37)))*145.0377 -> 11603.016 | D5: 29.7802046 | E5: 34.0900258 | F5: 40.363267 | G5: 45.6113388 | H5: 51.367944 | I5: 59.9174316 | J5: 67.2438076 | K5: 75.4476012 | L5: 87.7764564 | M5: 98.1998544 | N5: 105 | O5: 105 | P5: 105 | Q5: 105 | R5: 105 | S5: 105 | T5: 105 | U5: 105 | V5: 105 | W5: 105 | X5: 0 | Y5: 0 | Z5: 0 | AA5: 0 | AB5: 5.167944 | AC5: 13.7174316 | AD5: 21.0438076 | AE5: 29.2476012 | AF5: 41.5764564 | AG5: 51.9998544 | AH5: 100 | AI5: 100 | AJ5: 100 | AK5: 100 | AL5: 100 | AM5: 150 | AN5: 175 | AO5: 150 | AP5: 150 | AQ5: 150 | AR5: 0 | AS5: 0 | AT5: 0 | AU5: 0 | AV5: 0 | AW5: 0 | AX5: 0 | AY5: 8.2476012 | AZ5: 20.5764564 | BA5: 30.9998544 | BB5: 0 | BC5: 0 | BD5: 0 | BE5: 0 | BF5: 0 | BG5: 0 | BH5: 0 | BI5: 150 | BJ5: 250 | BK5: 350
A6: 1 | B6: Poor | C6: =SUM(IF($A6='Design Inputs'!$A$30:$A$37,IF(Design!$B6=SubgradeConditions,'Design Inputs'!$E$30:$G$37)))*145.0377 -> 10152.639 | D6: 31.663132 | E6: 36.1322874 | F6: 42.6501306 | G6: 48.115474 | H6: 54.1289494 | I6: 63.091695 | J6: 70.7953118 | K6: 79.4233362 | L6: 92.3251138 | M6: 103.1308834 | N6: 105 | O6: 105 | P6: 105 | Q6: 105 | R6: 105 | S6: 105 | T6: 105 | U6: 105 | V6: 105 | W6: 105 | X6: 0 | Y6: 0 | Z6: 0 | AA6: 1.915474 | AB6: 7.9289494 | AC6: 16.891695 | AD6: 24.5953118 | AE6: 33.2233362 | AF6: 46.1251138 | AG6: 56.9308834 | AH6: 100 | AI6: 100 | AJ6: 100 | AK6: 100 | AL6: 100 | AM6: 150 | AN6: 200 | AO6: 150 | AP6: 150 | AQ6: 150 | AR6: 0 | AS6: 0 | AT6: 0 | AU6: 0 | AV6: 0 | AW6: 0 | AX6: 0 | AY6: 12.2233362 | AZ6: 25.1251138 | BA6: 35.9308834 | BB6: 0 | BC6: 0 | BD6: 0 | BE6: 0 | BF6: 0 | BG6: 0 | BH6: 0 | BI6: 150 | BJ6: 300 | BK6: 400
A7: 2 | B7: Good | C7: =SUM(IF($A7='Design Inputs'!$A$30:$A$37,IF(Design!$B7=SubgradeConditions,'Design Inputs'!$E$30:$G$37)))*145.0377 -> 11603.016 | D7: 29.7802046 | E7: 34.0900258 | F7: 40.363267 | G7: 45.6113388 | H7: 51.367944 | I7: 59.9174316 | J7: 67.2438076 | K7: 75.4476012 | L7: 87.7764564 | M7: 98.1998544 | N7: 105 | O7: 105 | P7: 105 | Q7: 105 | R7: 105 | S7: 105 | T7: 105 | U7: 105 | V7: 105 | W7: 105 | X7: 0 | Y7: 0 | Z7: 0 | AA7: 0 | AB7: 5.167944 | AC7: 13.7174316 | AD7: 21.0438076 | AE7: 29.2476012 | AF7: 41.5764564 | AG7: 51.9998544 | AH7: 100 | AI7: 100 | AJ7: 100 | AK7: 100 | AL7: 100 | AM7: 150 | AN7: 175 | AO7: 150 | AP7: 150 | AQ7: 150 | AR7: 0 | AS7: 0 | AT7: 0 | AU7: 0 | AV7: 0 | AW7: 0 | AX7: 0 | AY7: 8.2476012 | AZ7: 20.5764564 | BA7: 30.9998544 | BB7: 0 | BC7: 0 | BD7: 0 | BE7: 0 | BF7: 0 | BG7: 0 | BH7: 0 | BI7: 150 | BJ7: 250 | BK7: 350
A8: 2 | B8: Fair | C8: =SUM(IF($A8='Design Inputs'!$A$30:$A$37,IF(Design!$B8=SubgradeConditions,'Design Inputs'!$E$30:$G$37)))*145.0377 -> 10152.639 | D8: 31.663132 | E8: 36.1322874 | F8: 42.6501306 | G8: 48.115474 | H8: 54.1289494 | I8: 63.091695 | J8: 70.7953118 | K8: 79.4233362 | L8: 92.3251138 | M8: 103.1308834 | N8: 105 | O8: 105 | P8: 105 | Q8: 105 | R8: 105 | S8: 105 | T8: 105 | U8: 105 | V8: 105 | W8: 105 | X8: 0 | Y8: 0 | Z8: 0 | AA8: 1.915474 | AB8: 7.9289494 | AC8: 16.891695 | AD8: 24.5953118 | AE8: 33.2233362 | AF8: 46.1251138 | AG8: 56.9308834 | AH8: 100 | AI8: 100 | AJ8: 100 | AK8: 100 | AL8: 100 | AM8: 150 | AN8: 200 | AO8: 150 | AP8: 150 | AQ8: 150 | AR8: 0 | AS8: 0 | AT8: 0 | AU8: 0 | AV8: 0 | AW8: 0 | AX8: 0 | AY8: 12.2233362 | AZ8: 25.1251138 | BA8: 35.9308834 | BB8: 0 | BC8: 0 | BD8: 0 | BE8: 0 | BF8: 0 | BG8: 0 | BH8: 0 | BI8: 150 | BJ8: 300 | BK8: 400
A9: 2 | B9: Poor | C9: =SUM(IF($A9='Design Inputs'!$A$30:$A$37,IF(Design!$B9=SubgradeConditions,'Design Inputs'!$E$30:$G$37)))*145.0377 -> 7251.885 | D9: 36.7229136 | E9: 41.6378644 | F9: 48.8428792 | G9: 54.931691 | H9: 61.6825538 | I9: 71.831073 | J9: 80.5820588 | K9: 90.310208 | L9: 104.550972 | M9: 116.2058382 | N9: 105 | O9: 105 | P9: 105 | Q9: 105 | R9: 105 | S9: 105 | T9: 105 | U9: 105 | V9: 105 | W9: 105 | X9: 0 | Y9: 0 | Z9: 2.6428792 | AA9: 8.731691 | AB9: 15.4825538 | AC9: 25.631073 | AD9: 34.3820588 | AE9: 44.110208 | AF9: 58.350972 | AG9: 70.0058382 | AH9: 100 | AI9: 100 | AJ9: 100 | AK9: 100 | AL9: 125 | AM9: 200 | AN9: 150 | AO9: 150 | AP9: 150 | AQ9: 150 | AR9: 0 | AS9: 0 | AT9: 0 | AU9: 0 | AV9: 0 | AW9: 0 | AX9: 13.3820588 | AY9: 23.110208 | AZ9: 37.350972 | BA9: 49.0058382 | BB9: 0 | BC9: 0 | BD9: 0 | BE9: 0 | BF9: 0 | BG9: 0 | BH9: 150 | BI9: 275 | BJ9: 425 | BK9: 550
A10: 3 | B10: Good | C10: =SUM(IF($A10='Design Inputs'!$A$30:$A$37,IF(Design!$B10=SubgradeConditions,'Design Inputs'!$E$30:$G$37)))*145.0377 -> 10152.639 | D10: 31.663132 | E10: 36.1322874 | F10: 42.6501306 | G10: 48.115474 | H10: 54.1289494 | I10: 63.091695 | J10: 70.7953118 | K10: 79.4233362 | L10: 92.3251138 | M10: 103.1308834 | N10: 105 | O10: 105 | P10: 105 | Q10: 105 | R10: 105 | S10: 105 | T10: 105 | U10: 105 | V10: 105 | W10: 105 | X10: 0 | Y10: 0 | Z10: 0 | AA10: 1.915474 | AB10: 7.9289494 | AC10: 16.891695 | AD10: 24.5953118 | AE10: 33.2233362 | AF10: 46.1251138 | AG10: 56.9308834 | AH10: 100 | AI10: 100 | AJ10: 100 | AK10: 100 | AL10: 100 | AM10: 150 | AN10: 200 | AO10: 150 | AP10: 150 | AQ10: 150 | AR10: 0 | AS10: 0 | AT10: 0 | AU10: 0 | AV10: 0 | AW10: 0 | AX10: 0 | AY10: 12.2233362 | AZ10: 25.1251138 | BA10: 35.9308834 | BB10: 0 | BC10: 0 | BD10: 0 | BE10: 0 | BF10: 0 | BG10: 0 | BH10: 0 | BI10: 150 | BJ10: 300 | BK10: 400
A11: 3 | B11: Fair | C11: =SUM(IF($A11='Design Inputs'!$A$30:$A$37,IF(Design!$B11=SubgradeConditions,'Design Inputs'!$E$30:$G$37)))*145.0377 -> 7251.885 | D11: 36.7229136 | E11: 41.6378644 | F11: 48.8428792 | G11: 54.931691 | H11: 61.6825538 | I11: 71.831073 | J11: 80.5820588 | K11: 90.310208 | L11: 104.550972 | M11: 116.2058382 | N11: 105 | O11: 105 | P11: 105 | Q11: 105 | R11: 105 | S11: 105 | T11: 105 | U11: 105 | V11: 105 | W11: 105 | X11: 0 | Y11: 0 | Z11: 2.6428792 | AA11: 8.731691 | AB11: 15.4825538 | AC11: 25.631073 | AD11: 34.3820588 | AE11: 44.110208 | AF11: 58.350972 | AG11: 70.0058382 | AH11: 100 | AI11: 100 | AJ11: 100 | AK11: 100 | AL11: 125 | AM11: 200 | AN11: 150 | AO11: 150 | AP11: 150 | AQ11: 150 | AR11: 0 | AS11: 0 | AT11: 0 | AU11: 0 | AV11: 0 | AW11: 0 | AX11: 13.3820588 | AY11: 23.110208 | AZ11: 37.350972 | BA11: 49.0058382 | BB11: 0 | BC11: 0 | BD11: 0 | BE11: 0 | BF11: 0 | BG11: 0 | BH11: 150 | BI11: 275 | BJ11: 425 | BK11: 550
A12: 3 | B12: Poor | C12: =SUM(IF($A12='Design Inputs'!$A$30:$A$37,IF(Design!$B12=SubgradeConditions,'Design Inputs'!$E$30:$G$37)))*145.0377 -> 5076.3195 | D12: 42.6404786 | E12: 48.105822 | F12: 56.1843936 | G12: 63.0775472 | H12: 70.7792082 | I12: 82.3916056 | J12: 92.3051494 | K12: 103.109014 | L12: 118.5432478 | M12: 130.9982902 | N12: 105 | O12: 105 | P12: 105 | Q12: 105 | R12: 105 | S12: 105 | T12: 105 | U12: 105 | V12: 105 | W12: 105 | X12: 0 | Y12: 1.905822 | Z12: 9.9843936 | AA12: 16.8775472 | AB12: 24.5792082 | AC12: 36.1916056 | AD12: 46.1051494 | AE12: 56.909014 | AF12: 72.3432478 | AG12: 84.7982902 | AH12: 100 | AI12: 100 | AJ12: 100 | AK12: 125 | AL12: 200 | AM12: 150 | AN12: 150 | AO12: 150 | AP12: 150 | AQ12: 150 | AR12: 0 | AS12: 0 | AT12: 0 | AU12: 0 | AV12: 0 | AW12: 15.1916056 | AX12: 25.1051494 | AY12: 35.909014 | AZ12: 51.3432478 | BA12: 63.7982902 | BB12: 0 | BC12: 0 | BD12: 0 | BE12: 0 | BF12: 0 | BG12: 175 | BH12: 300 | BI12: 400 | BJ12: 575 | BK12: 725
A13: 4 | B13: Good | C13: =SUM(IF($A13='Design Inputs'!$A$30:$A$37,IF(Design!$B13=SubgradeConditions,'Design Inputs'!$E$30:$G$37)))*145.0377 -> 7251.885 | D13: 36.7229136 | E13: 41.6378644 | F13: 48.8428792 | G13: 54.931691 | H13: 61.6825538 | I13: 71.831073 | J13: 80.5820588 | K13: 90.310208 | L13: 104.550972 | M13: 116.2058382 | N13: 105 | O13: 105 | P13: 105 | Q13: 105 | R13: 105 | S13: 105 | T13: 105 | U13: 105 | V13: 105 | W13: 105 | X13: 0 | Y13: 0 | Z13: 2.6428792 | AA13: 8.731691 | AB13: 15.4825538 | AC13: 25.631073 | AD13: 34.3820588 | AE13: 44.110208 | AF13: 58.350972 | AG13: 70.0058382 | AH13: 100 | AI13: 100 | AJ13: 100 | AK13: 100 | AL13: 125 | AM13: 200 | AN13: 150 | AO13: 150 | AP13: 150 | AQ13: 150 | AR13: 0 | AS13: 0 | AT13: 0 | AU13: 0 | AV13: 0 | AW13: 0 | AX13: 13.3820588 | AY13: 23.110208 | AZ13: 37.350972 | BA13: 49.0058382 | BB13: 0 | BC13: 0 | BD13: 0 | BE13: 0 | BF13: 0 | BG13: 0 | BH13: 150 | BI13: 275 | BJ13: 425 | BK13: 550
A14: 4 | B14: Fair | C14: =SUM(IF($A14='Design Inputs'!$A$30:$A$37,IF(Design!$B14=SubgradeConditions,'Design Inputs'!$E$30:$G$37)))*145.0377 -> 5076.3195 | D14: =snreq(D$3,Reliability,S0,$C14,PSIi-PSIt)*25.4 -> 42.6404786 | E14: 48.105822 | F14: 56.1843936 | G14: 63.0775472 | H14: 70.7792082 | I14: 82.3916056 | J14: 92.3051494 | K14: 103.109014 | L14: 118.5432478 | M14: 130.9982902 | N14: =ThickPaver -> 105 | O14: 105 | P14: 105 | Q14: 105 | R14: 105 | S14: 105 | T14: 105 | U14: 105 | V14: 105 | W14: 105 | X14: 0 | Y14: 1.905822 | Z14: 9.9843936 | AA14: 16.8775472 | AB14: 24.5792082 | AC14: 36.1916056 | AD14: 46.1051494 | AE14: 56.909014 | AF14: 72.3432478 | AG14: 84.7982902 | AH14: 100 | AI14: 100 | AJ14: 100 | AK14: 125 | AL14: 200 | AM14: 150 | AN14: 150 | AO14: 150 | AP14: 150 | AQ14: 150 | AR14: 0 | AS14: 0 | AT14: 0 | AU14: 0 | AV14: 0 | AW14: 15.1916056 | AX14: 25.1051494 | AY14: 35.909014 | AZ14: 51.3432478 | BA14: 63.7982902 | BB14: 0 | BC14: 0 | BD14: 0 | BE14: 0 | BF14: 0 | BG14: 175 | BH14: 300 | BI14: 400 | BJ14: 575 | BK14: 725
A15: 4 | B15: Poor | C15: =SUM(IF($A15='Design Inputs'!$A$30:$A$37,IF(Design!$B15=SubgradeConditions,'Design Inputs'!$E$30:$G$37)))*145.0377 -> 4351.131 | D15: 45.397293 | E15: 51.132994 | F15: 59.647709 | G15: 66.9425382 | H15: 75.1096288 | I15: 87.3876332 | J15: 97.776284 | K15: 108.9882504 | L15: 124.8866438 | M15: 137.6899456 | N15: 105 | O15: 105 | P15: 105 | Q15: 105 | R15: 105 | S15: 105 | T15: 105 | U15: 105 | V15: 105 | W15: 105 | X15: 0 | Y15: 4.932994 | Z15: 13.447709 | AA15: 20.7425382 | AB15: 28.9096288 | AC15: 41.1876332 | AD15: 51.576284 | AE15: 62.7882504 | AF15: 78.6866438 | AG15: 91.4899456 | AH15: 100 | AI15: 100 | AJ15: 100 | AK15: 150 | AL15: 100 | AM15: 150 | AN15: 150 | AO15: 150 | AP15: 150 | AQ15: 150 | AR15: 0 | AS15: 0 | AT15: 0 | AU15: 0 | AV15: 14.9096288 | AW15: 20.1876332 | AX15: 30.576284 | AY15: 41.7882504 | AZ15: 57.6866438 | BA15: 70.4899456 | BB15: 0 | BC15: 0 | BD15: 0 | BE15: 0 | BF15: 175 | BG15: 225 | BH15: 350 | BI15: 475 | BJ15: 650 | BK15: 800
A16: 5 | B16: Good | C16: =SUM(IF($A16='Design Inputs'!$A$30:$A$37,IF(Design!$B16=SubgradeConditions,'Design Inputs'!$E$30:$G$37)))*145.0377 -> 5801.508 | D16: 40.3535896 | E16: 45.6000612 | F16: 53.331999 | G16: 59.9045538 | H16: 67.2289994 | I16: 78.2742402 | J16: 87.7571524 | K16: 98.17862 | L16: 113.1905788 | M16: 125.349508 | N16: 105 | O16: 105 | P16: 105 | Q16: 105 | R16: 105 | S16: 105 | T16: 105 | U16: 105 | V16: 105 | W16: 105 | X16: 0 | Y16: 0 | Z16: 7.131999 | AA16: 13.7045538 | AB16: 21.0289994 | AC16: 32.0742402 | AD16: 41.5571524 | AE16: 51.97862 | AF16: 66.9905788 | AG16: 79.149508 | AH16: 100 | AI16: 100 | AJ16: 100 | AK16: 100 | AL16: 175 | AM16: 150 | AN16: 150 | AO16: 150 | AP16: 150 | AQ16: 150 | AR16: 0 | AS16: 0 | AT16: 0 | AU16: 0 | AV16: 0 | AW16: 11.0742402 | AX16: 20.5571524 | AY16: 30.97862 | AZ16: 45.9905788 | BA16: 58.149508 | BB16: 0 | BC16: 0 | BD16: 0 | BE16: 0 | BF16: 0 | BG16: 150 | BH16: 250 | BI16: 350 | BJ16: 525 | BK16: 650
A17: 5 | B17: Fair | C17: =SUM(IF($A17='Design Inputs'!$A$30:$A$37,IF(Design!$B17=SubgradeConditions,'Design Inputs'!$E$30:$G$37)))*145.0377 -> 4351.131 | D17: 45.397293 | E17: 51.132994 | F17: 59.647709 | G17: 66.9425382 | H17: 75.1096288 | I17: 87.3876332 | J17: 97.776284 | K17: 108.9882504 | L17: 124.8866438 | M17: 137.6899456 | N17: 105 | O17: 105 | P17: 105 | Q17: 105 | R17: 105 | S17: 105 | T17: 105 | U17: 105 | V17: 105 | W17: 105 | X17: 0 | Y17: 4.932994 | Z17: 13.447709 | AA17: 20.7425382 | AB17: 28.9096288 | AC17: 41.1876332 | AD17: 51.576284 | AE17: 62.7882504 | AF17: 78.6866438 | AG17: 91.4899456 | AH17: 100 | AI17: 100 | AJ17: 100 | AK17: 150 | AL17: 100 | AM17: 150 | AN17: 150 | AO17: 150 | AP17: 150 | AQ17: 150 | AR17: 0 | AS17: 0 | AT17: 0 | AU17: 0 | AV17: 14.9096288 | AW17: 20.1876332 | AX17: 30.576284 | AY17: 41.7882504 | AZ17: 57.6866438 | BA17: 70.4899456 | BB17: 0 | BC17: 0 | BD17: 0 | BE17: 0 | BF17: 175 | BG17: 225 | BH17: 350 | BI17: 475 | BJ17: 650 | BK17: 800
A18: 5 | B18: Poor | C18: =SUM(IF($A18='Design Inputs'!$A$30:$A$37,IF(Design!$B18=SubgradeConditions,'Design Inputs'!$E$30:$G$37)))*145.0377 -> 3625.9425 | D18: 48.831627 | E18: 54.9194482 | F18: 64.0019548 | G18: 71.8149948 | H18: 80.5640248 | I18: 93.621606 | J18: 104.5291026 | K18: 116.1826734 | L18: 132.6179466 | M18: 145.8519054 | N18: 105 | O18: 105 | P18: 105 | Q18: 105 | R18: 105 | S18: 105 | T18: 105 | U18: 105 | V18: 105 | W18: 105 | X18: 2.631627 | Y18: 8.7194482 | Z18: 17.8019548 | AA18: 25.6149948 | AB18: 34.3640248 | AC18: 47.421606 | AD18: 58.3291026 | AE18: 69.9826734 | AF18: 86.4179466 | AG18: 99.6519054 | AH18: 100 | AI18: 100 | AJ18: 150 | AK18: 200 | AL18: 100 | AM18: 150 | AN18: 150 | AO18: 150 | AP18: 150 | AQ18: 150 | AR18: 0 | AS18: 0 | AT18: 0 | AU18: 0 | AV18: 20.3640248 | AW18: 26.421606 | AX18: 37.3291026 | AY18: 48.9826734 | AZ18: 65.4179466 | BA18: 78.6519054 | BB18: 0 | BC18: 0 | BD18: 0 | BE18: 0 | BF18: 250 | BG18: 300 | BH18: 425 | BI18: 550 | BJ18: 750 | BK18: 875
A19: 6 | B19: Good | C19: =SUM(IF($A19='Design Inputs'!$A$30:$A$37,IF(Design!$B19=SubgradeConditions,'Design Inputs'!$E$30:$G$37)))*145.0377 -> 4351.131 | D19: 45.397293 | E19: 51.132994 | F19: 59.647709 | G19: 66.9425382 | H19: 75.1096288 | I19: 87.3876332 | J19: 97.776284 | K19: 108.9882504 | L19: 124.8866438 | M19: 137.6899456 | N19: 105 | O19: 105 | P19: 105 | Q19: 105 | R19: 105 | S19: 105 | T19: 105 | U19: 105 | V19: 105 | W19: 105 | X19: 0 | Y19: 4.932994 | Z19: 13.447709 | AA19: 20.7425382 | AB19: 28.9096288 | AC19: 41.1876332 | AD19: 51.576284 | AE19: 62.7882504 | AF19: 78.6866438 | AG19: 91.4899456 | AH19: 100 | AI19: 100 | AJ19: 100 | AK19: 150 | AL19: 100 | AM19: 150 | AN19: 150 | AO19: 150 | AP19: 150 | AQ19: 150 | AR19: 0 | AS19: 0 | AT19: 0 | AU19: 0 | AV19: 14.9096288 | AW19: 20.1876332 | AX19: 30.576284 | AY19: 41.7882504 | AZ19: 57.6866438 | BA19: 70.4899456 | BB19: 0 | BC19: 0 | BD19: 0 | BE19: 0 | BF19: 175 | BG19: 225 | BH19: 350 | BI19: 475 | BJ19: 650 | BK19: 800
A20: 6 | B20: Fair | C20: =SUM(IF($A20='Design Inputs'!$A$30:$A$37,IF(Design!$B20=SubgradeConditions,'Design Inputs'!$E$30:$G$37)))*145.0377 -> 3625.9425 | D20: 48.831627 | E20: 54.9194482 | F20: 64.0019548 | G20: 71.8149948 | H20: 80.5640248 | I20: 93.621606 | J20: 104.5291026 | K20: 116.1826734 | L20: 132.6179466 | M20: 145.8519054 | N20: 105 | O20: 105 | P20: 105 | Q20: 105 | R20: 105 | S20: 105 | T20: 105 | U20: 105 | V20: 105 | W20: 105 | X20: 2.631627 | Y20: 8.7194482 | Z20: 17.8019548 | AA20: 25.6149948 | AB20: 34.3640248 | AC20: 47.421606 | AD20: 58.3291026 | AE20: 69.9826734 | AF20: 86.4179466 | AG20: 99.6519054 | AH20: 100 | AI20: 100 | AJ20: 150 | AK20: 200 | AL20: 100 | AM20: 150 | AN20: 150 | AO20: 150 | AP20: 150 | AQ20: 150 | AR20: 0 | AS20: 0 | AT20: 0 | AU20: 0 | AV20: 20.3640248 | AW20: 26.421606 | AX20: 37.3291026 | AY20: 48.9826734 | AZ20: 65.4179466 | BA20: 78.6519054 | BB20: 0 | BC20: 0 | BD20: 0 | BE20: 0 | BF20: 250 | BG20: 300 | BH20: 425 | BI20: 550 | BJ20: 750 | BK20: 875
A21: 6 | B21: Poor | C21: =SUM(IF($A21='Design Inputs'!$A$30:$A$37,IF(Design!$B21=SubgradeConditions,'Design Inputs'!$E$30:$G$37)))*145.0377 -> 2610.6786 | D21: 55.559325 | E21: 62.381003 | F21: 72.6428316 | G21: 81.4884324 | H21: 91.310587 | I21: 105.6575738 | J21: 117.3800294 | K21: 129.7713178 | L21: 147.2095354 | M21: 161.298382 | N21: 105 | O21: 105 | P21: 105 | Q21: 105 | R21: 105 | S21: 105 | T21: 105 | U21: 105 | V21: 105 | W21: 105 | X21: 9.359325 | Y21: 16.181003 | Z21: 26.4428316 | AA21: 35.2884324 | AB21: 45.110587 | AC21: 59.4575738 | AD21: 71.1800294 | AE21: 83.5713178 | AF21: 101.0095354 | AG21: 115.098382 | AH21: 100 | AI21: 125 | AJ21: 200 | AK21: 100 | AL21: 100 | AM21: 150 | AN21: 150 | AO21: 150 | AP21: 150 | AQ21: 150 | AR21: 0 | AS21: 0 | AT21: 0 | AU21: 21.2884324 | AV21: 31.110587 | AW21: 38.4575738 | AX21: 50.1800294 | AY21: 62.5713178 | AZ21: 80.0095354 | BA21: 94.098382 | BB21: 0 | BC21: 0 | BD21: 0 | BE21: 250 | BF21: 350 | BG21: 450 | BH21: 575 | BI21: 700 | BJ21: 900 | BK21: 1050
A22: 7 | B22: Good | C22: =SUM(IF($A22='Design Inputs'!$A$30:$A$37,IF(Design!$B22=SubgradeConditions,'Design Inputs'!$E$30:$G$37)))*145.0377 -> 3916.0179 | D22: 47.3574618 | E22: 53.2927306 | F22: 62.128019 | G22: 69.7170564 | H22: 78.2169632 | I22: 90.9488148 | J22: 101.6432054 | K22: 113.1152678 | L22: 129.3239222 | M22: 142.3724864 | N22: 105 | O22: 105 | P22: 105 | Q22: 105 | R22: 105 | S22: 105 | T22: 105 | U22: 105 | V22: 105 | W22: 105 | X22: 1.1574618 | Y22: 7.0927306 | Z22: 15.928019 | AA22: 23.5170564 | AB22: 32.0169632 | AC22: 44.7488148 | AD22: 55.4432054 | AE22: 66.9152678 | AF22: 83.1239222 | AG22: 96.1724864 | AH22: 100 | AI22: 100 | AJ22: 125 | AK22: 175 | AL22: 100 | AM22: 150 | AN22: 150 | AO22: 150 | AP22: 150 | AQ22: 150 | AR22: 0 | AS22: 0 | AT22: 0 | AU22: 0 | AV22: 18.0169632 | AW22: 23.7488148 | AX22: 34.4432054 | AY22: 45.9152678 | AZ22: 62.1239222 | BA22: 75.1724864 | BB22: 0 | BC22: 0 | BD22: 0 | BE22: 0 | BF22: 225 | BG22: 275 | BH22: 400 | BI22: 525 | BJ22: 700 | BK22: 850
A23: 7 | B23: Fair | C23: =SUM(IF($A23='Design Inputs'!$A$30:$A$37,IF(Design!$B23=SubgradeConditions,'Design Inputs'!$E$30:$G$37)))*145.0377 -> 2900.754 | D23: 53.3204166 | E23: 59.891041 | F23: 69.752464 | G23: 78.2568666 | H23: 87.7378484 | I23: 101.6927862 | J23: 113.168049 | K23: 125.3256828 | L23: 142.4323542 | M23: 156.2341046 | N23: 105 | O23: 105 | P23: 105 | Q23: 105 | R23: 105 | S23: 105 | T23: 105 | U23: 105 | V23: 105 | W23: 105 | X23: 7.1204166 | Y23: 13.691041 | Z23: 23.552464 | AA23: 32.0568666 | AB23: 41.5378484 | AC23: 55.4927862 | AD23: 66.968049 | AE23: 79.1256828 | AF23: 96.2323542 | AG23: 110.0341046 | AH23: 100 | AI23: 100 | AJ23: 175 | AK23: 100 | AL23: 100 | AM23: 150 | AN23: 150 | AO23: 150 | AP23: 150 | AQ23: 150 | AR23: 0 | AS23: 0 | AT23: 0 | AU23: 18.0568666 | AV23: 27.5378484 | AW23: 34.4927862 | AX23: 45.968049 | AY23: 58.1256828 | AZ23: 75.2323542 | BA23: 89.0341046 | BB23: 0 | BC23: 0 | BD23: 0 | BE23: 225 | BF23: 325 | BG23: 400 | BH23: 525 | BI23: 650 | BJ23: 850 | BK23: 1000
A24: 7 | B24: Poor | C24: =SUM(IF($A24='Design Inputs'!$A$30:$A$37,IF(Design!$B24=SubgradeConditions,'Design Inputs'!$E$30:$G$37)))*145.0377 -> 2175.5655 | D24: 59.6348312 | E24: 66.92773 | F24: 77.9240504 | G24: 87.3683292 | H24: 97.7556846 | I24: 112.7296704 | J24: 124.8628186 | K24: 137.66419 | L24: 155.7075118 | M24: 170.3229258 | N24: 105 | O24: 105 | P24: 105 | Q24: 105 | R24: 105 | S24: 105 | T24: 105 | U24: 105 | V24: 105 | W24: 105 | X24: 13.4348312 | Y24: 20.72773 | Z24: 31.7240504 | AA24: 41.1683292 | AB24: 51.5556846 | AC24: 66.5296704 | AD24: 78.6628186 | AE24: 91.46419 | AF24: 109.5075118 | AG24: 124.1229258 | AH24: 100 | AI24: 150 | AJ24: 100 | AK24: 100 | AL24: 100 | AM24: 150 | AN24: 150 | AO24: 150 | AP24: 150 | AQ24: 150 | AR24: 0 | AS24: 0 | AT24: 17.7240504 | AU24: 27.1683292 | AV24: 37.5556846 | AW24: 45.5296704 | AX24: 57.6628186 | AY24: 70.46419 | AZ24: 88.5075118 | BA24: 103.1229258 | BB24: 0 | BC24: 0 | BD24: 200 | BE24: 325 | BF24: 425 | BG24: 525 | BH24: 650 | BI24: 800 | BJ24: 1000 | BK24: 1150
A25: 8 | B25: Good | C25: =SUM(IF($A25='Design Inputs'!$A$30:$A$37,IF(Design!$B25=SubgradeConditions,'Design Inputs'!$E$30:$G$37)))*145.0377 -> 3625.9425 | D25: 48.831627 | E25: 54.9194482 | F25: 64.0019548 | G25: 71.8149948 | H25: 80.5640248 | I25: 93.621606 | J25: 104.5291026 | K25: 116.1826734 | L25: 132.6179466 | M25: 145.8519054 | N25: 105 | O25: 105 | P25: 105 | Q25: 105 | R25: 105 | S25: 105 | T25: 105 | U25: 105 | V25: 105 | W25: 105 | X25: 2.631627 | Y25: 8.7194482 | Z25: 17.8019548 | AA25: 25.6149948 | AB25: 34.3640248 | AC25: 47.421606 | AD25: 58.3291026 | AE25: 69.9826734 | AF25: 86.4179466 | AG25: 99.6519054 | AH25: 100 | AI25: 100 | AJ25: 150 | AK25: 200 | AL25: 100 | AM25: 150 | AN25: 150 | AO25: 150 | AP25: 150 | AQ25: 150 | AR25: 0 | AS25: 0 | AT25: 0 | AU25: 0 | AV25: 20.3640248 | AW25: 26.421606 | AX25: 37.3291026 | AY25: 48.9826734 | AZ25: 65.4179466 | BA25: 78.6519054 | BB25: 0 | BC25: 0 | BD25: 0 | BE25: 0 | BF25: 250 | BG25: 300 | BH25: 425 | BI25: 550 | BJ25: 750 | BK25: 875
A26: 8 | B26: Fair | C26: =SUM(IF($A26='Design Inputs'!$A$30:$A$37,IF(Design!$B26=SubgradeConditions,'Design Inputs'!$E$30:$G$37)))*145.0377 -> 2900.754 | D26: 53.3204166 | E26: 59.891041 | F26: 69.752464 | G26: 78.2568666 | H26: 87.7378484 | I26: 101.6927862 | J26: 113.168049 | K26: 125.3256828 | L26: 142.4323542 | M26: 156.2341046 | N26: 105 | O26: 105 | P26: 105 | Q26: 105 | R26: 105 | S26: 105 | T26: 105 | U26: 105 | V26: 105 | W26: 105 | X26: 7.1204166 | Y26: 13.691041 | Z26: 23.552464 | AA26: 32.0568666 | AB26: 41.5378484 | AC26: 55.4927862 | AD26: 66.968049 | AE26: 79.1256828 | AF26: 96.2323542 | AG26: 110.0341046 | AH26: 100 | AI26: 100 | AJ26: 175 | AK26: 100 | AL26: 100 | AM26: 150 | AN26: 150 | AO26: 150 | AP26: 150 | AQ26: 150 | AR26: 0 | AS26: 0 | AT26: 0 | AU26: 18.0568666 | AV26: 27.5378484 | AW26: 34.4927862 | AX26: 45.968049 | AY26: 58.1256828 | AZ26: 75.2323542 | BA26: 89.0341046 | BB26: 0 | BC26: 0 | BD26: 0 | BE26: 225 | BF26: 325 | BG26: 400 | BH26: 525 | BI26: 650 | BJ26: 850 | BK26: 1000
A27: 8 | B27: Poor | C27: =SUM(IF($A27='Design Inputs'!$A$30:$A$37,IF(Design!$B27=SubgradeConditions,'Design Inputs'!$E$30:$G$37)))*145.0377 -> 2175.5655 | D27: 59.6348312 | E27: 66.92773 | F27: 77.9240504 | G27: 87.3683292 | H27: 97.7556846 | I27: 112.7296704 | J27: 124.8628186 | K27: 137.66419 | L27: 155.7075118 | M27: 170.3229258 | N27: 105 | O27: 105 | P27: 105 | Q27: 105 | R27: 105 | S27: 105 | T27: 105 | U27: 105 | V27: 105 | W27: 105 | X27: 13.4348312 | Y27: 20.72773 | Z27: 31.7240504 | AA27: 41.1683292 | AB27: 51.5556846 | AC27: 66.5296704 | AD27: 78.6628186 | AE27: 91.46419 | AF27: 109.5075118 | AG27: 124.1229258 | AH27: 100 | AI27: 150 | AJ27: 100 | AK27: 100 | AL27: 100 | AM27: 150 | AN27: 150 | AO27: 150 | AP27: 150 | AQ27: 150 | AR27: 0 | AS27: 0 | AT27: 17.7240504 | AU27: 27.1683292 | AV27: 37.5556846 | AW27: 45.5296704 | AX27: 57.6628186 | AY27: 70.46419 | AZ27: 88.5075118 | BA27: 103.1229258 | BB27: 0 | BC27: 0 | BD27: 200 | BE27: 325 | BF27: 425 | BG27: 525 | BH27: 650 | BI27: 800 | BJ27: 1000 | BK27: 1150
A31: Asphalt Treated Base
A32: Subgrade Category | B32: Drainage | C32: Mr (psi) | D32: Design SN (mm) | N32: Paver Thickness (mm) | X32: SN Remaining (Excluding Pavers) | AH32: Asphalt Treated Base Thickness (mm) | AR32: SN Remaining (excluding Pavers and Base) | BB32: Unbound Dense Graded Base Thickness (mm) | BL32: SN Remaining (excluding Pavers and Base and Untreated Granular Base) | BV32: Unbound Dense Graded Subbase Thickness (mm)
D33: 10000 | E33: 20000 | F33: 50000 | G33: 100000 | H33: 200000 | I33: 500000 | J33: 1000000 | K33: 2000000 | L33: 5000000 | M33: 10000000 | N33: 10000 | O33: 20000 | P33: 50000 | Q33: 100000 | R33: 200000 | S33: 500000 | T33: 1000000 | U33: 2000000 | V33: 5000000 | W33: 10000000 | X33: 10000 | Y33: 20000 | Z33: 50000 | AA33: 100000 | AB33: 200000 | AC33: 500000 | AD33: 1000000 | AE33: 2000000 | AF33: 5000000 | AG33: 10000000 | AH33: 10000 | AI33: 20000 | AJ33: 50000 | AK33: 100000 | AL33: 200000 | AM33: 500000 | AN33: 1000000 | AO33: 2000000 | AP33: 5000000 | AQ33: 10000000 | AR33: 10000 | AS33: 20000 | AT33: 50000 | AU33: 100000 | AV33: 200000 | AW33: 500000 | AX33: 1000000 | AY33: 2000000 | AZ33: 5000000 | BA33: 10000000 | BB33: 10000 | BC33: 20000 | BD33: 50000 | BE33: 100000 | BF33: 200000 | BG33: 500000 | BH33: 1000000 | BI33: 2000000 | BJ33: 5000000 | BK33: 10000000 | BL33: 10000 | BM33: 20000 | BN33: 50000 | BO33: 100000 | BP33: 200000 | BQ33: 500000 | BR33: 1000000 | BS33: 2000000 | BT33: 5000000 | BU33: 10000000 | BV33: 10000 | BW33: 20000 | BX33: 50000 | BY33: 100000 | BZ33: 200000 | CA33: 500000 | CB33: 1000000 | CC33: 2000000 | CD33: 5000000 | CE33: 10000000
A34: 1 | B34: Good | C34: =C4 -> 13053.393 | D34: =D4 -> 28.1740864 | E34: =E4 -> 32.3487288 | F34: 38.4175508 | G34: 43.4853842 | H34: 49.032795 | I34: 57.243345 | J34: 64.2575042 | K34: 72.101456 | L34: 83.9204824 | M34: 93.9853086 | N34: =ThickPaver -> 105 | O34: 105 | P34: 105 | Q34: 105 | R34: 105 | S34: 105 | T34: 105 | U34: 105 | V34: 105 | W34: 105 | X34: =MAX(0,D34-N34*Apaver) -> 0 | Y34: =MAX(0,E34-O34*Apaver) -> 0 | Z34: =MAX(0,F34-P34*Apaver) -> 0 | AA34: =MAX(0,G34-Q34*Apaver) -> 0 | AB34: =MAX(0,H34-R34*Apaver) -> 2.832795 | AC34: =MAX(0,I34-S34*Apaver) -> 11.043345 | AD34: =MAX(0,J34-T34*Apaver) -> 18.0575042 | AE34: =MAX(0,K34-U34*Apaver) -> 25.901456 | AF34: =MAX(0,L34-V34*Apaver) -> 37.7204824 | AG34: =MAX(0,M34-W34*Apaver) -> 47.7853086 | AH34: =ThickATB -> 100 | AI34: 100 | AJ34: 100 | AK34: 100 | AL34: 100 | AM34: 100 | AN34: 100 | AO34: 100 | AP34: 100 | AQ34: 100 | AR34: =MAX(0,X34-AH34*Aatb) -> 0 | AS34: =MAX(0,Y34-AI34*Aatb) -> 0 | AT34: =MAX(0,Z34-AJ34*Aatb) -> 0 | AU34: =MAX(0,AA34-AK34*Aatb) -> 0 | AV34: =MAX(0,AB34-AL34*Aatb) -> 0 | AW34: =MAX(0,AC34-AM34*Aatb) -> 0 | AX34: =MAX(0,AD34-AN34*Aatb) -> 0 | AY34: =MAX(0,AE34-AO34*Aatb) -> 0 | AZ34: =MAX(0,AF34-AP34*Aatb) -> 9.7204824 | BA34: =MAX(0,AG34-AQ34*Aatb) -> 19.7853086 | BB34: =IF(AR34<100*Agran,100,IF(AR34>200*Agran,100,ROUNDUP(AR34/Agran/25,0)*25)) -> 100 | BC34: =IF(AS34<100*Agran,100,IF(AS34>200*Agran,100,ROUNDUP(AS34/Agran/25,0)*25)) -> 100 | BD34: =IF(AT34<100*Agran,100,IF(AT34>200*Agran,100,ROUNDUP(AT34/Agran/25,0)*25)) -> 100 | BE34: =IF(AU34<100*Agran,100,IF(AU34>200*Agran,100,ROUNDUP(AU34/Agran/25,0)*25)) -> 100 | BF34: =IF(AV34<100*Agran,100,IF(AV34>200*Agran,100,ROUNDUP(AV34/Agran/25,0)*25)) -> 100 | BG34: =IF(AW34<150*Agran,150,IF(AW34>200*Agran,150,ROUNDUP(AW34/Agran/25,0)*25)) -> 150 | BH34: =IF(AX34<150*Agran,150,IF(AX34>200*Agran,150,ROUNDUP(AX34/Agran/25,0)*25)) -> 150 | BI34: =IF(AY34<150*Agran,150,IF(AY34>200*Agran,150,ROUNDUP(AY34/Agran/25,0)*25)) -> 150 | BJ34: =IF(AZ34<150*Agran,150,IF(AZ34>200*Agran,150,ROUNDUP(AZ34/Agran/25,0)*25)) -> 150 | BK34: =IF(BA34<150*Agran,150,IF(BA34>200*Agran,150,ROUNDUP(BA34/Agran/25,0)*25)) -> 150 | BL34: =MAX(0,AR34-BB34*Agran) -> 0 | BM34: =MAX(0,AS34-BC34*Agran) -> 0 | BN34: =MAX(0,AT34-BD34*Agran) -> 0 | BO34: =MAX(0,AU34-BE34*Agran) -> 0 | BP34: =MAX(0,AV34-BF34*Agran) -> 0 | BQ34: =MAX(0,AW34-BG34*Agran) -> 0 | BR34: =MAX(0,AX34-BH34*Agran) -> 0 | BS34: =MAX(0,AY34-BI34*Agran) -> 0 | BT34: =MAX(0,AZ34-BJ34*Agran) -> 0 | BU34: =MAX(0,BA34-BK34*Agran) -> 0 | BV34: =IF(BL34<=0,0,MAX(150,ROUNDUP(BL34/Asubbase/25,0)*25)) -> 0 | BW34: =IF(BM34<=0,0,MAX(150,ROUNDUP(BM34/Asubbase/25,0)*25)) -> 0 | BX34: =IF(BN34<=0,0,MAX(150,ROUNDUP(BN34/Asubbase/25,0)*25)) -> 0 | BY34: =IF(BO34<=0,0,MAX(150,ROUNDUP(BO34/Asubbase/25,0)*25)) -> 0 | BZ34: =IF(BP34<=0,0,MAX(150,ROUNDUP(BP34/Asubbase/25,0)*25)) -> 0 | CA34: =IF(BQ34<=0,0,MAX(150,ROUNDUP(BQ34/Asubbase/25,0)*25)) -> 0 | CB34: =IF(BR34<=0,0,MAX(150,ROUNDUP(BR34/Asubbase/25,0)*25)) -> 0 | CC34: =IF(BS34<=0,0,MAX(150,ROUNDUP(BS34/Asubbase/25,0)*25)) -> 0 | CD34: =IF(BT34<=0,0,MAX(150,ROUNDUP(BT34/Asubbase/25,0)*25)) -> 0 | CE34: =IF(BU34<=0,0,MAX(150,ROUNDUP(BU34/Asubbase/25,0)*25)) -> 0
A35: 1 | B35: Fair | C35: =C5 -> 11603.016 | D35: =D5 -> 29.7802046 | E35: 34.0900258 | F35: 40.363267 | G35: 45.6113388 | H35: 51.367944 | I35: 59.9174316 | J35: 67.2438076 | K35: 75.4476012 | L35: 87.7764564 | M35: 98.1998544 | N35: 105 | O35: 105 | P35: 105 | Q35: 105 | R35: 105 | S35: 105 | T35: 105 | U35: 105 | V35: 105 | W35: 105 | X35: 0 | Y35: 0 | Z35: 0 | AA35: 0 | AB35: 5.167944 | AC35: 13.7174316 | AD35: 21.0438076 | AE35: 29.2476012 | AF35: 41.5764564 | AG35: 51.9998544 | AH35: 100 | AI35: 100 | AJ35: 100 | AK35: 100 | AL35: 100 | AM35: 100 | AN35: 100 | AO35: 100 | AP35: 100 | AQ35: 100 | AR35: 0 | AS35: 0 | AT35: 0 | AU35: 0 | AV35: 0 | AW35: 0 | AX35: 0 | AY35: 1.2476012 | AZ35: 13.5764564 | BA35: 23.9998544 | BB35: 100 | BC35: 100 | BD35: 100 | BE35: 100 | BF35: 100 | BG35: 150 | BH35: 150 | BI35: 150 | BJ35: 150 | BK35: 175 | BL35: 0 | BM35: 0 | BN35: 0 | BO35: 0 | BP35: 0 | BQ35: 0 | BR35: 0 | BS35: 0 | BT35: 0 | BU35: 0 | BV35: 0 | BW35: 0 | BX35: 0 | BY35: 0 | BZ35: 0 | CA35: 0 | CB35: 0 | CC35: 0 | CD35: 0 | CE35: 0
A36: 1 | B36: Poor | C36: 10152.639 | D36: =D6 -> 31.663132 | E36: 36.1322874 | F36: 42.6501306 | G36: 48.115474 | H36: 54.1289494 | I36: 63.091695 | J36: 70.7953118 | K36: 79.4233362 | L36: 92.3251138 | M36: 103.1308834 | N36: 105 | O36: 105 | P36: 105 | Q36: 105 | R36: 105 | S36: 105 | T36: 105 | U36: 105 | V36: 105 | W36: 105 | X36: 0 | Y36: 0 | Z36: 0 | AA36: 1.915474 | AB36: 7.9289494 | AC36: 16.891695 | AD36: 24.5953118 | AE36: 33.2233362 | AF36: 46.1251138 | AG36: 56.9308834 | AH36: 100 | AI36: 100 | AJ36: 100 | AK36: 100 | AL36: 100 | AM36: 100 | AN36: 100 | AO36: 100 | AP36: 100 | AQ36: 100 | AR36: 0 | AS36: 0 | AT36: 0 | AU36: 0 | AV36: 0 | AW36: 0 | AX36: 0 | AY36: 5.2233362 | AZ36: 18.1251138 | BA36: 28.9308834 | BB36: 100 | BC36: 100 | BD36: 100 | BE36: 100 | BF36: 100 | BG36: 150 | BH36: 150 | BI36: 150 | BJ36: 150 | BK36: 150 | BL36: 0 | BM36: 0 | BN36: 0 | BO36: 0 | BP36: 0 | BQ36: 0 | BR36: 0 | BS36: 0 | BT36: 0 | BU36: 7.9308834 | BV36: 0 | BW36: 0 | BX36: 0 | BY36: 0 | BZ36: 0 | CA36: 0 | CB36: 0 | CC36: 0 | CD36: 0 | CE36: 150
A37: 2 | B37: Good | C37: 11603.016 | D37: =D7 -> 29.7802046 | E37: 34.0900258 | F37: 40.363267 | G37: 45.6113388 | H37: 51.367944 | I37: 59.9174316 | J37: 67.2438076 | K37: 75.4476012 | L37: 87.7764564 | M37: 98.1998544 | N37: 105 | O37: 105 | P37: 105 | Q37: 105 | R37: 105 | S37: 105 | T37: 105 | U37: 105 | V37: 105 | W37: 105 | X37: 0 | Y37: 0 | Z37: 0 | AA37: 0 | AB37: 5.167944 | AC37: 13.7174316 | AD37: 21.0438076 | AE37: 29.2476012 | AF37: 41.5764564 | AG37: 51.9998544 | AH37: 100 | AI37: 100 | AJ37: 100 | AK37: 100 | AL37: 100 | AM37: 100 | AN37: 100 | AO37: 100 | AP37: 100 | AQ37: 100 | AR37: 0 | AS37: 0 | AT37: 0 | AU37: 0 | AV37: 0 | AW37: 0 | AX37: 0 | AY37: 1.2476012 | AZ37: 13.5764564 | BA37: 23.9998544 | BB37: 100 | BC37: 100 | BD37: 100 | BE37: 100 | BF37: 100 | BG37: 150 | BH37: 150 | BI37: 150 | BJ37: 150 | BK37: 175 | BL37: 0 | BM37: 0 | BN37: 0 | BO37: 0 | BP37: 0 | BQ37: 0 | BR37: 0 | BS37: 0 | BT37: 0 | BU37: 0 | BV37: 0 | BW37: 0 | BX37: 0 | BY37: 0 | BZ37: 0 | CA37: 0 | CB37: 0 | CC37: 0 | CD37: 0 | CE37: 0
A38: 2 | B38: Fair | C38: 10152.639 | D38: =D8 -> 31.663132 | E38: 36.1322874 | F38: 42.6501306 | G38: 48.115474 | H38: 54.1289494 | I38: 63.091695 | J38: 70.7953118 | K38: 79.4233362 | L38: 92.3251138 | M38: 103.1308834 | N38: 105 | O38: 105 | P38: 105 | Q38: 105 | R38: 105 | S38: 105 | T38: 105 | U38: 105 | V38: 105 | W38: 105 | X38: 0 | Y38: 0 | Z38: 0 | AA38: 1.915474 | AB38: 7.9289494 | AC38: 16.891695 | AD38: 24.5953118 | AE38: 33.2233362 | AF38: 46.1251138 | AG38: 56.9308834 | AH38: 100 | AI38: 100 | AJ38: 100 | AK38: 100 | AL38: 100 | AM38: 100 | AN38: 100 | AO38: 100 | AP38: 100 | AQ38: 100 | AR38: 0 | AS38: 0 | AT38: 0 | AU38: 0 | AV38: 0 | AW38: 0 | AX38: 0 | AY38: 5.2233362 | AZ38: 18.1251138 | BA38: 28.9308834 | BB38: 100 | BC38: 100 | BD38: 100 | BE38: 100 | BF38: 100 | BG38: 150 | BH38: 150 | BI38: 150 | BJ38: 150 | BK38: 150 | BL38: 0 | BM38: 0 | BN38: 0 | BO38: 0 | BP38: 0 | BQ38: 0 | BR38: 0 | BS38: 0 | BT38: 0 | BU38: 7.9308834 | BV38: 0 | BW38: 0 | BX38: 0 | BY38: 0 | BZ38: 0 | CA38: 0 | CB38: 0 | CC38: 0 | CD38: 0 | CE38: 150
A39: 2 | B39: Poor | C39: 7251.885 | D39: =D9 -> 36.7229136 | E39: 41.6378644 | F39: 48.8428792 | G39: 54.931691 | H39: 61.6825538 | I39: 71.831073 | J39: 80.5820588 | K39: 90.310208 | L39: 104.550972 | M39: 116.2058382 | N39: 105 | O39: 105 | P39: 105 | Q39: 105 | R39: 105 | S39: 105 | T39: 105 | U39: 105 | V39: 105 | W39: 105 | X39: 0 | Y39: 0 | Z39: 2.6428792 | AA39: 8.731691 | AB39: 15.4825538 | AC39: 25.631073 | AD39: 34.3820588 | AE39: 44.110208 | AF39: 58.350972 | AG39: 70.0058382 | AH39: 100 | AI39: 100 | AJ39: 100 | AK39: 100 | AL39: 100 | AM39: 100 | AN39: 100 | AO39: 100 | AP39: 100 | AQ39: 100 | AR39: 0 | AS39: 0 | AT39: 0 | AU39: 0 | AV39: 0 | AW39: 0 | AX39: 6.3820588 | AY39: 16.110208 | AZ39: 30.350972 | BA39: 42.0058382 | BB39: 100 | BC39: 100 | BD39: 100 | BE39: 100 | BF39: 100 | BG39: 150 | BH39: 150 | BI39: 150 | BJ39: 150 | BK39: 150 | BL39: 0 | BM39: 0 | BN39: 0 | BO39: 0 | BP39: 0 | BQ39: 0 | BR39: 0 | BS39: 0 | BT39: 9.350972 | BU39: 21.0058382 | BV39: 0 | BW39: 0 | BX39: 0 | BY39: 0 | BZ39: 0 | CA39: 0 | CB39: 0 | CC39: 0 | CD39: 150 | CE39: 250
A40: 3 | B40: Good | C40: 10152.639 | D40: =D10 -> 31.663132 | E40: 36.1322874 | F40: 42.6501306 | G40: 48.115474 | H40: 54.1289494 | I40: 63.091695 | J40: 70.7953118 | K40: 79.4233362 | L40: 92.3251138 | M40: 103.1308834 | N40: 105 | O40: 105 | P40: 105 | Q40: 105 | R40: 105 | S40: 105 | T40: 105 | U40: 105 | V40: 105 | W40: 105 | X40: 0 | Y40: 0 | Z40: 0 | AA40: 1.915474 | AB40: 7.9289494 | AC40: 16.891695 | AD40: 24.5953118 | AE40: 33.2233362 | AF40: 46.1251138 | AG40: 56.9308834 | AH40: 100 | AI40: 100 | AJ40: 100 | AK40: 100 | AL40: 100 | AM40: 100 | AN40: 100 | AO40: 100 | AP40: 100 | AQ40: 100 | AR40: 0 | AS40: 0 | AT40: 0 | AU40: 0 | AV40: 0 | AW40: 0 | AX40: 0 | AY40: 5.2233362 | AZ40: 18.1251138 | BA40: 28.9308834 | BB40: 100 | BC40: 100 | BD40: 100 | BE40: 100 | BF40: 100 | BG40: 150 | BH40: 150 | BI40: 150 | BJ40: 150 | BK40: 150 | BL40: 0 | BM40: 0 | BN40: 0 | BO40: 0 | BP40: 0 | BQ40: 0 | BR40: 0 | BS40: 0 | BT40: 0 | BU40: 7.9308834 | BV40: 0 | BW40: 0 | BX40: 0 | BY40: 0 | BZ40: 0 | CA40: 0 | CB40: 0 | CC40: 0 | CD40: 0 | CE40: 150
A41: 3 | B41: Fair | C41: 7251.885 | D41: =D11 -> 36.7229136 | E41: 41.6378644 | F41: 48.8428792 | G41: 54.931691 | H41: 61.6825538 | I41: 71.831073 | J41: 80.5820588 | K41: 90.310208 | L41: 104.550972 | M41: 116.2058382 | N41: 105 | O41: 105 | P41: 105 | Q41: 105 | R41: 105 | S41: 105 | T41: 105 | U41: 105 | V41: 105 | W41: 105 | X41: 0 | Y41: 0 | Z41: 2.6428792 | AA41: 8.731691 | AB41: 15.4825538 | AC41: 25.631073 | AD41: 34.3820588 | AE41: 44.110208 | AF41: 58.350972 | AG41: 70.0058382 | AH41: 100 | AI41: 100 | AJ41: 100 | AK41: 100 | AL41: 100 | AM41: 100 | AN41: 100 | AO41: 100 | AP41: 100 | AQ41: 100 | AR41: 0 | AS41: 0 | AT41: 0 | AU41: 0 | AV41: 0 | AW41: 0 | AX41: 6.3820588 | AY41: 16.110208 | AZ41: 30.350972 | BA41: 42.0058382 | BB41: 100 | BC41: 100 | BD41: 100 | BE41: 100 | BF41: 100 | BG41: 150 | BH41: 150 | BI41: 150 | BJ41: 150 | BK41: 150 | BL41: 0 | BM41: 0 | BN41: 0 | BO41: 0 | BP41: 0 | BQ41: 0 | BR41: 0 | BS41: 0 | BT41: 9.350972 | BU41: 21.0058382 | BV41: 0 | BW41: 0 | BX41: 0 | BY41: 0 | BZ41: 0 | CA41: 0 | CB41: 0 | CC41: 0 | CD41: 150 | CE41: 250
A42: 3 | B42: Poor | C42: 5076.3195 | D42: =D12 -> 42.6404786 | E42: 48.105822 | F42: 56.1843936 | G42: 63.0775472 | H42: 70.7792082 | I42: 82.3916056 | J42: 92.3051494 | K42: 103.109014 | L42: 118.5432478 | M42: 130.9982902 | N42: 105 | O42: 105 | P42: 105 | Q42: 105 | R42: 105 | S42: 105 | T42: 105 | U42: 105 | V42: 105 | W42: 105 | X42: 0 | Y42: 1.905822 | Z42: 9.9843936 | AA42: 16.8775472 | AB42: 24.5792082 | AC42: 36.1916056 | AD42: 46.1051494 | AE42: 56.909014 | AF42: 72.3432478 | AG42: 84.7982902 | AH42: 100 | AI42: 100 | AJ42: 100 | AK42: 100 | AL42: 100 | AM42: 100 | AN42: 100 | AO42: 100 | AP42: 100 | AQ42: 100 | AR42: 0 | AS42: 0 | AT42: 0 | AU42: 0 | AV42: 0 | AW42: 8.1916056 | AX42: 18.1051494 | AY42: 28.909014 | AZ42: 44.3432478 | BA42: 56.7982902 | BB42: 100 | BC42: 100 | BD42: 100 | BE42: 100 | BF42: 100 | BG42: 150 | BH42: 150 | BI42: 150 | BJ42: 150 | BK42: 150 | BL42: 0 | BM42: 0 | BN42: 0 | BO42: 0 | BP42: 0 | BQ42: 0 | BR42: 0 | BS42: 7.909014 | BT42: 23.3432478 | BU42: 35.7982902 | BV42: 0 | BW42: 0 | BX42: 0 | BY42: 0 | BZ42: 0 | CA42: 0 | CB42: 0 | CC42: 150 | CD42: 275 | CE42: 400
A43: 4 | B43: Good | C43: 7251.885 | D43: =D13 -> 36.7229136 | E43: 41.6378644 | F43: 48.8428792 | G43: 54.931691 | H43: 61.6825538 | I43: 71.831073 | J43: 80.5820588 | K43: 90.310208 | L43: 104.550972 | M43: 116.2058382 | N43: 105 | O43: 105 | P43: 105 | Q43: 105 | R43: 105 | S43: 105 | T43: 105 | U43: 105 | V43: 105 | W43: 105 | X43: 0 | Y43: 0 | Z43: 2.6428792 | AA43: 8.731691 | AB43: 15.4825538 | AC43: 25.631073 | AD43: 34.3820588 | AE43: 44.110208 | AF43: 58.350972 | AG43: 70.0058382 | AH43: 100 | AI43: 100 | AJ43: 100 | AK43: 100 | AL43: 100 | AM43: 100 | AN43: 100 | AO43: 100 | AP43: 100 | AQ43: 100 | AR43: 0 | AS43: 0 | AT43: 0 | AU43: 0 | AV43: 0 | AW43: 0 | AX43: 6.3820588 | AY43: 16.110208 | AZ43: 30.350972 | BA43: 42.0058382 | BB43: 100 | BC43: 100 | BD43: 100 | BE43: 100 | BF43: 100 | BG43: 150 | BH43: 150 | BI43: 150 | BJ43: 150 | BK43: 150 | BL43: 0 | BM43: 0 | BN43: 0 | BO43: 0 | BP43: 0 | BQ43: 0 | BR43: 0 | BS43: 0 | BT43: 9.350972 | BU43: 21.0058382 | BV43: 0 | BW43: 0 | BX43: 0 | BY43: 0 | BZ43: 0 | CA43: 0 | CB43: 0 | CC43: 0 | CD43: 150 | CE43: 250
A44: 4 | B44: Fair | C44: 5076.3195 | D44: =D14 -> 42.6404786 | E44: 48.105822 | F44: 56.1843936 | G44: 63.0775472 | H44: 70.7792082 | I44: 82.3916056 | J44: 92.3051494 | K44: 103.109014 | L44: 118.5432478 | M44: 130.9982902 | N44: =ThickPaver -> 105 | O44: 105 | P44: 105 | Q44: 105 | R44: 105 | S44: 105 | T44: 105 | U44: 105 | V44: 105 | W44: 105 | X44: 0 | Y44: 1.905822 | Z44: 9.9843936 | AA44: 16.8775472 | AB44: 24.5792082 | AC44: 36.1916056 | AD44: 46.1051494 | AE44: 56.909014 | AF44: 72.3432478 | AG44: 84.7982902 | AH44: =ThickATB -> 100 | AI44: 100 | AJ44: 100 | AK44: 100 | AL44: 100 | AM44: 100 | AN44: 100 | AO44: 100 | AP44: 100 | AQ44: 100 | AR44: 0 | AS44: 0 | AT44: 0 | AU44: 0 | AV44: 0 | AW44: 8.1916056 | AX44: 18.1051494 | AY44: 28.909014 | AZ44: 44.3432478 | BA44: 56.7982902 | BB44: 100 | BC44: 100 | BD44: 100 | BE44: 100 | BF44: 100 | BG44: 150 | BH44: 150 | BI44: 150 | BJ44: 150 | BK44: 150 | BL44: 0 | BM44: 0 | BN44: 0 | BO44: 0 | BP44: 0 | BQ44: 0 | BR44: 0 | BS44: 7.909014 | BT44: 23.3432478 | BU44: 35.7982902 | BV44: 0 | BW44: 0 | BX44: 0 | BY44: 0 | BZ44: 0 | CA44: 0 | CB44: 0 | CC44: 150 | CD44: 275 | CE44: 400
A45: 4 | B45: Poor | C45: 4351.131 | D45: =D15 -> 45.397293 | E45: 51.132994 | F45: 59.647709 | G45: 66.9425382 | H45: 75.1096288 | I45: 87.3876332 | J45: 97.776284 | K45: 108.9882504 | L45: 124.8866438 | M45: 137.6899456 | N45: 105 | O45: 105 | P45: 105 | Q45: 105 | R45: 105 | S45: 105 | T45: 105 | U45: 105 | V45: 105 | W45: 105 | X45: 0 | Y45: 4.932994 | Z45: 13.447709 | AA45: 20.7425382 | AB45: 28.9096288 | AC45: 41.1876332 | AD45: 51.576284 | AE45: 62.7882504 | AF45: 78.6866438 | AG45: 91.4899456 | AH45: 100 | AI45: 100 | AJ45: 100 | AK45: 100 | AL45: 100 | AM45: 100 | AN45: 100 | AO45: 100 | AP45: 100 | AQ45: 100 | AR45: 0 | AS45: 0 | AT45: 0 | AU45: 0 | AV45: 0.9096288 | AW45: 13.1876332 | AX45: 23.576284 | AY45: 34.7882504 | AZ45: 50.6866438 | BA45: 63.4899456 | BB45: 100 | BC45: 100 | BD45: 100 | BE45: 100 | BF45: 100 | BG45: 150 | BH45: 175 | BI45: 150 | BJ45: 150 | BK45: 150 | BL45: 0 | BM45: 0 | BN45: 0 | BO45: 0 | BP45: 0 | BQ45: 0 | BR45: 0 | BS45: 13.7882504 | BT45: 29.6866438 | BU45: 42.4899456 | BV45: 0 | BW45: 0 | BX45: 0 | BY45: 0 | BZ45: 0 | CA45: 0 | CB45: 0 | CC45: 175 | CD45: 350 | CE45: 475
A46: 5 | B46: Good | C46: 5801.508 | D46: =D16 -> 40.3535896 | E46: 45.6000612 | F46: 53.331999 | G46: 59.9045538 | H46: 67.2289994 | I46: 78.2742402 | J46: 87.7571524 | K46: 98.17862 | L46: 113.1905788 | M46: 125.349508 | N46: 105 | O46: 105 | P46: 105 | Q46: 105 | R46: 105 | S46: 105 | T46: 105 | U46: 105 | V46: 105 | W46: 105 | X46: 0 | Y46: 0 | Z46: 7.131999 | AA46: 13.7045538 | AB46: 21.0289994 | AC46: 32.0742402 | AD46: 41.5571524 | AE46: 51.97862 | AF46: 66.9905788 | AG46: 79.149508 | AH46: 100 | AI46: 100 | AJ46: 100 | AK46: 100 | AL46: 100 | AM46: 100 | AN46: 100 | AO46: 100 | AP46: 100 | AQ46: 100 | AR46: 0 | AS46: 0 | AT46: 0 | AU46: 0 | AV46: 0 | AW46: 4.0742402 | AX46: 13.5571524 | AY46: 23.97862 | AZ46: 38.9905788 | BA46: 51.149508 | BB46: 100 | BC46: 100 | BD46: 100 | BE46: 100 | BF46: 100 | BG46: 150 | BH46: 150 | BI46: 175 | BJ46: 150 | BK46: 150 | BL46: 0 | BM46: 0 | BN46: 0 | BO46: 0 | BP46: 0 | BQ46: 0 | BR46: 0 | BS46: 0 | BT46: 17.9905788 | BU46: 30.149508 | BV46: 0 | BW46: 0 | BX46: 0 | BY46: 0 | BZ46: 0 | CA46: 0 | CB46: 0 | CC46: 0 | CD46: 200 | CE46: 350
A47: 5 | B47: Fair | C47: 4351.131 | D47: =D17 -> 45.397293 | E47: 51.132994 | F47: 59.647709 | G47: 66.9425382 | H47: 75.1096288 | I47: 87.3876332 | J47: 97.776284 | K47: 108.9882504 | L47: 124.8866438 | M47: 137.6899456 | N47: 105 | O47: 105 | P47: 105 | Q47: 105 | R47: 105 | S47: 105 | T47: 105 | U47: 105 | V47: 105 | W47: 105 | X47: 0 | Y47: 4.932994 | Z47: 13.447709 | AA47: 20.7425382 | AB47: 28.9096288 | AC47: 41.1876332 | AD47: 51.576284 | AE47: 62.7882504 | AF47: 78.6866438 | AG47: 91.4899456 | AH47: 100 | AI47: 100 | AJ47: 100 | AK47: 100 | AL47: 100 | AM47: 100 | AN47: 100 | AO47: 100 | AP47: 100 | AQ47: 100 | AR47: 0 | AS47: 0 | AT47: 0 | AU47: 0 | AV47: 0.9096288 | AW47: 13.1876332 | AX47: 23.576284 | AY47: 34.7882504 | AZ47: 50.6866438 | BA47: 63.4899456 | BB47: 100 | BC47: 100 | BD47: 100 | BE47: 100 | BF47: 100 | BG47: 150 | BH47: 175 | BI47: 150 | BJ47: 150 | BK47: 150 | BL47: 0 | BM47: 0 | BN47: 0 | BO47: 0 | BP47: 0 | BQ47: 0 | BR47: 0 | BS47: 13.7882504 | BT47: 29.6866438 | BU47: 42.4899456 | BV47: 0 | BW47: 0 | BX47: 0 | BY47: 0 | BZ47: 0 | CA47: 0 | CB47: 0 | CC47: 175 | CD47: 350 | CE47: 475
A48: 5 | B48: Poor | C48: 3625.9425 | D48: =D18 -> 48.831627 | E48: 54.9194482 | F48: 64.0019548 | G48: 71.8149948 | H48: 80.5640248 | I48: 93.621606 | J48: 104.5291026 | K48: 116.1826734 | L48: 132.6179466 | M48: 145.8519054 | N48: 105 | O48: 105 | P48: 105 | Q48: 105 | R48: 105 | S48: 105 | T48: 105 | U48: 105 | V48: 105 | W48: 105 | X48: 2.631627 | Y48: 8.7194482 | Z48: 17.8019548 | AA48: 25.6149948 | AB48: 34.3640248 | AC48: 47.421606 | AD48: 58.3291026 | AE48: 69.9826734 | AF48: 86.4179466 | AG48: 99.6519054 | AH48: 100 | AI48: 100 | AJ48: 100 | AK48: 100 | AL48: 100 | AM48: 100 | AN48: 100 | AO48: 100 | AP48: 100 | AQ48: 100 | AR48: 0 | AS48: 0 | AT48: 0 | AU48: 0 | AV48: 6.3640248 | AW48: 19.421606 | AX48: 30.3291026 | AY48: 41.9826734 | AZ48: 58.4179466 | BA48: 71.6519054 | BB48: 100 | BC48: 100 | BD48: 100 | BE48: 100 | BF48: 100 | BG48: 150 | BH48: 150 | BI48: 150 | BJ48: 150 | BK48: 150 | BL48: 0 | BM48: 0 | BN48: 0 | BO48: 0 | BP48: 0 | BQ48: 0 | BR48: 9.3291026 | BS48: 20.9826734 | BT48: 37.4179466 | BU48: 50.6519054 | BV48: 0 | BW48: 0 | BX48: 0 | BY48: 0 | BZ48: 0 | CA48: 0 | CB48: 150 | CC48: 250 | CD48: 425 | CE48: 575
A49: 6 | B49: Good | C49: 4351.131 | D49: =D19 -> 45.397293 | E49: 51.132994 | F49: 59.647709 | G49: 66.9425382 | H49: 75.1096288 | I49: 87.3876332 | J49: 97.776284 | K49: 108.9882504 | L49: 124.8866438 | M49: 137.6899456 | N49: 105 | O49: 105 | P49: 105 | Q49: 105 | R49: 105 | S49: 105 | T49: 105 | U49: 105 | V49: 105 | W49: 105 | X49: 0 | Y49: 4.932994 | Z49: 13.447709 | AA49: 20.7425382 | AB49: 28.9096288 | AC49: 41.1876332 | AD49: 51.576284 | AE49: 62.7882504 | AF49: 78.6866438 | AG49: 91.4899456 | AH49: 100 | AI49: 100 | AJ49: 100 | AK49: 100 | AL49: 100 | AM49: 100 | AN49: 100 | AO49: 100 | AP49: 100 | AQ49: 100 | AR49: 0 | AS49: 0 | AT49: 0 | AU49: 0 | AV49: 0.9096288 | AW49: 13.1876332 | AX49: 23.576284 | AY49: 34.7882504 | AZ49: 50.6866438 | BA49: 63.4899456 | BB49: 100 | BC49: 100 | BD49: 100 | BE49: 100 | BF49: 100 | BG49: 150 | BH49: 175 | BI49: 150 | BJ49: 150 | BK49: 150 | BL49: 0 | BM49: 0 | BN49: 0 | BO49: 0 | BP49: 0 | BQ49: 0 | BR49: 0 | BS49: 13.7882504 | BT49: 29.6866438 | BU49: 42.4899456 | BV49: 0 | BW49: 0 | BX49: 0 | BY49: 0 | BZ49: 0 | CA49: 0 | CB49: 0 | CC49: 175 | CD49: 350 | CE49: 475
A50: 6 | B50: Fair | C50: 3625.9425 | D50: =D20 -> 48.831627 | E50: 54.9194482 | F50: 64.0019548 | G50: 71.8149948 | H50: 80.5640248 | I50: 93.621606 | J50: 104.5291026 | K50: 116.1826734 | L50: 132.6179466 | M50: 145.8519054 | N50: 105 | O50: 105 | P50: 105 | Q50: 105 | R50: 105 | S50: 105 | T50: 105 | U50: 105 | V50: 105 | W50: 105 | X50: 2.631627 | Y50: 8.7194482 | Z50: 17.8019548 | AA50: 25.6149948 | AB50: 34.3640248 | AC50: 47.421606 | AD50: 58.3291026 | AE50: 69.9826734 | AF50: 86.4179466 | AG50: 99.6519054 | AH50: 100 | AI50: 100 | AJ50: 100 | AK50: 100 | AL50: 100 | AM50: 100 | AN50: 100 | AO50: 100 | AP50: 100 | AQ50: 100 | AR50: 0 | AS50: 0 | AT50: 0 | AU50: 0 | AV50: 6.3640248 | AW50: 19.421606 | AX50: 30.3291026 | AY50: 41.9826734 | AZ50: 58.4179466 | BA50: 71.6519054 | BB50: 100 | BC50: 100 | BD50: 100 | BE50: 100 | BF50: 100 | BG50: 150 | BH50: 150 | BI50: 150 | BJ50: 150 | BK50: 150 | BL50: 0 | BM50: 0 | BN50: 0 | BO50: 0 | BP50: 0 | BQ50: 0 | BR50: 9.3291026 | BS50: 20.9826734 | BT50: 37.4179466 | BU50: 50.6519054 | BV50: 0 | BW50: 0 | BX50: 0 | BY50: 0 | BZ50: 0 | CA50: 0 | CB50: 150 | CC50: 250 | CD50: 425 | CE50: 575
A51: 6 | B51: Poor | C51: 2610.6786 | D51: =D21 -> 55.559325 | E51: 62.381003 | F51: 72.6428316 | G51: 81.4884324 | H51: 91.310587 | I51: 105.6575738 | J51: 117.3800294 | K51: 129.7713178 | L51: 147.2095354 | M51: 161.298382 | N51: 105 | O51: 105 | P51: 105 | Q51: 105 | R51: 105 | S51: 105 | T51: 105 | U51: 105 | V51: 105 | W51: 105 | X51: 9.359325 | Y51: 16.181003 | Z51: 26.4428316 | AA51: 35.2884324 | AB51: 45.110587 | AC51: 59.4575738 | AD51: 71.1800294 | AE51: 83.5713178 | AF51: 101.0095354 | AG51: 115.098382 | AH51: 100 | AI51: 100 | AJ51: 100 | AK51: 100 | AL51: 100 | AM51: 100 | AN51: 100 | AO51: 100 | AP51: 100 | AQ51: 100 | AR51: 0 | AS51: 0 | AT51: 0 | AU51: 7.2884324 | AV51: 17.110587 | AW51: 31.4575738 | AX51: 43.1800294 | AY51: 55.5713178 | AZ51: 73.0095354 | BA51: 87.098382 | BB51: 100 | BC51: 100 | BD51: 100 | BE51: 100 | BF51: 125 | BG51: 150 | BH51: 150 | BI51: 150 | BJ51: 150 | BK51: 150 | BL51: 0 | BM51: 0 | BN51: 0 | BO51: 0 | BP51: 0 | BQ51: 10.4575738 | BR51: 22.1800294 | BS51: 34.5713178 | BT51: 52.0095354 | BU51: 66.098382 | BV51: 0 | BW51: 0 | BX51: 0 | BY51: 0 | BZ51: 0 | CA51: 150 | CB51: 250 | CC51: 400 | CD51: 600 | CE51: 750
A52: 7 | B52: Good | C52: 3916.0179 | D52: =D22 -> 47.3574618 | E52: 53.2927306 | F52: 62.128019 | G52: 69.7170564 | H52: 78.2169632 | I52: 90.9488148 | J52: 101.6432054 | K52: 113.1152678 | L52: 129.3239222 | M52: 142.3724864 | N52: 105 | O52: 105 | P52: 105 | Q52: 105 | R52: 105 | S52: 105 | T52: 105 | U52: 105 | V52: 105 | W52: 105 | X52: 1.1574618 | Y52: 7.0927306 | Z52: 15.928019 | AA52: 23.5170564 | AB52: 32.0169632 | AC52: 44.7488148 | AD52: 55.4432054 | AE52: 66.9152678 | AF52: 83.1239222 | AG52: 96.1724864 | AH52: 100 | AI52: 100 | AJ52: 100 | AK52: 100 | AL52: 100 | AM52: 100 | AN52: 100 | AO52: 100 | AP52: 100 | AQ52: 100 | AR52: 0 | AS52: 0 | AT52: 0 | AU52: 0 | AV52: 4.0169632 | AW52: 16.7488148 | AX52: 27.4432054 | AY52: 38.9152678 | AZ52: 55.1239222 | BA52: 68.1724864 | BB52: 100 | BC52: 100 | BD52: 100 | BE52: 100 | BF52: 100 | BG52: 150 | BH52: 200 | BI52: 150 | BJ52: 150 | BK52: 150 | BL52: 0 | BM52: 0 | BN52: 0 | BO52: 0 | BP52: 0 | BQ52: 0 | BR52: 0 | BS52: 17.9152678 | BT52: 34.1239222 | BU52: 47.1724864 | BV52: 0 | BW52: 0 | BX52: 0 | BY52: 0 | BZ52: 0 | CA52: 0 | CB52: 0 | CC52: 200 | CD52: 400 | CE52: 525
A53: 7 | B53: Fair | C53: 2900.754 | D53: =D23 -> 53.3204166 | E53: 59.891041 | F53: 69.752464 | G53: 78.2568666 | H53: 87.7378484 | I53: 101.6927862 | J53: 113.168049 | K53: 125.3256828 | L53: 142.4323542 | M53: 156.2341046 | N53: 105 | O53: 105 | P53: 105 | Q53: 105 | R53: 105 | S53: 105 | T53: 105 | U53: 105 | V53: 105 | W53: 105 | X53: 7.1204166 | Y53: 13.691041 | Z53: 23.552464 | AA53: 32.0568666 | AB53: 41.5378484 | AC53: 55.4927862 | AD53: 66.968049 | AE53: 79.1256828 | AF53: 96.2323542 | AG53: 110.0341046 | AH53: 100 | AI53: 100 | AJ53: 100 | AK53: 100 | AL53: 100 | AM53: 100 | AN53: 100 | AO53: 100 | AP53: 100 | AQ53: 100 | AR53: 0 | AS53: 0 | AT53: 0 | AU53: 4.0568666 | AV53: 13.5378484 | AW53: 27.4927862 | AX53: 38.968049 | AY53: 51.1256828 | AZ53: 68.2323542 | BA53: 82.0341046 | BB53: 100 | BC53: 100 | BD53: 100 | BE53: 100 | BF53: 100 | BG53: 200 | BH53: 150 | BI53: 150 | BJ53: 150 | BK53: 150 | BL53: 0 | BM53: 0 | BN53: 0 | BO53: 0 | BP53: 0 | BQ53: 0 | BR53: 17.968049 | BS53: 30.1256828 | BT53: 47.2323542 | BU53: 61.0341046 | BV53: 0 | BW53: 0 | BX53: 0 | BY53: 0 | BZ53: 0 | CA53: 0 | CB53: 200 | CC53: 350 | CD53: 525 | CE53: 700
A54: 7 | B54: Poor | C54: 2175.5655 | D54: =D24 -> 59.6348312 | E54: 66.92773 | F54: 77.9240504 | G54: 87.3683292 | H54: 97.7556846 | I54: 112.7296704 | J54: 124.8628186 | K54: 137.66419 | L54: 155.7075118 | M54: 170.3229258 | N54: 105 | O54: 105 | P54: 105 | Q54: 105 | R54: 105 | S54: 105 | T54: 105 | U54: 105 | V54: 105 | W54: 105 | X54: 13.4348312 | Y54: 20.72773 | Z54: 31.7240504 | AA54: 41.1683292 | AB54: 51.5556846 | AC54: 66.5296704 | AD54: 78.6628186 | AE54: 91.46419 | AF54: 109.5075118 | AG54: 124.1229258 | AH54: 100 | AI54: 100 | AJ54: 100 | AK54: 100 | AL54: 100 | AM54: 100 | AN54: 100 | AO54: 100 | AP54: 100 | AQ54: 100 | AR54: 0 | AS54: 0 | AT54: 3.7240504 | AU54: 13.1683292 | AV54: 23.5556846 | AW54: 38.5296704 | AX54: 50.6628186 | AY54: 63.46419 | AZ54: 81.5075118 | BA54: 96.1229258 | BB54: 100 | BC54: 100 | BD54: 100 | BE54: 100 | BF54: 175 | BG54: 150 | BH54: 150 | BI54: 150 | BJ54: 150 | BK54: 150 | BL54: 0 | BM54: 0 | BN54: 0 | BO54: 0 | BP54: 0 | BQ54: 17.5296704 | BR54: 29.6628186 | BS54: 42.46419 | BT54: 60.5075118 | BU54: 75.1229258 | BV54: 0 | BW54: 0 | BX54: 0 | BY54: 0 | BZ54: 0 | CA54: 200 | CB54: 350 | CC54: 475 | CD54: 675 | CE54: 850
A55: 8 | B55: Good | C55: 3625.9425 | D55: =D25 -> 48.831627 | E55: 54.9194482 | F55: 64.0019548 | G55: 71.8149948 | H55: 80.5640248 | I55: 93.621606 | J55: 104.5291026 | K55: 116.1826734 | L55: 132.6179466 | M55: 145.8519054 | N55: 105 | O55: 105 | P55: 105 | Q55: 105 | R55: 105 | S55: 105 | T55: 105 | U55: 105 | V55: 105 | W55: 105 | X55: 2.631627 | Y55: 8.7194482 | Z55: 17.8019548 | AA55: 25.6149948 | AB55: 34.3640248 | AC55: 47.421606 | AD55: 58.3291026 | AE55: 69.9826734 | AF55: 86.4179466 | AG55: 99.6519054 | AH55: 100 | AI55: 100 | AJ55: 100 | AK55: 100 | AL55: 100 | AM55: 100 | AN55: 100 | AO55: 100 | AP55: 100 | AQ55: 100 | AR55: 0 | AS55: 0 | AT55: 0 | AU55: 0 | AV55: 6.3640248 | AW55: 19.421606 | AX55: 30.3291026 | AY55: 41.9826734 | AZ55: 58.4179466 | BA55: 71.6519054 | BB55: 100 | BC55: 100 | BD55: 100 | BE55: 100 | BF55: 100 | BG55: 150 | BH55: 150 | BI55: 150 | BJ55: 150 | BK55: 150 | BL55: 0 | BM55: 0 | BN55: 0 | BO55: 0 | BP55: 0 | BQ55: 0 | BR55: 9.3291026 | BS55: 20.9826734 | BT55: 37.4179466 | BU55: 50.6519054 | BV55: 0 | BW55: 0 | BX55: 0 | BY55: 0 | BZ55: 0 | CA55: 0 | CB55: 150 | CC55: 250 | CD55: 425 | CE55: 575
A56: 8 | B56: Fair | C56: 2900.754 | D56: =D26 -> 53.3204166 | E56: 59.891041 | F56: 69.752464 | G56: 78.2568666 | H56: 87.7378484 | I56: 101.6927862 | J56: 113.168049 | K56: 125.3256828 | L56: 142.4323542 | M56: 156.2341046 | N56: 105 | O56: 105 | P56: 105 | Q56: 105 | R56: 105 | S56: 105 | T56: 105 | U56: 105 | V56: 105 | W56: 105 | X56: 7.1204166 | Y56: 13.691041 | Z56: 23.552464 | AA56: 32.0568666 | AB56: 41.5378484 | AC56: 55.4927862 | AD56: 66.968049 | AE56: 79.1256828 | AF56: 96.2323542 | AG56: 110.0341046 | AH56: 100 | AI56: 100 | AJ56: 100 | AK56: 100 | AL56: 100 | AM56: 100 | AN56: 100 | AO56: 100 | AP56: 100 | AQ56: 100 | AR56: 0 | AS56: 0 | AT56: 0 | AU56: 4.0568666 | AV56: 13.5378484 | AW56: 27.4927862 | AX56: 38.968049 | AY56: 51.1256828 | AZ56: 68.2323542 | BA56: 82.0341046 | BB56: 100 | BC56: 100 | BD56: 100 | BE56: 100 | BF56: 100 | BG56: 200 | BH56: 150 | BI56: 150 | BJ56: 150 | BK56: 150 | BL56: 0 | BM56: 0 | BN56: 0 | BO56: 0 | BP56: 0 | BQ56: 0 | BR56: 17.968049 | BS56: 30.1256828 | BT56: 47.2323542 | BU56: 61.0341046 | BV56: 0 | BW56: 0 | BX56: 0 | BY56: 0 | BZ56: 0 | CA56: 0 | CB56: 200 | CC56: 350 | CD56: 525 | CE56: 700
A57: 8 | B57: Poor | C57: 2175.5655 | D57: =D27 -> 59.6348312 | E57: 66.92773 | F57: 77.9240504 | G57: 87.3683292 | H57: 97.7556846 | I57: 112.7296704 | J57: 124.8628186 | K57: 137.66419 | L57: 155.7075118 | M57: 170.3229258 | N57: 105 | O57: 105 | P57: 105 | Q57: 105 | R57: 105 | S57: 105 | T57: 105 | U57: 105 | V57: 105 | W57: 105 | X57: 13.4348312 | Y57: 20.72773 | Z57: 31.7240504 | AA57: 41.1683292 | AB57: 51.5556846 | AC57: 66.5296704 | AD57: 78.6628186 | AE57: 91.46419 | AF57: 109.5075118 | AG57: 124.1229258 | AH57: 100 | AI57: 100 | AJ57: 100 | AK57: 100 | AL57: 100 | AM57: 100 | AN57: 100 | AO57: 100 | AP57: 100 | AQ57: 100 | AR57: 0 | AS57: 0 | AT57: 3.7240504 | AU57: 13.1683292 | AV57: 23.5556846 | AW57: 38.5296704 | AX57: 50.6628186 | AY57: 63.46419 | AZ57: 81.5075118 | BA57: 96.1229258 | BB57: 100 | BC57: 100 | BD57: 100 | BE57: 100 | BF57: 175 | BG57: 150 | BH57: 150 | BI57: 150 | BJ57: 150 | BK57: 150 | BL57: 0 | BM57: 0 | BN57: 0 | BO57: 0 | BP57: 0 | BQ57: 17.5296704 | BR57: 29.6628186 | BS57: 42.46419 | BT57: 60.5075118 | BU57: 75.1229258 | BV57: 0 | BW57: 0 | BX57: 0 | BY57: 0 | BZ57: 0 | CA57: 200 | CB57: 350 | CC57: 475 | CD57: 675 | CE57: 850
A61: Cement Treated Base
A62: Subgrade Category | B62: Drainage | C62: Mr (psi) | D62: Design SN (mm) | N62: Paver Thickness (mm) | X62: SN Remaining (Excluding Pavers) | AH62: Cement Treated Base Thickness (mm) | AR62: SN Remaining (excluding Pavers and Base) | BB62: Unbound Dense Graded Base Thickness (mm) | BL62: SN Remaining (excluding Pavers and Base and Untreated Granular Base) | BV62: Unbound Dense Graded Subbase Thickness (mm)
D63: 10000 | E63: 20000 | F63: 50000 | G63: 100000 | H63: 200000 | I63: 500000 | J63: 1000000 | K63: 2000000 | L63: 5000000 | M63: 10000000 | N63: 10000 | O63: 20000 | P63: 50000 | Q63: 100000 | R63: 200000 | S63: 500000 | T63: 1000000 | U63: 2000000 | V63: 5000000 | W63: 10000000 | X63: 10000 | Y63: 20000 | Z63: 50000 | AA63: 100000 | AB63: 200000 | AC63: 500000 | AD63: 1000000 | AE63: 2000000 | AF63: 5000000 | AG63: 10000000 | AH63: 10000 | AI63: 20000 | AJ63: 50000 | AK63: 100000 | AL63: 200000 | AM63: 500000 | AN63: 1000000 | AO63: 2000000 | AP63: 5000000 | AQ63: 10000000 | AR63: 10000 | AS63: 20000 | AT63: 50000 | AU63: 100000 | AV63: 200000 | AW63: 500000 | AX63: 1000000 | AY63: 2000000 | AZ63: 5000000 | BA63: 10000000 | BB63: 10000 | BC63: 20000 | BD63: 50000 | BE63: 100000 | BF63: 200000 | BG63: 500000 | BH63: 1000000 | BI63: 2000000 | BJ63: 5000000 | BK63: 10000000 | BL63: 10000 | BM63: 20000 | BN63: 50000 | BO63: 100000 | BP63: 200000 | BQ63: 500000 | BR63: 1000000 | BS63: 2000000 | BT63: 5000000 | BU63: 10000000 | BV63: 10000 | BW63: 20000 | BX63: 50000 | BY63: 100000 | BZ63: 200000 | CA63: 500000 | CB63: 1000000 | CC63: 2000000 | CD63: 5000000 | CE63: 10000000
A64: 1 | B64: Good | C64: =C4 -> 13053.393 | D64: =D4 -> 28.1740864 | E64: =E4 -> 32.3487288 | F64: 38.4175508 | G64: 43.4853842 | H64: 49.032795 | I64: 57.243345 | J64: 64.2575042 | K64: 72.101456 | L64: 83.9204824 | M64: 93.9853086 | N64: =ThickPaver -> 105 | O64: 105 | P64: 105 | Q64: 105 | R64: 105 | S64: 105 | T64: 105 | U64: 105 | V64: 105 | W64: 105 | X64: =MAX(0,D64-N64*Apaver) -> 0 | Y64: =MAX(0,E64-O64*Apaver) -> 0 | Z64: =MAX(0,F64-P64*Apaver) -> 0 | AA64: =MAX(0,G64-Q64*Apaver) -> 0 | AB64: =MAX(0,H64-R64*Apaver) -> 2.832795 | AC64: =MAX(0,I64-S64*Apaver) -> 11.043345 | AD64: =MAX(0,J64-T64*Apaver) -> 18.0575042 | AE64: =MAX(0,K64-U64*Apaver) -> 25.901456 | AF64: =MAX(0,L64-V64*Apaver) -> 37.7204824 | AG64: =MAX(0,M64-W64*Apaver) -> 47.7853086 | AH64: =ThickCTB -> 100 | AI64: 100 | AJ64: 100 | AK64: 100 | AL64: 100 | AM64: 100 | AN64: 100 | AO64: 100 | AP64: 100 | AQ64: 100 | AR64: =MAX(0,X64-AH64*Actb) -> 0 | AS64: =MAX(0,Y64-AI64*Actb) -> 0 | AT64: =MAX(0,Z64-AJ64*Actb) -> 0 | AU64: =MAX(0,AA64-AK64*Actb) -> 0 | AV64: =MAX(0,AB64-AL64*Actb) -> 0 | AW64: =MAX(0,AC64-AM64*Actb) -> 0 | AX64: =MAX(0,AD64-AN64*Actb) -> 0 | AY64: =MAX(0,AE64-AO64*Actb) -> 5.901456 | AZ64: =MAX(0,AF64-AP64*Actb) -> 17.7204824 | BA64: =MAX(0,AG64-AQ64*Actb) -> 27.7853086 | BB64: =IF(AR64<100*Agran,100,IF(AR64>200*Agran,100,ROUNDUP(AR64/Agran/25,0)*25)) -> 100 | BC64: =IF(AS64<100*Agran,100,IF(AS64>200*Agran,100,ROUNDUP(AS64/Agran/25,0)*25)) -> 100 | BD64: =IF(AT64<100*Agran,100,IF(AT64>200*Agran,100,ROUNDUP(AT64/Agran/25,0)*25)) -> 100 | BE64: =IF(AU64<100*Agran,100,IF(AU64>200*Agran,100,ROUNDUP(AU64/Agran/25,0)*25)) -> 100 | BF64: =IF(AV64<100*Agran,100,IF(AV64>200*Agran,100,ROUNDUP(AV64/Agran/25,0)*25)) -> 100 | BG64: =IF(AW64<150*Agran,150,IF(AW64>200*Agran,150,ROUNDUP(AW64/Agran/25,0)*25)) -> 150 | BH64: =IF(AX64<150*Agran,150,IF(AX64>200*Agran,150,ROUNDUP(AX64/Agran/25,0)*25)) -> 150 | BI64: =IF(AY64<150*Agran,150,IF(AY64>200*Agran,150,ROUNDUP(AY64/Agran/25,0)*25)) -> 150 | BJ64: =IF(AZ64<150*Agran,150,IF(AZ64>200*Agran,150,ROUNDUP(AZ64/Agran/25,0)*25)) -> 150 | BK64: =IF(BA64<150*Agran,150,IF(BA64>200*Agran,150,ROUNDUP(BA64/Agran/25,0)*25)) -> 200 | BL64: =MAX(0,AR64-BB64*Agran) -> 0 | BM64: =MAX(0,AS64-BC64*Agran) -> 0 | BN64: =MAX(0,AT64-BD64*Agran) -> 0 | BO64: =MAX(0,AU64-BE64*Agran) -> 0 | BP64: =MAX(0,AV64-BF64*Agran) -> 0 | BQ64: =MAX(0,AW64-BG64*Agran) -> 0 | BR64: =MAX(0,AX64-BH64*Agran) -> 0 | BS64: =MAX(0,AY64-BI64*Agran) -> 0 | BT64: =MAX(0,AZ64-BJ64*Agran) -> 0 | BU64: =MAX(0,BA64-BK64*Agran) -> 0 | BV64: =IF(BL64<=0,0,MAX(150,ROUNDUP(BL64/Asubbase/25,0)*25)) -> 0 | BW64: =IF(BM64<=0,0,MAX(150,ROUNDUP(BM64/Asubbase/25,0)*25)) -> 0 | BX64: =IF(BN64<=0,0,MAX(150,ROUNDUP(BN64/Asubbase/25,0)*25)) -> 0 | BY64: =IF(BO64<=0,0,MAX(150,ROUNDUP(BO64/Asubbase/25,0)*25)) -> 0 | BZ64: =IF(BP64<=0,0,MAX(150,ROUNDUP(BP64/Asubbase/25,0)*25)) -> 0 | CA64: =IF(BQ64<=0,0,MAX(150,ROUNDUP(BQ64/Asubbase/25,0)*25)) -> 0 | CB64: =IF(BR64<=0,0,MAX(150,ROUNDUP(BR64/Asubbase/25,0)*25)) -> 0 | CC64: =IF(BS64<=0,0,MAX(150,ROUNDUP(BS64/Asubbase/25,0)*25)) -> 0 | CD64: =IF(BT64<=0,0,MAX(150,ROUNDUP(BT64/Asubbase/25,0)*25)) -> 0 | CE64: =IF(BU64<=0,0,MAX(150,ROUNDUP(BU64/Asubbase/25,0)*25)) -> 0
A65: 1 | B65: Fair | C65: =C5 -> 11603.016 | D65: =D5 -> 29.7802046 | E65: 34.0900258 | F65: 40.363267 | G65: 45.6113388 | H65: 51.367944 | I65: 59.9174316 | J65: 67.2438076 | K65: 75.4476012 | L65: 87.7764564 | M65: 98.1998544 | N65: 105 | O65: 105 | P65: 105 | Q65: 105 | R65: 105 | S65: 105 | T65: 105 | U65: 105 | V65: 105 | W65: 105 | X65: 0 | Y65: 0 | Z65: 0 | AA65: 0 | AB65: 5.167944 | AC65: 13.7174316 | AD65: 21.0438076 | AE65: 29.2476012 | AF65: 41.5764564 | AG65: 51.9998544 | AH65: 100 | AI65: 100 | AJ65: 100 | AK65: 100 | AL65: 100 | AM65: 100 | AN65: 100 | AO65: 100 | AP65: 100 | AQ65: 100 | AR65: 0 | AS65: 0 | AT65: 0 | AU65: 0 | AV65: 0 | AW65: 0 | AX65: 1.0438076 | AY65: 9.2476012 | AZ65: 21.5764564 | BA65: 31.9998544 | BB65: 100 | BC65: 100 | BD65: 100 | BE65: 100 | BF65: 100 | BG65: 150 | BH65: 150 | BI65: 150 | BJ65: 175 | BK65: 150 | BL65: 0 | BM65: 0 | BN65: 0 | BO65: 0 | BP65: 0 | BQ65: 0 | BR65: 0 | BS65: 0 | BT65: 0 | BU65: 10.9998544 | BV65: 0 | BW65: 0 | BX65: 0 | BY65: 0 | BZ65: 0 | CA65: 0 | CB65: 0 | CC65: 0 | CD65: 0 | CE65: 150
A66: 1 | B66: Poor | C66: 10152.639 | D66: =D6 -> 31.663132 | E66: 36.1322874 | F66: 42.6501306 | G66: 48.115474 | H66: 54.1289494 | I66: 63.091695 | J66: 70.7953118 | K66: 79.4233362 | L66: 92.3251138 | M66: 103.1308834 | N66: 105 | O66: 105 | P66: 105 | Q66: 105 | R66: 105 | S66: 105 | T66: 105 | U66: 105 | V66: 105 | W66: 105 | X66: 0 | Y66: 0 | Z66: 0 | AA66: 1.915474 | AB66: 7.9289494 | AC66: 16.891695 | AD66: 24.5953118 | AE66: 33.2233362 | AF66: 46.1251138 | AG66: 56.9308834 | AH66: 100 | AI66: 100 | AJ66: 100 | AK66: 100 | AL66: 100 | AM66: 100 | AN66: 100 | AO66: 100 | AP66: 100 | AQ66: 100 | AR66: 0 | AS66: 0 | AT66: 0 | AU66: 0 | AV66: 0 | AW66: 0 | AX66: 4.5953118 | AY66: 13.2233362 | AZ66: 26.1251138 | BA66: 36.9308834 | BB66: 100 | BC66: 100 | BD66: 100 | BE66: 100 | BF66: 100 | BG66: 150 | BH66: 150 | BI66: 150 | BJ66: 200 | BK66: 150 | BL66: 0 | BM66: 0 | BN66: 0 | BO66: 0 | BP66: 0 | BQ66: 0 | BR66: 0 | BS66: 0 | BT66: 0 | BU66: 15.9308834 | BV66: 0 | BW66: 0 | BX66: 0 | BY66: 0 | BZ66: 0 | CA66: 0 | CB66: 0 | CC66: 0 | CD66: 0 | CE66: 200
A67: 2 | B67: Good | C67: 11603.016 | D67: =D7 -> 29.7802046 | E67: 34.0900258 | F67: 40.363267 | G67: 45.6113388 | H67: 51.367944 | I67: 59.9174316 | J67: 67.2438076 | K67: 75.4476012 | L67: 87.7764564 | M67: 98.1998544 | N67: 105 | O67: 105 | P67: 105 | Q67: 105 | R67: 105 | S67: 105 | T67: 105 | U67: 105 | V67: 105 | W67: 105 | X67: 0 | Y67: 0 | Z67: 0 | AA67: 0 | AB67: 5.167944 | AC67: 13.7174316 | AD67: 21.0438076 | AE67: 29.2476012 | AF67: 41.5764564 | AG67: 51.9998544 | AH67: 100 | AI67: 100 | AJ67: 100 | AK67: 100 | AL67: 100 | AM67: 100 | AN67: 100 | AO67: 100 | AP67: 100 | AQ67: 100 | AR67: 0 | AS67: 0 | AT67: 0 | AU67: 0 | AV67: 0 | AW67: 0 | AX67: 1.0438076 | AY67: 9.2476012 | AZ67: 21.5764564 | BA67: 31.9998544 | BB67: 100 | BC67: 100 | BD67: 100 | BE67: 100 | BF67: 100 | BG67: 150 | BH67: 150 | BI67: 150 | BJ67: 175 | BK67: 150 | BL67: 0 | BM67: 0 | BN67: 0 | BO67: 0 | BP67: 0 | BQ67: 0 | BR67: 0 | BS67: 0 | BT67: 0 | BU67: 10.9998544 | BV67: 0 | BW67: 0 | BX67: 0 | BY67: 0 | BZ67: 0 | CA67: 0 | CB67: 0 | CC67: 0 | CD67: 0 | CE67: 150
A68: 2 | B68: Fair | C68: 10152.639 | D68: =D8 -> 31.663132 | E68: 36.1322874 | F68: 42.6501306 | G68: 48.115474 | H68: 54.1289494 | I68: 63.091695 | J68: 70.7953118 | K68: 79.4233362 | L68: 92.3251138 | M68: 103.1308834 | N68: 105 | O68: 105 | P68: 105 | Q68: 105 | R68: 105 | S68: 105 | T68: 105 | U68: 105 | V68: 105 | W68: 105 | X68: 0 | Y68: 0 | Z68: 0 | AA68: 1.915474 | AB68: 7.9289494 | AC68: 16.891695 | AD68: 24.5953118 | AE68: 33.2233362 | AF68: 46.1251138 | AG68: 56.9308834 | AH68: 100 | AI68: 100 | AJ68: 100 | AK68: 100 | AL68: 100 | AM68: 100 | AN68: 100 | AO68: 100 | AP68: 100 | AQ68: 100 | AR68: 0 | AS68: 0 | AT68: 0 | AU68: 0 | AV68: 0 | AW68: 0 | AX68: 4.5953118 | AY68: 13.2233362 | AZ68: 26.1251138 | BA68: 36.9308834 | BB68: 100 | BC68: 100 | BD68: 100 | BE68: 100 | BF68: 100 | BG68: 150 | BH68: 150 | BI68: 150 | BJ68: 200 | BK68: 150 | BL68: 0 | BM68: 0 | BN68: 0 | BO68: 0 | BP68: 0 | BQ68: 0 | BR68: 0 | BS68: 0 | BT68: 0 | BU68: 15.9308834 | BV68: 0 | BW68: 0 | BX68: 0 | BY68: 0 | BZ68: 0 | CA68: 0 | CB68: 0 | CC68: 0 | CD68: 0 | CE68: 200
A69: 2 | B69: Poor | C69: 7251.885 | D69: =D9 -> 36.7229136 | E69: 41.6378644 | F69: 48.8428792 | G69: 54.931691 | H69: 61.6825538 | I69: 71.831073 | J69: 80.5820588 | K69: 90.310208 | L69: 104.550972 | M69: 116.2058382 | N69: 105 | O69: 105 | P69: 105 | Q69: 105 | R69: 105 | S69: 105 | T69: 105 | U69: 105 | V69: 105 | W69: 105 | X69: 0 | Y69: 0 | Z69: 2.6428792 | AA69: 8.731691 | AB69: 15.4825538 | AC69: 25.631073 | AD69: 34.3820588 | AE69: 44.110208 | AF69: 58.350972 | AG69: 70.0058382 | AH69: 100 | AI69: 100 | AJ69: 100 | AK69: 100 | AL69: 100 | AM69: 100 | AN69: 100 | AO69: 100 | AP69: 100 | AQ69: 100 | AR69: 0 | AS69: 0 | AT69: 0 | AU69: 0 | AV69: 0 | AW69: 5.631073 | AX69: 14.3820588 | AY69: 24.110208 | AZ69: 38.350972 | BA69: 50.0058382 | BB69: 100 | BC69: 100 | BD69: 100 | BE69: 100 | BF69: 100 | BG69: 150 | BH69: 150 | BI69: 175 | BJ69: 150 | BK69: 150 | BL69: 0 | BM69: 0 | BN69: 0 | BO69: 0 | BP69: 0 | BQ69: 0 | BR69: 0 | BS69: 0 | BT69: 17.350972 | BU69: 29.0058382 | BV69: 0 | BW69: 0 | BX69: 0 | BY69: 0 | BZ69: 0 | CA69: 0 | CB69: 0 | CC69: 0 | CD69: 200 | CE69: 325
A70: 3 | B70: Good | C70: 10152.639 | D70: =D10 -> 31.663132 | E70: 36.1322874 | F70: 42.6501306 | G70: 48.115474 | H70: 54.1289494 | I70: 63.091695 | J70: 70.7953118 | K70: 79.4233362 | L70: 92.3251138 | M70: 103.1308834 | N70: 105 | O70: 105 | P70: 105 | Q70: 105 | R70: 105 | S70: 105 | T70: 105 | U70: 105 | V70: 105 | W70: 105 | X70: 0 | Y70: 0 | Z70: 0 | AA70: 1.915474 | AB70: 7.9289494 | AC70: 16.891695 | AD70: 24.5953118 | AE70: 33.2233362 | AF70: 46.1251138 | AG70: 56.9308834 | AH70: 100 | AI70: 100 | AJ70: 100 | AK70: 100 | AL70: 100 | AM70: 100 | AN70: 100 | AO70: 100 | AP70: 100 | AQ70: 100 | AR70: 0 | AS70: 0 | AT70: 0 | AU70: 0 | AV70: 0 | AW70: 0 | AX70: 4.5953118 | AY70: 13.2233362 | AZ70: 26.1251138 | BA70: 36.9308834 | BB70: 100 | BC70: 100 | BD70: 100 | BE70: 100 | BF70: 100 | BG70: 150 | BH70: 150 | BI70: 150 | BJ70: 200 | BK70: 150 | BL70: 0 | BM70: 0 | BN70: 0 | BO70: 0 | BP70: 0 | BQ70: 0 | BR70: 0 | BS70: 0 | BT70: 0 | BU70: 15.9308834 | BV70: 0 | BW70: 0 | BX70: 0 | BY70: 0 | BZ70: 0 | CA70: 0 | CB70: 0 | CC70: 0 | CD70: 0 | CE70: 200
A71: 3 | B71: Fair | C71: 7251.885 | D71: =D11 -> 36.7229136 | E71: 41.6378644 | F71: 48.8428792 | G71: 54.931691 | H71: 61.6825538 | I71: 71.831073 | J71: 80.5820588 | K71: 90.310208 | L71: 104.550972 | M71: 116.2058382 | N71: 105 | O71: 105 | P71: 105 | Q71: 105 | R71: 105 | S71: 105 | T71: 105 | U71: 105 | V71: 105 | W71: 105 | X71: 0 | Y71: 0 | Z71: 2.6428792 | AA71: 8.731691 | AB71: 15.4825538 | AC71: 25.631073 | AD71: 34.3820588 | AE71: 44.110208 | AF71: 58.350972 | AG71: 70.0058382 | AH71: 100 | AI71: 100 | AJ71: 100 | AK71: 100 | AL71: 100 | AM71: 100 | AN71: 100 | AO71: 100 | AP71: 100 | AQ71: 100 | AR71: 0 | AS71: 0 | AT71: 0 | AU71: 0 | AV71: 0 | AW71: 5.631073 | AX71: 14.3820588 | AY71: 24.110208 | AZ71: 38.350972 | BA71: 50.0058382 | BB71: 100 | BC71: 100 | BD71: 100 | BE71: 100 | BF71: 100 | BG71: 150 | BH71: 150 | BI71: 175 | BJ71: 150 | BK71: 150 | BL71: 0 | BM71: 0 | BN71: 0 | BO71: 0 | BP71: 0 | BQ71: 0 | BR71: 0 | BS71: 0 | BT71: 17.350972 | BU71: 29.0058382 | BV71: 0 | BW71: 0 | BX71: 0 | BY71: 0 | BZ71: 0 | CA71: 0 | CB71: 0 | CC71: 0 | CD71: 200 | CE71: 325
A72: 3 | B72: Poor | C72: 5076.3195 | D72: =D12 -> 42.6404786 | E72: 48.105822 | F72: 56.1843936 | G72: 63.0775472 | H72: 70.7792082 | I72: 82.3916056 | J72: 92.3051494 | K72: 103.109014 | L72: 118.5432478 | M72: 130.9982902 | N72: 105 | O72: 105 | P72: 105 | Q72: 105 | R72: 105 | S72: 105 | T72: 105 | U72: 105 | V72: 105 | W72: 105 | X72: 0 | Y72: 1.905822 | Z72: 9.9843936 | AA72: 16.8775472 | AB72: 24.5792082 | AC72: 36.1916056 | AD72: 46.1051494 | AE72: 56.909014 | AF72: 72.3432478 | AG72: 84.7982902 | AH72: 100 | AI72: 100 | AJ72: 100 | AK72: 100 | AL72: 100 | AM72: 100 | AN72: 100 | AO72: 100 | AP72: 100 | AQ72: 100 | AR72: 0 | AS72: 0 | AT72: 0 | AU72: 0 | AV72: 4.5792082 | AW72: 16.1916056 | AX72: 26.1051494 | AY72: 36.909014 | AZ72: 52.3432478 | BA72: 64.7982902 | BB72: 100 | BC72: 100 | BD72: 100 | BE72: 100 | BF72: 100 | BG72: 150 | BH72: 200 | BI72: 150 | BJ72: 150 | BK72: 150 | BL72: 0 | BM72: 0 | BN72: 0 | BO72: 0 | BP72: 0 | BQ72: 0 | BR72: 0 | BS72: 15.909014 | BT72: 31.3432478 | BU72: 43.7982902 | BV72: 0 | BW72: 0 | BX72: 0 | BY72: 0 | BZ72: 0 | CA72: 0 | CB72: 0 | CC72: 200 | CD72: 350 | CE72: 500
A73: 4 | B73: Good | C73: 7251.885 | D73: =D13 -> 36.7229136 | E73: 41.6378644 | F73: 48.8428792 | G73: 54.931691 | H73: 61.6825538 | I73: 71.831073 | J73: 80.5820588 | K73: 90.310208 | L73: 104.550972 | M73: 116.2058382 | N73: 105 | O73: 105 | P73: 105 | Q73: 105 | R73: 105 | S73: 105 | T73: 105 | U73: 105 | V73: 105 | W73: 105 | X73: 0 | Y73: 0 | Z73: 2.6428792 | AA73: 8.731691 | AB73: 15.4825538 | AC73: 25.631073 | AD73: 34.3820588 | AE73: 44.110208 | AF73: 58.350972 | AG73: 70.0058382 | AH73: 100 | AI73: 100 | AJ73: 100 | AK73: 100 | AL73: 100 | AM73: 100 | AN73: 100 | AO73: 100 | AP73: 100 | AQ73: 100 | AR73: 0 | AS73: 0 | AT73: 0 | AU73: 0 | AV73: 0 | AW73: 5.631073 | AX73: 14.3820588 | AY73: 24.110208 | AZ73: 38.350972 | BA73: 50.0058382 | BB73: 100 | BC73: 100 | BD73: 100 | BE73: 100 | BF73: 100 | BG73: 150 | BH73: 150 | BI73: 175 | BJ73: 150 | BK73: 150 | BL73: 0 | BM73: 0 | BN73: 0 | BO73: 0 | BP73: 0 | BQ73: 0 | BR73: 0 | BS73: 0 | BT73: 17.350972 | BU73: 29.0058382 | BV73: 0 | BW73: 0 | BX73: 0 | BY73: 0 | BZ73: 0 | CA73: 0 | CB73: 0 | CC73: 0 | CD73: 200 | CE73: 325
A74: 4 | B74: Fair | C74: 5076.3195 | D74: =D14 -> 42.6404786 | E74: 48.105822 | F74: 56.1843936 | G74: 63.0775472 | H74: 70.7792082 | I74: 82.3916056 | J74: 92.3051494 | K74: 103.109014 | L74: 118.5432478 | M74: 130.9982902 | N74: =ThickPaver -> 105 | O74: 105 | P74: 105 | Q74: 105 | R74: 105 | S74: 105 | T74: 105 | U74: 105 | V74: 105 | W74: 105 | X74: 0 | Y74: 1.905822 | Z74: 9.9843936 | AA74: 16.8775472 | AB74: 24.5792082 | AC74: 36.1916056 | AD74: 46.1051494 | AE74: 56.909014 | AF74: 72.3432478 | AG74: 84.7982902 | AH74: =ThickCTB -> 100 | AI74: 100 | AJ74: 100 | AK74: 100 | AL74: 100 | AM74: 100 | AN74: 100 | AO74: 100 | AP74: 100 | AQ74: 100 | AR74: 0 | AS74: 0 | AT74: 0 | AU74: 0 | AV74: 4.5792082 | AW74: 16.1916056 | AX74: 26.1051494 | AY74: 36.909014 | AZ74: 52.3432478 | BA74: 64.7982902 | BB74: 100 | BC74: 100 | BD74: 100 | BE74: 100 | BF74: 100 | BG74: 150 | BH74: 200 | BI74: 150 | BJ74: 150 | BK74: 150 | BL74: 0 | BM74: 0 | BN74: 0 | BO74: 0 | BP74: 0 | BQ74: 0 | BR74: 0 | BS74: 15.909014 | BT74: 31.3432478 | BU74: 43.7982902 | BV74: 0 | BW74: 0 | BX74: 0 | BY74: 0 | BZ74: 0 | CA74: 0 | CB74: 0 | CC74: 200 | CD74: 350 | CE74: 500
A75: 4 | B75: Poor | C75: 4351.131 | D75: =D15 -> 45.397293 | E75: 51.132994 | F75: 59.647709 | G75: 66.9425382 | H75: 75.1096288 | I75: 87.3876332 | J75: 97.776284 | K75: 108.9882504 | L75: 124.8866438 | M75: 137.6899456 | N75: 105 | O75: 105 | P75: 105 | Q75: 105 | R75: 105 | S75: 105 | T75: 105 | U75: 105 | V75: 105 | W75: 105 | X75: 0 | Y75: 4.932994 | Z75: 13.447709 | AA75: 20.7425382 | AB75: 28.9096288 | AC75: 41.1876332 | AD75: 51.576284 | AE75: 62.7882504 | AF75: 78.6866438 | AG75: 91.4899456 | AH75: 100 | AI75: 100 | AJ75: 100 | AK75: 100 | AL75: 100 | AM75: 100 | AN75: 100 | AO75: 100 | AP75: 100 | AQ75: 100 | AR75: 0 | AS75: 0 | AT75: 0 | AU75: 0.7425382 | AV75: 8.9096288 | AW75: 21.1876332 | AX75: 31.576284 | AY75: 42.7882504 | AZ75: 58.6866438 | BA75: 71.4899456 | BB75: 100 | BC75: 100 | BD75: 100 | BE75: 100 | BF75: 100 | BG75: 175 | BH75: 150 | BI75: 150 | BJ75: 150 | BK75: 150 | BL75: 0 | BM75: 0 | BN75: 0 | BO75: 0 | BP75: 0 | BQ75: 0 | BR75: 10.576284 | BS75: 21.7882504 | BT75: 37.6866438 | BU75: 50.4899456 | BV75: 0 | BW75: 0 | BX75: 0 | BY75: 0 | BZ75: 0 | CA75: 0 | CB75: 150 | CC75: 250 | CD75: 425 | CE75: 575
A76: 5 | B76: Good | C76: 5801.508 | D76: =D16 -> 40.3535896 | E76: 45.6000612 | F76: 53.331999 | G76: 59.9045538 | H76: 67.2289994 | I76: 78.2742402 | J76: 87.7571524 | K76: 98.17862 | L76: 113.1905788 | M76: 125.349508 | N76: 105 | O76: 105 | P76: 105 | Q76: 105 | R76: 105 | S76: 105 | T76: 105 | U76: 105 | V76: 105 | W76: 105 | X76: 0 | Y76: 0 | Z76: 7.131999 | AA76: 13.7045538 | AB76: 21.0289994 | AC76: 32.0742402 | AD76: 41.5571524 | AE76: 51.97862 | AF76: 66.9905788 | AG76: 79.149508 | AH76: 100 | AI76: 100 | AJ76: 100 | AK76: 100 | AL76: 100 | AM76: 100 | AN76: 100 | AO76: 100 | AP76: 100 | AQ76: 100 | AR76: 0 | AS76: 0 | AT76: 0 | AU76: 0 | AV76: 1.0289994 | AW76: 12.0742402 | AX76: 21.5571524 | AY76: 31.97862 | AZ76: 46.9905788 | BA76: 59.149508 | BB76: 100 | BC76: 100 | BD76: 100 | BE76: 100 | BF76: 100 | BG76: 150 | BH76: 175 | BI76: 150 | BJ76: 150 | BK76: 150 | BL76: 0 | BM76: 0 | BN76: 0 | BO76: 0 | BP76: 0 | BQ76: 0 | BR76: 0 | BS76: 10.97862 | BT76: 25.9905788 | BU76: 38.149508 | BV76: 0 | BW76: 0 | BX76: 0 | BY76: 0 | BZ76: 0 | CA76: 0 | CB76: 0 | CC76: 150 | CD76: 300 | CE76: 425
A77: 5 | B77: Fair | C77: 4351.131 | D77: =D17 -> 45.397293 | E77: 51.132994 | F77: 59.647709 | G77: 66.9425382 | H77: 75.1096288 | I77: 87.3876332 | J77: 97.776284 | K77: 108.9882504 | L77: 124.8866438 | M77: 137.6899456 | N77: 105 | O77: 105 | P77: 105 | Q77: 105 | R77: 105 | S77: 105 | T77: 105 | U77: 105 | V77: 105 | W77: 105 | X77: 0 | Y77: 4.932994 | Z77: 13.447709 | AA77: 20.7425382 | AB77: 28.9096288 | AC77: 41.1876332 | AD77: 51.576284 | AE77: 62.7882504 | AF77: 78.6866438 | AG77: 91.4899456 | AH77: 100 | AI77: 100 | AJ77: 100 | AK77: 100 | AL77: 100 | AM77: 100 | AN77: 100 | AO77: 100 | AP77: 100 | AQ77: 100 | AR77: 0 | AS77: 0 | AT77: 0 | AU77: 0.7425382 | AV77: 8.9096288 | AW77: 21.1876332 | AX77: 31.576284 | AY77: 42.7882504 | AZ77: 58.6866438 | BA77: 71.4899456 | BB77: 100 | BC77: 100 | BD77: 100 | BE77: 100 | BF77: 100 | BG77: 175 | BH77: 150 | BI77: 150 | BJ77: 150 | BK77: 150 | BL77: 0 | BM77: 0 | BN77: 0 | BO77: 0 | BP77: 0 | BQ77: 0 | BR77: 10.576284 | BS77: 21.7882504 | BT77: 37.6866438 | BU77: 50.4899456 | BV77: 0 | BW77: 0 | BX77: 0 | BY77: 0 | BZ77: 0 | CA77: 0 | CB77: 150 | CC77: 250 | CD77: 425 | CE77: 575
A78: 5 | B78: Poor | C78: 3625.9425 | D78: =D18 -> 48.831627 | E78: 54.9194482 | F78: 64.0019548 | G78: 71.8149948 | H78: 80.5640248 | I78: 93.621606 | J78: 104.5291026 | K78: 116.1826734 | L78: 132.6179466 | M78: 145.8519054 | N78: 105 | O78: 105 | P78: 105 | Q78: 105 | R78: 105 | S78: 105 | T78: 105 | U78: 105 | V78: 105 | W78: 105 | X78: 2.631627 | Y78: 8.7194482 | Z78: 17.8019548 | AA78: 25.6149948 | AB78: 34.3640248 | AC78: 47.421606 | AD78: 58.3291026 | AE78: 69.9826734 | AF78: 86.4179466 | AG78: 99.6519054 | AH78: 100 | AI78: 100 | AJ78: 100 | AK78: 100 | AL78: 100 | AM78: 100 | AN78: 100 | AO78: 100 | AP78: 100 | AQ78: 100 | AR78: 0 | AS78: 0 | AT78: 0 | AU78: 5.6149948 | AV78: 14.3640248 | AW78: 27.421606 | AX78: 38.3291026 | AY78: 49.9826734 | AZ78: 66.4179466 | BA78: 79.6519054 | BB78: 100 | BC78: 100 | BD78: 100 | BE78: 100 | BF78: 125 | BG78: 200 | BH78: 150 | BI78: 150 | BJ78: 150 | BK78: 150 | BL78: 0 | BM78: 0 | BN78: 0 | BO78: 0 | BP78: 0 | BQ78: 0 | BR78: 17.3291026 | BS78: 28.9826734 | BT78: 45.4179466 | BU78: 58.6519054 | BV78: 0 | BW78: 0 | BX78: 0 | BY78: 0 | BZ78: 0 | CA78: 0 | CB78: 200 | CC78: 325 | CD78: 525 | CE78: 675
A79: 6 | B79: Good | C79: 4351.131 | D79: =D19 -> 45.397293 | E79: 51.132994 | F79: 59.647709 | G79: 66.9425382 | H79: 75.1096288 | I79: 87.3876332 | J79: 97.776284 | K79: 108.9882504 | L79: 124.8866438 | M79: 137.6899456 | N79: 105 | O79: 105 | P79: 105 | Q79: 105 | R79: 105 | S79: 105 | T79: 105 | U79: 105 | V79: 105 | W79: 105 | X79: 0 | Y79: 4.932994 | Z79: 13.447709 | AA79: 20.7425382 | AB79: 28.9096288 | AC79: 41.1876332 | AD79: 51.576284 | AE79: 62.7882504 | AF79: 78.6866438 | AG79: 91.4899456 | AH79: 100 | AI79: 100 | AJ79: 100 | AK79: 100 | AL79: 100 | AM79: 100 | AN79: 100 | AO79: 100 | AP79: 100 | AQ79: 100 | AR79: 0 | AS79: 0 | AT79: 0 | AU79: 0.7425382 | AV79: 8.9096288 | AW79: 21.1876332 | AX79: 31.576284 | AY79: 42.7882504 | AZ79: 58.6866438 | BA79: 71.4899456 | BB79: 100 | BC79: 100 | BD79: 100 | BE79: 100 | BF79: 100 | BG79: 175 | BH79: 150 | BI79: 150 | BJ79: 150 | BK79: 150 | BL79: 0 | BM79: 0 | BN79: 0 | BO79: 0 | BP79: 0 | BQ79: 0 | BR79: 10.576284 | BS79: 21.7882504 | BT79: 37.6866438 | BU79: 50.4899456 | BV79: 0 | BW79: 0 | BX79: 0 | BY79: 0 | BZ79: 0 | CA79: 0 | CB79: 150 | CC79: 250 | CD79: 425 | CE79: 575
A80: 6 | B80: Fair | C80: 3625.9425 | D80: =D20 -> 48.831627 | E80: 54.9194482 | F80: 64.0019548 | G80: 71.8149948 | H80: 80.5640248 | I80: 93.621606 | J80: 104.5291026 | K80: 116.1826734 | L80: 132.6179466 | M80: 145.8519054 | N80: 105 | O80: 105 | P80: 105 | Q80: 105 | R80: 105 | S80: 105 | T80: 105 | U80: 105 | V80: 105 | W80: 105 | X80: 2.631627 | Y80: 8.7194482 | Z80: 17.8019548 | AA80: 25.6149948 | AB80: 34.3640248 | AC80: 47.421606 | AD80: 58.3291026 | AE80: 69.9826734 | AF80: 86.4179466 | AG80: 99.6519054 | AH80: 100 | AI80: 100 | AJ80: 100 | AK80: 100 | AL80: 100 | AM80: 100 | AN80: 100 | AO80: 100 | AP80: 100 | AQ80: 100 | AR80: 0 | AS80: 0 | AT80: 0 | AU80: 5.6149948 | AV80: 14.3640248 | AW80: 27.421606 | AX80: 38.3291026 | AY80: 49.9826734 | AZ80: 66.4179466 | BA80: 79.6519054 | BB80: 100 | BC80: 100 | BD80: 100 | BE80: 100 | BF80: 125 | BG80: 200 | BH80: 150 | BI80: 150 | BJ80: 150 | BK80: 150 | BL80: 0 | BM80: 0 | BN80: 0 | BO80: 0 | BP80: 0 | BQ80: 0 | BR80: 17.3291026 | BS80: 28.9826734 | BT80: 45.4179466 | BU80: 58.6519054 | BV80: 0 | BW80: 0 | BX80: 0 | BY80: 0 | BZ80: 0 | CA80: 0 | CB80: 200 | CC80: 325 | CD80: 525 | CE80: 675
A81: 6 | B81: Poor | C81: 2610.6786 | D81: =D21 -> 55.559325 | E81: 62.381003 | F81: 72.6428316 | G81: 81.4884324 | H81: 91.310587 | I81: 105.6575738 | J81: 117.3800294 | K81: 129.7713178 | L81: 147.2095354 | M81: 161.298382 | N81: 105 | O81: 105 | P81: 105 | Q81: 105 | R81: 105 | S81: 105 | T81: 105 | U81: 105 | V81: 105 | W81: 105 | X81: 9.359325 | Y81: 16.181003 | Z81: 26.4428316 | AA81: 35.2884324 | AB81: 45.110587 | AC81: 59.4575738 | AD81: 71.1800294 | AE81: 83.5713178 | AF81: 101.0095354 | AG81: 115.098382 | AH81: 100 | AI81: 100 | AJ81: 100 | AK81: 100 | AL81: 100 | AM81: 100 | AN81: 100 | AO81: 100 | AP81: 100 | AQ81: 100 | AR81: 0 | AS81: 0 | AT81: 6.4428316 | AU81: 15.2884324 | AV81: 25.110587 | AW81: 39.4575738 | AX81: 51.1800294 | AY81: 63.5713178 | AZ81: 81.0095354 | BA81: 95.098382 | BB81: 100 | BC81: 100 | BD81: 100 | BE81: 125 | BF81: 200 | BG81: 150 | BH81: 150 | BI81: 150 | BJ81: 150 | BK81: 150 | BL81: 0 | BM81: 0 | BN81: 0 | BO81: 0 | BP81: 0 | BQ81: 18.4575738 | BR81: 30.1800294 | BS81: 42.5713178 | BT81: 60.0095354 | BU81: 74.098382 | BV81: 0 | BW81: 0 | BX81: 0 | BY81: 0 | BZ81: 0 | CA81: 225 | CB81: 350 | CC81: 475 | CD81: 675 | CE81: 825
A82: 7 | B82: Good | C82: 3916.0179 | D82: =D22 -> 47.3574618 | E82: 53.2927306 | F82: 62.128019 | G82: 69.7170564 | H82: 78.2169632 | I82: 90.9488148 | J82: 101.6432054 | K82: 113.1152678 | L82: 129.3239222 | M82: 142.3724864 | N82: 105 | O82: 105 | P82: 105 | Q82: 105 | R82: 105 | S82: 105 | T82: 105 | U82: 105 | V82: 105 | W82: 105 | X82: 1.1574618 | Y82: 7.0927306 | Z82: 15.928019 | AA82: 23.5170564 | AB82: 32.0169632 | AC82: 44.7488148 | AD82: 55.4432054 | AE82: 66.9152678 | AF82: 83.1239222 | AG82: 96.1724864 | AH82: 100 | AI82: 100 | AJ82: 100 | AK82: 100 | AL82: 100 | AM82: 100 | AN82: 100 | AO82: 100 | AP82: 100 | AQ82: 100 | AR82: 0 | AS82: 0 | AT82: 0 | AU82: 3.5170564 | AV82: 12.0169632 | AW82: 24.7488148 | AX82: 35.4432054 | AY82: 46.9152678 | AZ82: 63.1239222 | BA82: 76.1724864 | BB82: 100 | BC82: 100 | BD82: 100 | BE82: 100 | BF82: 100 | BG82: 200 | BH82: 150 | BI82: 150 | BJ82: 150 | BK82: 150 | BL82: 0 | BM82: 0 | BN82: 0 | BO82: 0 | BP82: 0 | BQ82: 0 | BR82: 14.4432054 | BS82: 25.9152678 | BT82: 42.1239222 | BU82: 55.1724864 | BV82: 0 | BW82: 0 | BX82: 0 | BY82: 0 | BZ82: 0 | CA82: 0 | CB82: 175 | CC82: 300 | CD82: 475 | CE82: 625
A83: 7 | B83: Fair | C83: 2900.754 | D83: =D23 -> 53.3204166 | E83: 59.891041 | F83: 69.752464 | G83: 78.2568666 | H83: 87.7378484 | I83: 101.6927862 | J83: 113.168049 | K83: 125.3256828 | L83: 142.4323542 | M83: 156.2341046 | N83: 105 | O83: 105 | P83: 105 | Q83: 105 | R83: 105 | S83: 105 | T83: 105 | U83: 105 | V83: 105 | W83: 105 | X83: 7.1204166 | Y83: 13.691041 | Z83: 23.552464 | AA83: 32.0568666 | AB83: 41.5378484 | AC83: 55.4927862 | AD83: 66.968049 | AE83: 79.1256828 | AF83: 96.2323542 | AG83: 110.0341046 | AH83: 100 | AI83: 100 | AJ83: 100 | AK83: 100 | AL83: 100 | AM83: 100 | AN83: 100 | AO83: 100 | AP83: 100 | AQ83: 100 | AR83: 0 | AS83: 0 | AT83: 3.552464 | AU83: 12.0568666 | AV83: 21.5378484 | AW83: 35.4927862 | AX83: 46.968049 | AY83: 59.1256828 | AZ83: 76.2323542 | BA83: 90.0341046 | BB83: 100 | BC83: 100 | BD83: 100 | BE83: 100 | BF83: 175 | BG83: 150 | BH83: 150 | BI83: 150 | BJ83: 150 | BK83: 150 | BL83: 0 | BM83: 0 | BN83: 0 | BO83: 0 | BP83: 0 | BQ83: 14.4927862 | BR83: 25.968049 | BS83: 38.1256828 | BT83: 55.2323542 | BU83: 69.0341046 | BV83: 0 | BW83: 0 | BX83: 0 | BY83: 0 | BZ83: 0 | CA83: 175 | CB83: 300 | CC83: 425 | CD83: 625 | CE83: 775
A84: 7 | B84: Poor | C84: 2175.5655 | D84: =D24 -> 59.6348312 | E84: 66.92773 | F84: 77.9240504 | G84: 87.3683292 | H84: 97.7556846 | I84: 112.7296704 | J84: 124.8628186 | K84: 137.66419 | L84: 155.7075118 | M84: 170.3229258 | N84: 105 | O84: 105 | P84: 105 | Q84: 105 | R84: 105 | S84: 105 | T84: 105 | U84: 105 | V84: 105 | W84: 105 | X84: 13.4348312 | Y84: 20.72773 | Z84: 31.7240504 | AA84: 41.1683292 | AB84: 51.5556846 | AC84: 66.5296704 | AD84: 78.6628186 | AE84: 91.46419 | AF84: 109.5075118 | AG84: 124.1229258 | AH84: 100 | AI84: 100 | AJ84: 100 | AK84: 100 | AL84: 100 | AM84: 100 | AN84: 100 | AO84: 100 | AP84: 100 | AQ84: 100 | AR84: 0 | AS84: 0.72773 | AT84: 11.7240504 | AU84: 21.1683292 | AV84: 31.5556846 | AW84: 46.5296704 | AX84: 58.6628186 | AY84: 71.46419 | AZ84: 89.5075118 | BA84: 104.1229258 | BB84: 100 | BC84: 100 | BD84: 100 | BE84: 175 | BF84: 100 | BG84: 150 | BH84: 150 | BI84: 150 | BJ84: 150 | BK84: 150 | BL84: 0 | BM84: 0 | BN84: 0 | BO84: 0 | BP84: 17.5556846 | BQ84: 25.5296704 | BR84: 37.6628186 | BS84: 50.46419 | BT84: 68.5075118 | BU84: 83.1229258 | BV84: 0 | BW84: 0 | BX84: 0 | BY84: 0 | BZ84: 200 | CA84: 300 | CB84: 425 | CC84: 575 | CD84: 775 | CE84: 925
A85: 8 | B85: Good | C85: 3625.9425 | D85: =D25 -> 48.831627 | E85: 54.9194482 | F85: 64.0019548 | G85: 71.8149948 | H85: 80.5640248 | I85: 93.621606 | J85: 104.5291026 | K85: 116.1826734 | L85: 132.6179466 | M85: 145.8519054 | N85: 105 | O85: 105 | P85: 105 | Q85: 105 | R85: 105 | S85: 105 | T85: 105 | U85: 105 | V85: 105 | W85: 105 | X85: 2.631627 | Y85: 8.7194482 | Z85: 17.8019548 | AA85: 25.6149948 | AB85: 34.3640248 | AC85: 47.421606 | AD85: 58.3291026 | AE85: 69.9826734 | AF85: 86.4179466 | AG85: 99.6519054 | AH85: 100 | AI85: 100 | AJ85: 100 | AK85: 100 | AL85: 100 | AM85: 100 | AN85: 100 | AO85: 100 | AP85: 100 | AQ85: 100 | AR85: 0 | AS85: 0 | AT85: 0 | AU85: 5.6149948 | AV85: 14.3640248 | AW85: 27.421606 | AX85: 38.3291026 | AY85: 49.9826734 | AZ85: 66.4179466 | BA85: 79.6519054 | BB85: 100 | BC85: 100 | BD85: 100 | BE85: 100 | BF85: 125 | BG85: 200 | BH85: 150 | BI85: 150 | BJ85: 150 | BK85: 150 | BL85: 0 | BM85: 0 | BN85: 0 | BO85: 0 | BP85: 0 | BQ85: 0 | BR85: 17.3291026 | BS85: 28.9826734 | BT85: 45.4179466 | BU85: 58.6519054 | BV85: 0 | BW85: 0 | BX85: 0 | BY85: 0 | BZ85: 0 | CA85: 0 | CB85: 200 | CC85: 325 | CD85: 525 | CE85: 675
A86: 8 | B86: Fair | C86: 2900.754 | D86: =D26 -> 53.3204166 | E86: 59.891041 | F86: 69.752464 | G86: 78.2568666 | H86: 87.7378484 | I86: 101.6927862 | J86: 113.168049 | K86: 125.3256828 | L86: 142.4323542 | M86: 156.2341046 | N86: 105 | O86: 105 | P86: 105 | Q86: 105 | R86: 105 | S86: 105 | T86: 105 | U86: 105 | V86: 105 | W86: 105 | X86: 7.1204166 | Y86: 13.691041 | Z86: 23.552464 | AA86: 32.0568666 | AB86: 41.5378484 | AC86: 55.4927862 | AD86: 66.968049 | AE86: 79.1256828 | AF86: 96.2323542 | AG86: 110.0341046 | AH86: 100 | AI86: 100 | AJ86: 100 | AK86: 100 | AL86: 100 | AM86: 100 | AN86: 100 | AO86: 100 | AP86: 100 | AQ86: 100 | AR86: 0 | AS86: 0 | AT86: 3.552464 | AU86: 12.0568666 | AV86: 21.5378484 | AW86: 35.4927862 | AX86: 46.968049 | AY86: 59.1256828 | AZ86: 76.2323542 | BA86: 90.0341046 | BB86: 100 | BC86: 100 | BD86: 100 | BE86: 100 | BF86: 175 | BG86: 150 | BH86: 150 | BI86: 150 | BJ86: 150 | BK86: 150 | BL86: 0 | BM86: 0 | BN86: 0 | BO86: 0 | BP86: 0 | BQ86: 14.4927862 | BR86: 25.968049 | BS86: 38.1256828 | BT86: 55.2323542 | BU86: 69.0341046 | BV86: 0 | BW86: 0 | BX86: 0 | BY86: 0 | BZ86: 0 | CA86: 175 | CB86: 300 | CC86: 425 | CD86: 625 | CE86: 775
A87: 8 | B87: Poor | C87: 2175.5655 | D87: =D27 -> 59.6348312 | E87: 66.92773 | F87: 77.9240504 | G87: 87.3683292 | H87: 97.7556846 | I87: 112.7296704 | J87: 124.8628186 | K87: 137.66419 | L87: 155.7075118 | M87: 170.3229258 | N87: 105 | O87: 105 | P87: 105 | Q87: 105 | R87: 105 | S87: 105 | T87: 105 | U87: 105 | V87: 105 | W87: 105 | X87: 13.4348312 | Y87: 20.72773 | Z87: 31.7240504 | AA87: 41.1683292 | AB87: 51.5556846 | AC87: 66.5296704 | AD87: 78.6628186 | AE87: 91.46419 | AF87: 109.5075118 | AG87: 124.1229258 | AH87: 100 | AI87: 100 | AJ87: 100 | AK87: 100 | AL87: 100 | AM87: 100 | AN87: 100 | AO87: 100 | AP87: 100 | AQ87: 100 | AR87: 0 | AS87: 0.72773 | AT87: 11.7240504 | AU87: 21.1683292 | AV87: 31.5556846 | AW87: 46.5296704 | AX87: 58.6628186 | AY87: 71.46419 | AZ87: 89.5075118 | BA87: 104.1229258 | BB87: 100 | BC87: 100 | BD87: 100 | BE87: 175 | BF87: 100 | BG87: 150 | BH87: 150 | BI87: 150 | BJ87: 150 | BK87: 150 | BL87: 0 | BM87: 0 | BN87: 0 | BO87: 0 | BP87: 17.5556846 | BQ87: 25.5296704 | BR87: 37.6628186 | BS87: 50.46419 | BT87: 68.5075118 | BU87: 83.1229258 | BV87: 0 | BW87: 0 | BX87: 0 | BY87: 0 | BZ87: 200 | CA87: 300 | CB87: 425 | CC87: 575 | CD87: 775 | CE87: 925
A91: Asphalt Concrete Base
A92: Subgrade Category | B92: Drainage | C92: Mr (psi) | D92: Design SN (mm) | N92: Paver Thickness (mm) | X92: SN Remaining (Excluding Pavers) | AH92: Unbound Dense Graded Base Thickness (mm) | AR92: SN Remaining (excluding Pavers and Untreated Granular Base) | BB92: Asphalt Concrete Base Thickness (mm)
D93: 10000 | E93: 20000 | F93: 50000 | G93: 100000 | H93: 200000 | I93: 500000 | J93: 1000000 | K93: 2000000 | L93: 5000000 | M93: 10000000 | N93: 10000 | O93: 20000 | P93: 50000 | Q93: 100000 | R93: 200000 | S93: 500000 | T93: 1000000 | U93: 2000000 | V93: 5000000 | W93: 10000000 | X93: 10000 | Y93: 20000 | Z93: 50000 | AA93: 100000 | AB93: 200000 | AC93: 500000 | AD93: 1000000 | AE93: 2000000 | AF93: 5000000 | AG93: 10000000 | AH93: 10000 | AI93: 20000 | AJ93: 50000 | AK93: 100000 | AL93: 200000 | AM93: 500000 | AN93: 1000000 | AO93: 2000000 | AP93: 5000000 | AQ93: 10000000 | AR93: 10000 | AS93: 20000 | AT93: 50000 | AU93: 100000 | AV93: 200000 | AW93: 500000 | AX93: 1000000 | AY93: 2000000 | AZ93: 5000000 | BA93: 10000000 | BB93: 10000 | BC93: 20000 | BD93: 50000 | BE93: 100000 | BF93: 200000 | BG93: 500000 | BH93: 1000000 | BI93: 2000000 | BJ93: 5000000 | BK93: 10000000
A94: 1 | B94: Good | C94: =C4 -> 13053.393 | D94: =D4 -> 28.1740864 | E94: =E4 -> 32.3487288 | F94: 38.4175508 | G94: 43.4853842 | H94: 49.032795 | I94: 57.243345 | J94: 64.2575042 | K94: 72.101456 | L94: 83.9204824 | M94: 93.9853086 | N94: =ThickPaver -> 105 | O94: 105 | P94: 105 | Q94: 105 | R94: 105 | S94: 105 | T94: 105 | U94: 105 | V94: 105 | W94: 105 | X94: =MAX(0,D94-N94*Apaver) -> 0 | Y94: =MAX(0,E94-O94*Apaver) -> 0 | Z94: =MAX(0,F94-P94*Apaver) -> 0 | AA94: =MAX(0,G94-Q94*Apaver) -> 0 | AB94: =MAX(0,H94-R94*Apaver) -> 2.832795 | AC94: =MAX(0,I94-S94*Apaver) -> 11.043345 | AD94: =MAX(0,J94-T94*Apaver) -> 18.0575042 | AE94: =MAX(0,K94-U94*Apaver) -> 25.901456 | AF94: =MAX(0,L94-V94*Apaver) -> 37.7204824 | AG94: =MAX(0,M94-W94*Apaver) -> 47.7853086 | AH94: =IF(AH$93<500000,100,150) -> 100 | AI94: =IF(AI$93<500000,100,150) -> 100 | AJ94: 100 | AK94: 100 | AL94: 100 | AM94: 150 | AN94: 150 | AO94: 150 | AP94: 150 | AQ94: 150 | AR94: =MAX(0,X94-AH94*'Design Inputs'!$C$13) -> 0 | AS94: =MAX(0,Y94-AI94*'Design Inputs'!$C$13) -> 0 | AT94: =MAX(0,Z94-AJ94*'Design Inputs'!$C$13) -> 0 | AU94: =MAX(0,AA94-AK94*'Design Inputs'!$C$13) -> 0 | AV94: =MAX(0,AB94-AL94*'Design Inputs'!$C$13) -> 0 | AW94: =MAX(0,AC94-AM94*'Design Inputs'!$C$13) -> 0 | AX94: =MAX(0,AD94-AN94*'Design Inputs'!$C$13) -> 0 | AY94: =MAX(0,AE94-AO94*'Design Inputs'!$C$13) -> 0 | AZ94: =MAX(0,AF94-AP94*'Design Inputs'!$C$13) -> 7.7204824 | BA94: =MAX(0,AG94-AQ94*'Design Inputs'!$C$13) -> 17.7853086 | BB94: =MAX(50,IF(AR94<0,0,ROUNDUP(AR94/'Design Inputs'!$C$10/10,0)*10)) -> 50 | BC94: =MAX(50,IF(AS94<0,0,ROUNDUP(AS94/'Design Inputs'!$C$10/10,0)*10)) -> 50 | BD94: =MAX(50,IF(AT94<0,0,ROUNDUP(AT94/'Design Inputs'!$C$10/10,0)*10)) -> 50 | BE94: =MAX(50,IF(AU94<0,0,ROUNDUP(AU94/'Design Inputs'!$C$10/10,0)*10)) -> 50 | BF94: =MAX(50,IF(AV94<0,0,ROUNDUP(AV94/'Design Inputs'!$C$10/10,0)*10)) -> 50 | BG94: =MAX(50,IF(AW94<0,0,ROUNDUP(AW94/'Design Inputs'!$C$10/10,0)*10)) -> 50 | BH94: =MAX(50,IF(AX94<0,0,ROUNDUP(AX94/'Design Inputs'!$C$10/10,0)*10)) -> 50 | BI94: =MAX(50,IF(AY94<0,0,ROUNDUP(AY94/'Design Inputs'!$C$10/10,0)*10)) -> 50 | BJ94: =MAX(50,IF(AZ94<0,0,ROUNDUP(AZ94/'Design Inputs'!$C$10/10,0)*10)) -> 50 | BK94: =MAX(50,IF(BA94<0,0,ROUNDUP(BA94/'Design Inputs'!$C$10/10,0)*10)) -> 50
A95: 1 | B95: Fair | C95: =C5 -> 11603.016 | D95: =D5 -> 29.7802046 | E95: 34.0900258 | F95: 40.363267 | G95: 45.6113388 | H95: 51.367944 | I95: 59.9174316 | J95: 67.2438076 | K95: 75.4476012 | L95: 87.7764564 | M95: 98.1998544 | N95: 105 | O95: 105 | P95: 105 | Q95: 105 | R95: 105 | S95: 105 | T95: 105 | U95: 105 | V95: 105 | W95: 105 | X95: 0 | Y95: 0 | Z95: 0 | AA95: 0 | AB95: 5.167944 | AC95: 13.7174316 | AD95: 21.0438076 | AE95: 29.2476012 | AF95: 41.5764564 | AG95: 51.9998544 | AH95: =IF(AH$93<500000,100,150) -> 100 | AI95: 100 | AJ95: 100 | AK95: 100 | AL95: 100 | AM95: 150 | AN95: 150 | AO95: 150 | AP95: 150 | AQ95: 150 | AR95: =MAX(0,X95-AH95*'Design Inputs'!$C$13) -> 0 | AS95: =MAX(0,Y95-AI95*'Design Inputs'!$C$13) -> 0 | AT95: =MAX(0,Z95-AJ95*'Design Inputs'!$C$13) -> 0 | AU95: =MAX(0,AA95-AK95*'Design Inputs'!$C$13) -> 0 | AV95: =MAX(0,AB95-AL95*'Design Inputs'!$C$13) -> 0 | AW95: =MAX(0,AC95-AM95*'Design Inputs'!$C$13) -> 0 | AX95: =MAX(0,AD95-AN95*'Design Inputs'!$C$13) -> 0 | AY95: =MAX(0,AE95-AO95*'Design Inputs'!$C$13) -> 0 | AZ95: =MAX(0,AF95-AP95*'Design Inputs'!$C$13) -> 11.5764564 | BA95: =MAX(0,AG95-AQ95*'Design Inputs'!$C$13) -> 21.9998544 | BB95: =MAX(50,IF(AR95<0,0,ROUNDUP(AR95/'Design Inputs'!$C$10/10,0)*10)) -> 50 | BC95: =MAX(50,IF(AS95<0,0,ROUNDUP(AS95/'Design Inputs'!$C$10/10,0)*10)) -> 50 | BD95: =MAX(50,IF(AT95<0,0,ROUNDUP(AT95/'Design Inputs'!$C$10/10,0)*10)) -> 50 | BE95: =MAX(50,IF(AU95<0,0,ROUNDUP(AU95/'Design Inputs'!$C$10/10,0)*10)) -> 50 | BF95: =MAX(50,IF(AV95<0,0,ROUNDUP(AV95/'Design Inputs'!$C$10/10,0)*10)) -> 50 | BG95: =MAX(50,IF(AW95<0,0,ROUNDUP(AW95/'Design Inputs'!$C$10/10,0)*10)) -> 50 | BH95: =MAX(50,IF(AX95<0,0,ROUNDUP(AX95/'Design Inputs'!$C$10/10,0)*10)) -> 50 | BI95: =MAX(50,IF(AY95<0,0,ROUNDUP(AY95/'Design Inputs'!$C$10/10,0)*10)) -> 50 | BJ95: =MAX(50,IF(AZ95<0,0,ROUNDUP(AZ95/'Design Inputs'!$C$10/10,0)*10)) -> 50 | BK95: =MAX(50,IF(BA95<0,0,ROUNDUP(BA95/'Design Inputs'!$C$10/10,0)*10)) -> 50
A96: 1 | B96: Poor | C96: 10152.639 | D96: =D6 -> 31.663132 | E96: 36.1322874 | F96: 42.6501306 | G96: 48.115474 | H96: 54.1289494 | I96: 63.091695 | J96: 70.7953118 | K96: 79.4233362 | L96: 92.3251138 | M96: 103.1308834 | N96: 105 | O96: 105 | P96: 105 | Q96: 105 | R96: 105 | S96: 105 | T96: 105 | U96: 105 | V96: 105 | W96: 105 | X96: 0 | Y96: 0 | Z96: 0 | AA96: 1.915474 | AB96: 7.9289494 | AC96: 16.891695 | AD96: 24.5953118 | AE96: 33.2233362 | AF96: 46.1251138 | AG96: 56.9308834 | AH96: 100 | AI96: 100 | AJ96: 100 | AK96: 100 | AL96: 100 | AM96: 150 | AN96: 150 | AO96: 150 | AP96: 150 | AQ96: 150 | AR96: =MAX(0,X96-AH96*'Design Inputs'!$C$13) -> 0 | AS96: =MAX(0,Y96-AI96*'Design Inputs'!$C$13) -> 0 | AT96: =MAX(0,Z96-AJ96*'Design Inputs'!$C$13) -> 0 | AU96: =MAX(0,AA96-AK96*'Design Inputs'!$C$13) -> 0 | AV96: =MAX(0,AB96-AL96*'Design Inputs'!$C$13) -> 0 | AW96: =MAX(0,AC96-AM96*'Design Inputs'!$C$13) -> 0 | AX96: =MAX(0,AD96-AN96*'Design Inputs'!$C$13) -> 0 | AY96: =MAX(0,AE96-AO96*'Design Inputs'!$C$13) -> 3.2233362 | AZ96: =MAX(0,AF96-AP96*'Design Inputs'!$C$13) -> 16.1251138 | BA96: =MAX(0,AG96-AQ96*'Design Inputs'!$C$13) -> 26.9308834 | BB96: =MAX(50,IF(AR96<0,0,ROUNDUP(AR96/'Design Inputs'!$C$10/10,0)*10)) -> 50 | BC96: =MAX(50,IF(AS96<0,0,ROUNDUP(AS96/'Design Inputs'!$C$10/10,0)*10)) -> 50 | BD96: =MAX(50,IF(AT96<0,0,ROUNDUP(AT96/'Design Inputs'!$C$10/10,0)*10)) -> 50 | BE96: =MAX(50,IF(AU96<0,0,ROUNDUP(AU96/'Design Inputs'!$C$10/10,0)*10)) -> 50 | BF96: =MAX(50,IF(AV96<0,0,ROUNDUP(AV96/'Design Inputs'!$C$10/10,0)*10)) -> 50 | BG96: =MAX(50,IF(AW96<0,0,ROUNDUP(AW96/'Design Inputs'!$C$10/10,0)*10)) -> 50 | BH96: =MAX(50,IF(AX96<0,0,ROUNDUP(AX96/'Design Inputs'!$C$10/10,0)*10)) -> 50 | BI96: =MAX(50,IF(AY96<0,0,ROUNDUP(AY96/'Design Inputs'!$C$10/10,0)*10)) -> 50 | BJ96: =MAX(50,IF(AZ96<0,0,ROUNDUP(AZ96/'Design Inputs'!$C$10/10,0)*10)) -> 50 | BK96: =MAX(50,IF(BA96<0,0,ROUNDUP(BA96/'Design Inputs'!$C$10/10,0)*10)) -> 70
A97: 2 | B97: Good | C97: 11603.016 | D97: =D7 -> 29.7802046 | E97: 34.0900258 | F97: 40.363267 | G97: 45.6113388 | H97: 51.367944 | I97: 59.9174316 | J97: 67.2438076 | K97: 75.4476012 | L97: 87.7764564 | M97: 98.1998544 | N97: 105 | O97: 105 | P97: 105 | Q97: 105 | R97: 105 | S97: 105 | T97: 105 | U97: 105 | V97: 105 | W97: 105 | X97: 0 | Y97: 0 | Z97: 0 | AA97: 0 | AB97: 5.167944 | AC97: 13.7174316 | AD97: 21.0438076 | AE97: 29.2476012 | AF97: 41.5764564 | AG97: 51.9998544 | AH97: 100 | AI97: 100 | AJ97: 100 | AK97: 100 | AL97: 100 | AM97: 150 | AN97: 150 | AO97: 150 | AP97: 150 | AQ97: 150 | AR97: =MAX(0,X97-AH97*'Design Inputs'!$C$13) -> 0 | AS97: =MAX(0,Y97-AI97*'Design Inputs'!$C$13) -> 0 | AT97: =MAX(0,Z97-AJ97*'Design Inputs'!$C$13) -> 0 | AU97: =MAX(0,AA97-AK97*'Design Inputs'!$C$13) -> 0 | AV97: =MAX(0,AB97-AL97*'Design Inputs'!$C$13) -> 0 | AW97: =MAX(0,AC97-AM97*'Design Inputs'!$C$13) -> 0 | AX97: =MAX(0,AD97-AN97*'Design Inputs'!$C$13) -> 0 | AY97: =MAX(0,AE97-AO97*'Design Inputs'!$C$13) -> 0 | AZ97: =MAX(0,AF97-AP97*'Design Inputs'!$C$13) -> 11.5764564 | BA97: =MAX(0,AG97-AQ97*'Design Inputs'!$C$13) -> 21.9998544 | BB97: =MAX(50,IF(AR97<0,0,ROUNDUP(AR97/'Design Inputs'!$C$10/10,0)*10)) -> 50 | BC97: =MAX(50,IF(AS97<0,0,ROUNDUP(AS97/'Design Inputs'!$C$10/10,0)*10)) -> 50 | BD97: =MAX(50,IF(AT97<0,0,ROUNDUP(AT97/'Design Inputs'!$C$10/10,0)*10)) -> 50 | BE97: =MAX(50,IF(AU97<0,0,ROUNDUP(AU97/'Design Inputs'!$C$10/10,0)*10)) -> 50 | BF97: =MAX(50,IF(AV97<0,0,ROUNDUP(AV97/'Design Inputs'!$C$10/10,0)*10)) -> 50 | BG97: =MAX(50,IF(AW97<0,0,ROUNDUP(AW97/'Design Inputs'!$C$10/10,0)*10)) -> 50 | BH97: =MAX(50,IF(AX97<0,0,ROUNDUP(AX97/'Design Inputs'!$C$10/10,0)*10)) -> 50 | BI97: =MAX(50,IF(AY97<0,0,ROUNDUP(AY97/'Design Inputs'!$C$10/10,0)*10)) -> 50 | BJ97: =MAX(50,IF(AZ97<0,0,ROUNDUP(AZ97/'Design Inputs'!$C$10/10,0)*10)) -> 50 | BK97: =MAX(50,IF(BA97<0,0,ROUNDUP(BA97/'Design Inputs'!$C$10/10,0)*10)) -> 50
A98: 2 | B98: Fair | C98: 10152.639 | D98: =D8 -> 31.663132 | E98: 36.1322874 | F98: 42.6501306 | G98: 48.115474 | H98: 54.1289494 | I98: 63.091695 | J98: 70.7953118 | K98: 79.4233362 | L98: 92.3251138 | M98: 103.1308834 | N98: 105 | O98: 105 | P98: 105 | Q98: 105 | R98: 105 | S98: 105 | T98: 105 | U98: 105 | V98: 105 | W98: 105 | X98: 0 | Y98: 0 | Z98: 0 | AA98: 1.915474 | AB98: 7.9289494 | AC98: 16.891695 | AD98: 24.5953118 | AE98: 33.2233362 | AF98: 46.1251138 | AG98: 56.9308834 | AH98: 100 | AI98: 100 | AJ98: 100 | AK98: 100 | AL98: 100 | AM98: 150 | AN98: 150 | AO98: 150 | AP98: 150 | AQ98: 150 | AR98: =MAX(0,X98-AH98*'Design Inputs'!$C$13) -> 0 | AS98: =MAX(0,Y98-AI98*'Design Inputs'!$C$13) -> 0 | AT98: =MAX(0,Z98-AJ98*'Design Inputs'!$C$13) -> 0 | AU98: =MAX(0,AA98-AK98*'Design Inputs'!$C$13) -> 0 | AV98: =MAX(0,AB98-AL98*'Design Inputs'!$C$13) -> 0 | AW98: =MAX(0,AC98-AM98*'Design Inputs'!$C$13) -> 0 | AX98: =MAX(0,AD98-AN98*'Design Inputs'!$C$13) -> 0 | AY98: =MAX(0,AE98-AO98*'Design Inputs'!$C$13) -> 3.2233362 | AZ98: =MAX(0,AF98-AP98*'Design Inputs'!$C$13) -> 16.1251138 | BA98: =MAX(0,AG98-AQ98*'Design Inputs'!$C$13) -> 26.9308834 | BB98: =MAX(50,IF(AR98<0,0,ROUNDUP(AR98/'Design Inputs'!$C$10/10,0)*10)) -> 50 | BC98: =MAX(50,IF(AS98<0,0,ROUNDUP(AS98/'Design Inputs'!$C$10/10,0)*10)) -> 50 | BD98: =MAX(50,IF(AT98<0,0,ROUNDUP(AT98/'Design Inputs'!$C$10/10,0)*10)) -> 50 | BE98: =MAX(50,IF(AU98<0,0,ROUNDUP(AU98/'Design Inputs'!$C$10/10,0)*10)) -> 50 | BF98: =MAX(50,IF(AV98<0,0,ROUNDUP(AV98/'Design Inputs'!$C$10/10,0)*10)) -> 50 | BG98: =MAX(50,IF(AW98<0,0,ROUNDUP(AW98/'Design Inputs'!$C$10/10,0)*10)) -> 50 | BH98: =MAX(50,IF(AX98<0,0,ROUNDUP(AX98/'Design Inputs'!$C$10/10,0)*10)) -> 50 | BI98: =MAX(50,IF(AY98<0,0,ROUNDUP(AY98/'Design Inputs'!$C$10/10,0)*10)) -> 50 | BJ98: =MAX(50,IF(AZ98<0,0,ROUNDUP(AZ98/'Design Inputs'!$C$10/10,0)*10)) -> 50 | BK98: =MAX(50,IF(BA98<0,0,ROUNDUP(BA98/'Design Inputs'!$C$10/10,0)*10)) -> 70
A99: 2 | B99: Poor | C99: 7251.885 | D99: =D9 -> 36.7229136 | E99: 41.6378644 | F99: 48.8428792 | G99: 54.931691 | H99: 61.6825538 | I99: 71.831073 | J99: 80.5820588 | K99: 90.310208 | L99: 104.550972 | M99: 116.2058382 | N99: 105 | O99: 105 | P99: 105 | Q99: 105 | R99: 105 | S99: 105 | T99: 105 | U99: 105 | V99: 105 | W99: 105 | X99: 0 | Y99: 0 | Z99: 2.6428792 | AA99: 8.731691 | AB99: 15.4825538 | AC99: 25.631073 | AD99: 34.3820588 | AE99: 44.110208 | AF99: 58.350972 | AG99: 70.0058382 | AH99: 100 | AI99: 100 | AJ99: 100 | AK99: 100 | AL99: 100 | AM99: 150 | AN99: 150 | AO99: 150 | AP99: 150 | AQ99: 150 | AR99: =MAX(0,X99-AH99*'Design Inputs'!$C$13) -> 0 | AS99: =MAX(0,Y99-AI99*'Design Inputs'!$C$13) -> 0 | AT99: =MAX(0,Z99-AJ99*'Design Inputs'!$C$13) -> 0 | AU99: =MAX(0,AA99-AK99*'Design Inputs'!$C$13) -> 0 | AV99: =MAX(0,AB99-AL99*'Design Inputs'!$C$13) -> 0 | AW99: =MAX(0,AC99-AM99*'Design Inputs'!$C$13) -> 0 | AX99: =MAX(0,AD99-AN99*'Design Inputs'!$C$13) -> 4.3820588 | AY99: =MAX(0,AE99-AO99*'Design Inputs'!$C$13) -> 14.110208 | AZ99: =MAX(0,AF99-AP99*'Design Inputs'!$C$13) -> 28.350972 | BA99: =MAX(0,AG99-AQ99*'Design Inputs'!$C$13) -> 40.0058382 | BB99: =MAX(50,IF(AR99<0,0,ROUNDUP(AR99/'Design Inputs'!$C$10/10,0)*10)) -> 50 | BC99: =MAX(50,IF(AS99<0,0,ROUNDUP(AS99/'Design Inputs'!$C$10/10,0)*10)) -> 50 | BD99: =MAX(50,IF(AT99<0,0,ROUNDUP(AT99/'Design Inputs'!$C$10/10,0)*10)) -> 50 | BE99: =MAX(50,IF(AU99<0,0,ROUNDUP(AU99/'Design Inputs'!$C$10/10,0)*10)) -> 50 | BF99: =MAX(50,IF(AV99<0,0,ROUNDUP(AV99/'Design Inputs'!$C$10/10,0)*10)) -> 50 | BG99: =MAX(50,IF(AW99<0,0,ROUNDUP(AW99/'Design Inputs'!$C$10/10,0)*10)) -> 50 | BH99: =MAX(50,IF(AX99<0,0,ROUNDUP(AX99/'Design Inputs'!$C$10/10,0)*10)) -> 50 | BI99: =MAX(50,IF(AY99<0,0,ROUNDUP(AY99/'Design Inputs'!$C$10/10,0)*10)) -> 50 | BJ99: =MAX(50,IF(AZ99<0,0,ROUNDUP(AZ99/'Design Inputs'!$C$10/10,0)*10)) -> 70 | BK99: =MAX(50,IF(BA99<0,0,ROUNDUP(BA99/'Design Inputs'!$C$10/10,0)*10)) -> 100
A100: 3 | B100: Good | C100: 10152.639 | D100: =D10 -> 31.663132 | E100: 36.1322874 | F100: 42.6501306 | G100: 48.115474 | H100: 54.1289494 | I100: 63.091695 | J100: 70.7953118 | K100: 79.4233362 | L100: 92.3251138 | M100: 103.1308834 | N100: 105 | O100: 105 | P100: 105 | Q100: 105 | R100: 105 | S100: 105 | T100: 105 | U100: 105 | V100: 105 | W100: 105 | X100: 0 | Y100: 0 | Z100: 0 | AA100: 1.915474 | AB100: 7.9289494 | AC100: 16.891695 | AD100: 24.5953118 | AE100: 33.2233362 | AF100: 46.1251138 | AG100: 56.9308834 | AH100: 100 | AI100: 100 | AJ100: 100 | AK100: 100 | AL100: 100 | AM100: 150 | AN100: 150 | AO100: 150 | AP100: 150 | AQ100: 150 | AR100: =MAX(0,X100-AH100*'Design Inputs'!$C$13) -> 0 | AS100: =MAX(0,Y100-AI100*'Design Inputs'!$C$13) -> 0 | AT100: =MAX(0,Z100-AJ100*'Design Inputs'!$C$13) -> 0 | AU100: =MAX(0,AA100-AK100*'Design Inputs'!$C$13) -> 0 | AV100: =MAX(0,AB100-AL100*'Design Inputs'!$C$13) -> 0 | AW100: =MAX(0,AC100-AM100*'Design Inputs'!$C$13) -> 0 | AX100: =MAX(0,AD100-AN100*'Design Inputs'!$C$13) -> 0 | AY100: =MAX(0,AE100-AO100*'Design Inputs'!$C$13) -> 3.2233362 | AZ100: =MAX(0,AF100-AP100*'Design Inputs'!$C$13) -> 16.1251138 | BA100: =MAX(0,AG100-AQ100*'Design Inputs'!$C$13) -> 26.9308834 | BB100: =MAX(50,IF(AR100<0,0,ROUNDUP(AR100/'Design Inputs'!$C$10/10,0)*10)) -> 50 | BC100: =MAX(50,IF(AS100<0,0,ROUNDUP(AS100/'Design Inputs'!$C$10/10,0)*10)) -> 50 | BD100: =MAX(50,IF(AT100<0,0,ROUNDUP(AT100/'Design Inputs'!$C$10/10,0)*10)) -> 50 | BE100: =MAX(50,IF(AU100<0,0,ROUNDUP(AU100/'Design Inputs'!$C$10/10,0)*10)) -> 50 | BF100: =MAX(50,IF(AV100<0,0,ROUNDUP(AV100/'Design Inputs'!$C$10/10,0)*10)) -> 50 | BG100: =MAX(50,IF(AW100<0,0,ROUNDUP(AW100/'Design Inputs'!$C$10/10,0)*10)) -> 50 | BH100: =MAX(50,IF(AX100<0,0,ROUNDUP(AX100/'Design Inputs'!$C$10/10,0)*10)) -> 50 | BI100: =MAX(50,IF(AY100<0,0,ROUNDUP(AY100/'Design Inputs'!$C$10/10,0)*10)) -> 50 | BJ100: =MAX(50,IF(AZ100<0,0,ROUNDUP(AZ100/'Design Inputs'!$C$10/10,0)*10)) -> 50 | BK100: =MAX(50,IF(BA100<0,0,ROUNDUP(BA100/'Design Inputs'!$C$10/10,0)*10)) -> 70
A101: 3 | B101: Fair | C101: 7251.885 | D101: =D11 -> 36.7229136 | E101: 41.6378644 | F101: 48.8428792 | G101: 54.931691 | H101: 61.6825538 | I101: 71.831073 | J101: 80.5820588 | K101: 90.310208 | L101: 104.550972 | M101: 116.2058382 | N101: 105 | O101: 105 | P101: 105 | Q101: 105 | R101: 105 | S101: 105 | T101: 105 | U101: 105 | V101: 105 | W101: 105 | X101: 0 | Y101: 0 | Z101: 2.6428792 | AA101: 8.731691 | AB101: 15.4825538 | AC101: 25.631073 | AD101: 34.3820588 | AE101: 44.110208 | AF101: 58.350972 | AG101: 70.0058382 | AH101: 100 | AI101: 100 | AJ101: 100 | AK101: 100 | AL101: 100 | AM101: 150 | AN101: 150 | AO101: 150 | AP101: 150 | AQ101: 150 | AR101: =MAX(0,X101-AH101*'Design Inputs'!$C$13) -> 0 | AS101: =MAX(0,Y101-AI101*'Design Inputs'!$C$13) -> 0 | AT101: =MAX(0,Z101-AJ101*'Design Inputs'!$C$13) -> 0 | AU101: =MAX(0,AA101-AK101*'Design Inputs'!$C$13) -> 0 | AV101: =MAX(0,AB101-AL101*'Design Inputs'!$C$13) -> 0 | AW101: =MAX(0,AC101-AM101*'Design Inputs'!$C$13) -> 0 | AX101: =MAX(0,AD101-AN101*'Design Inputs'!$C$13) -> 4.3820588 | AY101: =MAX(0,AE101-AO101*'Design Inputs'!$C$13) -> 14.110208 | AZ101: =MAX(0,AF101-AP101*'Design Inputs'!$C$13) -> 28.350972 | BA101: =MAX(0,AG101-AQ101*'Design Inputs'!$C$13) -> 40.0058382 | BB101: =MAX(50,IF(AR101<0,0,ROUNDUP(AR101/'Design Inputs'!$C$10/10,0)*10)) -> 50 | BC101: =MAX(50,IF(AS101<0,0,ROUNDUP(AS101/'Design Inputs'!$C$10/10,0)*10)) -> 50 | BD101: =MAX(50,IF(AT101<0,0,ROUNDUP(AT101/'Design Inputs'!$C$10/10,0)*10)) -> 50 | BE101: =MAX(50,IF(AU101<0,0,ROUNDUP(AU101/'Design Inputs'!$C$10/10,0)*10)) -> 50 | BF101: =MAX(50,IF(AV101<0,0,ROUNDUP(AV101/'Design Inputs'!$C$10/10,0)*10)) -> 50 | BG101: =MAX(50,IF(AW101<0,0,ROUNDUP(AW101/'Design Inputs'!$C$10/10,0)*10)) -> 50 | BH101: =MAX(50,IF(AX101<0,0,ROUNDUP(AX101/'Design Inputs'!$C$10/10,0)*10)) -> 50 | BI101: =MAX(50,IF(AY101<0,0,ROUNDUP(AY101/'Design Inputs'!$C$10/10,0)*10)) -> 50 | BJ101: =MAX(50,IF(AZ101<0,0,ROUNDUP(AZ101/'Design Inputs'!$C$10/10,0)*10)) -> 70 | BK101: =MAX(50,IF(BA101<0,0,ROUNDUP(BA101/'Design Inputs'!$C$10/10,0)*10)) -> 100
A102: 3 | B102: Poor | C102: 5076.3195 | D102: =D12 -> 42.6404786 | E102: 48.105822 | F102: 56.1843936 | G102: 63.0775472 | H102: 70.7792082 | I102: 82.3916056 | J102: 92.3051494 | K102: 103.109014 | L102: 118.5432478 | M102: 130.9982902 | N102: 105 | O102: 105 | P102: 105 | Q102: 105 | R102: 105 | S102: 105 | T102: 105 | U102: 105 | V102: 105 | W102: 105 | X102: 0 | Y102: 1.905822 | Z102: 9.9843936 | AA102: 16.8775472 | AB102: 24.5792082 | AC102: 36.1916056 | AD102: 46.1051494 | AE102: 56.909014 | AF102: 72.3432478 | AG102: 84.7982902 | AH102: 100 | AI102: 100 | AJ102: 100 | AK102: 100 | AL102: 100 | AM102: 150 | AN102: 150 | AO102: 150 | AP102: 150 | AQ102: 150 | AR102: =MAX(0,X102-AH102*'Design Inputs'!$C$13) -> 0 | AS102: =MAX(0,Y102-AI102*'Design Inputs'!$C$13) -> 0 | AT102: =MAX(0,Z102-AJ102*'Design Inputs'!$C$13) -> 0 | AU102: =MAX(0,AA102-AK102*'Design Inputs'!$C$13) -> 0 | AV102: =MAX(0,AB102-AL102*'Design Inputs'!$C$13) -> 4.5792082 | AW102: =MAX(0,AC102-AM102*'Design Inputs'!$C$13) -> 6.1916056 | AX102: =MAX(0,AD102-AN102*'Design Inputs'!$C$13) -> 16.1051494 | AY102: =MAX(0,AE102-AO102*'Design Inputs'!$C$13) -> 26.909014 | AZ102: =MAX(0,AF102-AP102*'Design Inputs'!$C$13) -> 42.3432478 | BA102: =MAX(0,AG102-AQ102*'Design Inputs'!$C$13) -> 54.7982902 | BB102: =MAX(50,IF(AR102<0,0,ROUNDUP(AR102/'Design Inputs'!$C$10/10,0)*10)) -> 50 | BC102: =MAX(50,IF(AS102<0,0,ROUNDUP(AS102/'Design Inputs'!$C$10/10,0)*10)) -> 50 | BD102: =MAX(50,IF(AT102<0,0,ROUNDUP(AT102/'Design Inputs'!$C$10/10,0)*10)) -> 50 | BE102: =MAX(50,IF(AU102<0,0,ROUNDUP(AU102/'Design Inputs'!$C$10/10,0)*10)) -> 50 | BF102: =MAX(50,IF(AV102<0,0,ROUNDUP(AV102/'Design Inputs'!$C$10/10,0)*10)) -> 50 | BG102: =MAX(50,IF(AW102<0,0,ROUNDUP(AW102/'Design Inputs'!$C$10/10,0)*10)) -> 50 | BH102: =MAX(50,IF(AX102<0,0,ROUNDUP(AX102/'Design Inputs'!$C$10/10,0)*10)) -> 50 | BI102: =MAX(50,IF(AY102<0,0,ROUNDUP(AY102/'Design Inputs'!$C$10/10,0)*10)) -> 70 | BJ102: =MAX(50,IF(AZ102<0,0,ROUNDUP(AZ102/'Design Inputs'!$C$10/10,0)*10)) -> 100 | BK102: =MAX(50,IF(BA102<0,0,ROUNDUP(BA102/'Design Inputs'!$C$10/10,0)*10)) -> 130
A103: 4 | B103: Good | C103: 7251.885 | D103: =D13 -> 36.7229136 | E103: 41.6378644 | F103: 48.8428792 | G103: 54.931691 | H103: 61.6825538 | I103: 71.831073 | J103: 80.5820588 | K103: 90.310208 | L103: 104.550972 | M103: 116.2058382 | N103: 105 | O103: 105 | P103: 105 | Q103: 105 | R103: 105 | S103: 105 | T103: 105 | U103: 105 | V103: 105 | W103: 105 | X103: 0 | Y103: 0 | Z103: 2.6428792 | AA103: 8.731691 | AB103: 15.4825538 | AC103: 25.631073 | AD103: 34.3820588 | AE103: 44.110208 | AF103: 58.350972 | AG103: 70.0058382 | AH103: 100 | AI103: 100 | AJ103: 100 | AK103: 100 | AL103: 100 | AM103: 150 | AN103: 150 | AO103: 150 | AP103: 150 | AQ103: 150 | AR103: =MAX(0,X103-AH103*'Design Inputs'!$C$13) -> 0 | AS103: =MAX(0,Y103-AI103*'Design Inputs'!$C$13) -> 0 | AT103: =MAX(0,Z103-AJ103*'Design Inputs'!$C$13) -> 0 | AU103: =MAX(0,AA103-AK103*'Design Inputs'!$C$13) -> 0 | AV103: =MAX(0,AB103-AL103*'Design Inputs'!$C$13) -> 0 | AW103: =MAX(0,AC103-AM103*'Design Inputs'!$C$13) -> 0 | AX103: =MAX(0,AD103-AN103*'Design Inputs'!$C$13) -> 4.3820588 | AY103: =MAX(0,AE103-AO103*'Design Inputs'!$C$13) -> 14.110208 | AZ103: =MAX(0,AF103-AP103*'Design Inputs'!$C$13) -> 28.350972 | BA103: =MAX(0,AG103-AQ103*'Design Inputs'!$C$13) -> 40.0058382 | BB103: =MAX(50,IF(AR103<0,0,ROUNDUP(AR103/'Design Inputs'!$C$10/10,0)*10)) -> 50 | BC103: =MAX(50,IF(AS103<0,0,ROUNDUP(AS103/'Design Inputs'!$C$10/10,0)*10)) -> 50 | BD103: =MAX(50,IF(AT103<0,0,ROUNDUP(AT103/'Design Inputs'!$C$10/10,0)*10)) -> 50 | BE103: =MAX(50,IF(AU103<0,0,ROUNDUP(AU103/'Design Inputs'!$C$10/10,0)*10)) -> 50 | BF103: =MAX(50,IF(AV103<0,0,ROUNDUP(AV103/'Design Inputs'!$C$10/10,0)*10)) -> 50 | BG103: =MAX(50,IF(AW103<0,0,ROUNDUP(AW103/'Design Inputs'!$C$10/10,0)*10)) -> 50 | BH103: =MAX(50,IF(AX103<0,0,ROUNDUP(AX103/'Design Inputs'!$C$10/10,0)*10)) -> 50 | BI103: =MAX(50,IF(AY103<0,0,ROUNDUP(AY103/'Design Inputs'!$C$10/10,0)*10)) -> 50 | BJ103: =MAX(50,IF(AZ103<0,0,ROUNDUP(AZ103/'Design Inputs'!$C$10/10,0)*10)) -> 70 | BK103: =MAX(50,IF(BA103<0,0,ROUNDUP(BA103/'Design Inputs'!$C$10/10,0)*10)) -> 100
A104: 4 | B104: Fair | C104: 5076.3195 | D104: =D14 -> 42.6404786 | E104: 48.105822 | F104: 56.1843936 | G104: 63.0775472 | H104: 70.7792082 | I104: 82.3916056 | J104: 92.3051494 | K104: 103.109014 | L104: 118.5432478 | M104: 130.9982902 | N104: =ThickPaver -> 105 | O104: 105 | P104: 105 | Q104: 105 | R104: 105 | S104: 105 | T104: 105 | U104: 105 | V104: 105 | W104: 105 | X104: 0 | Y104: 1.905822 | Z104: 9.9843936 | AA104: 16.8775472 | AB104: 24.5792082 | AC104: 36.1916056 | AD104: 46.1051494 | AE104: 56.909014 | AF104: 72.3432478 | AG104: 84.7982902 | AH104: 100 | AI104: 100 | AJ104: 100 | AK104: 100 | AL104: 100 | AM104: 150 | AN104: 150 | AO104: 150 | AP104: 150 | AQ104: 150 | AR104: =MAX(0,X104-AH104*'Design Inputs'!$C$13) -> 0 | AS104: =MAX(0,Y104-AI104*'Design Inputs'!$C$13) -> 0 | AT104: =MAX(0,Z104-AJ104*'Design Inputs'!$C$13) -> 0 | AU104: =MAX(0,AA104-AK104*'Design Inputs'!$C$13) -> 0 | AV104: =MAX(0,AB104-AL104*'Design Inputs'!$C$13) -> 4.5792082 | AW104: =MAX(0,AC104-AM104*'Design Inputs'!$C$13) -> 6.1916056 | AX104: =MAX(0,AD104-AN104*'Design Inputs'!$C$13) -> 16.1051494 | AY104: =MAX(0,AE104-AO104*'Design Inputs'!$C$13) -> 26.909014 | AZ104: =MAX(0,AF104-AP104*'Design Inputs'!$C$13) -> 42.3432478 | BA104: =MAX(0,AG104-AQ104*'Design Inputs'!$C$13) -> 54.7982902 | BB104: =MAX(50,IF(AR104<0,0,ROUNDUP(AR104/'Design Inputs'!$C$10/10,0)*10)) -> 50 | BC104: =MAX(50,IF(AS104<0,0,ROUNDUP(AS104/'Design Inputs'!$C$10/10,0)*10)) -> 50 | BD104: =MAX(50,IF(AT104<0,0,ROUNDUP(AT104/'Design Inputs'!$C$10/10,0)*10)) -> 50 | BE104: =MAX(50,IF(AU104<0,0,ROUNDUP(AU104/'Design Inputs'!$C$10/10,0)*10)) -> 50 | BF104: =MAX(50,IF(AV104<0,0,ROUNDUP(AV104/'Design Inputs'!$C$10/10,0)*10)) -> 50 | BG104: =MAX(50,IF(AW104<0,0,ROUNDUP(AW104/'Design Inputs'!$C$10/10,0)*10)) -> 50 | BH104: =MAX(50,IF(AX104<0,0,ROUNDUP(AX104/'Design Inputs'!$C$10/10,0)*10)) -> 50 | BI104: =MAX(50,IF(AY104<0,0,ROUNDUP(AY104/'Design Inputs'!$C$10/10,0)*10)) -> 70 | BJ104: =MAX(50,IF(AZ104<0,0,ROUNDUP(AZ104/'Design Inputs'!$C$10/10,0)*10)) -> 100 | BK104: =MAX(50,IF(BA104<0,0,ROUNDUP(BA104/'Design Inputs'!$C$10/10,0)*10)) -> 130
A105: 4 | B105: Poor | C105: 4351.131 | D105: =D15 -> 45.397293 | E105: 51.132994 | F105: 59.647709 | G105: 66.9425382 | H105: 75.1096288 | I105: 87.3876332 | J105: 97.776284 | K105: 108.9882504 | L105: 124.8866438 | M105: 137.6899456 | N105: 105 | O105: 105 | P105: 105 | Q105: 105 | R105: 105 | S105: 105 | T105: 105 | U105: 105 | V105: 105 | W105: 105 | X105: 0 | Y105: 4.932994 | Z105: 13.447709 | AA105: 20.7425382 | AB105: 28.9096288 | AC105: 41.1876332 | AD105: 51.576284 | AE105: 62.7882504 | AF105: 78.6866438 | AG105: 91.4899456 | AH105: 100 | AI105: 100 | AJ105: 100 | AK105: 100 | AL105: 100 | AM105: 150 | AN105: 150 | AO105: 150 | AP105: 150 | AQ105: 150 | AR105: =MAX(0,X105-AH105*'Design Inputs'!$C$13) -> 0 | AS105: =MAX(0,Y105-AI105*'Design Inputs'!$C$13) -> 0 | AT105: =MAX(0,Z105-AJ105*'Design Inputs'!$C$13) -> 0 | AU105: =MAX(0,AA105-AK105*'Design Inputs'!$C$13) -> 0.7425382 | AV105: =MAX(0,AB105-AL105*'Design Inputs'!$C$13) -> 8.9096288 | AW105: =MAX(0,AC105-AM105*'Design Inputs'!$C$13) -> 11.1876332 | AX105: =MAX(0,AD105-AN105*'Design Inputs'!$C$13) -> 21.576284 | AY105: =MAX(0,AE105-AO105*'Design Inputs'!$C$13) -> 32.7882504 | AZ105: =MAX(0,AF105-AP105*'Design Inputs'!$C$13) -> 48.6866438 | BA105: =MAX(0,AG105-AQ105*'Design Inputs'!$C$13) -> 61.4899456 | BB105: =MAX(50,IF(AR105<0,0,ROUNDUP(AR105/'Design Inputs'!$C$10/10,0)*10)) -> 50 | BC105: =MAX(50,IF(AS105<0,0,ROUNDUP(AS105/'Design Inputs'!$C$10/10,0)*10)) -> 50 | BD105: =MAX(50,IF(AT105<0,0,ROUNDUP(AT105/'Design Inputs'!$C$10/10,0)*10)) -> 50 | BE105: =MAX(50,IF(AU105<0,0,ROUNDUP(AU105/'Design Inputs'!$C$10/10,0)*10)) -> 50 | BF105: =MAX(50,IF(AV105<0,0,ROUNDUP(AV105/'Design Inputs'!$C$10/10,0)*10)) -> 50 | BG105: =MAX(50,IF(AW105<0,0,ROUNDUP(AW105/'Design Inputs'!$C$10/10,0)*10)) -> 50 | BH105: =MAX(50,IF(AX105<0,0,ROUNDUP(AX105/'Design Inputs'!$C$10/10,0)*10)) -> 50 | BI105: =MAX(50,IF(AY105<0,0,ROUNDUP(AY105/'Design Inputs'!$C$10/10,0)*10)) -> 80 | BJ105: =MAX(50,IF(AZ105<0,0,ROUNDUP(AZ105/'Design Inputs'!$C$10/10,0)*10)) -> 120 | BK105: =MAX(50,IF(BA105<0,0,ROUNDUP(BA105/'Design Inputs'!$C$10/10,0)*10)) -> 140
A106: 5 | B106: Good | C106: 5801.508 | D106: =D16 -> 40.3535896 | E106: 45.6000612 | F106: 53.331999 | G106: 59.9045538 | H106: 67.2289994 | I106: 78.2742402 | J106: 87.7571524 | K106: 98.17862 | L106: 113.1905788 | M106: 125.349508 | N106: 105 | O106: 105 | P106: 105 | Q106: 105 | R106: 105 | S106: 105 | T106: 105 | U106: 105 | V106: 105 | W106: 105 | X106: 0 | Y106: 0 | Z106: 7.131999 | AA106: 13.7045538 | AB106: 21.0289994 | AC106: 32.0742402 | AD106: 41.5571524 | AE106: 51.97862 | AF106: 66.9905788 | AG106: 79.149508 | AH106: 100 | AI106: 100 | AJ106: 100 | AK106: 100 | AL106: 100 | AM106: 150 | AN106: 150 | AO106: 150 | AP106: 150 | AQ106: 150 | AR106: =MAX(0,X106-AH106*'Design Inputs'!$C$13) -> 0 | AS106: =MAX(0,Y106-AI106*'Design Inputs'!$C$13) -> 0 | AT106: =MAX(0,Z106-AJ106*'Design Inputs'!$C$13) -> 0 | AU106: =MAX(0,AA106-AK106*'Design Inputs'!$C$13) -> 0 | AV106: =MAX(0,AB106-AL106*'Design Inputs'!$C$13) -> 1.0289994 | AW106: =MAX(0,AC106-AM106*'Design Inputs'!$C$13) -> 2.0742402 | AX106: =MAX(0,AD106-AN106*'Design Inputs'!$C$13) -> 11.5571524 | AY106: =MAX(0,AE106-AO106*'Design Inputs'!$C$13) -> 21.97862 | AZ106: =MAX(0,AF106-AP106*'Design Inputs'!$C$13) -> 36.9905788 | BA106: =MAX(0,AG106-AQ106*'Design Inputs'!$C$13) -> 49.149508 | BB106: =MAX(50,IF(AR106<0,0,ROUNDUP(AR106/'Design Inputs'!$C$10/10,0)*10)) -> 50 | BC106: =MAX(50,IF(AS106<0,0,ROUNDUP(AS106/'Design Inputs'!$C$10/10,0)*10)) -> 50 | BD106: =MAX(50,IF(AT106<0,0,ROUNDUP(AT106/'Design Inputs'!$C$10/10,0)*10)) -> 50 | BE106: =MAX(50,IF(AU106<0,0,ROUNDUP(AU106/'Design Inputs'!$C$10/10,0)*10)) -> 50 | BF106: =MAX(50,IF(AV106<0,0,ROUNDUP(AV106/'Design Inputs'!$C$10/10,0)*10)) -> 50 | BG106: =MAX(50,IF(AW106<0,0,ROUNDUP(AW106/'Design Inputs'!$C$10/10,0)*10)) -> 50 | BH106: =MAX(50,IF(AX106<0,0,ROUNDUP(AX106/'Design Inputs'!$C$10/10,0)*10)) -> 50 | BI106: =MAX(50,IF(AY106<0,0,ROUNDUP(AY106/'Design Inputs'!$C$10/10,0)*10)) -> 50 | BJ106: =MAX(50,IF(AZ106<0,0,ROUNDUP(AZ106/'Design Inputs'!$C$10/10,0)*10)) -> 90 | BK106: =MAX(50,IF(BA106<0,0,ROUNDUP(BA106/'Design Inputs'!$C$10/10,0)*10)) -> 120
A107: 5 | B107: Fair | C107: 4351.131 | D107: =D17 -> 45.397293 | E107: 51.132994 | F107: 59.647709 | G107: 66.9425382 | H107: 75.1096288 | I107: 87.3876332 | J107: 97.776284 | K107: 108.9882504 | L107: 124.8866438 | M107: 137.6899456 | N107: 105 | O107: 105 | P107: 105 | Q107: 105 | R107: 105 | S107: 105 | T107: 105 | U107: 105 | V107: 105 | W107: 105 | X107: 0 | Y107: 4.932994 | Z107: 13.447709 | AA107: 20.7425382 | AB107: 28.9096288 | AC107: 41.1876332 | AD107: 51.576284 | AE107: 62.7882504 | AF107: 78.6866438 | AG107: 91.4899456 | AH107: 100 | AI107: 100 | AJ107: 100 | AK107: 100 | AL107: 100 | AM107: 150 | AN107: 150 | AO107: 150 | AP107: 150 | AQ107: 150 | AR107: =MAX(0,X107-AH107*'Design Inputs'!$C$13) -> 0 | AS107: =MAX(0,Y107-AI107*'Design Inputs'!$C$13) -> 0 | AT107: =MAX(0,Z107-AJ107*'Design Inputs'!$C$13) -> 0 | AU107: =MAX(0,AA107-AK107*'Design Inputs'!$C$13) -> 0.7425382 | AV107: =MAX(0,AB107-AL107*'Design Inputs'!$C$13) -> 8.9096288 | AW107: =MAX(0,AC107-AM107*'Design Inputs'!$C$13) -> 11.1876332 | AX107: =MAX(0,AD107-AN107*'Design Inputs'!$C$13) -> 21.576284 | AY107: =MAX(0,AE107-AO107*'Design Inputs'!$C$13) -> 32.7882504 | AZ107: =MAX(0,AF107-AP107*'Design Inputs'!$C$13) -> 48.6866438 | BA107: =MAX(0,AG107-AQ107*'Design Inputs'!$C$13) -> 61.4899456 | BB107: =MAX(50,IF(AR107<0,0,ROUNDUP(AR107/'Design Inputs'!$C$10/10,0)*10)) -> 50 | BC107: =MAX(50,IF(AS107<0,0,ROUNDUP(AS107/'Design Inputs'!$C$10/10,0)*10)) -> 50 | BD107: =MAX(50,IF(AT107<0,0,ROUNDUP(AT107/'Design Inputs'!$C$10/10,0)*10)) -> 50 | BE107: =MAX(50,IF(AU107<0,0,ROUNDUP(AU107/'Design Inputs'!$C$10/10,0)*10)) -> 50 | BF107: =MAX(50,IF(AV107<0,0,ROUNDUP(AV107/'Design Inputs'!$C$10/10,0)*10)) -> 50 | BG107: =MAX(50,IF(AW107<0,0,ROUNDUP(AW107/'Design Inputs'!$C$10/10,0)*10)) -> 50 | BH107: =MAX(50,IF(AX107<0,0,ROUNDUP(AX107/'Design Inputs'!$C$10/10,0)*10)) -> 50 | BI107: =MAX(50,IF(AY107<0,0,ROUNDUP(AY107/'Design Inputs'!$C$10/10,0)*10)) -> 80 | BJ107: =MAX(50,IF(AZ107<0,0,ROUNDUP(AZ107/'Design Inputs'!$C$10/10,0)*10)) -> 120 | BK107: =MAX(50,IF(BA107<0,0,ROUNDUP(BA107/'Design Inputs'!$C$10/10,0)*10)) -> 140
A108: 5 | B108: Poor | C108: 3625.9425 | D108: =D18 -> 48.831627 | E108: 54.9194482 | F108: 64.0019548 | G108: 71.8149948 | H108: 80.5640248 | I108: 93.621606 | J108: 104.5291026 | K108: 116.1826734 | L108: 132.6179466 | M108: 145.8519054 | N108: 105 | O108: 105 | P108: 105 | Q108: 105 | R108: 105 | S108: 105 | T108: 105 | U108: 105 | V108: 105 | W108: 105 | X108: 2.631627 | Y108: 8.7194482 | Z108: 17.8019548 | AA108: 25.6149948 | AB108: 34.3640248 | AC108: 47.421606 | AD108: 58.3291026 | AE108: 69.9826734 | AF108: 86.4179466 | AG108: 99.6519054 | AH108: 100 | AI108: 100 | AJ108: 100 | AK108: 100 | AL108: 100 | AM108: 150 | AN108: 150 | AO108: 150 | AP108: 150 | AQ108: 150 | AR108: =MAX(0,X108-AH108*'Design Inputs'!$C$13) -> 0 | AS108: =MAX(0,Y108-AI108*'Design Inputs'!$C$13) -> 0 | AT108: =MAX(0,Z108-AJ108*'Design Inputs'!$C$13) -> 0 | AU108: =MAX(0,AA108-AK108*'Design Inputs'!$C$13) -> 5.6149948 | AV108: =MAX(0,AB108-AL108*'Design Inputs'!$C$13) -> 14.3640248 | AW108: =MAX(0,AC108-AM108*'Design Inputs'!$C$13) -> 17.421606 | AX108: =MAX(0,AD108-AN108*'Design Inputs'!$C$13) -> 28.3291026 | AY108: =MAX(0,AE108-AO108*'Design Inputs'!$C$13) -> 39.9826734 | AZ108: =MAX(0,AF108-AP108*'Design Inputs'!$C$13) -> 56.4179466 | BA108: =MAX(0,AG108-AQ108*'Design Inputs'!$C$13) -> 69.6519054 | BB108: =MAX(50,IF(AR108<0,0,ROUNDUP(AR108/'Design Inputs'!$C$10/10,0)*10)) -> 50 | BC108: =MAX(50,IF(AS108<0,0,ROUNDUP(AS108/'Design Inputs'!$C$10/10,0)*10)) -> 50 | BD108: =MAX(50,IF(AT108<0,0,ROUNDUP(AT108/'Design Inputs'!$C$10/10,0)*10)) -> 50 | BE108: =MAX(50,IF(AU108<0,0,ROUNDUP(AU108/'Design Inputs'!$C$10/10,0)*10)) -> 50 | BF108: =MAX(50,IF(AV108<0,0,ROUNDUP(AV108/'Design Inputs'!$C$10/10,0)*10)) -> 50 | BG108: =MAX(50,IF(AW108<0,0,ROUNDUP(AW108/'Design Inputs'!$C$10/10,0)*10)) -> 50 | BH108: =MAX(50,IF(AX108<0,0,ROUNDUP(AX108/'Design Inputs'!$C$10/10,0)*10)) -> 70 | BI108: =MAX(50,IF(AY108<0,0,ROUNDUP(AY108/'Design Inputs'!$C$10/10,0)*10)) -> 100 | BJ108: =MAX(50,IF(AZ108<0,0,ROUNDUP(AZ108/'Design Inputs'!$C$10/10,0)*10)) -> 130 | BK108: =MAX(50,IF(BA108<0,0,ROUNDUP(BA108/'Design Inputs'!$C$10/10,0)*10)) -> 160
A109: 6 | B109: Good | C109: 4351.131 | D109: =D19 -> 45.397293 | E109: 51.132994 | F109: 59.647709 | G109: 66.9425382 | H109: 75.1096288 | I109: 87.3876332 | J109: 97.776284 | K109: 108.9882504 | L109: 124.8866438 | M109: 137.6899456 | N109: 105 | O109: 105 | P109: 105 | Q109: 105 | R109: 105 | S109: 105 | T109: 105 | U109: 105 | V109: 105 | W109: 105 | X109: 0 | Y109: 4.932994 | Z109: 13.447709 | AA109: 20.7425382 | AB109: 28.9096288 | AC109: 41.1876332 | AD109: 51.576284 | AE109: 62.7882504 | AF109: 78.6866438 | AG109: 91.4899456 | AH109: 100 | AI109: 100 | AJ109: 100 | AK109: 100 | AL109: 100 | AM109: 150 | AN109: 150 | AO109: 150 | AP109: 150 | AQ109: 150 | AR109: =MAX(0,X109-AH109*'Design Inputs'!$C$13) -> 0 | AS109: =MAX(0,Y109-AI109*'Design Inputs'!$C$13) -> 0 | AT109: =MAX(0,Z109-AJ109*'Design Inputs'!$C$13) -> 0 | AU109: =MAX(0,AA109-AK109*'Design Inputs'!$C$13) -> 0.7425382 | AV109: =MAX(0,AB109-AL109*'Design Inputs'!$C$13) -> 8.9096288 | AW109: =MAX(0,AC109-AM109*'Design Inputs'!$C$13) -> 11.1876332 | AX109: =MAX(0,AD109-AN109*'Design Inputs'!$C$13) -> 21.576284 | AY109: =MAX(0,AE109-AO109*'Design Inputs'!$C$13) -> 32.7882504 | AZ109: =MAX(0,AF109-AP109*'Design Inputs'!$C$13) -> 48.6866438 | BA109: =MAX(0,AG109-AQ109*'Design Inputs'!$C$13) -> 61.4899456 | BB109: =MAX(50,IF(AR109<0,0,ROUNDUP(AR109/'Design Inputs'!$C$10/10,0)*10)) -> 50 | BC109: =MAX(50,IF(AS109<0,0,ROUNDUP(AS109/'Design Inputs'!$C$10/10,0)*10)) -> 50 | BD109: =MAX(50,IF(AT109<0,0,ROUNDUP(AT109/'Design Inputs'!$C$10/10,0)*10)) -> 50 | BE109: =MAX(50,IF(AU109<0,0,ROUNDUP(AU109/'Design Inputs'!$C$10/10,0)*10)) -> 50 | BF109: =MAX(50,IF(AV109<0,0,ROUNDUP(AV109/'Design Inputs'!$C$10/10,0)*10)) -> 50 | BG109: =MAX(50,IF(AW109<0,0,ROUNDUP(AW109/'Design Inputs'!$C$10/10,0)*10)) -> 50 | BH109: =MAX(50,IF(AX109<0,0,ROUNDUP(AX109/'Design Inputs'!$C$10/10,0)*10)) -> 50 | BI109: =MAX(50,IF(AY109<0,0,ROUNDUP(AY109/'Design Inputs'!$C$10/10,0)*10)) -> 80 | BJ109: =MAX(50,IF(AZ109<0,0,ROUNDUP(AZ109/'Design Inputs'!$C$10/10,0)*10)) -> 120 | BK109: =MAX(50,IF(BA109<0,0,ROUNDUP(BA109/'Design Inputs'!$C$10/10,0)*10)) -> 140
A110: 6 | B110: Fair | C110: 3625.9425 | D110: =D20 -> 48.831627 | E110: 54.9194482 | F110: 64.0019548 | G110: 71.8149948 | H110: 80.5640248 | I110: 93.621606 | J110: 104.5291026 | K110: 116.1826734 | L110: 132.6179466 | M110: 145.8519054 | N110: 105 | O110: 105 | P110: 105 | Q110: 105 | R110: 105 | S110: 105 | T110: 105 | U110: 105 | V110: 105 | W110: 105 | X110: 2.631627 | Y110: 8.7194482 | Z110: 17.8019548 | AA110: 25.6149948 | AB110: 34.3640248 | AC110: 47.421606 | AD110: 58.3291026 | AE110: 69.9826734 | AF110: 86.4179466 | AG110: 99.6519054 | AH110: 100 | AI110: 100 | AJ110: 100 | AK110: 100 | AL110: 100 | AM110: 150 | AN110: 150 | AO110: 150 | AP110: 150 | AQ110: 150 | AR110: =MAX(0,X110-AH110*'Design Inputs'!$C$13) -> 0 | AS110: =MAX(0,Y110-AI110*'Design Inputs'!$C$13) -> 0 | AT110: =MAX(0,Z110-AJ110*'Design Inputs'!$C$13) -> 0 | AU110: =MAX(0,AA110-AK110*'Design Inputs'!$C$13) -> 5.6149948 | AV110: =MAX(0,AB110-AL110*'Design Inputs'!$C$13) -> 14.3640248 | AW110: =MAX(0,AC110-AM110*'Design Inputs'!$C$13) -> 17.421606 | AX110: =MAX(0,AD110-AN110*'Design Inputs'!$C$13) -> 28.3291026 | AY110: =MAX(0,AE110-AO110*'Design Inputs'!$C$13) -> 39.9826734 | AZ110: =MAX(0,AF110-AP110*'Design Inputs'!$C$13) -> 56.4179466 | BA110: =MAX(0,AG110-AQ110*'Design Inputs'!$C$13) -> 69.6519054 | BB110: =MAX(50,IF(AR110<0,0,ROUNDUP(AR110/'Design Inputs'!$C$10/10,0)*10)) -> 50 | BC110: =MAX(50,IF(AS110<0,0,ROUNDUP(AS110/'Design Inputs'!$C$10/10,0)*10)) -> 50 | BD110: =MAX(50,IF(AT110<0,0,ROUNDUP(AT110/'Design Inputs'!$C$10/10,0)*10)) -> 50 | BE110: =MAX(50,IF(AU110<0,0,ROUNDUP(AU110/'Design Inputs'!$C$10/10,0)*10)) -> 50 | BF110: =MAX(50,IF(AV110<0,0,ROUNDUP(AV110/'Design Inputs'!$C$10/10,0)*10)) -> 50 | BG110: =MAX(50,IF(AW110<0,0,ROUNDUP(AW110/'Design Inputs'!$C$10/10,0)*10)) -> 50 | BH110: =MAX(50,IF(AX110<0,0,ROUNDUP(AX110/'Design Inputs'!$C$10/10,0)*10)) -> 70 | BI110: =MAX(50,IF(AY110<0,0,ROUNDUP(AY110/'Design Inputs'!$C$10/10,0)*10)) -> 100 | BJ110: =MAX(50,IF(AZ110<0,0,ROUNDUP(AZ110/'Design Inputs'!$C$10/10,0)*10)) -> 130 | BK110: =MAX(50,IF(BA110<0,0,ROUNDUP(BA110/'Design Inputs'!$C$10/10,0)*10)) -> 160
A111: 6 | B111: Poor | C111: 2610.6786 | D111: =D21 -> 55.559325 | E111: 62.381003 | F111: 72.6428316 | G111: 81.4884324 | H111: 91.310587 | I111: 105.6575738 | J111: 117.3800294 | K111: 129.7713178 | L111: 147.2095354 | M111: 161.298382 | N111: 105 | O111: 105 | P111: 105 | Q111: 105 | R111: 105 | S111: 105 | T111: 105 | U111: 105 | V111: 105 | W111: 105 | X111: 9.359325 | Y111: 16.181003 | Z111: 26.4428316 | AA111: 35.2884324 | AB111: 45.110587 | AC111: 59.4575738 | AD111: 71.1800294 | AE111: 83.5713178 | AF111: 101.0095354 | AG111: 115.098382 | AH111: =IF(AH$93<500000,100,150) -> 100 | AI111: 100 | AJ111: 100 | AK111: 100 | AL111: 100 | AM111: 150 | AN111: 150 | AO111: 150 | AP111: 150 | AQ111: 150 | AR111: =MAX(0,X111-AH111*'Design Inputs'!$C$13) -> 0 | AS111: =MAX(0,Y111-AI111*'Design Inputs'!$C$13) -> 0 | AT111: =MAX(0,Z111-AJ111*'Design Inputs'!$C$13) -> 6.4428316 | AU111: =MAX(0,AA111-AK111*'Design Inputs'!$C$13) -> 15.2884324 | AV111: =MAX(0,AB111-AL111*'Design Inputs'!$C$13) -> 25.110587 | AW111: =MAX(0,AC111-AM111*'Design Inputs'!$C$13) -> 29.4575738 | AX111: =MAX(0,AD111-AN111*'Design Inputs'!$C$13) -> 41.1800294 | AY111: =MAX(0,AE111-AO111*'Design Inputs'!$C$13) -> 53.5713178 | AZ111: =MAX(0,AF111-AP111*'Design Inputs'!$C$13) -> 71.0095354 | BA111: =MAX(0,AG111-AQ111*'Design Inputs'!$C$13) -> 85.098382 | BB111: =MAX(50,IF(AR111<0,0,ROUNDUP(AR111/'Design Inputs'!$C$10/10,0)*10)) -> 50 | BC111: =MAX(50,IF(AS111<0,0,ROUNDUP(AS111/'Design Inputs'!$C$10/10,0)*10)) -> 50 | BD111: =MAX(50,IF(AT111<0,0,ROUNDUP(AT111/'Design Inputs'!$C$10/10,0)*10)) -> 50 | BE111: =MAX(50,IF(AU111<0,0,ROUNDUP(AU111/'Design Inputs'!$C$10/10,0)*10)) -> 50 | BF111: =MAX(50,IF(AV111<0,0,ROUNDUP(AV111/'Design Inputs'!$C$10/10,0)*10)) -> 60 | BG111: =MAX(50,IF(AW111<0,0,ROUNDUP(AW111/'Design Inputs'!$C$10/10,0)*10)) -> 70 | BH111: =MAX(50,IF(AX111<0,0,ROUNDUP(AX111/'Design Inputs'!$C$10/10,0)*10)) -> 100 | BI111: =MAX(50,IF(AY111<0,0,ROUNDUP(AY111/'Design Inputs'!$C$10/10,0)*10)) -> 130 | BJ111: =MAX(50,IF(AZ111<0,0,ROUNDUP(AZ111/'Design Inputs'!$C$10/10,0)*10)) -> 170 | BK111: =MAX(50,IF(BA111<0,0,ROUNDUP(BA111/'Design Inputs'!$C$10/10,0)*10)) -> 200
A112: 7 | B112: Good | C112: 3916.0179 | D112: =D22 -> 47.3574618 | E112: 53.2927306 | F112: 62.128019 | G112: 69.7170564 | H112: 78.2169632 | I112: 90.9488148 | J112: 101.6432054 | K112: 113.1152678 | L112: 129.3239222 | M112: 142.3724864 | N112: 105 | O112: 105 | P112: 105 | Q112: 105 | R112: 105 | S112: 105 | T112: 105 | U112: 105 | V112: 105 | W112: 105 | X112: 1.1574618 | Y112: 7.0927306 | Z112: 15.928019 | AA112: 23.5170564 | AB112: 32.0169632 | AC112: 44.7488148 | AD112: 55.4432054 | AE112: 66.9152678 | AF112: 83.1239222 | AG112: 96.1724864 | AH112: 100 | AI112: 100 | AJ112: 100 | AK112: 100 | AL112: 100 | AM112: 150 | AN112: 150 | AO112: 150 | AP112: 150 | AQ112: 150 | AR112: =MAX(0,X112-AH112*'Design Inputs'!$C$13) -> 0 | AS112: =MAX(0,Y112-AI112*'Design Inputs'!$C$13) -> 0 | AT112: =MAX(0,Z112-AJ112*'Design Inputs'!$C$13) -> 0 | AU112: =MAX(0,AA112-AK112*'Design Inputs'!$C$13) -> 3.5170564 | AV112: =MAX(0,AB112-AL112*'Design Inputs'!$C$13) -> 12.0169632 | AW112: =MAX(0,AC112-AM112*'Design Inputs'!$C$13) -> 14.7488148 | AX112: =MAX(0,AD112-AN112*'Design Inputs'!$C$13) -> 25.4432054 | AY112: =MAX(0,AE112-AO112*'Design Inputs'!$C$13) -> 36.9152678 | AZ112: =MAX(0,AF112-AP112*'Design Inputs'!$C$13) -> 53.1239222 | BA112: =MAX(0,AG112-AQ112*'Design Inputs'!$C$13) -> 66.1724864 | BB112: =MAX(50,IF(AR112<0,0,ROUNDUP(AR112/'Design Inputs'!$C$10/10,0)*10)) -> 50 | BC112: =MAX(50,IF(AS112<0,0,ROUNDUP(AS112/'Design Inputs'!$C$10/10,0)*10)) -> 50 | BD112: =MAX(50,IF(AT112<0,0,ROUNDUP(AT112/'Design Inputs'!$C$10/10,0)*10)) -> 50 | BE112: =MAX(50,IF(AU112<0,0,ROUNDUP(AU112/'Design Inputs'!$C$10/10,0)*10)) -> 50 | BF112: =MAX(50,IF(AV112<0,0,ROUNDUP(AV112/'Design Inputs'!$C$10/10,0)*10)) -> 50 | BG112: =MAX(50,IF(AW112<0,0,ROUNDUP(AW112/'Design Inputs'!$C$10/10,0)*10)) -> 50 | BH112: =MAX(50,IF(AX112<0,0,ROUNDUP(AX112/'Design Inputs'!$C$10/10,0)*10)) -> 60 | BI112: =MAX(50,IF(AY112<0,0,ROUNDUP(AY112/'Design Inputs'!$C$10/10,0)*10)) -> 90 | BJ112: =MAX(50,IF(AZ112<0,0,ROUNDUP(AZ112/'Design Inputs'!$C$10/10,0)*10)) -> 130 | BK112: =MAX(50,IF(BA112<0,0,ROUNDUP(BA112/'Design Inputs'!$C$10/10,0)*10)) -> 160
A113: 7 | B113: Fair | C113: 2900.754 | D113: =D23 -> 53.3204166 | E113: 59.891041 | F113: 69.752464 | G113: 78.2568666 | H113: 87.7378484 | I113: 101.6927862 | J113: 113.168049 | K113: 125.3256828 | L113: 142.4323542 | M113: 156.2341046 | N113: 105 | O113: 105 | P113: 105 | Q113: 105 | R113: 105 | S113: 105 | T113: 105 | U113: 105 | V113: 105 | W113: 105 | X113: 7.1204166 | Y113: 13.691041 | Z113: 23.552464 | AA113: 32.0568666 | AB113: 41.5378484 | AC113: 55.4927862 | AD113: 66.968049 | AE113: 79.1256828 | AF113: 96.2323542 | AG113: 110.0341046 | AH113: 100 | AI113: 100 | AJ113: 100 | AK113: 100 | AL113: 100 | AM113: 150 | AN113: 150 | AO113: 150 | AP113: 150 | AQ113: 150 | AR113: =MAX(0,X113-AH113*'Design Inputs'!$C$13) -> 0 | AS113: =MAX(0,Y113-AI113*'Design Inputs'!$C$13) -> 0 | AT113: =MAX(0,Z113-AJ113*'Design Inputs'!$C$13) -> 3.552464 | AU113: =MAX(0,AA113-AK113*'Design Inputs'!$C$13) -> 12.0568666 | AV113: =MAX(0,AB113-AL113*'Design Inputs'!$C$13) -> 21.5378484 | AW113: =MAX(0,AC113-AM113*'Design Inputs'!$C$13) -> 25.4927862 | AX113: =MAX(0,AD113-AN113*'Design Inputs'!$C$13) -> 36.968049 | AY113: =MAX(0,AE113-AO113*'Design Inputs'!$C$13) -> 49.1256828 | AZ113: =MAX(0,AF113-AP113*'Design Inputs'!$C$13) -> 66.2323542 | BA113: =MAX(0,AG113-AQ113*'Design Inputs'!$C$13) -> 80.0341046 | BB113: =MAX(50,IF(AR113<0,0,ROUNDUP(AR113/'Design Inputs'!$C$10/10,0)*10)) -> 50 | BC113: =MAX(50,IF(AS113<0,0,ROUNDUP(AS113/'Design Inputs'!$C$10/10,0)*10)) -> 50 | BD113: =MAX(50,IF(AT113<0,0,ROUNDUP(AT113/'Design Inputs'!$C$10/10,0)*10)) -> 50 | BE113: =MAX(50,IF(AU113<0,0,ROUNDUP(AU113/'Design Inputs'!$C$10/10,0)*10)) -> 50 | BF113: =MAX(50,IF(AV113<0,0,ROUNDUP(AV113/'Design Inputs'!$C$10/10,0)*10)) -> 50 | BG113: =MAX(50,IF(AW113<0,0,ROUNDUP(AW113/'Design Inputs'!$C$10/10,0)*10)) -> 60 | BH113: =MAX(50,IF(AX113<0,0,ROUNDUP(AX113/'Design Inputs'!$C$10/10,0)*10)) -> 90 | BI113: =MAX(50,IF(AY113<0,0,ROUNDUP(AY113/'Design Inputs'!$C$10/10,0)*10)) -> 120 | BJ113: =MAX(50,IF(AZ113<0,0,ROUNDUP(AZ113/'Design Inputs'!$C$10/10,0)*10)) -> 160 | BK113: =MAX(50,IF(BA113<0,0,ROUNDUP(BA113/'Design Inputs'!$C$10/10,0)*10)) -> 190
A114: 7 | B114: Poor | C114: 2175.5655 | D114: =D24 -> 59.6348312 | E114: 66.92773 | F114: 77.9240504 | G114: 87.3683292 | H114: 97.7556846 | I114: 112.7296704 | J114: 124.8628186 | K114: 137.66419 | L114: 155.7075118 | M114: 170.3229258 | N114: 105 | O114: 105 | P114: 105 | Q114: 105 | R114: 105 | S114: 105 | T114: 105 | U114: 105 | V114: 105 | W114: 105 | X114: 13.4348312 | Y114: 20.72773 | Z114: 31.7240504 | AA114: 41.1683292 | AB114: 51.5556846 | AC114: 66.5296704 | AD114: 78.6628186 | AE114: 91.46419 | AF114: 109.5075118 | AG114: 124.1229258 | AH114: 100 | AI114: 100 | AJ114: 100 | AK114: 100 | AL114: 100 | AM114: 150 | AN114: 150 | AO114: 150 | AP114: 150 | AQ114: 150 | AR114: =MAX(0,X114-AH114*'Design Inputs'!$C$13) -> 0 | AS114: =MAX(0,Y114-AI114*'Design Inputs'!$C$13) -> 0.72773 | AT114: =MAX(0,Z114-AJ114*'Design Inputs'!$C$13) -> 11.7240504 | AU114: =MAX(0,AA114-AK114*'Design Inputs'!$C$13) -> 21.1683292 | AV114: =MAX(0,AB114-AL114*'Design Inputs'!$C$13) -> 31.5556846 | AW114: =MAX(0,AC114-AM114*'Design Inputs'!$C$13) -> 36.5296704 | AX114: =MAX(0,AD114-AN114*'Design Inputs'!$C$13) -> 48.6628186 | AY114: =MAX(0,AE114-AO114*'Design Inputs'!$C$13) -> 61.46419 | AZ114: =MAX(0,AF114-AP114*'Design Inputs'!$C$13) -> 79.5075118 | BA114: =MAX(0,AG114-AQ114*'Design Inputs'!$C$13) -> 94.1229258 | BB114: =MAX(50,IF(AR114<0,0,ROUNDUP(AR114/'Design Inputs'!$C$10/10,0)*10)) -> 50 | BC114: =MAX(50,IF(AS114<0,0,ROUNDUP(AS114/'Design Inputs'!$C$10/10,0)*10)) -> 50 | BD114: =MAX(50,IF(AT114<0,0,ROUNDUP(AT114/'Design Inputs'!$C$10/10,0)*10)) -> 50 | BE114: =MAX(50,IF(AU114<0,0,ROUNDUP(AU114/'Design Inputs'!$C$10/10,0)*10)) -> 50 | BF114: =MAX(50,IF(AV114<0,0,ROUNDUP(AV114/'Design Inputs'!$C$10/10,0)*10)) -> 80 | BG114: =MAX(50,IF(AW114<0,0,ROUNDUP(AW114/'Design Inputs'!$C$10/10,0)*10)) -> 90 | BH114: =MAX(50,IF(AX114<0,0,ROUNDUP(AX114/'Design Inputs'!$C$10/10,0)*10)) -> 120 | BI114: =MAX(50,IF(AY114<0,0,ROUNDUP(AY114/'Design Inputs'!$C$10/10,0)*10)) -> 140 | BJ114: =MAX(50,IF(AZ114<0,0,ROUNDUP(AZ114/'Design Inputs'!$C$10/10,0)*10)) -> 190 | BK114: =MAX(50,IF(BA114<0,0,ROUNDUP(BA114/'Design Inputs'!$C$10/10,0)*10)) -> 220
A115: 8 | B115: Good | C115: 3625.9425 | D115: =D25 -> 48.831627 | E115: 54.9194482 | F115: 64.0019548 | G115: 71.8149948 | H115: 80.5640248 | I115: 93.621606 | J115: 104.5291026 | K115: 116.1826734 | L115: 132.6179466 | M115: 145.8519054 | N115: 105 | O115: 105 | P115: 105 | Q115: 105 | R115: 105 | S115: 105 | T115: 105 | U115: 105 | V115: 105 | W115: 105 | X115: 2.631627 | Y115: 8.7194482 | Z115: 17.8019548 | AA115: 25.6149948 | AB115: 34.3640248 | AC115: 47.421606 | AD115: 58.3291026 | AE115: 69.9826734 | AF115: 86.4179466 | AG115: 99.6519054 | AH115: 100 | AI115: 100 | AJ115: 100 | AK115: 100 | AL115: 100 | AM115: 150 | AN115: 150 | AO115: 150 | AP115: 150 | AQ115: 150 | AR115: =MAX(0,X115-AH115*'Design Inputs'!$C$13) -> 0 | AS115: =MAX(0,Y115-AI115*'Design Inputs'!$C$13) -> 0 | AT115: =MAX(0,Z115-AJ115*'Design Inputs'!$C$13) -> 0 | AU115: =MAX(0,AA115-AK115*'Design Inputs'!$C$13) -> 5.6149948 | AV115: =MAX(0,AB115-AL115*'Design Inputs'!$C$13) -> 14.3640248 | AW115: =MAX(0,AC115-AM115*'Design Inputs'!$C$13) -> 17.421606 | AX115: =MAX(0,AD115-AN115*'Design Inputs'!$C$13) -> 28.3291026 | AY115: =MAX(0,AE115-AO115*'Design Inputs'!$C$13) -> 39.9826734 | AZ115: =MAX(0,AF115-AP115*'Design Inputs'!$C$13) -> 56.4179466 | BA115: =MAX(0,AG115-AQ115*'Design Inputs'!$C$13) -> 69.6519054 | BB115: =MAX(50,IF(AR115<0,0,ROUNDUP(AR115/'Design Inputs'!$C$10/10,0)*10)) -> 50 | BC115: =MAX(50,IF(AS115<0,0,ROUNDUP(AS115/'Design Inputs'!$C$10/10,0)*10)) -> 50 | BD115: =MAX(50,IF(AT115<0,0,ROUNDUP(AT115/'Design Inputs'!$C$10/10,0)*10)) -> 50 | BE115: =MAX(50,IF(AU115<0,0,ROUNDUP(AU115/'Design Inputs'!$C$10/10,0)*10)) -> 50 | BF115: =MAX(50,IF(AV115<0,0,ROUNDUP(AV115/'Design Inputs'!$C$10/10,0)*10)) -> 50 | BG115: =MAX(50,IF(AW115<0,0,ROUNDUP(AW115/'Design Inputs'!$C$10/10,0)*10)) -> 50 | BH115: =MAX(50,IF(AX115<0,0,ROUNDUP(AX115/'Design Inputs'!$C$10/10,0)*10)) -> 70 | BI115: =MAX(50,IF(AY115<0,0,ROUNDUP(AY115/'Design Inputs'!$C$10/10,0)*10)) -> 100 | BJ115: =MAX(50,IF(AZ115<0,0,ROUNDUP(AZ115/'Design Inputs'!$C$10/10,0)*10)) -> 130 | BK115: =MAX(50,IF(BA115<0,0,ROUNDUP(BA115/'Design Inputs'!$C$10/10,0)*10)) -> 160
A116: 8 | B116: Fair | C116: 2900.754 | D116: =D26 -> 53.3204166 | E116: 59.891041 | F116: 69.752464 | G116: 78.2568666 | H116: 87.7378484 | I116: 101.6927862 | J116: 113.168049 | K116: 125.3256828 | L116: 142.4323542 | M116: 156.2341046 | N116: 105 | O116: 105 | P116: 105 | Q116: 105 | R116: 105 | S116: 105 | T116: 105 | U116: 105 | V116: 105 | W116: 105 | X116: 7.1204166 | Y116: 13.691041 | Z116: 23.552464 | AA116: 32.0568666 | AB116: 41.5378484 | AC116: 55.4927862 | AD116: 66.968049 | AE116: 79.1256828 | AF116: 96.2323542 | AG116: 110.0341046 | AH116: 100 | AI116: 100 | AJ116: 100 | AK116: 100 | AL116: 100 | AM116: 150 | AN116: 150 | AO116: 150 | AP116: 150 | AQ116: 150 | AR116: =MAX(0,X116-AH116*'Design Inputs'!$C$13) -> 0 | AS116: =MAX(0,Y116-AI116*'Design Inputs'!$C$13) -> 0 | AT116: =MAX(0,Z116-AJ116*'Design Inputs'!$C$13) -> 3.552464 | AU116: =MAX(0,AA116-AK116*'Design Inputs'!$C$13) -> 12.0568666 | AV116: =MAX(0,AB116-AL116*'Design Inputs'!$C$13) -> 21.5378484 | AW116: =MAX(0,AC116-AM116*'Design Inputs'!$C$13) -> 25.4927862 | AX116: =MAX(0,AD116-AN116*'Design Inputs'!$C$13) -> 36.968049 | AY116: =MAX(0,AE116-AO116*'Design Inputs'!$C$13) -> 49.1256828 | AZ116: =MAX(0,AF116-AP116*'Design Inputs'!$C$13) -> 66.2323542 | BA116: =MAX(0,AG116-AQ116*'Design Inputs'!$C$13) -> 80.0341046 | BB116: =MAX(50,IF(AR116<0,0,ROUNDUP(AR116/'Design Inputs'!$C$10/10,0)*10)) -> 50 | BC116: =MAX(50,IF(AS116<0,0,ROUNDUP(AS116/'Design Inputs'!$C$10/10,0)*10)) -> 50 | BD116: =MAX(50,IF(AT116<0,0,ROUNDUP(AT116/'Design Inputs'!$C$10/10,0)*10)) -> 50 | BE116: =MAX(50,IF(AU116<0,0,ROUNDUP(AU116/'Design Inputs'!$C$10/10,0)*10)) -> 50 | BF116: =MAX(50,IF(AV116<0,0,ROUNDUP(AV116/'Design Inputs'!$C$10/10,0)*10)) -> 50 | BG116: =MAX(50,IF(AW116<0,0,ROUNDUP(AW116/'Design Inputs'!$C$10/10,0)*10)) -> 60 | BH116: =MAX(50,IF(AX116<0,0,ROUNDUP(AX116/'Design Inputs'!$C$10/10,0)*10)) -> 90 | BI116: =MAX(50,IF(AY116<0,0,ROUNDUP(AY116/'Design Inputs'!$C$10/10,0)*10)) -> 120 | BJ116: =MAX(50,IF(AZ116<0,0,ROUNDUP(AZ116/'Design Inputs'!$C$10/10,0)*10)) -> 160 | BK116: =MAX(50,IF(BA116<0,0,ROUNDUP(BA116/'Design Inputs'!$C$10/10,0)*10)) -> 190
A117: 8 | B117: Poor | C117: 2175.5655 | D117: =D27 -> 59.6348312 | E117: 66.92773 | F117: 77.9240504 | G117: 87.3683292 | H117: 97.7556846 | I117: 112.7296704 | J117: 124.8628186 | K117: 137.66419 | L117: 155.7075118 | M117: 170.3229258 | N117: 105 | O117: 105 | P117: 105 | Q117: 105 | R117: 105 | S117: 105 | T117: 105 | U117: 105 | V117: 105 | W117: 105 | X117: 13.4348312 | Y117: 20.72773 | Z117: 31.7240504 | AA117: 41.1683292 | AB117: 51.5556846 | AC117: 66.5296704 | AD117: 78.6628186 | AE117: 91.46419 | AF117: 109.5075118 | AG117: 124.1229258 | AH117: 100 | AI117: 100 | AJ117: 100 | AK117: 100 | AL117: 100 | AM117: 150 | AN117: 150 | AO117: 150 | AP117: 150 | AQ117: 150 | AR117: =MAX(0,X117-AH117*'Design Inputs'!$C$13) -> 0 | AS117: =MAX(0,Y117-AI117*'Design Inputs'!$C$13) -> 0.72773 | AT117: =MAX(0,Z117-AJ117*'Design Inputs'!$C$13) -> 11.7240504 | AU117: =MAX(0,AA117-AK117*'Design Inputs'!$C$13) -> 21.1683292 | AV117: =MAX(0,AB117-AL117*'Design Inputs'!$C$13) -> 31.5556846 | AW117: =MAX(0,AC117-AM117*'Design Inputs'!$C$13) -> 36.5296704 | AX117: =MAX(0,AD117-AN117*'Design Inputs'!$C$13) -> 48.6628186 | AY117: =MAX(0,AE117-AO117*'Design Inputs'!$C$13) -> 61.46419 | AZ117: =MAX(0,AF117-AP117*'Design Inputs'!$C$13) -> 79.5075118 | BA117: =MAX(0,AG117-AQ117*'Design Inputs'!$C$13) -> 94.1229258 | BB117: =MAX(50,IF(AR117<0,0,ROUNDUP(AR117/'Design Inputs'!$C$10/10,0)*10)) -> 50 | BC117: =MAX(50,IF(AS117<0,0,ROUNDUP(AS117/'Design Inputs'!$C$10/10,0)*10)) -> 50 | BD117: =MAX(50,IF(AT117<0,0,ROUNDUP(AT117/'Design Inputs'!$C$10/10,0)*10)) -> 50 | BE117: =MAX(50,IF(AU117<0,0,ROUNDUP(AU117/'Design Inputs'!$C$10/10,0)*10)) -> 50 | BF117: =MAX(50,IF(AV117<0,0,ROUNDUP(AV117/'Design Inputs'!$C$10/10,0)*10)) -> 80 | BG117: =MAX(50,IF(AW117<0,0,ROUNDUP(AW117/'Design Inputs'!$C$10/10,0)*10)) -> 90 | BH117: =MAX(50,IF(AX117<0,0,ROUNDUP(AX117/'Design Inputs'!$C$10/10,0)*10)) -> 120 | BI117: =MAX(50,IF(AY117<0,0,ROUNDUP(AY117/'Design Inputs'!$C$10/10,0)*10)) -> 140 | BJ117: =MAX(50,IF(AZ117<0,0,ROUNDUP(AZ117/'Design Inputs'!$C$10/10,0)*10)) -> 190 | BK117: =MAX(50,IF(BA117<0,0,ROUNDUP(BA117/'Design Inputs'!$C$10/10,0)*10)) -> 220

Sheet Gran
C1: GRANULAR BASE STRUCTURE THICKNESSES (mm)
D3: Drainage | E3: ESALs | F3: 10000 | G3: 20000 | H3: 50000 | I3: 100000 | J3: 200000 | K3: 500000 | L3: 1000000 | M3: 2000000 | N3: 5000000 | O3: 10000000
E4: TI | F4: =9*(F3/1000000)^0.119 -> 5.202864427 | G4: =9*(G3/1000000)^0.119 -> 5.650216368 | H4: 6.301151767 | I4: 6.842936492 | J4: 7.431304875 | K4: 8.287431275 | L4: 9 | M4: 9.773836707 | N4: 10.89983541 | O4: 11.83702349
E5: Layer Type
A6: 1 | B6: Good | C6: Category 1 | D6: Good | E6: Pavers and Bedding | F6: =SUM(IF($A6=SoilCat,IF($B6=DrainCat,IF(F$3=ESALCat,Design!$N$4:$W$27)))) -> 105 | G6: =SUM(IF($A6=SoilCat,IF($B6=DrainCat,IF(G$3=ESALCat,Design!$N$4:$W$27)))) -> 105 | H6: =SUM(IF($A6=SoilCat,IF($B6=DrainCat,IF(H$3=ESALCat,Design!$N$4:$W$27)))) -> 105 | I6: =SUM(IF($A6=SoilCat,IF($B6=DrainCat,IF(I$3=ESALCat,Design!$N$4:$W$27)))) -> 105 | J6: =SUM(IF($A6=SoilCat,IF($B6=DrainCat,IF(J$3=ESALCat,Design!$N$4:$W$27)))) -> 105 | K6: =SUM(IF($A6=SoilCat,IF($B6=DrainCat,IF(K$3=ESALCat,Design!$N$4:$W$27)))) -> 105 | L6: =SUM(IF($A6=SoilCat,IF($B6=DrainCat,IF(L$3=ESALCat,Design!$N$4:$W$27)))) -> 105 | M6: =SUM(IF($A6=SoilCat,IF($B6=DrainCat,IF(M$3=ESALCat,Design!$N$4:$W$27)))) -> 105 | N6: =SUM(IF($A6=SoilCat,IF($B6=DrainCat,IF(N$3=ESALCat,Design!$N$4:$W$27)))) -> 105 | O6: =SUM(IF($A6=SoilCat,IF($B6=DrainCat,IF(O$3=ESALCat,Design!$N$4:$W$27)))) -> 105
A7: 1 | B7: Good | E7: Unbound Dense Graded Base | F7: =SUM(IF($A7=SoilCat,IF($B7=DrainCat,IF(F$3=ESALCat,Design!$AH$4:$AQ$27)))) -> 100 | G7: =SUM(IF($A7=SoilCat,IF($B7=DrainCat,IF(G$3=ESALCat,Design!$AH$4:$AQ$27)))) -> 100 | H7: =SUM(IF($A7=SoilCat,IF($B7=DrainCat,IF(H$3=ESALCat,Design!$AH$4:$AQ$27)))) -> 100 | I7: =SUM(IF($A7=SoilCat,IF($B7=DrainCat,IF(I$3=ESALCat,Design!$AH$4:$AQ$27)))) -> 100 | J7: =SUM(IF($A7=SoilCat,IF($B7=DrainCat,IF(J$3=ESALCat,Design!$AH$4:$AQ$27)))) -> 100 | K7: =SUM(IF($A7=SoilCat,IF($B7=DrainCat,IF(K$3=ESALCat,Design!$AH$4:$AQ$27)))) -> 150 | L7: =SUM(IF($A7=SoilCat,IF($B7=DrainCat,IF(L$3=ESALCat,Design!$AH$4:$AQ$27)))) -> 150 | M7: =SUM(IF($A7=SoilCat,IF($B7=DrainCat,IF(M$3=ESALCat,Design!$AH$4:$AQ$27)))) -> 200 | N7: =SUM(IF($A7=SoilCat,IF($B7=DrainCat,IF(N$3=ESALCat,Design!$AH$4:$AQ$27)))) -> 150 | O7: =SUM(IF($A7=SoilCat,IF($B7=DrainCat,IF(O$3=ESALCat,Design!$AH$4:$AQ$27)))) -> 150
A8: 1 | B8: Good | E8: Unbound Dense Graded Subbase | F8: =SUM(IF($A8=SoilCat,IF($B8=DrainCat,IF(F$3=ESALCat,Design!$BB$4:$BK$27)))) -> 0 | G8: =SUM(IF($A8=SoilCat,IF($B8=DrainCat,IF(G$3=ESALCat,Design!$BB$4:$BK$27)))) -> 0 | H8: =SUM(IF($A8=SoilCat,IF($B8=DrainCat,IF(H$3=ESALCat,Design!$BB$4:$BK$27)))) -> 0 | I8: =SUM(IF($A8=SoilCat,IF($B8=DrainCat,IF(I$3=ESALCat,Design!$BB$4:$BK$27)))) -> 0 | J8: =SUM(IF($A8=SoilCat,IF($B8=DrainCat,IF(J$3=ESALCat,Design!$BB$4:$BK$27)))) -> 0 | K8: =SUM(IF($A8=SoilCat,IF($B8=DrainCat,IF(K$3=ESALCat,Design!$BB$4:$BK$27)))) -> 0 | L8: =SUM(IF($A8=SoilCat,IF($B8=DrainCat,IF(L$3=ESALCat,Design!$BB$4:$BK$27)))) -> 0 | M8: =SUM(IF($A8=SoilCat,IF($B8=DrainCat,IF(M$3=ESALCat,Design!$BB$4:$BK$27)))) -> 0 | N8: =SUM(IF($A8=SoilCat,IF($B8=DrainCat,IF(N$3=ESALCat,Design!$BB$4:$BK$27)))) -> 200 | O8: =SUM(IF($A8=SoilCat,IF($B8=DrainCat,IF(O$3=ESALCat,Design!$BB$4:$BK$27)))) -> 300
A9: 1 | B9: Fair | D9: Fair | E9: Pavers and Bedding | F9: =SUM(IF($A9=SoilCat,IF($B9=DrainCat,IF(F$3=ESALCat,Design!$N$4:$W$27)))) -> 105 | G9: =SUM(IF($A9=SoilCat,IF($B9=DrainCat,IF(G$3=ESALCat,Design!$N$4:$W$27)))) -> 105 | H9: =SUM(IF($A9=SoilCat,IF($B9=DrainCat,IF(H$3=ESALCat,Design!$N$4:$W$27)))) -> 105 | I9: =SUM(IF($A9=SoilCat,IF($B9=DrainCat,IF(I$3=ESALCat,Design!$N$4:$W$27)))) -> 105 | J9: =SUM(IF($A9=SoilCat,IF($B9=DrainCat,IF(J$3=ESALCat,Design!$N$4:$W$27)))) -> 105 | K9: =SUM(IF($A9=SoilCat,IF($B9=DrainCat,IF(K$3=ESALCat,Design!$N$4:$W$27)))) -> 105 | L9: =SUM(IF($A9=SoilCat,IF($B9=DrainCat,IF(L$3=ESALCat,Design!$N$4:$W$27)))) -> 105 | M9: =SUM(IF($A9=SoilCat,IF($B9=DrainCat,IF(M$3=ESALCat,Design!$N$4:$W$27)))) -> 105 | N9: =SUM(IF($A9=SoilCat,IF($B9=DrainCat,IF(N$3=ESALCat,Design!$N$4:$W$27)))) -> 105 | O9: =SUM(IF($A9=SoilCat,IF($B9=DrainCat,IF(O$3=ESALCat,Design!$N$4:$W$27)))) -> 105
A10: 1 | B10: Fair | E10: Unbound Dense Graded Base | F10: =SUM(IF($A10=SoilCat,IF($B10=DrainCat,IF(F$3=ESALCat,Design!$AH$4:$AQ$27)))) -> 100 | G10: =SUM(IF($A10=SoilCat,IF($B10=DrainCat,IF(G$3=ESALCat,Design!$AH$4:$AQ$27)))) -> 100 | H10: =SUM(IF($A10=SoilCat,IF($B10=DrainCat,IF(H$3=ESALCat,Design!$AH$4:$AQ$27)))) -> 100 | I10: =SUM(IF($A10=SoilCat,IF($B10=DrainCat,IF(I$3=ESALCat,Design!$AH$4:$AQ$27)))) -> 100 | J10: =SUM(IF($A10=SoilCat,IF($B10=DrainCat,IF(J$3=ESALCat,Design!$AH$4:$AQ$27)))) -> 100 | K10: =SUM(IF($A10=SoilCat,IF($B10=DrainCat,IF(K$3=ESALCat,Design!$AH$4:$AQ$27)))) -> 150 | L10: =SUM(IF($A10=SoilCat,IF($B10=DrainCat,IF(L$3=ESALCat,Design!$AH$4:$AQ$27)))) -> 175 | M10: =SUM(IF($A10=SoilCat,IF($B10=DrainCat,IF(M$3=ESALCat,Design!$AH$4:$AQ$27)))) -> 150 | N10: =SUM(IF($A10=SoilCat,IF($B10=DrainCat,IF(N$3=ESALCat,Design!$AH$4:$AQ$27)))) -> 150 | O10: =SUM(IF($A10=SoilCat,IF($B10=DrainCat,IF(O$3=ESALCat,Design!$AH$4:$AQ$27)))) -> 150
A11: 1 | B11: Fair | E11: Unbound Dense Graded Subbase | F11: =SUM(IF($A11=SoilCat,IF($B11=DrainCat,IF(F$3=ESALCat,Design!$BB$4:$BK$27)))) -> 0 | G11: =SUM(IF($A11=SoilCat,IF($B11=DrainCat,IF(G$3=ESALCat,Design!$BB$4:$BK$27)))) -> 0 | H11: =SUM(IF($A11=SoilCat,IF($B11=DrainCat,IF(H$3=ESALCat,Design!$BB$4:$BK$27)))) -> 0 | I11: =SUM(IF($A11=SoilCat,IF($B11=DrainCat,IF(I$3=ESALCat,Design!$BB$4:$BK$27)))) -> 0 | J11: =SUM(IF($A11=SoilCat,IF($B11=DrainCat,IF(J$3=ESALCat,Design!$BB$4:$BK$27)))) -> 0 | K11: =SUM(IF($A11=SoilCat,IF($B11=DrainCat,IF(K$3=ESALCat,Design!$BB$4:$BK$27)))) -> 0 | L11: =SUM(IF($A11=SoilCat,IF($B11=DrainCat,IF(L$3=ESALCat,Design!$BB$4:$BK$27)))) -> 0 | M11: =SUM(IF($A11=SoilCat,IF($B11=DrainCat,IF(M$3=ESALCat,Design!$BB$4:$BK$27)))) -> 150 | N11: =SUM(IF($A11=SoilCat,IF($B11=DrainCat,IF(N$3=ESALCat,Design!$BB$4:$BK$27)))) -> 250 | O11: =SUM(IF($A11=SoilCat,IF($B11=DrainCat,IF(O$3=ESALCat,Design!$BB$4:$BK$27)))) -> 350
A12: 1 | B12: Poor | D12: Poor | E12: Pavers and Bedding | F12: =SUM(IF($A12=SoilCat,IF($B12=DrainCat,IF(F$3=ESALCat,Design!$N$4:$W$27)))) -> 105 | G12: =SUM(IF($A12=SoilCat,IF($B12=DrainCat,IF(G$3=ESALCat,Design!$N$4:$W$27)))) -> 105 | H12: =SUM(IF($A12=SoilCat,IF($B12=DrainCat,IF(H$3=ESALCat,Design!$N$4:$W$27)))) -> 105 | I12: =SUM(IF($A12=SoilCat,IF($B12=DrainCat,IF(I$3=ESALCat,Design!$N$4:$W$27)))) -> 105 | J12: =SUM(IF($A12=SoilCat,IF($B12=DrainCat,IF(J$3=ESALCat,Design!$N$4:$W$27)))) -> 105 | K12: =SUM(IF($A12=SoilCat,IF($B12=DrainCat,IF(K$3=ESALCat,Design!$N$4:$W$27)))) -> 105 | L12: =SUM(IF($A12=SoilCat,IF($B12=DrainCat,IF(L$3=ESALCat,Design!$N$4:$W$27)))) -> 105 | M12: =SUM(IF($A12=SoilCat,IF($B12=DrainCat,IF(M$3=ESALCat,Design!$N$4:$W$27)))) -> 105 | N12: =SUM(IF($A12=SoilCat,IF($B12=DrainCat,IF(N$3=ESALCat,Design!$N$4:$W$27)))) -> 105 | O12: =SUM(IF($A12=SoilCat,IF($B12=DrainCat,IF(O$3=ESALCat,Design!$N$4:$W$27)))) -> 105
A13: 1 | B13: Poor | E13: Unbound Dense Graded Base | F13: =SUM(IF($A13=SoilCat,IF($B13=DrainCat,IF(F$3=ESALCat,Design!$AH$4:$AQ$27)))) -> 100 | G13: =SUM(IF($A13=SoilCat,IF($B13=DrainCat,IF(G$3=ESALCat,Design!$AH$4:$AQ$27)))) -> 100 | H13: =SUM(IF($A13=SoilCat,IF($B13=DrainCat,IF(H$3=ESALCat,Design!$AH$4:$AQ$27)))) -> 100 | I13: =SUM(IF($A13=SoilCat,IF($B13=DrainCat,IF(I$3=ESALCat,Design!$AH$4:$AQ$27)))) -> 100 | J13: =SUM(IF($A13=SoilCat,IF($B13=DrainCat,IF(J$3=ESALCat,Design!$AH$4:$AQ$27)))) -> 100 | K13: =SUM(IF($A13=SoilCat,IF($B13=DrainCat,IF(K$3=ESALCat,Design!$AH$4:$AQ$27)))) -> 150 | L13: =SUM(IF($A13=SoilCat,IF($B13=DrainCat,IF(L$3=ESALCat,Design!$AH$4:$AQ$27)))) -> 200 | M13: =SUM(IF($A13=SoilCat,IF($B13=DrainCat,IF(M$3=ESALCat,Design!$AH$4:$AQ$27)))) -> 150 | N13: =SUM(IF($A13=SoilCat,IF($B13=DrainCat,IF(N$3=ESALCat,Design!$AH$4:$AQ$27)))) -> 150 | O13: =SUM(IF($A13=SoilCat,IF($B13=DrainCat,IF(O$3=ESALCat,Design!$AH$4:$AQ$27)))) -> 150
A14: 1 | B14: Poor | E14: Unbound Dense Graded Subbase | F14: =SUM(IF($A14=SoilCat,IF($B14=DrainCat,IF(F$3=ESALCat,Design!$BB$4:$BK$27)))) -> 0 | G14: =SUM(IF($A14=SoilCat,IF($B14=DrainCat,IF(G$3=ESALCat,Design!$BB$4:$BK$27)))) -> 0 | H14: =SUM(IF($A14=SoilCat,IF($B14=DrainCat,IF(H$3=ESALCat,Design!$BB$4:$BK$27)))) -> 0 | I14: =SUM(IF($A14=SoilCat,IF($B14=DrainCat,IF(I$3=ESALCat,Design!$BB$4:$BK$27)))) -> 0 | J14: =SUM(IF($A14=SoilCat,IF($B14=DrainCat,IF(J$3=ESALCat,Design!$BB$4:$BK$27)))) -> 0 | K14: =SUM(IF($A14=SoilCat,IF($B14=DrainCat,IF(K$3=ESALCat,Design!$BB$4:$BK$27)))) -> 0 | L14: =SUM(IF($A14=SoilCat,IF($B14=DrainCat,IF(L$3=ESALCat,Design!$BB$4:$BK$27)))) -> 0 | M14: =SUM(IF($A14=SoilCat,IF($B14=DrainCat,IF(M$3=ESALCat,Design!$BB$4:$BK$27)))) -> 150 | N14: =SUM(IF($A14=SoilCat,IF($B14=DrainCat,IF(N$3=ESALCat,Design!$BB$4:$BK$27)))) -> 300 | O14: =SUM(IF($A14=SoilCat,IF($B14=DrainCat,IF(O$3=ESALCat,Design!$BB$4:$BK$27)))) -> 400
A15: 2 | B15: Good | C15: Category 2 | D15: Good | E15: Pavers and Bedding | F15: =SUM(IF($A15=SoilCat,IF($B15=DrainCat,IF(F$3=ESALCat,Design!$N$4:$W$27)))) -> 105 | G15: =SUM(IF($A15=SoilCat,IF($B15=DrainCat,IF(G$3=ESALCat,Design!$N$4:$W$27)))) -> 105 | H15: =SUM(IF($A15=SoilCat,IF($B15=DrainCat,IF(H$3=ESALCat,Design!$N$4:$W$27)))) -> 105 | I15: =SUM(IF($A15=SoilCat,IF($B15=DrainCat,IF(I$3=ESALCat,Design!$N$4:$W$27)))) -> 105 | J15: =SUM(IF($A15=SoilCat,IF($B15=DrainCat,IF(J$3=ESALCat,Design!$N$4:$W$27)))) -> 105 | K15: =SUM(IF($A15=SoilCat,IF($B15=DrainCat,IF(K$3=ESALCat,Design!$N$4:$W$27)))) -> 105 | L15: =SUM(IF($A15=SoilCat,IF($B15=DrainCat,IF(L$3=ESALCat,Design!$N$4:$W$27)))) -> 105 | M15: =SUM(IF($A15=SoilCat,IF($B15=DrainCat,IF(M$3=ESALCat,Design!$N$4:$W$27)))) -> 105 | N15: =SUM(IF($A15=SoilCat,IF($B15=DrainCat,IF(N$3=ESALCat,Design!$N$4:$W$27)))) -> 105 | O15: =SUM(IF($A15=SoilCat,IF($B15=DrainCat,IF(O$3=ESALCat,Design!$N$4:$W$27)))) -> 105
A16: 2 | B16: Good | E16: Unbound Dense Graded Base | F16: =SUM(IF($A16=SoilCat,IF($B16=DrainCat,IF(F$3=ESALCat,Design!$AH$4:$AQ$27)))) -> 100 | G16: =SUM(IF($A16=SoilCat,IF($B16=DrainCat,IF(G$3=ESALCat,Design!$AH$4:$AQ$27)))) -> 100 | H16: =SUM(IF($A16=SoilCat,IF($B16=DrainCat,IF(H$3=ESALCat,Design!$AH$4:$AQ$27)))) -> 100 | I16: =SUM(IF($A16=SoilCat,IF($B16=DrainCat,IF(I$3=ESALCat,Design!$AH$4:$AQ$27)))) -> 100 | J16: =SUM(IF($A16=SoilCat,IF($B16=DrainCat,IF(J$3=ESALCat,Design!$AH$4:$AQ$27)))) -> 100 | K16: =SUM(IF($A16=SoilCat,IF($B16=DrainCat,IF(K$3=ESALCat,Design!$AH$4:$AQ$27)))) -> 150 | L16: =SUM(IF($A16=SoilCat,IF($B16=DrainCat,IF(L$3=ESALCat,Design!$AH$4:$AQ$27)))) -> 175 | M16: =SUM(IF($A16=SoilCat,IF($B16=DrainCat,IF(M$3=ESALCat,Design!$AH$4:$AQ$27)))) -> 150 | N16: =SUM(IF($A16=SoilCat,IF($B16=DrainCat,IF(N$3=ESALCat,Design!$AH$4:$AQ$27)))) -> 150 | O16: =SUM(IF($A16=SoilCat,IF($B16=DrainCat,IF(O$3=ESALCat,Design!$AH$4:$AQ$27)))) -> 150
A17: 2 | B17: Good | E17: Unbound Dense Graded Subbase | F17: =SUM(IF($A17=SoilCat,IF($B17=DrainCat,IF(F$3=ESALCat,Design!$BB$4:$BK$27)))) -> 0 | G17: =SUM(IF($A17=SoilCat,IF($B17=DrainCat,IF(G$3=ESALCat,Design!$BB$4:$BK$27)))) -> 0 | H17: =SUM(IF($A17=SoilCat,IF($B17=DrainCat,IF(H$3=ESALCat,Design!$BB$4:$BK$27)))) -> 0 | I17: =SUM(IF($A17=SoilCat,IF($B17=DrainCat,IF(I$3=ESALCat,Design!$BB$4:$BK$27)))) -> 0 | J17: =SUM(IF($A17=SoilCat,IF($B17=DrainCat,IF(J$3=ESALCat,Design!$BB$4:$BK$27)))) -> 0 | K17: =SUM(IF($A17=SoilCat,IF($B17=DrainCat,IF(K$3=ESALCat,Design!$BB$4:$BK$27)))) -> 0 | L17: =SUM(IF($A17=SoilCat,IF($B17=DrainCat,IF(L$3=ESALCat,Design!$BB$4:$BK$27)))) -> 0 | M17: =SUM(IF($A17=SoilCat,IF($B17=DrainCat,IF(M$3=ESALCat,Design!$BB$4:$BK$27)))) -> 150 | N17: =SUM(IF($A17=SoilCat,IF($B17=DrainCat,IF(N$3=ESALCat,Design!$BB$4:$BK$27)))) -> 250 | O17: =SUM(IF($A17=SoilCat,IF($B17=DrainCat,IF(O$3=ESALCat,Design!$BB$4:$BK$27)))) -> 350
A18: 2 | B18: Fair | D18: Fair | E18: Pavers and Bedding | F18: =SUM(IF($A18=SoilCat,IF($B18=DrainCat,IF(F$3=ESALCat,Design!$N$4:$W$27)))) -> 105 | G18: =SUM(IF($A18=SoilCat,IF($B18=DrainCat,IF(G$3=ESALCat,Design!$N$4:$W$27)))) -> 105 | H18: =SUM(IF($A18=SoilCat,IF($B18=DrainCat,IF(H$3=ESALCat,Design!$N$4:$W$27)))) -> 105 | I18: =SUM(IF($A18=SoilCat,IF($B18=DrainCat,IF(I$3=ESALCat,Design!$N$4:$W$27)))) -> 105 | J18: =SUM(IF($A18=SoilCat,IF($B18=DrainCat,IF(J$3=ESALCat,Design!$N$4:$W$27)))) -> 105 | K18: =SUM(IF($A18=SoilCat,IF($B18=DrainCat,IF(K$3=ESALCat,Design!$N$4:$W$27)))) -> 105 | L18: =SUM(IF($A18=SoilCat,IF($B18=DrainCat,IF(L$3=ESALCat,Design!$N$4:$W$27)))) -> 105 | M18: =SUM(IF($A18=SoilCat,IF($B18=DrainCat,IF(M$3=ESALCat,Design!$N$4:$W$27)))) -> 105 | N18: =SUM(IF($A18=SoilCat,IF($B18=DrainCat,IF(N$3=ESALCat,Design!$N$4:$W$27)))) -> 105 | O18: =SUM(IF($A18=SoilCat,IF($B18=DrainCat,IF(O$3=ESALCat,Design!$N$4:$W$27)))) -> 105
A19: 2 | B19: Fair | E19: Unbound Dense Graded Base | F19: =SUM(IF($A19=SoilCat,IF($B19=DrainCat,IF(F$3=ESALCat,Design!$AH$4:$AQ$27)))) -> 100 | G19: =SUM(IF($A19=SoilCat,IF($B19=DrainCat,IF(G$3=ESALCat,Design!$AH$4:$AQ$27)))) -> 100 | H19: =SUM(IF($A19=SoilCat,IF($B19=DrainCat,IF(H$3=ESALCat,Design!$AH$4:$AQ$27)))) -> 100 | I19: =SUM(IF($A19=SoilCat,IF($B19=DrainCat,IF(I$3=ESALCat,Design!$AH$4:$AQ$27)))) -> 100 | J19: =SUM(IF($A19=SoilCat,IF($B19=DrainCat,IF(J$3=ESALCat,Design!$AH$4:$AQ$27)))) -> 100 | K19: =SUM(IF($A19=SoilCat,IF($B19=DrainCat,IF(K$3=ESALCat,Design!$AH$4:$AQ$27)))) -> 150 | L19: =SUM(IF($A19=SoilCat,IF($B19=DrainCat,IF(L$3=ESALCat,Design!$AH$4:$AQ$27)))) -> 200 | M19: =SUM(IF($A19=SoilCat,IF($B19=DrainCat,IF(M$3=ESALCat,Design!$AH$4:$AQ$27)))) -> 150 | N19: =SUM(IF($A19=SoilCat,IF($B19=DrainCat,IF(N$3=ESALCat,Design!$AH$4:$AQ$27)))) -> 150 | O19: =SUM(IF($A19=SoilCat,IF($B19=DrainCat,IF(O$3=ESALCat,Design!$AH$4:$AQ$27)))) -> 150
A20: 2 | B20: Fair | E20: Unbound Dense Graded Subbase | F20: =SUM(IF($A20=SoilCat,IF($B20=DrainCat,IF(F$3=ESALCat,Design!$BB$4:$BK$27)))) -> 0 | G20: =SUM(IF($A20=SoilCat,IF($B20=DrainCat,IF(G$3=ESALCat,Design!$BB$4:$BK$27)))) -> 0 | H20: =SUM(IF($A20=SoilCat,IF($B20=DrainCat,IF(H$3=ESALCat,Design!$BB$4:$BK$27)))) -> 0 | I20: =SUM(IF($A20=SoilCat,IF($B20=DrainCat,IF(I$3=ESALCat,Design!$BB$4:$BK$27)))) -> 0 | J20: =SUM(IF($A20=SoilCat,IF($B20=DrainCat,IF(J$3=ESALCat,Design!$BB$4:$BK$27)))) -> 0 | K20: =SUM(IF($A20=SoilCat,IF($B20=DrainCat,IF(K$3=ESALCat,Design!$BB$4:$BK$27)))) -> 0 | L20: =SUM(IF($A20=SoilCat,IF($B20=DrainCat,IF(L$3=ESALCat,Design!$BB$4:$BK$27)))) -> 0 | M20: =SUM(IF($A20=SoilCat,IF($B20=DrainCat,IF(M$3=ESALCat,Design!$BB$4:$BK$27)))) -> 150 | N20: =SUM(IF($A20=SoilCat,IF($B20=DrainCat,IF(N$3=ESALCat,Design!$BB$4:$BK$27)))) -> 300 | O20: =SUM(IF($A20=SoilCat,IF($B20=DrainCat,IF(O$3=ESALCat,Design!$BB$4:$BK$27)))) -> 400
A21: 2 | B21: Poor | D21: Poor | E21: Pavers and Bedding | F21: =SUM(IF($A21=SoilCat,IF($B21=DrainCat,IF(F$3=ESALCat,Design!$N$4:$W$27)))) -> 105 | G21: =SUM(IF($A21=SoilCat,IF($B21=DrainCat,IF(G$3=ESALCat,Design!$N$4:$W$27)))) -> 105 | H21: =SUM(IF($A21=SoilCat,IF($B21=DrainCat,IF(H$3=ESALCat,Design!$N$4:$W$27)))) -> 105 | I21: =SUM(IF($A21=SoilCat,IF($B21=DrainCat,IF(I$3=ESALCat,Design!$N$4:$W$27)))) -> 105 | J21: =SUM(IF($A21=SoilCat,IF($B21=DrainCat,IF(J$3=ESALCat,Design!$N$4:$W$27)))) -> 105 | K21: =SUM(IF($A21=SoilCat,IF($B21=DrainCat,IF(K$3=ESALCat,Design!$N$4:$W$27)))) -> 105 | L21: =SUM(IF($A21=SoilCat,IF($B21=DrainCat,IF(L$3=ESALCat,Design!$N$4:$W$27)))) -> 105 | M21: =SUM(IF($A21=SoilCat,IF($B21=DrainCat,IF(M$3=ESALCat,Design!$N$4:$W$27)))) -> 105 | N21: =SUM(IF($A21=SoilCat,IF($B21=DrainCat,IF(N$3=ESALCat,Design!$N$4:$W$27)))) -> 105 | O21: =SUM(IF($A21=SoilCat,IF($B21=DrainCat,IF(O$3=ESALCat,Design!$N$4:$W$27)))) -> 105
A22: 2 | B22: Poor | E22: Unbound Dense Graded Base | F22: =SUM(IF($A22=SoilCat,IF($B22=DrainCat,IF(F$3=ESALCat,Design!$AH$4:$AQ$27)))) -> 100 | G22: =SUM(IF($A22=SoilCat,IF($B22=DrainCat,IF(G$3=ESALCat,Design!$AH$4:$AQ$27)))) -> 100 | H22: =SUM(IF($A22=SoilCat,IF($B22=DrainCat,IF(H$3=ESALCat,Design!$AH$4:$AQ$27)))) -> 100 | I22: =SUM(IF($A22=SoilCat,IF($B22=DrainCat,IF(I$3=ESALCat,Design!$AH$4:$AQ$27)))) -> 100 | J22: =SUM(IF($A22=SoilCat,IF($B22=DrainCat,IF(J$3=ESALCat,Design!$AH$4:$AQ$27)))) -> 125 | K22: =SUM(IF($A22=SoilCat,IF($B22=DrainCat,IF(K$3=ESALCat,Design!$AH$4:$AQ$27)))) -> 200 | L22: =SUM(IF($A22=SoilCat,IF($B22=DrainCat,IF(L$3=ESALCat,Design!$AH$4:$AQ$27)))) -> 150 | M22: =SUM(IF($A22=SoilCat,IF($B22=DrainCat,IF(M$3=ESALCat,Design!$AH$4:$AQ$27)))) -> 150 | N22: =SUM(IF($A22=SoilCat,IF($B22=DrainCat,IF(N$3=ESALCat,Design!$AH$4:$AQ$27)))) -> 150 | O22: =SUM(IF($A22=SoilCat,IF($B22=DrainCat,IF(O$3=ESALCat,Design!$AH$4:$AQ$27)))) -> 150
A23: 2 | B23: Poor | E23: Unbound Dense Graded Subbase | F23: =SUM(IF($A23=SoilCat,IF($B23=DrainCat,IF(F$3=ESALCat,Design!$BB$4:$BK$27)))) -> 0 | G23: =SUM(IF($A23=SoilCat,IF($B23=DrainCat,IF(G$3=ESALCat,Design!$BB$4:$BK$27)))) -> 0 | H23: =SUM(IF($A23=SoilCat,IF($B23=DrainCat,IF(H$3=ESALCat,Design!$BB$4:$BK$27)))) -> 0 | I23: =SUM(IF($A23=SoilCat,IF($B23=DrainCat,IF(I$3=ESALCat,Design!$BB$4:$BK$27)))) -> 0 | J23: =SUM(IF($A23=SoilCat,IF($B23=DrainCat,IF(J$3=ESALCat,Design!$BB$4:$BK$27)))) -> 0 | K23: =SUM(IF($A23=SoilCat,IF($B23=DrainCat,IF(K$3=ESALCat,Design!$BB$4:$BK$27)))) -> 0 | L23: =SUM(IF($A23=SoilCat,IF($B23=DrainCat,IF(L$3=ESALCat,Design!$BB$4:$BK$27)))) -> 150 | M23: =SUM(IF($A23=SoilCat,IF($B23=DrainCat,IF(M$3=ESALCat,Design!$BB$4:$BK$27)))) -> 275 | N23: =SUM(IF($A23=SoilCat,IF($B23=DrainCat,IF(N$3=ESALCat,Design!$BB$4:$BK$27)))) -> 425 | O23: =SUM(IF($A23=SoilCat,IF($B23=DrainCat,IF(O$3=ESALCat,Design!$BB$4:$BK$27)))) -> 550
A24: 3 | B24: Good | C24: Category 3 | D24: Good | E24: Pavers and Bedding | F24: =SUM(IF($A24=SoilCat,IF($B24=DrainCat,IF(F$3=ESALCat,Design!$N$4:$W$27)))) -> 105 | G24: =SUM(IF($A24=SoilCat,IF($B24=DrainCat,IF(G$3=ESALCat,Design!$N$4:$W$27)))) -> 105 | H24: =SUM(IF($A24=SoilCat,IF($B24=DrainCat,IF(H$3=ESALCat,Design!$N$4:$W$27)))) -> 105 | I24: =SUM(IF($A24=SoilCat,IF($B24=DrainCat,IF(I$3=ESALCat,Design!$N$4:$W$27)))) -> 105 | J24: =SUM(IF($A24=SoilCat,IF($B24=DrainCat,IF(J$3=ESALCat,Design!$N$4:$W$27)))) -> 105 | K24: =SUM(IF($A24=SoilCat,IF($B24=DrainCat,IF(K$3=ESALCat,Design!$N$4:$W$27)))) -> 105 | L24: =SUM(IF($A24=SoilCat,IF($B24=DrainCat,IF(L$3=ESALCat,Design!$N$4:$W$27)))) -> 105 | M24: =SUM(IF($A24=SoilCat,IF($B24=DrainCat,IF(M$3=ESALCat,Design!$N$4:$W$27)))) -> 105 | N24: =SUM(IF($A24=SoilCat,IF($B24=DrainCat,IF(N$3=ESALCat,Design!$N$4:$W$27)))) -> 105 | O24: =SUM(IF($A24=SoilCat,IF($B24=DrainCat,IF(O$3=ESALCat,Design!$N$4:$W$27)))) -> 105
A25: 3 | B25: Good | E25: Unbound Dense Graded Base | F25: =SUM(IF($A25=SoilCat,IF($B25=DrainCat,IF(F$3=ESALCat,Design!$AH$4:$AQ$27)))) -> 100 | G25: =SUM(IF($A25=SoilCat,IF($B25=DrainCat,IF(G$3=ESALCat,Design!$AH$4:$AQ$27)))) -> 100 | H25: =SUM(IF($A25=SoilCat,IF($B25=DrainCat,IF(H$3=ESALCat,Design!$AH$4:$AQ$27)))) -> 100 | I25: =SUM(IF($A25=SoilCat,IF($B25=DrainCat,IF(I$3=ESALCat,Design!$AH$4:$AQ$27)))) -> 100 | J25: =SUM(IF($A25=SoilCat,IF($B25=DrainCat,IF(J$3=ESALCat,Design!$AH$4:$AQ$27)))) -> 100 | K25: =SUM(IF($A25=SoilCat,IF($B25=DrainCat,IF(K$3=ESALCat,Design!$AH$4:$AQ$27)))) -> 150 | L25: =SUM(IF($A25=SoilCat,IF($B25=DrainCat,IF(L$3=ESALCat,Design!$AH$4:$AQ$27)))) -> 200 | M25: =SUM(IF($A25=SoilCat,IF($B25=DrainCat,IF(M$3=ESALCat,Design!$AH$4:$AQ$27)))) -> 150 | N25: =SUM(IF($A25=SoilCat,IF($B25=DrainCat,IF(N$3=ESALCat,Design!$AH$4:$AQ$27)))) -> 150 | O25: =SUM(IF($A25=SoilCat,IF($B25=DrainCat,IF(O$3=ESALCat,Design!$AH$4:$AQ$27)))) -> 150
A26: 3 | B26: Good | E26: Unbound Dense Graded Subbase | F26: =SUM(IF($A26=SoilCat,IF($B26=DrainCat,IF(F$3=ESALCat,Design!$BB$4:$BK$27)))) -> 0 | G26: =SUM(IF($A26=SoilCat,IF($B26=DrainCat,IF(G$3=ESALCat,Design!$BB$4:$BK$27)))) -> 0 | H26: =SUM(IF($A26=SoilCat,IF($B26=DrainCat,IF(H$3=ESALCat,Design!$BB$4:$BK$27)))) -> 0 | I26: =SUM(IF($A26=SoilCat,IF($B26=DrainCat,IF(I$3=ESALCat,Design!$BB$4:$BK$27)))) -> 0 | J26: =SUM(IF($A26=SoilCat,IF($B26=DrainCat,IF(J$3=ESALCat,Design!$BB$4:$BK$27)))) -> 0 | K26: =SUM(IF($A26=SoilCat,IF($B26=DrainCat,IF(K$3=ESALCat,Design!$BB$4:$BK$27)))) -> 0 | L26: =SUM(IF($A26=SoilCat,IF($B26=DrainCat,IF(L$3=ESALCat,Design!$BB$4:$BK$27)))) -> 0 | M26: =SUM(IF($A26=SoilCat,IF($B26=DrainCat,IF(M$3=ESALCat,Design!$BB$4:$BK$27)))) -> 150 | N26: =SUM(IF($A26=SoilCat,IF($B26=DrainCat,IF(N$3=ESALCat,Design!$BB$4:$BK$27)))) -> 300 | O26: =SUM(IF($A26=SoilCat,IF($B26=DrainCat,IF(O$3=ESALCat,Design!$BB$4:$BK$27)))) -> 400
A27: 3 | B27: Fair | D27: Fair | E27: Pavers and Bedding | F27: =SUM(IF($A27=SoilCat,IF($B27=DrainCat,IF(F$3=ESALCat,Design!$N$4:$W$27)))) -> 105 | G27: =SUM(IF($A27=SoilCat,IF($B27=DrainCat,IF(G$3=ESALCat,Design!$N$4:$W$27)))) -> 105 | H27: =SUM(IF($A27=SoilCat,IF($B27=DrainCat,IF(H$3=ESALCat,Design!$N$4:$W$27)))) -> 105 | I27: =SUM(IF($A27=SoilCat,IF($B27=DrainCat,IF(I$3=ESALCat,Design!$N$4:$W$27)))) -> 105 | J27: =SUM(IF($A27=SoilCat,IF($B27=DrainCat,IF(J$3=ESALCat,Design!$N$4:$W$27)))) -> 105 | K27: =SUM(IF($A27=SoilCat,IF($B27=DrainCat,IF(K$3=ESALCat,Design!$N$4:$W$27)))) -> 105 | L27: =SUM(IF($A27=SoilCat,IF($B27=DrainCat,IF(L$3=ESALCat,Design!$N$4:$W$27)))) -> 105 | M27: =SUM(IF($A27=SoilCat,IF($B27=DrainCat,IF(M$3=ESALCat,Design!$N$4:$W$27)))) -> 105 | N27: =SUM(IF($A27=SoilCat,IF($B27=DrainCat,IF(N$3=ESALCat,Design!$N$4:$W$27)))) -> 105 | O27: =SUM(IF($A27=SoilCat,IF($B27=DrainCat,IF(O$3=ESALCat,Design!$N$4:$W$27)))) -> 105
A28: 3 | B28: Fair | E28: Unbound Dense Graded Base | F28: =SUM(IF($A28=SoilCat,IF($B28=DrainCat,IF(F$3=ESALCat,Design!$AH$4:$AQ$27)))) -> 100 | G28: =SUM(IF($A28=SoilCat,IF($B28=DrainCat,IF(G$3=ESALCat,Design!$AH$4:$AQ$27)))) -> 100 | H28: =SUM(IF($A28=SoilCat,IF($B28=DrainCat,IF(H$3=ESALCat,Design!$AH$4:$AQ$27)))) -> 100 | I28: =SUM(IF($A28=SoilCat,IF($B28=DrainCat,IF(I$3=ESALCat,Design!$AH$4:$AQ$27)))) -> 100 | J28: =SUM(IF($A28=SoilCat,IF($B28=DrainCat,IF(J$3=ESALCat,Design!$AH$4:$AQ$27)))) -> 125 | K28: =SUM(IF($A28=SoilCat,IF($B28=DrainCat,IF(K$3=ESALCat,Design!$AH$4:$AQ$27)))) -> 200 | L28: =SUM(IF($A28=SoilCat,IF($B28=DrainCat,IF(L$3=ESALCat,Design!$AH$4:$AQ$27)))) -> 150 | M28: =SUM(IF($A28=SoilCat,IF($B28=DrainCat,IF(M$3=ESALCat,Design!$AH$4:$AQ$27)))) -> 150 | N28: =SUM(IF($A28=SoilCat,IF($B28=DrainCat,IF(N$3=ESALCat,Design!$AH$4:$AQ$27)))) -> 150 | O28: =SUM(IF($A28=SoilCat,IF($B28=DrainCat,IF(O$3=ESALCat,Design!$AH$4:$AQ$27)))) -> 150
A29: 3 | B29: Fair | E29: Unbound Dense Graded Subbase | F29: =SUM(IF($A29=SoilCat,IF($B29=DrainCat,IF(F$3=ESALCat,Design!$BB$4:$BK$27)))) -> 0 | G29: =SUM(IF($A29=SoilCat,IF($B29=DrainCat,IF(G$3=ESALCat,Design!$BB$4:$BK$27)))) -> 0 | H29: =SUM(IF($A29=SoilCat,IF($B29=DrainCat,IF(H$3=ESALCat,Design!$BB$4:$BK$27)))) -> 0 | I29: =SUM(IF($A29=SoilCat,IF($B29=DrainCat,IF(I$3=ESALCat,Design!$BB$4:$BK$27)))) -> 0 | J29: =SUM(IF($A29=SoilCat,IF($B29=DrainCat,IF(J$3=ESALCat,Design!$BB$4:$BK$27)))) -> 0 | K29: =SUM(IF($A29=SoilCat,IF($B29=DrainCat,IF(K$3=ESALCat,Design!$BB$4:$BK$27)))) -> 0 | L29: =SUM(IF($A29=SoilCat,IF($B29=DrainCat,IF(L$3=ESALCat,Design!$BB$4:$BK$27)))) -> 150 | M29: =SUM(IF($A29=SoilCat,IF($B29=DrainCat,IF(M$3=ESALCat,Design!$BB$4:$BK$27)))) -> 275 | N29: =SUM(IF($A29=SoilCat,IF($B29=DrainCat,IF(N$3=ESALCat,Design!$BB$4:$BK$27)))) -> 425 | O29: =SUM(IF($A29=SoilCat,IF($B29=DrainCat,IF(O$3=ESALCat,Design!$BB$4:$BK$27)))) -> 550
A30: 3 | B30: Poor | D30: Poor | E30: Pavers and Bedding | F30: =SUM(IF($A30=SoilCat,IF($B30=DrainCat,IF(F$3=ESALCat,Design!$N$4:$W$27)))) -> 105 | G30: =SUM(IF($A30=SoilCat,IF($B30=DrainCat,IF(G$3=ESALCat,Design!$N$4:$W$27)))) -> 105 | H30: =SUM(IF($A30=SoilCat,IF($B30=DrainCat,IF(H$3=ESALCat,Design!$N$4:$W$27)))) -> 105 | I30: =SUM(IF($A30=SoilCat,IF($B30=DrainCat,IF(I$3=ESALCat,Design!$N$4:$W$27)))) -> 105 | J30: =SUM(IF($A30=SoilCat,IF($B30=DrainCat,IF(J$3=ESALCat,Design!$N$4:$W$27)))) -> 105 | K30: =SUM(IF($A30=SoilCat,IF($B30=DrainCat,IF(K$3=ESALCat,Design!$N$4:$W$27)))) -> 105 | L30: =SUM(IF($A30=SoilCat,IF($B30=DrainCat,IF(L$3=ESALCat,Design!$N$4:$W$27)))) -> 105 | M30: =SUM(IF($A30=SoilCat,IF($B30=DrainCat,IF(M$3=ESALCat,Design!$N$4:$W$27)))) -> 105 | N30: =SUM(IF($A30=SoilCat,IF($B30=DrainCat,IF(N$3=ESALCat,Design!$N$4:$W$27)))) -> 105 | O30: =SUM(IF($A30=SoilCat,IF($B30=DrainCat,IF(O$3=ESALCat,Design!$N$4:$W$27)))) -> 105
A31: 3 | B31: Poor | E31: Unbound Dense Graded Base | F31: =SUM(IF($A31=SoilCat,IF($B31=DrainCat,IF(F$3=ESALCat,Design!$AH$4:$AQ$27)))) -> 100 | G31: =SUM(IF($A31=SoilCat,IF($B31=DrainCat,IF(G$3=ESALCat,Design!$AH$4:$AQ$27)))) -> 100 | H31: =SUM(IF($A31=SoilCat,IF($B31=DrainCat,IF(H$3=ESALCat,Design!$AH$4:$AQ$27)))) -> 100 | I31: =SUM(IF($A31=SoilCat,IF($B31=DrainCat,IF(I$3=ESALCat,Design!$AH$4:$AQ$27)))) -> 125 | J31: =SUM(IF($A31=SoilCat,IF($B31=DrainCat,IF(J$3=ESALCat,Design!$AH$4:$AQ$27)))) -> 200 | K31: =SUM(IF($A31=SoilCat,IF($B31=DrainCat,IF(K$3=ESALCat,Design!$AH$4:$AQ$27)))) -> 150 | L31: =SUM(IF($A31=SoilCat,IF($B31=DrainCat,IF(L$3=ESALCat,Design!$AH$4:$AQ$27)))) -> 150 | M31: =SUM(IF($A31=SoilCat,IF($B31=DrainCat,IF(M$3=ESALCat,Design!$AH$4:$AQ$27)))) -> 150 | N31: =SUM(IF($A31=SoilCat,IF($B31=DrainCat,IF(N$3=ESALCat,Design!$AH$4:$AQ$27)))) -> 150 | O31: =SUM(IF($A31=SoilCat,IF($B31=DrainCat,IF(O$3=ESALCat,Design!$AH$4:$AQ$27)))) -> 150
A32: 3 | B32: Poor | E32: Unbound Dense Graded Subbase | F32: =SUM(IF($A32=SoilCat,IF($B32=DrainCat,IF(F$3=ESALCat,Design!$BB$4:$BK$27)))) -> 0 | G32: =SUM(IF($A32=SoilCat,IF($B32=DrainCat,IF(G$3=ESALCat,Design!$BB$4:$BK$27)))) -> 0 | H32: =SUM(IF($A32=SoilCat,IF($B32=DrainCat,IF(H$3=ESALCat,Design!$BB$4:$BK$27)))) -> 0 | I32: =SUM(IF($A32=SoilCat,IF($B32=DrainCat,IF(I$3=ESALCat,Design!$BB$4:$BK$27)))) -> 0 | J32: =SUM(IF($A32=SoilCat,IF($B32=DrainCat,IF(J$3=ESALCat,Design!$BB$4:$BK$27)))) -> 0 | K32: =SUM(IF($A32=SoilCat,IF($B32=DrainCat,IF(K$3=ESALCat,Design!$BB$4:$BK$27)))) -> 175 | L32: =SUM(IF($A32=SoilCat,IF($B32=DrainCat,IF(L$3=ESALCat,Design!$BB$4:$BK$27)))) -> 300 | M32: =SUM(IF($A32=SoilCat,IF($B32=DrainCat,IF(M$3=ESALCat,Design!$BB$4:$BK$27)))) -> 400 | N32: =SUM(IF($A32=SoilCat,IF($B32=DrainCat,IF(N$3=ESALCat,Design!$BB$4:$BK$27)))) -> 575 | O32: =SUM(IF($A32=SoilCat,IF($B32=DrainCat,IF(O$3=ESALCat,Design!$BB$4:$BK$27)))) -> 725
A33: 4 | B33: Good | C33: Category 4 | D33: Good | E33: Pavers and Bedding | F33: =SUM(IF($A33=SoilCat,IF($B33=DrainCat,IF(F$3=ESALCat,Design!$N$4:$W$27)))) -> 105 | G33: =SUM(IF($A33=SoilCat,IF($B33=DrainCat,IF(G$3=ESALCat,Design!$N$4:$W$27)))) -> 105 | H33: =SUM(IF($A33=SoilCat,IF($B33=DrainCat,IF(H$3=ESALCat,Design!$N$4:$W$27)))) -> 105 | I33: =SUM(IF($A33=SoilCat,IF($B33=DrainCat,IF(I$3=ESALCat,Design!$N$4:$W$27)))) -> 105 | J33: =SUM(IF($A33=SoilCat,IF($B33=DrainCat,IF(J$3=ESALCat,Design!$N$4:$W$27)))) -> 105 | K33: =SUM(IF($A33=SoilCat,IF($B33=DrainCat,IF(K$3=ESALCat,Design!$N$4:$W$27)))) -> 105 | L33: =SUM(IF($A33=SoilCat,IF($B33=DrainCat,IF(L$3=ESALCat,Design!$N$4:$W$27)))) -> 105 | M33: =SUM(IF($A33=SoilCat,IF($B33=DrainCat,IF(M$3=ESALCat,Design!$N$4:$W$27)))) -> 105 | N33: =SUM(IF($A33=SoilCat,IF($B33=DrainCat,IF(N$3=ESALCat,Design!$N$4:$W$27)))) -> 105 | O33: =SUM(IF($A33=SoilCat,IF($B33=DrainCat,IF(O$3=ESALCat,Design!$N$4:$W$27)))) -> 105
A34: 4 | B34: Good | E34: Unbound Dense Graded Base | F34: =SUM(IF($A34=SoilCat,IF($B34=DrainCat,IF(F$3=ESALCat,Design!$AH$4:$AQ$27)))) -> 100 | G34: =SUM(IF($A34=SoilCat,IF($B34=DrainCat,IF(G$3=ESALCat,Design!$AH$4:$AQ$27)))) -> 100 | H34: =SUM(IF($A34=SoilCat,IF($B34=DrainCat,IF(H$3=ESALCat,Design!$AH$4:$AQ$27)))) -> 100 | I34: =SUM(IF($A34=SoilCat,IF($B34=DrainCat,IF(I$3=ESALCat,Design!$AH$4:$AQ$27)))) -> 100 | J34: =SUM(IF($A34=SoilCat,IF($B34=DrainCat,IF(J$3=ESALCat,Design!$AH$4:$AQ$27)))) -> 125 | K34: =SUM(IF($A34=SoilCat,IF($B34=DrainCat,IF(K$3=ESALCat,Design!$AH$4:$AQ$27)))) -> 200 | L34: =SUM(IF($A34=SoilCat,IF($B34=DrainCat,IF(L$3=ESALCat,Design!$AH$4:$AQ$27)))) -> 150 | M34: =SUM(IF($A34=SoilCat,IF($B34=DrainCat,IF(M$3=ESALCat,Design!$AH$4:$AQ$27)))) -> 150 | N34: =SUM(IF($A34=SoilCat,IF($B34=DrainCat,IF(N$3=ESALCat,Design!$AH$4:$AQ$27)))) -> 150 | O34: =SUM(IF($A34=SoilCat,IF($B34=DrainCat,IF(O$3=ESALCat,Design!$AH$4:$AQ$27)))) -> 150
A35: 4 | B35: Good | E35: Unbound Dense Graded Subbase | F35: =SUM(IF($A35=SoilCat,IF($B35=DrainCat,IF(F$3=ESALCat,Design!$BB$4:$BK$27)))) -> 0 | G35: =SUM(IF($A35=SoilCat,IF($B35=DrainCat,IF(G$3=ESALCat,Design!$BB$4:$BK$27)))) -> 0 | H35: =SUM(IF($A35=SoilCat,IF($B35=DrainCat,IF(H$3=ESALCat,Design!$BB$4:$BK$27)))) -> 0 | I35: =SUM(IF($A35=SoilCat,IF($B35=DrainCat,IF(I$3=ESALCat,Design!$BB$4:$BK$27)))) -> 0 | J35: =SUM(IF($A35=SoilCat,IF($B35=DrainCat,IF(J$3=ESALCat,Design!$BB$4:$BK$27)))) -> 0 | K35: =SUM(IF($A35=SoilCat,IF($B35=DrainCat,IF(K$3=ESALCat,Design!$BB$4:$BK$27)))) -> 0 | L35: =SUM(IF($A35=SoilCat,IF($B35=DrainCat,IF(L$3=ESALCat,Design!$BB$4:$BK$27)))) -> 150 | M35: =SUM(IF($A35=SoilCat,IF($B35=DrainCat,IF(M$3=ESALCat,Design!$BB$4:$BK$27)))) -> 275 | N35: =SUM(IF($A35=SoilCat,IF($B35=DrainCat,IF(N$3=ESALCat,Design!$BB$4:$BK$27)))) -> 425 | O35: =SUM(IF($A35=SoilCat,IF($B35=DrainCat,IF(O$3=ESALCat,Design!$BB$4:$BK$27)))) -> 550
A36: 4 | B36: Fair | D36: Fair | E36: Pavers and Bedding | F36: =SUM(IF($A36=SoilCat,IF($B36=DrainCat,IF(F$3=ESALCat,Design!$N$4:$W$27)))) -> 105 | G36: =SUM(IF($A36=SoilCat,IF($B36=DrainCat,IF(G$3=ESALCat,Design!$N$4:$W$27)))) -> 105 | H36: =SUM(IF($A36=SoilCat,IF($B36=DrainCat,IF(H$3=ESALCat,Design!$N$4:$W$27)))) -> 105 | I36: =SUM(IF($A36=SoilCat,IF($B36=DrainCat,IF(I$3=ESALCat,Design!$N$4:$W$27)))) -> 105 | J36: =SUM(IF($A36=SoilCat,IF($B36=DrainCat,IF(J$3=ESALCat,Design!$N$4:$W$27)))) -> 105 | K36: =SUM(IF($A36=SoilCat,IF($B36=DrainCat,IF(K$3=ESALCat,Design!$N$4:$W$27)))) -> 105 | L36: =SUM(IF($A36=SoilCat,IF($B36=DrainCat,IF(L$3=ESALCat,Design!$N$4:$W$27)))) -> 105 | M36: =SUM(IF($A36=SoilCat,IF($B36=DrainCat,IF(M$3=ESALCat,Design!$N$4:$W$27)))) -> 105 | N36: =SUM(IF($A36=SoilCat,IF($B36=DrainCat,IF(N$3=ESALCat,Design!$N$4:$W$27)))) -> 105 | O36: =SUM(IF($A36=SoilCat,IF($B36=DrainCat,IF(O$3=ESALCat,Design!$N$4:$W$27)))) -> 105
A37: 4 | B37: Fair | E37: Unbound Dense Graded Base | F37: =SUM(IF($A37=SoilCat,IF($B37=DrainCat,IF(F$3=ESALCat,Design!$AH$4:$AQ$27)))) -> 100 | G37: =SUM(IF($A37=SoilCat,IF($B37=DrainCat,IF(G$3=ESALCat,Design!$AH$4:$AQ$27)))) -> 100 | H37: =SUM(IF($A37=SoilCat,IF($B37=DrainCat,IF(H$3=ESALCat,Design!$AH$4:$AQ$27)))) -> 100 | I37: =SUM(IF($A37=SoilCat,IF($B37=DrainCat,IF(I$3=ESALCat,Design!$AH$4:$AQ$27)))) -> 125 | J37: =SUM(IF($A37=SoilCat,IF($B37=DrainCat,IF(J$3=ESALCat,Design!$AH$4:$AQ$27)))) -> 200 | K37: =SUM(IF($A37=SoilCat,IF($B37=DrainCat,IF(K$3=ESALCat,Design!$AH$4:$AQ$27)))) -> 150 | L37: =SUM(IF($A37=SoilCat,IF($B37=DrainCat,IF(L$3=ESALCat,Design!$AH$4:$AQ$27)))) -> 150 | M37: =SUM(IF($A37=SoilCat,IF($B37=DrainCat,IF(M$3=ESALCat,Design!$AH$4:$AQ$27)))) -> 150 | N37: =SUM(IF($A37=SoilCat,IF($B37=DrainCat,IF(N$3=ESALCat,Design!$AH$4:$AQ$27)))) -> 150 | O37: =SUM(IF($A37=SoilCat,IF($B37=DrainCat,IF(O$3=ESALCat,Design!$AH$4:$AQ$27)))) -> 150
A38: 4 | B38: Fair | E38: Unbound Dense Graded Subbase | F38: =SUM(IF($A38=SoilCat,IF($B38=DrainCat,IF(F$3=ESALCat,Design!$BB$4:$BK$27)))) -> 0 | G38: =SUM(IF($A38=SoilCat,IF($B38=DrainCat,IF(G$3=ESALCat,Design!$BB$4:$BK$27)))) -> 0 | H38: =SUM(IF($A38=SoilCat,IF($B38=DrainCat,IF(H$3=ESALCat,Design!$BB$4:$BK$27)))) -> 0 | I38: =SUM(IF($A38=SoilCat,IF($B38=DrainCat,IF(I$3=ESALCat,Design!$BB$4:$BK$27)))) -> 0 | J38: =SUM(IF($A38=SoilCat,IF($B38=DrainCat,IF(J$3=ESALCat,Design!$BB$4:$BK$27)))) -> 0 | K38: =SUM(IF($A38=SoilCat,IF($B38=DrainCat,IF(K$3=ESALCat,Design!$BB$4:$BK$27)))) -> 175 | L38: =SUM(IF($A38=SoilCat,IF($B38=DrainCat,IF(L$3=ESALCat,Design!$BB$4:$BK$27)))) -> 300 | M38: =SUM(IF($A38=SoilCat,IF($B38=DrainCat,IF(M$3=ESALCat,Design!$BB$4:$BK$27)))) -> 400 | N38: =SUM(IF($A38=SoilCat,IF($B38=DrainCat,IF(N$3=ESALCat,Design!$BB$4:$BK$27)))) -> 575 | O38: =SUM(IF($A38=SoilCat,IF($B38=DrainCat,IF(O$3=ESALCat,Design!$BB$4:$BK$27)))) -> 725
A39: 4 | B39: Poor | D39: Poor | E39: Pavers and Bedding | F39: =SUM(IF($A39=SoilCat,IF($B39=DrainCat,IF(F$3=ESALCat,Design!$N$4:$W$27)))) -> 105 | G39: =SUM(IF($A39=SoilCat,IF($B39=DrainCat,IF(G$3=ESALCat,Design!$N$4:$W$27)))) -> 105 | H39: =SUM(IF($A39=SoilCat,IF($B39=DrainCat,IF(H$3=ESALCat,Design!$N$4:$W$27)))) -> 105 | I39: =SUM(IF($A39=SoilCat,IF($B39=DrainCat,IF(I$3=ESALCat,Design!$N$4:$W$27)))) -> 105 | J39: =SUM(IF($A39=SoilCat,IF($B39=DrainCat,IF(J$3=ESALCat,Design!$N$4:$W$27)))) -> 105 | K39: =SUM(IF($A39=SoilCat,IF($B39=DrainCat,IF(K$3=ESALCat,Design!$N$4:$W$27)))) -> 105 | L39: =SUM(IF($A39=SoilCat,IF($B39=DrainCat,IF(L$3=ESALCat,Design!$N$4:$W$27)))) -> 105 | M39: =SUM(IF($A39=SoilCat,IF($B39=DrainCat,IF(M$3=ESALCat,Design!$N$4:$W$27)))) -> 105 | N39: =SUM(IF($A39=SoilCat,IF($B39=DrainCat,IF(N$3=ESALCat,Design!$N$4:$W$27)))) -> 105 | O39: =SUM(IF($A39=SoilCat,IF($B39=DrainCat,IF(O$3=ESALCat,Design!$N$4:$W$27)))) -> 105
A40: 4 | B40: Poor | E40: Unbound Dense Graded Base | F40: =SUM(IF($A40=SoilCat,IF($B40=DrainCat,IF(F$3=ESALCat,Design!$AH$4:$AQ$27)))) -> 100 | G40: =SUM(IF($A40=SoilCat,IF($B40=DrainCat,IF(G$3=ESALCat,Design!$AH$4:$AQ$27)))) -> 100 | H40: =SUM(IF($A40=SoilCat,IF($B40=DrainCat,IF(H$3=ESALCat,Design!$AH$4:$AQ$27)))) -> 100 | I40: =SUM(IF($A40=SoilCat,IF($B40=DrainCat,IF(I$3=ESALCat,Design!$AH$4:$AQ$27)))) -> 150 | J40: =SUM(IF($A40=SoilCat,IF($B40=DrainCat,IF(J$3=ESALCat,Design!$AH$4:$AQ$27)))) -> 100 | K40: =SUM(IF($A40=SoilCat,IF($B40=DrainCat,IF(K$3=ESALCat,Design!$AH$4:$AQ$27)))) -> 150 | L40: =SUM(IF($A40=SoilCat,IF($B40=DrainCat,IF(L$3=ESALCat,Design!$AH$4:$AQ$27)))) -> 150 | M40: =SUM(IF($A40=SoilCat,IF($B40=DrainCat,IF(M$3=ESALCat,Design!$AH$4:$AQ$27)))) -> 150 | N40: =SUM(IF($A40=SoilCat,IF($B40=DrainCat,IF(N$3=ESALCat,Design!$AH$4:$AQ$27)))) -> 150 | O40: =SUM(IF($A40=SoilCat,IF($B40=DrainCat,IF(O$3=ESALCat,Design!$AH$4:$AQ$27)))) -> 150
A41: 4 | B41: Poor | E41: Unbound Dense Graded Subbase | F41: =SUM(IF($A41=SoilCat,IF($B41=DrainCat,IF(F$3=ESALCat,Design!$BB$4:$BK$27)))) -> 0 | G41: =SUM(IF($A41=SoilCat,IF($B41=DrainCat,IF(G$3=ESALCat,Design!$BB$4:$BK$27)))) -> 0 | H41: =SUM(IF($A41=SoilCat,IF($B41=DrainCat,IF(H$3=ESALCat,Design!$BB$4:$BK$27)))) -> 0 | I41: =SUM(IF($A41=SoilCat,IF($B41=DrainCat,IF(I$3=ESALCat,Design!$BB$4:$BK$27)))) -> 0 | J41: =SUM(IF($A41=SoilCat,IF($B41=DrainCat,IF(J$3=ESALCat,Design!$BB$4:$BK$27)))) -> 175 | K41: =SUM(IF($A41=SoilCat,IF($B41=DrainCat,IF(K$3=ESALCat,Design!$BB$4:$BK$27)))) -> 225 | L41: =SUM(IF($A41=SoilCat,IF($B41=DrainCat,IF(L$3=ESALCat,Design!$BB$4:$BK$27)))) -> 350 | M41: =SUM(IF($A41=SoilCat,IF($B41=DrainCat,IF(M$3=ESALCat,Design!$BB$4:$BK$27)))) -> 475 | N41: =SUM(IF($A41=SoilCat,IF($B41=DrainCat,IF(N$3=ESALCat,Design!$BB$4:$BK$27)))) -> 650 | O41: =SUM(IF($A41=SoilCat,IF($B41=DrainCat,IF(O$3=ESALCat,Design!$BB$4:$BK$27)))) -> 800
A42: 5 | B42: Good | C42: Category 5 | D42: Good | E42: Pavers and Bedding | F42: =SUM(IF($A42=SoilCat,IF($B42=DrainCat,IF(F$3=ESALCat,Design!$N$4:$W$27)))) -> 105 | G42: =SUM(IF($A42=SoilCat,IF($B42=DrainCat,IF(G$3=ESALCat,Design!$N$4:$W$27)))) -> 105 | H42: =SUM(IF($A42=SoilCat,IF($B42=DrainCat,IF(H$3=ESALCat,Design!$N$4:$W$27)))) -> 105 | I42: =SUM(IF($A42=SoilCat,IF($B42=DrainCat,IF(I$3=ESALCat,Design!$N$4:$W$27)))) -> 105 | J42: =SUM(IF($A42=SoilCat,IF($B42=DrainCat,IF(J$3=ESALCat,Design!$N$4:$W$27)))) -> 105 | K42: =SUM(IF($A42=SoilCat,IF($B42=DrainCat,IF(K$3=ESALCat,Design!$N$4:$W$27)))) -> 105 | L42: =SUM(IF($A42=SoilCat,IF($B42=DrainCat,IF(L$3=ESALCat,Design!$N$4:$W$27)))) -> 105 | M42: =SUM(IF($A42=SoilCat,IF($B42=DrainCat,IF(M$3=ESALCat,Design!$N$4:$W$27)))) -> 105 | N42: =SUM(IF($A42=SoilCat,IF($B42=DrainCat,IF(N$3=ESALCat,Design!$N$4:$W$27)))) -> 105 | O42: =SUM(IF($A42=SoilCat,IF($B42=DrainCat,IF(O$3=ESALCat,Design!$N$4:$W$27)))) -> 105
A43: 5 | B43: Good | E43: Unbound Dense Graded Base | F43: =SUM(IF($A43=SoilCat,IF($B43=DrainCat,IF(F$3=ESALCat,Design!$AH$4:$AQ$27)))) -> 100 | G43: =SUM(IF($A43=SoilCat,IF($B43=DrainCat,IF(G$3=ESALCat,Design!$AH$4:$AQ$27)))) -> 100 | H43: =SUM(IF($A43=SoilCat,IF($B43=DrainCat,IF(H$3=ESALCat,Design!$AH$4:$AQ$27)))) -> 100 | I43: =SUM(IF($A43=SoilCat,IF($B43=DrainCat,IF(I$3=ESALCat,Design!$AH$4:$AQ$27)))) -> 100 | J43: =SUM(IF($A43=SoilCat,IF($B43=DrainCat,IF(J$3=ESALCat,Design!$AH$4:$AQ$27)))) -> 175 | K43: =SUM(IF($A43=SoilCat,IF($B43=DrainCat,IF(K$3=ESALCat,Design!$AH$4:$AQ$27)))) -> 150 | L43: =SUM(IF($A43=SoilCat,IF($B43=DrainCat,IF(L$3=ESALCat,Design!$AH$4:$AQ$27)))) -> 150 | M43: =SUM(IF($A43=SoilCat,IF($B43=DrainCat,IF(M$3=ESALCat,Design!$AH$4:$AQ$27)))) -> 150 | N43: =SUM(IF($A43=SoilCat,IF($B43=DrainCat,IF(N$3=ESALCat,Design!$AH$4:$AQ$27)))) -> 150 | O43: =SUM(IF($A43=SoilCat,IF($B43=DrainCat,IF(O$3=ESALCat,Design!$AH$4:$AQ$27)))) -> 150
A44: 5 | B44: Good | E44: Unbound Dense Graded Subbase | F44: =SUM(IF($A44=SoilCat,IF($B44=DrainCat,IF(F$3=ESALCat,Design!$BB$4:$BK$27)))) -> 0 | G44: =SUM(IF($A44=SoilCat,IF($B44=DrainCat,IF(G$3=ESALCat,Design!$BB$4:$BK$27)))) -> 0 | H44: =SUM(IF($A44=SoilCat,IF($B44=DrainCat,IF(H$3=ESALCat,Design!$BB$4:$BK$27)))) -> 0 | I44: =SUM(IF($A44=SoilCat,IF($B44=DrainCat,IF(I$3=ESALCat,Design!$BB$4:$BK$27)))) -> 0 | J44: =SUM(IF($A44=SoilCat,IF($B44=DrainCat,IF(J$3=ESALCat,Design!$BB$4:$BK$27)))) -> 0 | K44: =SUM(IF($A44=SoilCat,IF($B44=DrainCat,IF(K$3=ESALCat,Design!$BB$4:$BK$27)))) -> 150 | L44: =SUM(IF($A44=SoilCat,IF($B44=DrainCat,IF(L$3=ESALCat,Design!$BB$4:$BK$27)))) -> 250 | M44: =SUM(IF($A44=SoilCat,IF($B44=DrainCat,IF(M$3=ESALCat,Design!$BB$4:$BK$27)))) -> 350 | N44: =SUM(IF($A44=SoilCat,IF($B44=DrainCat,IF(N$3=ESALCat,Design!$BB$4:$BK$27)))) -> 525 | O44: =SUM(IF($A44=SoilCat,IF($B44=DrainCat,IF(O$3=ESALCat,Design!$BB$4:$BK$27)))) -> 650
A45: 5 | B45: Fair | D45: Fair | E45: Pavers and Bedding | F45: =SUM(IF($A45=SoilCat,IF($B45=DrainCat,IF(F$3=ESALCat,Design!$N$4:$W$27)))) -> 105 | G45: =SUM(IF($A45=SoilCat,IF($B45=DrainCat,IF(G$3=ESALCat,Design!$N$4:$W$27)))) -> 105 | H45: =SUM(IF($A45=SoilCat,IF($B45=DrainCat,IF(H$3=ESALCat,Design!$N$4:$W$27)))) -> 105 | I45: =SUM(IF($A45=SoilCat,IF($B45=DrainCat,IF(I$3=ESALCat,Design!$N$4:$W$27)))) -> 105 | J45: =SUM(IF($A45=SoilCat,IF($B45=DrainCat,IF(J$3=ESALCat,Design!$N$4:$W$27)))) -> 105 | K45: =SUM(IF($A45=SoilCat,IF($B45=DrainCat,IF(K$3=ESALCat,Design!$N$4:$W$27)))) -> 105 | L45: =SUM(IF($A45=SoilCat,IF($B45=DrainCat,IF(L$3=ESALCat,Design!$N$4:$W$27)))) -> 105 | M45: =SUM(IF($A45=SoilCat,IF($B45=DrainCat,IF(M$3=ESALCat,Design!$N$4:$W$27)))) -> 105 | N45: =SUM(IF($A45=SoilCat,IF($B45=DrainCat,IF(N$3=ESALCat,Design!$N$4:$W$27)))) -> 105 | O45: =SUM(IF($A45=SoilCat,IF($B45=DrainCat,IF(O$3=ESALCat,Design!$N$4:$W$27)))) -> 105
A46: 5 | B46: Fair | E46: Unbound Dense Graded Base | F46: =SUM(IF($A46=SoilCat,IF($B46=DrainCat,IF(F$3=ESALCat,Design!$AH$4:$AQ$27)))) -> 100 | G46: =SUM(IF($A46=SoilCat,IF($B46=DrainCat,IF(G$3=ESALCat,Design!$AH$4:$AQ$27)))) -> 100 | H46: =SUM(IF($A46=SoilCat,IF($B46=DrainCat,IF(H$3=ESALCat,Design!$AH$4:$AQ$27)))) -> 100 | I46: =SUM(IF($A46=SoilCat,IF($B46=DrainCat,IF(I$3=ESALCat,Design!$AH$4:$AQ$27)))) -> 150 | J46: =SUM(IF($A46=SoilCat,IF($B46=DrainCat,IF(J$3=ESALCat,Design!$AH$4:$AQ$27)))) -> 100 | K46: =SUM(IF($A46=SoilCat,IF($B46=DrainCat,IF(K$3=ESALCat,Design!$AH$4:$AQ$27)))) -> 150 | L46: =SUM(IF($A46=SoilCat,IF($B46=DrainCat,IF(L$3=ESALCat,Design!$AH$4:$AQ$27)))) -> 150 | M46: =SUM(IF($A46=SoilCat,IF($B46=DrainCat,IF(M$3=ESALCat,Design!$AH$4:$AQ$27)))) -> 150 | N46: =SUM(IF($A46=SoilCat,IF($B46=DrainCat,IF(N$3=ESALCat,Design!$AH$4:$AQ$27)))) -> 150 | O46: =SUM(IF($A46=SoilCat,IF($B46=DrainCat,IF(O$3=ESALCat,Design!$AH$4:$AQ$27)))) -> 150
A47: 5 | B47: Fair | E47: Unbound Dense Graded Subbase | F47: =SUM(IF($A47=SoilCat,IF($B47=DrainCat,IF(F$3=ESALCat,Design!$BB$4:$BK$27)))) -> 0 | G47: =SUM(IF($A47=SoilCat,IF($B47=DrainCat,IF(G$3=ESALCat,Design!$BB$4:$BK$27)))) -> 0 | H47: =SUM(IF($A47=SoilCat,IF($B47=DrainCat,IF(H$3=ESALCat,Design!$BB$4:$BK$27)))) -> 0 | I47: =SUM(IF($A47=SoilCat,IF($B47=DrainCat,IF(I$3=ESALCat,Design!$BB$4:$BK$27)))) -> 0 | J47: =SUM(IF($A47=SoilCat,IF($B47=DrainCat,IF(J$3=ESALCat,Design!$BB$4:$BK$27)))) -> 175 | K47: =SUM(IF($A47=SoilCat,IF($B47=DrainCat,IF(K$3=ESALCat,Design!$BB$4:$BK$27)))) -> 225 | L47: =SUM(IF($A47=SoilCat,IF($B47=DrainCat,IF(L$3=ESALCat,Design!$BB$4:$BK$27)))) -> 350 | M47: =SUM(IF($A47=SoilCat,IF($B47=DrainCat,IF(M$3=ESALCat,Design!$BB$4:$BK$27)))) -> 475 | N47: =SUM(IF($A47=SoilCat,IF($B47=DrainCat,IF(N$3=ESALCat,Design!$BB$4:$BK$27)))) -> 650 | O47: =SUM(IF($A47=SoilCat,IF($B47=DrainCat,IF(O$3=ESALCat,Design!$BB$4:$BK$27)))) -> 800
A48: 5 | B48: Poor | D48: Poor | E48: Pavers and Bedding | F48: =SUM(IF($A48=SoilCat,IF($B48=DrainCat,IF(F$3=ESALCat,Design!$N$4:$W$27)))) -> 105 | G48: =SUM(IF($A48=SoilCat,IF($B48=DrainCat,IF(G$3=ESALCat,Design!$N$4:$W$27)))) -> 105 | H48: =SUM(IF($A48=SoilCat,IF($B48=DrainCat,IF(H$3=ESALCat,Design!$N$4:$W$27)))) -> 105 | I48: =SUM(IF($A48=SoilCat,IF($B48=DrainCat,IF(I$3=ESALCat,Design!$N$4:$W$27)))) -> 105 | J48: =SUM(IF($A48=SoilCat,IF($B48=DrainCat,IF(J$3=ESALCat,Design!$N$4:$W$27)))) -> 105 | K48: =SUM(IF($A48=SoilCat,IF($B48=DrainCat,IF(K$3=ESALCat,Design!$N$4:$W$27)))) -> 105 | L48: =SUM(IF($A48=SoilCat,IF($B48=DrainCat,IF(L$3=ESALCat,Design!$N$4:$W$27)))) -> 105 | M48: =SUM(IF($A48=SoilCat,IF($B48=DrainCat,IF(M$3=ESALCat,Design!$N$4:$W$27)))) -> 105 | N48: =SUM(IF($A48=SoilCat,IF($B48=DrainCat,IF(N$3=ESALCat,Design!$N$4:$W$27)))) -> 105 | O48: =SUM(IF($A48=SoilCat,IF($B48=DrainCat,IF(O$3=ESALCat,Design!$N$4:$W$27)))) -> 105
A49: 5 | B49: Poor | E49: Unbound Dense Graded Base | F49: =SUM(IF($A49=SoilCat,IF($B49=DrainCat,IF(F$3=ESALCat,Design!$AH$4:$AQ$27)))) -> 100 | G49: =SUM(IF($A49=SoilCat,IF($B49=DrainCat,IF(G$3=ESALCat,Design!$AH$4:$AQ$27)))) -> 100 | H49: =SUM(IF($A49=SoilCat,IF($B49=DrainCat,IF(H$3=ESALCat,Design!$AH$4:$AQ$27)))) -> 150 | I49: =SUM(IF($A49=SoilCat,IF($B49=DrainCat,IF(I$3=ESALCat,Design!$AH$4:$AQ$27)))) -> 200 | J49: =SUM(IF($A49=SoilCat,IF($B49=DrainCat,IF(J$3=ESALCat,Design!$AH$4:$AQ$27)))) -> 100 | K49: =SUM(IF($A49=SoilCat,IF($B49=DrainCat,IF(K$3=ESALCat,Design!$AH$4:$AQ$27)))) -> 150 | L49: =SUM(IF($A49=SoilCat,IF($B49=DrainCat,IF(L$3=ESALCat,Design!$AH$4:$AQ$27)))) -> 150 | M49: =SUM(IF($A49=SoilCat,IF($B49=DrainCat,IF(M$3=ESALCat,Design!$AH$4:$AQ$27)))) -> 150 | N49: =SUM(IF($A49=SoilCat,IF($B49=DrainCat,IF(N$3=ESALCat,Design!$AH$4:$AQ$27)))) -> 150 | O49: =SUM(IF($A49=SoilCat,IF($B49=DrainCat,IF(O$3=ESALCat,Design!$AH$4:$AQ$27)))) -> 150
A50: 5 | B50: Poor | E50: Unbound Dense Graded Subbase | F50: =SUM(IF($A50=SoilCat,IF($B50=DrainCat,IF(F$3=ESALCat,Design!$BB$4:$BK$27)))) -> 0 | G50: =SUM(IF($A50=SoilCat,IF($B50=DrainCat,IF(G$3=ESALCat,Design!$BB$4:$BK$27)))) -> 0 | H50: =SUM(IF($A50=SoilCat,IF($B50=DrainCat,IF(H$3=ESALCat,Design!$BB$4:$BK$27)))) -> 0 | I50: =SUM(IF($A50=SoilCat,IF($B50=DrainCat,IF(I$3=ESALCat,Design!$BB$4:$BK$27)))) -> 0 | J50: =SUM(IF($A50=SoilCat,IF($B50=DrainCat,IF(J$3=ESALCat,Design!$BB$4:$BK$27)))) -> 250 | K50: =SUM(IF($A50=SoilCat,IF($B50=DrainCat,IF(K$3=ESALCat,Design!$BB$4:$BK$27)))) -> 300 | L50: =SUM(IF($A50=SoilCat,IF($B50=DrainCat,IF(L$3=ESALCat,Design!$BB$4:$BK$27)))) -> 425 | M50: =SUM(IF($A50=SoilCat,IF($B50=DrainCat,IF(M$3=ESALCat,Design!$BB$4:$BK$27)))) -> 550 | N50: =SUM(IF($A50=SoilCat,IF($B50=DrainCat,IF(N$3=ESALCat,Design!$BB$4:$BK$27)))) -> 750 | O50: =SUM(IF($A50=SoilCat,IF($B50=DrainCat,IF(O$3=ESALCat,Design!$BB$4:$BK$27)))) -> 875
A51: 6 | B51: Good | C51: Category 6 | D51: Good | E51: Pavers and Bedding | F51: =SUM(IF($A51=SoilCat,IF($B51=DrainCat,IF(F$3=ESALCat,Design!$N$4:$W$27)))) -> 105 | G51: =SUM(IF($A51=SoilCat,IF($B51=DrainCat,IF(G$3=ESALCat,Design!$N$4:$W$27)))) -> 105 | H51: =SUM(IF($A51=SoilCat,IF($B51=DrainCat,IF(H$3=ESALCat,Design!$N$4:$W$27)))) -> 105 | I51: =SUM(IF($A51=SoilCat,IF($B51=DrainCat,IF(I$3=ESALCat,Design!$N$4:$W$27)))) -> 105 | J51: =SUM(IF($A51=SoilCat,IF($B51=DrainCat,IF(J$3=ESALCat,Design!$N$4:$W$27)))) -> 105 | K51: =SUM(IF($A51=SoilCat,IF($B51=DrainCat,IF(K$3=ESALCat,Design!$N$4:$W$27)))) -> 105 | L51: =SUM(IF($A51=SoilCat,IF($B51=DrainCat,IF(L$3=ESALCat,Design!$N$4:$W$27)))) -> 105 | M51: =SUM(IF($A51=SoilCat,IF($B51=DrainCat,IF(M$3=ESALCat,Design!$N$4:$W$27)))) -> 105 | N51: =SUM(IF($A51=SoilCat,IF($B51=DrainCat,IF(N$3=ESALCat,Design!$N$4:$W$27)))) -> 105 | O51: =SUM(IF($A51=SoilCat,IF($B51=DrainCat,IF(O$3=ESALCat,Design!$N$4:$W$27)))) -> 105
A52: 6 | B52: Good | E52: Unbound Dense Graded Base | F52: =SUM(IF($A52=SoilCat,IF($B52=DrainCat,IF(F$3=ESALCat,Design!$AH$4:$AQ$27)))) -> 100 | G52: =SUM(IF($A52=SoilCat,IF($B52=DrainCat,IF(G$3=ESALCat,Design!$AH$4:$AQ$27)))) -> 100 | H52: =SUM(IF($A52=SoilCat,IF($B52=DrainCat,IF(H$3=ESALCat,Design!$AH$4:$AQ$27)))) -> 100 | I52: =SUM(IF($A52=SoilCat,IF($B52=DrainCat,IF(I$3=ESALCat,Design!$AH$4:$AQ$27)))) -> 150 | J52: =SUM(IF($A52=SoilCat,IF($B52=DrainCat,IF(J$3=ESALCat,Design!$AH$4:$AQ$27)))) -> 100 | K52: =SUM(IF($A52=SoilCat,IF($B52=DrainCat,IF(K$3=ESALCat,Design!$AH$4:$AQ$27)))) -> 150 | L52: =SUM(IF($A52=SoilCat,IF($B52=DrainCat,IF(L$3=ESALCat,Design!$AH$4:$AQ$27)))) -> 150 | M52: =SUM(IF($A52=SoilCat,IF($B52=DrainCat,IF(M$3=ESALCat,Design!$AH$4:$AQ$27)))) -> 150 | N52: =SUM(IF($A52=SoilCat,IF($B52=DrainCat,IF(N$3=ESALCat,Design!$AH$4:$AQ$27)))) -> 150 | O52: =SUM(IF($A52=SoilCat,IF($B52=DrainCat,IF(O$3=ESALCat,Design!$AH$4:$AQ$27)))) -> 150
A53: 6 | B53: Good | E53: Unbound Dense Graded Subbase | F53: =SUM(IF($A53=SoilCat,IF($B53=DrainCat,IF(F$3=ESALCat,Design!$BB$4:$BK$27)))) -> 0 | G53: =SUM(IF($A53=SoilCat,IF($B53=DrainCat,IF(G$3=ESALCat,Design!$BB$4:$BK$27)))) -> 0 | H53: =SUM(IF($A53=SoilCat,IF($B53=DrainCat,IF(H$3=ESALCat,Design!$BB$4:$BK$27)))) -> 0 | I53: =SUM(IF($A53=SoilCat,IF($B53=DrainCat,IF(I$3=ESALCat,Design!$BB$4:$BK$27)))) -> 0 | J53: =SUM(IF($A53=SoilCat,IF($B53=DrainCat,IF(J$3=ESALCat,Design!$BB$4:$BK$27)))) -> 175 | K53: =SUM(IF($A53=SoilCat,IF($B53=DrainCat,IF(K$3=ESALCat,Design!$BB$4:$BK$27)))) -> 225 | L53: =SUM(IF($A53=SoilCat,IF($B53=DrainCat,IF(L$3=ESALCat,Design!$BB$4:$BK$27)))) -> 350 | M53: =SUM(IF($A53=SoilCat,IF($B53=DrainCat,IF(M$3=ESALCat,Design!$BB$4:$BK$27)))) -> 475 | N53: =SUM(IF($A53=SoilCat,IF($B53=DrainCat,IF(N$3=ESALCat,Design!$BB$4:$BK$27)))) -> 650 | O53: =SUM(IF($A53=SoilCat,IF($B53=DrainCat,IF(O$3=ESALCat,Design!$BB$4:$BK$27)))) -> 800
A54: 6 | B54: Fair | D54: Fair | E54: Pavers and Bedding | F54: =SUM(IF($A54=SoilCat,IF($B54=DrainCat,IF(F$3=ESALCat,Design!$N$4:$W$27)))) -> 105 | G54: =SUM(IF($A54=SoilCat,IF($B54=DrainCat,IF(G$3=ESALCat,Design!$N$4:$W$27)))) -> 105 | H54: =SUM(IF($A54=SoilCat,IF($B54=DrainCat,IF(H$3=ESALCat,Design!$N$4:$W$27)))) -> 105 | I54: =SUM(IF($A54=SoilCat,IF($B54=DrainCat,IF(I$3=ESALCat,Design!$N$4:$W$27)))) -> 105 | J54: =SUM(IF($A54=SoilCat,IF($B54=DrainCat,IF(J$3=ESALCat,Design!$N$4:$W$27)))) -> 105 | K54: =SUM(IF($A54=SoilCat,IF($B54=DrainCat,IF(K$3=ESALCat,Design!$N$4:$W$27)))) -> 105 | L54: =SUM(IF($A54=SoilCat,IF($B54=DrainCat,IF(L$3=ESALCat,Design!$N$4:$W$27)))) -> 105 | M54: =SUM(IF($A54=SoilCat,IF($B54=DrainCat,IF(M$3=ESALCat,Design!$N$4:$W$27)))) -> 105 | N54: =SUM(IF($A54=SoilCat,IF($B54=DrainCat,IF(N$3=ESALCat,Design!$N$4:$W$27)))) -> 105 | O54: =SUM(IF($A54=SoilCat,IF($B54=DrainCat,IF(O$3=ESALCat,Design!$N$4:$W$27)))) -> 105
A55: 6 | B55: Fair | E55: Unbound Dense Graded Base | F55: =SUM(IF($A55=SoilCat,IF($B55=DrainCat,IF(F$3=ESALCat,Design!$AH$4:$AQ$27)))) -> 100 | G55: =SUM(IF($A55=SoilCat,IF($B55=DrainCat,IF(G$3=ESALCat,Design!$AH$4:$AQ$27)))) -> 100 | H55: =SUM(IF($A55=SoilCat,IF($B55=DrainCat,IF(H$3=ESALCat,Design!$AH$4:$AQ$27)))) -> 150 | I55: =SUM(IF($A55=SoilCat,IF($B55=DrainCat,IF(I$3=ESALCat,Design!$AH$4:$AQ$27)))) -> 200 | J55: =SUM(IF($A55=SoilCat,IF($B55=DrainCat,IF(J$3=ESALCat,Design!$AH$4:$AQ$27)))) -> 100 | K55: =SUM(IF($A55=SoilCat,IF($B55=DrainCat,IF(K$3=ESALCat,Design!$AH$4:$AQ$27)))) -> 150 | L55: =SUM(IF($A55=SoilCat,IF($B55=DrainCat,IF(L$3=ESALCat,Design!$AH$4:$AQ$27)))) -> 150 | M55: =SUM(IF($A55=SoilCat,IF($B55=DrainCat,IF(M$3=ESALCat,Design!$AH$4:$AQ$27)))) -> 150 | N55: =SUM(IF($A55=SoilCat,IF($B55=DrainCat,IF(N$3=ESALCat,Design!$AH$4:$AQ$27)))) -> 150 | O55: =SUM(IF($A55=SoilCat,IF($B55=DrainCat,IF(O$3=ESALCat,Design!$AH$4:$AQ$27)))) -> 150
A56: 6 | B56: Fair | E56: Unbound Dense Graded Subbase | F56: =SUM(IF($A56=SoilCat,IF($B56=DrainCat,IF(F$3=ESALCat,Design!$BB$4:$BK$27)))) -> 0 | G56: =SUM(IF($A56=SoilCat,IF($B56=DrainCat,IF(G$3=ESALCat,Design!$BB$4:$BK$27)))) -> 0 | H56: =SUM(IF($A56=SoilCat,IF($B56=DrainCat,IF(H$3=ESALCat,Design!$BB$4:$BK$27)))) -> 0 | I56: =SUM(IF($A56=SoilCat,IF($B56=DrainCat,IF(I$3=ESALCat,Design!$BB$4:$BK$27)))) -> 0 | J56: =SUM(IF($A56=SoilCat,IF($B56=DrainCat,IF(J$3=ESALCat,Design!$BB$4:$BK$27)))) -> 250 | K56: =SUM(IF($A56=SoilCat,IF($B56=DrainCat,IF(K$3=ESALCat,Design!$BB$4:$BK$27)))) -> 300 | L56: =SUM(IF($A56=SoilCat,IF($B56=DrainCat,IF(L$3=ESALCat,Design!$BB$4:$BK$27)))) -> 425 | M56: =SUM(IF($A56=SoilCat,IF($B56=DrainCat,IF(M$3=ESALCat,Design!$BB$4:$BK$27)))) -> 550 | N56: =SUM(IF($A56=SoilCat,IF($B56=DrainCat,IF(N$3=ESALCat,Design!$BB$4:$BK$27)))) -> 750 | O56: =SUM(IF($A56=SoilCat,IF($B56=DrainCat,IF(O$3=ESALCat,Design!$BB$4:$BK$27)))) -> 875
A57: 6 | B57: Poor | D57: Poor | E57: Pavers and Bedding | F57: =SUM(IF($A57=SoilCat,IF($B57=DrainCat,IF(F$3=ESALCat,Design!$N$4:$W$27)))) -> 105 | G57: =SUM(IF($A57=SoilCat,IF($B57=DrainCat,IF(G$3=ESALCat,Design!$N$4:$W$27)))) -> 105 | H57: =SUM(IF($A57=SoilCat,IF($B57=DrainCat,IF(H$3=ESALCat,Design!$N$4:$W$27)))) -> 105 | I57: =SUM(IF($A57=SoilCat,IF($B57=DrainCat,IF(I$3=ESALCat,Design!$N$4:$W$27)))) -> 105 | J57: =SUM(IF($A57=SoilCat,IF($B57=DrainCat,IF(J$3=ESALCat,Design!$N$4:$W$27)))) -> 105 | K57: =SUM(IF($A57=SoilCat,IF($B57=DrainCat,IF(K$3=ESALCat,Design!$N$4:$W$27)))) -> 105 | L57: =SUM(IF($A57=SoilCat,IF($B57=DrainCat,IF(L$3=ESALCat,Design!$N$4:$W$27)))) -> 105 | M57: =SUM(IF($A57=SoilCat,IF($B57=DrainCat,IF(M$3=ESALCat,Design!$N$4:$W$27)))) -> 105 | N57: =SUM(IF($A57=SoilCat,IF($B57=DrainCat,IF(N$3=ESALCat,Design!$N$4:$W$27)))) -> 105 | O57: =SUM(IF($A57=SoilCat,IF($B57=DrainCat,IF(O$3=ESALCat,Design!$N$4:$W$27)))) -> 105
A58: 6 | B58: Poor | E58: Unbound Dense Graded Base | F58: =SUM(IF($A58=SoilCat,IF($B58=DrainCat,IF(F$3=ESALCat,Design!$AH$4:$AQ$27)))) -> 100 | G58: =SUM(IF($A58=SoilCat,IF($B58=DrainCat,IF(G$3=ESALCat,Design!$AH$4:$AQ$27)))) -> 125 | H58: =SUM(IF($A58=SoilCat,IF($B58=DrainCat,IF(H$3=ESALCat,Design!$AH$4:$AQ$27)))) -> 200 | I58: =SUM(IF($A58=SoilCat,IF($B58=DrainCat,IF(I$3=ESALCat,Design!$AH$4:$AQ$27)))) -> 100 | J58: =SUM(IF($A58=SoilCat,IF($B58=DrainCat,IF(J$3=ESALCat,Design!$AH$4:$AQ$27)))) -> 100 | K58: =SUM(IF($A58=SoilCat,IF($B58=DrainCat,IF(K$3=ESALCat,Design!$AH$4:$AQ$27)))) -> 150 | L58: =SUM(IF($A58=SoilCat,IF($B58=DrainCat,IF(L$3=ESALCat,Design!$AH$4:$AQ$27)))) -> 150 | M58: =SUM(IF($A58=SoilCat,IF($B58=DrainCat,IF(M$3=ESALCat,Design!$AH$4:$AQ$27)))) -> 150 | N58: =SUM(IF($A58=SoilCat,IF($B58=DrainCat,IF(N$3=ESALCat,Design!$AH$4:$AQ$27)))) -> 150 | O58: =SUM(IF($A58=SoilCat,IF($B58=DrainCat,IF(O$3=ESALCat,Design!$AH$4:$AQ$27)))) -> 150
A59: 6 | B59: Poor | E59: Unbound Dense Graded Subbase | F59: =SUM(IF($A59=SoilCat,IF($B59=DrainCat,IF(F$3=ESALCat,Design!$BB$4:$BK$27)))) -> 0 | G59: =SUM(IF($A59=SoilCat,IF($B59=DrainCat,IF(G$3=ESALCat,Design!$BB$4:$BK$27)))) -> 0 | H59: =SUM(IF($A59=SoilCat,IF($B59=DrainCat,IF(H$3=ESALCat,Design!$BB$4:$BK$27)))) -> 0 | I59: =SUM(IF($A59=SoilCat,IF($B59=DrainCat,IF(I$3=ESALCat,Design!$BB$4:$BK$27)))) -> 250 | J59: =SUM(IF($A59=SoilCat,IF($B59=DrainCat,IF(J$3=ESALCat,Design!$BB$4:$BK$27)))) -> 350 | K59: =SUM(IF($A59=SoilCat,IF($B59=DrainCat,IF(K$3=ESALCat,Design!$BB$4:$BK$27)))) -> 450 | L59: =SUM(IF($A59=SoilCat,IF($B59=DrainCat,IF(L$3=ESALCat,Design!$BB$4:$BK$27)))) -> 575 | M59: =SUM(IF($A59=SoilCat,IF($B59=DrainCat,IF(M$3=ESALCat,Design!$BB$4:$BK$27)))) -> 700 | N59: =SUM(IF($A59=SoilCat,IF($B59=DrainCat,IF(N$3=ESALCat,Design!$BB$4:$BK$27)))) -> 900 | O59: =SUM(IF($A59=SoilCat,IF($B59=DrainCat,IF(O$3=ESALCat,Design!$BB$4:$BK$27)))) -> 1050
A60: 7 | B60: Good | C60: Category 7 | D60: Good | E60: Pavers and Bedding | F60: =SUM(IF($A60=SoilCat,IF($B60=DrainCat,IF(F$3=ESALCat,Design!$N$4:$W$27)))) -> 105 | G60: =SUM(IF($A60=SoilCat,IF($B60=DrainCat,IF(G$3=ESALCat,Design!$N$4:$W$27)))) -> 105 | H60: =SUM(IF($A60=SoilCat,IF($B60=DrainCat,IF(H$3=ESALCat,Design!$N$4:$W$27)))) -> 105 | I60: =SUM(IF($A60=SoilCat,IF($B60=DrainCat,IF(I$3=ESALCat,Design!$N$4:$W$27)))) -> 105 | J60: =SUM(IF($A60=SoilCat,IF($B60=DrainCat,IF(J$3=ESALCat,Design!$N$4:$W$27)))) -> 105 | K60: =SUM(IF($A60=SoilCat,IF($B60=DrainCat,IF(K$3=ESALCat,Design!$N$4:$W$27)))) -> 105 | L60: =SUM(IF($A60=SoilCat,IF($B60=DrainCat,IF(L$3=ESALCat,Design!$N$4:$W$27)))) -> 105 | M60: =SUM(IF($A60=SoilCat,IF($B60=DrainCat,IF(M$3=ESALCat,Design!$N$4:$W$27)))) -> 105 | N60: =SUM(IF($A60=SoilCat,IF($B60=DrainCat,IF(N$3=ESALCat,Design!$N$4:$W$27)))) -> 105 | O60: =SUM(IF($A60=SoilCat,IF($B60=DrainCat,IF(O$3=ESALCat,Design!$N$4:$W$27)))) -> 105
A61: 7 | B61: Good | E61: Unbound Dense Graded Base | F61: =SUM(IF($A61=SoilCat,IF($B61=DrainCat,IF(F$3=ESALCat,Design!$AH$4:$AQ$27)))) -> 100 | G61: =SUM(IF($A61=SoilCat,IF($B61=DrainCat,IF(G$3=ESALCat,Design!$AH$4:$AQ$27)))) -> 100 | H61: =SUM(IF($A61=SoilCat,IF($B61=DrainCat,IF(H$3=ESALCat,Design!$AH$4:$AQ$27)))) -> 125 | I61: =SUM(IF($A61=SoilCat,IF($B61=DrainCat,IF(I$3=ESALCat,Design!$AH$4:$AQ$27)))) -> 175 | J61: =SUM(IF($A61=SoilCat,IF($B61=DrainCat,IF(J$3=ESALCat,Design!$AH$4:$AQ$27)))) -> 100 | K61: =SUM(IF($A61=SoilCat,IF($B61=DrainCat,IF(K$3=ESALCat,Design!$AH$4:$AQ$27)))) -> 150 | L61: =SUM(IF($A61=SoilCat,IF($B61=DrainCat,IF(L$3=ESALCat,Design!$AH$4:$AQ$27)))) -> 150 | M61: =SUM(IF($A61=SoilCat,IF($B61=DrainCat,IF(M$3=ESALCat,Design!$AH$4:$AQ$27)))) -> 150 | N61: =SUM(IF($A61=SoilCat,IF($B61=DrainCat,IF(N$3=ESALCat,Design!$AH$4:$AQ$27)))) -> 150 | O61: =SUM(IF($A61=SoilCat,IF($B61=DrainCat,IF(O$3=ESALCat,Design!$AH$4:$AQ$27)))) -> 150
A62: 7 | B62: Good | E62: Unbound Dense Graded Subbase | F62: =SUM(IF($A62=SoilCat,IF($B62=DrainCat,IF(F$3=ESALCat,Design!$BB$4:$BK$27)))) -> 0 | G62: =SUM(IF($A62=SoilCat,IF($B62=DrainCat,IF(G$3=ESALCat,Design!$BB$4:$BK$27)))) -> 0 | H62: =SUM(IF($A62=SoilCat,IF($B62=DrainCat,IF(H$3=ESALCat,Design!$BB$4:$BK$27)))) -> 0 | I62: =SUM(IF($A62=SoilCat,IF($B62=DrainCat,IF(I$3=ESALCat,Design!$BB$4:$BK$27)))) -> 0 | J62: =SUM(IF($A62=SoilCat,IF($B62=DrainCat,IF(J$3=ESALCat,Design!$BB$4:$BK$27)))) -> 225 | K62: =SUM(IF($A62=SoilCat,IF($B62=DrainCat,IF(K$3=ESALCat,Design!$BB$4:$BK$27)))) -> 275 | L62: =SUM(IF($A62=SoilCat,IF($B62=DrainCat,IF(L$3=ESALCat,Design!$BB$4:$BK$27)))) -> 400 | M62: =SUM(IF($A62=SoilCat,IF($B62=DrainCat,IF(M$3=ESALCat,Design!$BB$4:$BK$27)))) -> 525 | N62: =SUM(IF($A62=SoilCat,IF($B62=DrainCat,IF(N$3=ESALCat,Design!$BB$4:$BK$27)))) -> 700 | O62: =SUM(IF($A62=SoilCat,IF($B62=DrainCat,IF(O$3=ESALCat,Design!$BB$4:$BK$27)))) -> 850
A63: 7 | B63: Fair | D63: Fair | E63: Pavers and Bedding | F63: =SUM(IF($A63=SoilCat,IF($B63=DrainCat,IF(F$3=ESALCat,Design!$N$4:$W$27)))) -> 105 | G63: =SUM(IF($A63=SoilCat,IF($B63=DrainCat,IF(G$3=ESALCat,Design!$N$4:$W$27)))) -> 105 | H63: =SUM(IF($A63=SoilCat,IF($B63=DrainCat,IF(H$3=ESALCat,Design!$N$4:$W$27)))) -> 105 | I63: =SUM(IF($A63=SoilCat,IF($B63=DrainCat,IF(I$3=ESALCat,Design!$N$4:$W$27)))) -> 105 | J63: =SUM(IF($A63=SoilCat,IF($B63=DrainCat,IF(J$3=ESALCat,Design!$N$4:$W$27)))) -> 105 | K63: =SUM(IF($A63=SoilCat,IF($B63=DrainCat,IF(K$3=ESALCat,Design!$N$4:$W$27)))) -> 105 | L63: =SUM(IF($A63=SoilCat,IF($B63=DrainCat,IF(L$3=ESALCat,Design!$N$4:$W$27)))) -> 105 | M63: =SUM(IF($A63=SoilCat,IF($B63=DrainCat,IF(M$3=ESALCat,Design!$N$4:$W$27)))) -> 105 | N63: =SUM(IF($A63=SoilCat,IF($B63=DrainCat,IF(N$3=ESALCat,Design!$N$4:$W$27)))) -> 105 | O63: =SUM(IF($A63=SoilCat,IF($B63=DrainCat,IF(O$3=ESALCat,Design!$N$4:$W$27)))) -> 105
A64: 7 | B64: Fair | E64: Unbound Dense Graded Base | F64: =SUM(IF($A64=SoilCat,IF($B64=DrainCat,IF(F$3=ESALCat,Design!$AH$4:$AQ$27)))) -> 100 | G64: =SUM(IF($A64=SoilCat,IF($B64=DrainCat,IF(G$3=ESALCat,Design!$AH$4:$AQ$27)))) -> 100 | H64: =SUM(IF($A64=SoilCat,IF($B64=DrainCat,IF(H$3=ESALCat,Design!$AH$4:$AQ$27)))) -> 175 | I64: =SUM(IF($A64=SoilCat,IF($B64=DrainCat,IF(I$3=ESALCat,Design!$AH$4:$AQ$27)))) -> 100 | J64: =SUM(IF($A64=SoilCat,IF($B64=DrainCat,IF(J$3=ESALCat,Design!$AH$4:$AQ$27)))) -> 100 | K64: =SUM(IF($A64=SoilCat,IF($B64=DrainCat,IF(K$3=ESALCat,Design!$AH$4:$AQ$27)))) -> 150 | L64: =SUM(IF($A64=SoilCat,IF($B64=DrainCat,IF(L$3=ESALCat,Design!$AH$4:$AQ$27)))) -> 150 | M64: =SUM(IF($A64=SoilCat,IF($B64=DrainCat,IF(M$3=ESALCat,Design!$AH$4:$AQ$27)))) -> 150 | N64: =SUM(IF($A64=SoilCat,IF($B64=DrainCat,IF(N$3=ESALCat,Design!$AH$4:$AQ$27)))) -> 150 | O64: =SUM(IF($A64=SoilCat,IF($B64=DrainCat,IF(O$3=ESALCat,Design!$AH$4:$AQ$27)))) -> 150
A65: 7 | B65: Fair | E65: Unbound Dense Graded Subbase | F65: =SUM(IF($A65=SoilCat,IF($B65=DrainCat,IF(F$3=ESALCat,Design!$BB$4:$BK$27)))) -> 0 | G65: =SUM(IF($A65=SoilCat,IF($B65=DrainCat,IF(G$3=ESALCat,Design!$BB$4:$BK$27)))) -> 0 | H65: =SUM(IF($A65=SoilCat,IF($B65=DrainCat,IF(H$3=ESALCat,Design!$BB$4:$BK$27)))) -> 0 | I65: =SUM(IF($A65=SoilCat,IF($B65=DrainCat,IF(I$3=ESALCat,Design!$BB$4:$BK$27)))) -> 225 | J65: =SUM(IF($A65=SoilCat,IF($B65=DrainCat,IF(J$3=ESALCat,Design!$BB$4:$BK$27)))) -> 325 | K65: =SUM(IF($A65=SoilCat,IF($B65=DrainCat,IF(K$3=ESALCat,Design!$BB$4:$BK$27)))) -> 400 | L65: =SUM(IF($A65=SoilCat,IF($B65=DrainCat,IF(L$3=ESALCat,Design!$BB$4:$BK$27)))) -> 525 | M65: =SUM(IF($A65=SoilCat,IF($B65=DrainCat,IF(M$3=ESALCat,Design!$BB$4:$BK$27)))) -> 650 | N65: =SUM(IF($A65=SoilCat,IF($B65=DrainCat,IF(N$3=ESALCat,Design!$BB$4:$BK$27)))) -> 850 | O65: =SUM(IF($A65=SoilCat,IF($B65=DrainCat,IF(O$3=ESALCat,Design!$BB$4:$BK$27)))) -> 1000
A66: 7 | B66: Poor | D66: Poor | E66: Pavers and Bedding | F66: =SUM(IF($A66=SoilCat,IF($B66=DrainCat,IF(F$3=ESALCat,Design!$N$4:$W$27)))) -> 105 | G66: =SUM(IF($A66=SoilCat,IF($B66=DrainCat,IF(G$3=ESALCat,Design!$N$4:$W$27)))) -> 105 | H66: =SUM(IF($A66=SoilCat,IF($B66=DrainCat,IF(H$3=ESALCat,Design!$N$4:$W$27)))) -> 105 | I66: =SUM(IF($A66=SoilCat,IF($B66=DrainCat,IF(I$3=ESALCat,Design!$N$4:$W$27)))) -> 105 | J66: =SUM(IF($A66=SoilCat,IF($B66=DrainCat,IF(J$3=ESALCat,Design!$N$4:$W$27)))) -> 105 | K66: =SUM(IF($A66=SoilCat,IF($B66=DrainCat,IF(K$3=ESALCat,Design!$N$4:$W$27)))) -> 105 | L66: =SUM(IF($A66=SoilCat,IF($B66=DrainCat,IF(L$3=ESALCat,Design!$N$4:$W$27)))) -> 105 | M66: =SUM(IF($A66=SoilCat,IF($B66=DrainCat,IF(M$3=ESALCat,Design!$N$4:$W$27)))) -> 105 | N66: =SUM(IF($A66=SoilCat,IF($B66=DrainCat,IF(N$3=ESALCat,Design!$N$4:$W$27)))) -> 105 | O66: =SUM(IF($A66=SoilCat,IF($B66=DrainCat,IF(O$3=ESALCat,Design!$N$4:$W$27)))) -> 105
A67: 7 | B67: Poor | E67: Unbound Dense Graded Base | F67: =SUM(IF($A67=SoilCat,IF($B67=DrainCat,IF(F$3=ESALCat,Design!$AH$4:$AQ$27)))) -> 100 | G67: =SUM(IF($A67=SoilCat,IF($B67=DrainCat,IF(G$3=ESALCat,Design!$AH$4:$AQ$27)))) -> 150 | H67: =SUM(IF($A67=SoilCat,IF($B67=DrainCat,IF(H$3=ESALCat,Design!$AH$4:$AQ$27)))) -> 100 | I67: =SUM(IF($A67=SoilCat,IF($B67=DrainCat,IF(I$3=ESALCat,Design!$AH$4:$AQ$27)))) -> 100 | J67: =SUM(IF($A67=SoilCat,IF($B67=DrainCat,IF(J$3=ESALCat,Design!$AH$4:$AQ$27)))) -> 100 | K67: =SUM(IF($A67=SoilCat,IF($B67=DrainCat,IF(K$3=ESALCat,Design!$AH$4:$AQ$27)))) -> 150 | L67: =SUM(IF($A67=SoilCat,IF($B67=DrainCat,IF(L$3=ESALCat,Design!$AH$4:$AQ$27)))) -> 150 | M67: =SUM(IF($A67=SoilCat,IF($B67=DrainCat,IF(M$3=ESALCat,Design!$AH$4:$AQ$27)))) -> 150 | N67: =SUM(IF($A67=SoilCat,IF($B67=DrainCat,IF(N$3=ESALCat,Design!$AH$4:$AQ$27)))) -> 150 | O67: =SUM(IF($A67=SoilCat,IF($B67=DrainCat,IF(O$3=ESALCat,Design!$AH$4:$AQ$27)))) -> 150
A68: 7 | B68: Poor | E68: Unbound Dense Graded Subbase | F68: =SUM(IF($A68=SoilCat,IF($B68=DrainCat,IF(F$3=ESALCat,Design!$BB$4:$BK$27)))) -> 0 | G68: =SUM(IF($A68=SoilCat,IF($B68=DrainCat,IF(G$3=ESALCat,Design!$BB$4:$BK$27)))) -> 0 | H68: =SUM(IF($A68=SoilCat,IF($B68=DrainCat,IF(H$3=ESALCat,Design!$BB$4:$BK$27)))) -> 200 | I68: =SUM(IF($A68=SoilCat,IF($B68=DrainCat,IF(I$3=ESALCat,Design!$BB$4:$BK$27)))) -> 325 | J68: =SUM(IF($A68=SoilCat,IF($B68=DrainCat,IF(J$3=ESALCat,Design!$BB$4:$BK$27)))) -> 425 | K68: =SUM(IF($A68=SoilCat,IF($B68=DrainCat,IF(K$3=ESALCat,Design!$BB$4:$BK$27)))) -> 525 | L68: =SUM(IF($A68=SoilCat,IF($B68=DrainCat,IF(L$3=ESALCat,Design!$BB$4:$BK$27)))) -> 650 | M68: =SUM(IF($A68=SoilCat,IF($B68=DrainCat,IF(M$3=ESALCat,Design!$BB$4:$BK$27)))) -> 800 | N68: =SUM(IF($A68=SoilCat,IF($B68=DrainCat,IF(N$3=ESALCat,Design!$BB$4:$BK$27)))) -> 1000 | O68: =SUM(IF($A68=SoilCat,IF($B68=DrainCat,IF(O$3=ESALCat,Design!$BB$4:$BK$27)))) -> 1150
A69: 8 | B69: Good | C69: Category 8 | D69: Good | E69: Pavers and Bedding | F69: =SUM(IF($A69=SoilCat,IF($B69=DrainCat,IF(F$3=ESALCat,Design!$N$4:$W$27)))) -> 105 | G69: =SUM(IF($A69=SoilCat,IF($B69=DrainCat,IF(G$3=ESALCat,Design!$N$4:$W$27)))) -> 105 | H69: =SUM(IF($A69=SoilCat,IF($B69=DrainCat,IF(H$3=ESALCat,Design!$N$4:$W$27)))) -> 105 | I69: =SUM(IF($A69=SoilCat,IF($B69=DrainCat,IF(I$3=ESALCat,Design!$N$4:$W$27)))) -> 105 | J69: =SUM(IF($A69=SoilCat,IF($B69=DrainCat,IF(J$3=ESALCat,Design!$N$4:$W$27)))) -> 105 | K69: =SUM(IF($A69=SoilCat,IF($B69=DrainCat,IF(K$3=ESALCat,Design!$N$4:$W$27)))) -> 105 | L69: =SUM(IF($A69=SoilCat,IF($B69=DrainCat,IF(L$3=ESALCat,Design!$N$4:$W$27)))) -> 105 | M69: =SUM(IF($A69=SoilCat,IF($B69=DrainCat,IF(M$3=ESALCat,Design!$N$4:$W$27)))) -> 105 | N69: =SUM(IF($A69=SoilCat,IF($B69=DrainCat,IF(N$3=ESALCat,Design!$N$4:$W$27)))) -> 105 | O69: =SUM(IF($A69=SoilCat,IF($B69=DrainCat,IF(O$3=ESALCat,Design!$N$4:$W$27)))) -> 105
A70: 8 | B70: Good | E70: Unbound Dense Graded Base | F70: =SUM(IF($A70=SoilCat,IF($B70=DrainCat,IF(F$3=ESALCat,Design!$AH$4:$AQ$27)))) -> 100 | G70: =SUM(IF($A70=SoilCat,IF($B70=DrainCat,IF(G$3=ESALCat,Design!$AH$4:$AQ$27)))) -> 100 | H70: =SUM(IF($A70=SoilCat,IF($B70=DrainCat,IF(H$3=ESALCat,Design!$AH$4:$AQ$27)))) -> 150 | I70: =SUM(IF($A70=SoilCat,IF($B70=DrainCat,IF(I$3=ESALCat,Design!$AH$4:$AQ$27)))) -> 200 | J70: =SUM(IF($A70=SoilCat,IF($B70=DrainCat,IF(J$3=ESALCat,Design!$AH$4:$AQ$27)))) -> 100 | K70: =SUM(IF($A70=SoilCat,IF($B70=DrainCat,IF(K$3=ESALCat,Design!$AH$4:$AQ$27)))) -> 150 | L70: =SUM(IF($A70=SoilCat,IF($B70=DrainCat,IF(L$3=ESALCat,Design!$AH$4:$AQ$27)))) -> 150 | M70: =SUM(IF($A70=SoilCat,IF($B70=DrainCat,IF(M$3=ESALCat,Design!$AH$4:$AQ$27)))) -> 150 | N70: =SUM(IF($A70=SoilCat,IF($B70=DrainCat,IF(N$3=ESALCat,Design!$AH$4:$AQ$27)))) -> 150 | O70: =SUM(IF($A70=SoilCat,IF($B70=DrainCat,IF(O$3=ESALCat,Design!$AH$4:$AQ$27)))) -> 150
A71: 8 | B71: Good | E71: Unbound Dense Graded Subbase | F71: =SUM(IF($A71=SoilCat,IF($B71=DrainCat,IF(F$3=ESALCat,Design!$BB$4:$BK$27)))) -> 0 | G71: =SUM(IF($A71=SoilCat,IF($B71=DrainCat,IF(G$3=ESALCat,Design!$BB$4:$BK$27)))) -> 0 | H71: =SUM(IF($A71=SoilCat,IF($B71=DrainCat,IF(H$3=ESALCat,Design!$BB$4:$BK$27)))) -> 0 | I71: =SUM(IF($A71=SoilCat,IF($B71=DrainCat,IF(I$3=ESALCat,Design!$BB$4:$BK$27)))) -> 0 | J71: =SUM(IF($A71=SoilCat,IF($B71=DrainCat,IF(J$3=ESALCat,Design!$BB$4:$BK$27)))) -> 250 | K71: =SUM(IF($A71=SoilCat,IF($B71=DrainCat,IF(K$3=ESALCat,Design!$BB$4:$BK$27)))) -> 300 | L71: =SUM(IF($A71=SoilCat,IF($B71=DrainCat,IF(L$3=ESALCat,Design!$BB$4:$BK$27)))) -> 425 | M71: =SUM(IF($A71=SoilCat,IF($B71=DrainCat,IF(M$3=ESALCat,Design!$BB$4:$BK$27)))) -> 550 | N71: =SUM(IF($A71=SoilCat,IF($B71=DrainCat,IF(N$3=ESALCat,Design!$BB$4:$BK$27)))) -> 750 | O71: =SUM(IF($A71=SoilCat,IF($B71=DrainCat,IF(O$3=ESALCat,Design!$BB$4:$BK$27)))) -> 875
A72: 8 | B72: Fair | D72: Fair | E72: Pavers and Bedding | F72: =SUM(IF($A72=SoilCat,IF($B72=DrainCat,IF(F$3=ESALCat,Design!$N$4:$W$27)))) -> 105 | G72: =SUM(IF($A72=SoilCat,IF($B72=DrainCat,IF(G$3=ESALCat,Design!$N$4:$W$27)))) -> 105 | H72: =SUM(IF($A72=SoilCat,IF($B72=DrainCat,IF(H$3=ESALCat,Design!$N$4:$W$27)))) -> 105 | I72: =SUM(IF($A72=SoilCat,IF($B72=DrainCat,IF(I$3=ESALCat,Design!$N$4:$W$27)))) -> 105 | J72: =SUM(IF($A72=SoilCat,IF($B72=DrainCat,IF(J$3=ESALCat,Design!$N$4:$W$27)))) -> 105 | K72: =SUM(IF($A72=SoilCat,IF($B72=DrainCat,IF(K$3=ESALCat,Design!$N$4:$W$27)))) -> 105 | L72: =SUM(IF($A72=SoilCat,IF($B72=DrainCat,IF(L$3=ESALCat,Design!$N$4:$W$27)))) -> 105 | M72: =SUM(IF($A72=SoilCat,IF($B72=DrainCat,IF(M$3=ESALCat,Design!$N$4:$W$27)))) -> 105 | N72: =SUM(IF($A72=SoilCat,IF($B72=DrainCat,IF(N$3=ESALCat,Design!$N$4:$W$27)))) -> 105 | O72: =SUM(IF($A72=SoilCat,IF($B72=DrainCat,IF(O$3=ESALCat,Design!$N$4:$W$27)))) -> 105
A73: 8 | B73: Fair | E73: Unbound Dense Graded Base | F73: =SUM(IF($A73=SoilCat,IF($B73=DrainCat,IF(F$3=ESALCat,Design!$AH$4:$AQ$27)))) -> 100 | G73: =SUM(IF($A73=SoilCat,IF($B73=DrainCat,IF(G$3=ESALCat,Design!$AH$4:$AQ$27)))) -> 100 | H73: =SUM(IF($A73=SoilCat,IF($B73=DrainCat,IF(H$3=ESALCat,Design!$AH$4:$AQ$27)))) -> 175 | I73: =SUM(IF($A73=SoilCat,IF($B73=DrainCat,IF(I$3=ESALCat,Design!$AH$4:$AQ$27)))) -> 100 | J73: =SUM(IF($A73=SoilCat,IF($B73=DrainCat,IF(J$3=ESALCat,Design!$AH$4:$AQ$27)))) -> 100 | K73: =SUM(IF($A73=SoilCat,IF($B73=DrainCat,IF(K$3=ESALCat,Design!$AH$4:$AQ$27)))) -> 150 | L73: =SUM(IF($A73=SoilCat,IF($B73=DrainCat,IF(L$3=ESALCat,Design!$AH$4:$AQ$27)))) -> 150 | M73: =SUM(IF($A73=SoilCat,IF($B73=DrainCat,IF(M$3=ESALCat,Design!$AH$4:$AQ$27)))) -> 150 | N73: =SUM(IF($A73=SoilCat,IF($B73=DrainCat,IF(N$3=ESALCat,Design!$AH$4:$AQ$27)))) -> 150 | O73: =SUM(IF($A73=SoilCat,IF($B73=DrainCat,IF(O$3=ESALCat,Design!$AH$4:$AQ$27)))) -> 150
A74: 8 | B74: Fair | E74: Unbound Dense Graded Subbase | F74: =SUM(IF($A74=SoilCat,IF($B74=DrainCat,IF(F$3=ESALCat,Design!$BB$4:$BK$27)))) -> 0 | G74: =SUM(IF($A74=SoilCat,IF($B74=DrainCat,IF(G$3=ESALCat,Design!$BB$4:$BK$27)))) -> 0 | H74: =SUM(IF($A74=SoilCat,IF($B74=DrainCat,IF(H$3=ESALCat,Design!$BB$4:$BK$27)))) -> 0 | I74: =SUM(IF($A74=SoilCat,IF($B74=DrainCat,IF(I$3=ESALCat,Design!$BB$4:$BK$27)))) -> 225 | J74: =SUM(IF($A74=SoilCat,IF($B74=DrainCat,IF(J$3=ESALCat,Design!$BB$4:$BK$27)))) -> 325 | K74: =SUM(IF($A74=SoilCat,IF($B74=DrainCat,IF(K$3=ESALCat,Design!$BB$4:$BK$27)))) -> 400 | L74: =SUM(IF($A74=SoilCat,IF($B74=DrainCat,IF(L$3=ESALCat,Design!$BB$4:$BK$27)))) -> 525 | M74: =SUM(IF($A74=SoilCat,IF($B74=DrainCat,IF(M$3=ESALCat,Design!$BB$4:$BK$27)))) -> 650 | N74: =SUM(IF($A74=SoilCat,IF($B74=DrainCat,IF(N$3=ESALCat,Design!$BB$4:$BK$27)))) -> 850 | O74: =SUM(IF($A74=SoilCat,IF($B74=DrainCat,IF(O$3=ESALCat,Design!$BB$4:$BK$27)))) -> 1000
A75: 8 | B75: Poor | D75: Poor | E75: Pavers and Bedding | F75: =SUM(IF($A75=SoilCat,IF($B75=DrainCat,IF(F$3=ESALCat,Design!$N$4:$W$27)))) -> 105 | G75: =SUM(IF($A75=SoilCat,IF($B75=DrainCat,IF(G$3=ESALCat,Design!$N$4:$W$27)))) -> 105 | H75: =SUM(IF($A75=SoilCat,IF($B75=DrainCat,IF(H$3=ESALCat,Design!$N$4:$W$27)))) -> 105 | I75: =SUM(IF($A75=SoilCat,IF($B75=DrainCat,IF(I$3=ESALCat,Design!$N$4:$W$27)))) -> 105 | J75: =SUM(IF($A75=SoilCat,IF($B75=DrainCat,IF(J$3=ESALCat,Design!$N$4:$W$27)))) -> 105 | K75: =SUM(IF($A75=SoilCat,IF($B75=DrainCat,IF(K$3=ESALCat,Design!$N$4:$W$27)))) -> 105 | L75: =SUM(IF($A75=SoilCat,IF($B75=DrainCat,IF(L$3=ESALCat,Design!$N$4:$W$27)))) -> 105 | M75: =SUM(IF($A75=SoilCat,IF($B75=DrainCat,IF(M$3=ESALCat,Design!$N$4:$W$27)))) -> 105 | N75: =SUM(IF($A75=SoilCat,IF($B75=DrainCat,IF(N$3=ESALCat,Design!$N$4:$W$27)))) -> 105 | O75: =SUM(IF($A75=SoilCat,IF($B75=DrainCat,IF(O$3=ESALCat,Design!$N$4:$W$27)))) -> 105
A76: 8 | B76: Poor | E76: Unbound Dense Graded Base | F76: =SUM(IF($A76=SoilCat,IF($B76=DrainCat,IF(F$3=ESALCat,Design!$AH$4:$AQ$27)))) -> 100 | G76: =SUM(IF($A76=SoilCat,IF($B76=DrainCat,IF(G$3=ESALCat,Design!$AH$4:$AQ$27)))) -> 150 | H76: =SUM(IF($A76=SoilCat,IF($B76=DrainCat,IF(H$3=ESALCat,Design!$AH$4:$AQ$27)))) -> 100 | I76: =SUM(IF($A76=SoilCat,IF($B76=DrainCat,IF(I$3=ESALCat,Design!$AH$4:$AQ$27)))) -> 100 | J76: =SUM(IF($A76=SoilCat,IF($B76=DrainCat,IF(J$3=ESALCat,Design!$AH$4:$AQ$27)))) -> 100 | K76: =SUM(IF($A76=SoilCat,IF($B76=DrainCat,IF(K$3=ESALCat,Design!$AH$4:$AQ$27)))) -> 150 | L76: =SUM(IF($A76=SoilCat,IF($B76=DrainCat,IF(L$3=ESALCat,Design!$AH$4:$AQ$27)))) -> 150 | M76: =SUM(IF($A76=SoilCat,IF($B76=DrainCat,IF(M$3=ESALCat,Design!$AH$4:$AQ$27)))) -> 150 | N76: =SUM(IF($A76=SoilCat,IF($B76=DrainCat,IF(N$3=ESALCat,Design!$AH$4:$AQ$27)))) -> 150 | O76: =SUM(IF($A76=SoilCat,IF($B76=DrainCat,IF(O$3=ESALCat,Design!$AH$4:$AQ$27)))) -> 150
A77: 8 | B77: Poor | E77: Unbound Dense Graded Subbase | F77: =SUM(IF($A77=SoilCat,IF($B77=DrainCat,IF(F$3=ESALCat,Design!$BB$4:$BK$27)))) -> 0 | G77: =SUM(IF($A77=SoilCat,IF($B77=DrainCat,IF(G$3=ESALCat,Design!$BB$4:$BK$27)))) -> 0 | H77: =SUM(IF($A77=SoilCat,IF($B77=DrainCat,IF(H$3=ESALCat,Design!$BB$4:$BK$27)))) -> 200 | I77: =SUM(IF($A77=SoilCat,IF($B77=DrainCat,IF(I$3=ESALCat,Design!$BB$4:$BK$27)))) -> 325 | J77: =SUM(IF($A77=SoilCat,IF($B77=DrainCat,IF(J$3=ESALCat,Design!$BB$4:$BK$27)))) -> 425 | K77: =SUM(IF($A77=SoilCat,IF($B77=DrainCat,IF(K$3=ESALCat,Design!$BB$4:$BK$27)))) -> 525 | L77: =SUM(IF($A77=SoilCat,IF($B77=DrainCat,IF(L$3=ESALCat,Design!$BB$4:$BK$27)))) -> 650 | M77: =SUM(IF($A77=SoilCat,IF($B77=DrainCat,IF(M$3=ESALCat,Design!$BB$4:$BK$27)))) -> 800 | N77: =SUM(IF($A77=SoilCat,IF($B77=DrainCat,IF(N$3=ESALCat,Design!$BB$4:$BK$27)))) -> 1000 | O77: =SUM(IF($A77=SoilCat,IF($B77=DrainCat,IF(O$3=ESALCat,Design!$BB$4:$BK$27)))) -> 1150

Sheet ATB
C1: ASPHALT TREATED BASE STRUCTURE THICKNESSES (mm)
D3: Drainage | E3: ESALs | F3: 10000 | G3: 20000 | H3: 50000 | I3: 100000 | J3: 200000 | K3: 500000 | L3: 1000000 | M3: 2000000 | N3: 5000000 | O3: 10000000
E4: TI | F4: =9*(F3/1000000)^0.119 -> 5.202864427 | G4: =9*(G3/1000000)^0.119 -> 5.650216368 | H4: 6.301151767 | I4: 6.842936492 | J4: 7.431304875 | K4: 8.287431275 | L4: 9 | M4: 9.773836707 | N4: 10.89983541 | O4: 11.83702349
E5: Layer Type
A6: 1 | B6: Good | C6: Category 1 | D6: Good | E6: Pavers and Bedding | F6: =SUM(IF($A6=SoilCat,IF($B6=DrainCat,IF(F$3=ESALCat,Design!$N$34:$W$57)))) -> 105 | G6: =SUM(IF($A6=SoilCat,IF($B6=DrainCat,IF(G$3=ESALCat,Design!$N$34:$W$57)))) -> 105 | H6: =SUM(IF($A6=SoilCat,IF($B6=DrainCat,IF(H$3=ESALCat,Design!$N$34:$W$57)))) -> 105 | I6: =SUM(IF($A6=SoilCat,IF($B6=DrainCat,IF(I$3=ESALCat,Design!$N$34:$W$57)))) -> 105 | J6: =SUM(IF($A6=SoilCat,IF($B6=DrainCat,IF(J$3=ESALCat,Design!$N$34:$W$57)))) -> 105 | K6: =SUM(IF($A6=SoilCat,IF($B6=DrainCat,IF(K$3=ESALCat,Design!$N$34:$W$57)))) -> 105 | L6: =SUM(IF($A6=SoilCat,IF($B6=DrainCat,IF(L$3=ESALCat,Design!$N$34:$W$57)))) -> 105 | M6: =SUM(IF($A6=SoilCat,IF($B6=DrainCat,IF(M$3=ESALCat,Design!$N$34:$W$57)))) -> 105 | N6: =SUM(IF($A6=SoilCat,IF($B6=DrainCat,IF(N$3=ESALCat,Design!$N$34:$W$57)))) -> 105 | O6: =SUM(IF($A6=SoilCat,IF($B6=DrainCat,IF(O$3=ESALCat,Design!$N$34:$W$57)))) -> 105
A7: 1 | B7: Good | E7: Asphalt Treated Base | F7: =SUM(IF($A7=SoilCat,IF($B7=DrainCat,IF(F$3=ESALCat,Design!$AH$34:$AQ$57)))) -> 100 | G7: =SUM(IF($A7=SoilCat,IF($B7=DrainCat,IF(G$3=ESALCat,Design!$AH$34:$AQ$57)))) -> 100 | H7: =SUM(IF($A7=SoilCat,IF($B7=DrainCat,IF(H$3=ESALCat,Design!$AH$34:$AQ$57)))) -> 100 | I7: =SUM(IF($A7=SoilCat,IF($B7=DrainCat,IF(I$3=ESALCat,Design!$AH$34:$AQ$57)))) -> 100 | J7: =SUM(IF($A7=SoilCat,IF($B7=DrainCat,IF(J$3=ESALCat,Design!$AH$34:$AQ$57)))) -> 100 | K7: =SUM(IF($A7=SoilCat,IF($B7=DrainCat,IF(K$3=ESALCat,Design!$AH$34:$AQ$57)))) -> 100 | L7: =SUM(IF($A7=SoilCat,IF($B7=DrainCat,IF(L$3=ESALCat,Design!$AH$34:$AQ$57)))) -> 100 | M7: =SUM(IF($A7=SoilCat,IF($B7=DrainCat,IF(M$3=ESALCat,Design!$AH$34:$AQ$57)))) -> 100 | N7: =SUM(IF($A7=SoilCat,IF($B7=DrainCat,IF(N$3=ESALCat,Design!$AH$34:$AQ$57)))) -> 100 | O7: =SUM(IF($A7=SoilCat,IF($B7=DrainCat,IF(O$3=ESALCat,Design!$AH$34:$AQ$57)))) -> 100
A8: 1 | B8: Good | E8: Unbound Dense Graded Base | F8: =SUM(IF($A8=SoilCat,IF($B8=DrainCat,IF(F$3=ESALCat,Design!$BB$34:$BK$57)))) -> 100 | G8: =SUM(IF($A8=SoilCat,IF($B8=DrainCat,IF(G$3=ESALCat,Design!$BB$34:$BK$57)))) -> 100 | H8: =SUM(IF($A8=SoilCat,IF($B8=DrainCat,IF(H$3=ESALCat,Design!$BB$34:$BK$57)))) -> 100 | I8: =SUM(IF($A8=SoilCat,IF($B8=DrainCat,IF(I$3=ESALCat,Design!$BB$34:$BK$57)))) -> 100 | J8: =SUM(IF($A8=SoilCat,IF($B8=DrainCat,IF(J$3=ESALCat,Design!$BB$34:$BK$57)))) -> 100 | K8: =SUM(IF($A8=SoilCat,IF($B8=DrainCat,IF(K$3=ESALCat,Design!$BB$34:$BK$57)))) -> 150 | L8: =SUM(IF($A8=SoilCat,IF($B8=DrainCat,IF(L$3=ESALCat,Design!$BB$34:$BK$57)))) -> 150 | M8: =SUM(IF($A8=SoilCat,IF($B8=DrainCat,IF(M$3=ESALCat,Design!$BB$34:$BK$57)))) -> 150 | N8: =SUM(IF($A8=SoilCat,IF($B8=DrainCat,IF(N$3=ESALCat,Design!$BB$34:$BK$57)))) -> 150 | O8: =SUM(IF($A8=SoilCat,IF($B8=DrainCat,IF(O$3=ESALCat,Design!$BB$34:$BK$57)))) -> 150
A9: 1 | B9: Good | E9: Unbound Dense Graded Subbase | F9: =SUM(IF($A9=SoilCat,IF($B9=DrainCat,IF(F$3=ESALCat,Design!$BV$34:$CE$57)))) -> 0 | G9: =SUM(IF($A9=SoilCat,IF($B9=DrainCat,IF(G$3=ESALCat,Design!$BV$34:$CE$57)))) -> 0 | H9: =SUM(IF($A9=SoilCat,IF($B9=DrainCat,IF(H$3=ESALCat,Design!$BV$34:$CE$57)))) -> 0 | I9: =SUM(IF($A9=SoilCat,IF($B9=DrainCat,IF(I$3=ESALCat,Design!$BV$34:$CE$57)))) -> 0 | J9: =SUM(IF($A9=SoilCat,IF($B9=DrainCat,IF(J$3=ESALCat,Design!$BV$34:$CE$57)))) -> 0 | K9: =SUM(IF($A9=SoilCat,IF($B9=DrainCat,IF(K$3=ESALCat,Design!$BV$34:$CE$57)))) -> 0 | L9: =SUM(IF($A9=SoilCat,IF($B9=DrainCat,IF(L$3=ESALCat,Design!$BV$34:$CE$57)))) -> 0 | M9: =SUM(IF($A9=SoilCat,IF($B9=DrainCat,IF(M$3=ESALCat,Design!$BV$34:$CE$57)))) -> 0 | N9: =SUM(IF($A9=SoilCat,IF($B9=DrainCat,IF(N$3=ESALCat,Design!$BV$34:$CE$57)))) -> 0 | O9: =SUM(IF($A9=SoilCat,IF($B9=DrainCat,IF(O$3=ESALCat,Design!$BV$34:$CE$57)))) -> 0
A10: 1 | B10: Fair | D10: Fair | E10: Pavers and Bedding | F10: =SUM(IF($A10=SoilCat,IF($B10=DrainCat,IF(F$3=ESALCat,Design!$N$34:$W$57)))) -> 105 | G10: =SUM(IF($A10=SoilCat,IF($B10=DrainCat,IF(G$3=ESALCat,Design!$N$34:$W$57)))) -> 105 | H10: =SUM(IF($A10=SoilCat,IF($B10=DrainCat,IF(H$3=ESALCat,Design!$N$34:$W$57)))) -> 105 | I10: =SUM(IF($A10=SoilCat,IF($B10=DrainCat,IF(I$3=ESALCat,Design!$N$34:$W$57)))) -> 105 | J10: =SUM(IF($A10=SoilCat,IF($B10=DrainCat,IF(J$3=ESALCat,Design!$N$34:$W$57)))) -> 105 | K10: =SUM(IF($A10=SoilCat,IF($B10=DrainCat,IF(K$3=ESALCat,Design!$N$34:$W$57)))) -> 105 | L10: =SUM(IF($A10=SoilCat,IF($B10=DrainCat,IF(L$3=ESALCat,Design!$N$34:$W$57)))) -> 105 | M10: =SUM(IF($A10=SoilCat,IF($B10=DrainCat,IF(M$3=ESALCat,Design!$N$34:$W$57)))) -> 105 | N10: =SUM(IF($A10=SoilCat,IF($B10=DrainCat,IF(N$3=ESALCat,Design!$N$34:$W$57)))) -> 105 | O10: =SUM(IF($A10=SoilCat,IF($B10=DrainCat,IF(O$3=ESALCat,Design!$N$34:$W$57)))) -> 105
A11: 1 | B11: Fair | E11: Asphalt Treated Base | F11: =SUM(IF($A11=SoilCat,IF($B11=DrainCat,IF(F$3=ESALCat,Design!$AH$34:$AQ$57)))) -> 100 | G11: =SUM(IF($A11=SoilCat,IF($B11=DrainCat,IF(G$3=ESALCat,Design!$AH$34:$AQ$57)))) -> 100 | H11: =SUM(IF($A11=SoilCat,IF($B11=DrainCat,IF(H$3=ESALCat,Design!$AH$34:$AQ$57)))) -> 100 | I11: =SUM(IF($A11=SoilCat,IF($B11=DrainCat,IF(I$3=ESALCat,Design!$AH$34:$AQ$57)))) -> 100 | J11: =SUM(IF($A11=SoilCat,IF($B11=DrainCat,IF(J$3=ESALCat,Design!$AH$34:$AQ$57)))) -> 100 | K11: =SUM(IF($A11=SoilCat,IF($B11=DrainCat,IF(K$3=ESALCat,Design!$AH$34:$AQ$57)))) -> 100 | L11: =SUM(IF($A11=SoilCat,IF($B11=DrainCat,IF(L$3=ESALCat,Design!$AH$34:$AQ$57)))) -> 100 | M11: =SUM(IF($A11=SoilCat,IF($B11=DrainCat,IF(M$3=ESALCat,Design!$AH$34:$AQ$57)))) -> 100 | N11: =SUM(IF($A11=SoilCat,IF($B11=DrainCat,IF(N$3=ESALCat,Design!$AH$34:$AQ$57)))) -> 100 | O11: =SUM(IF($A11=SoilCat,IF($B11=DrainCat,IF(O$3=ESALCat,Design!$AH$34:$AQ$57)))) -> 100
A12: 1 | B12: Fair | E12: Unbound Dense Graded Base | F12: =SUM(IF($A12=SoilCat,IF($B12=DrainCat,IF(F$3=ESALCat,Design!$BB$34:$BK$57)))) -> 100 | G12: =SUM(IF($A12=SoilCat,IF($B12=DrainCat,IF(G$3=ESALCat,Design!$BB$34:$BK$57)))) -> 100 | H12: =SUM(IF($A12=SoilCat,IF($B12=DrainCat,IF(H$3=ESALCat,Design!$BB$34:$BK$57)))) -> 100 | I12: =SUM(IF($A12=SoilCat,IF($B12=DrainCat,IF(I$3=ESALCat,Design!$BB$34:$BK$57)))) -> 100 | J12: =SUM(IF($A12=SoilCat,IF($B12=DrainCat,IF(J$3=ESALCat,Design!$BB$34:$BK$57)))) -> 100 | K12: =SUM(IF($A12=SoilCat,IF($B12=DrainCat,IF(K$3=ESALCat,Design!$BB$34:$BK$57)))) -> 150 | L12: =SUM(IF($A12=SoilCat,IF($B12=DrainCat,IF(L$3=ESALCat,Design!$BB$34:$BK$57)))) -> 150 | M12: =SUM(IF($A12=SoilCat,IF($B12=DrainCat,IF(M$3=ESALCat,Design!$BB$34:$BK$57)))) -> 150 | N12: =SUM(IF($A12=SoilCat,IF($B12=DrainCat,IF(N$3=ESALCat,Design!$BB$34:$BK$57)))) -> 150 | O12: =SUM(IF($A12=SoilCat,IF($B12=DrainCat,IF(O$3=ESALCat,Design!$BB$34:$BK$57)))) -> 175
A13: 1 | B13: Fair | E13: Unbound Dense Graded Subbase | F13: =SUM(IF($A13=SoilCat,IF($B13=DrainCat,IF(F$3=ESALCat,Design!$BV$34:$CE$57)))) -> 0 | G13: =SUM(IF($A13=SoilCat,IF($B13=DrainCat,IF(G$3=ESALCat,Design!$BV$34:$CE$57)))) -> 0 | H13: =SUM(IF($A13=SoilCat,IF($B13=DrainCat,IF(H$3=ESALCat,Design!$BV$34:$CE$57)))) -> 0 | I13: =SUM(IF($A13=SoilCat,IF($B13=DrainCat,IF(I$3=ESALCat,Design!$BV$34:$CE$57)))) -> 0 | J13: =SUM(IF($A13=SoilCat,IF($B13=DrainCat,IF(J$3=ESALCat,Design!$BV$34:$CE$57)))) -> 0 | K13: =SUM(IF($A13=SoilCat,IF($B13=DrainCat,IF(K$3=ESALCat,Design!$BV$34:$CE$57)))) -> 0 | L13: =SUM(IF($A13=SoilCat,IF($B13=DrainCat,IF(L$3=ESALCat,Design!$BV$34:$CE$57)))) -> 0 | M13: =SUM(IF($A13=SoilCat,IF($B13=DrainCat,IF(M$3=ESALCat,Design!$BV$34:$CE$57)))) -> 0 | N13: =SUM(IF($A13=SoilCat,IF($B13=DrainCat,IF(N$3=ESALCat,Design!$BV$34:$CE$57)))) -> 0 | O13: =SUM(IF($A13=SoilCat,IF($B13=DrainCat,IF(O$3=ESALCat,Design!$BV$34:$CE$57)))) -> 0
A14: 1 | B14: Poor | D14: Poor | E14: Pavers and Bedding | F14: =SUM(IF($A14=SoilCat,IF($B14=DrainCat,IF(F$3=ESALCat,Design!$N$34:$W$57)))) -> 105 | G14: =SUM(IF($A14=SoilCat,IF($B14=DrainCat,IF(G$3=ESALCat,Design!$N$34:$W$57)))) -> 105 | H14: =SUM(IF($A14=SoilCat,IF($B14=DrainCat,IF(H$3=ESALCat,Design!$N$34:$W$57)))) -> 105 | I14: =SUM(IF($A14=SoilCat,IF($B14=DrainCat,IF(I$3=ESALCat,Design!$N$34:$W$57)))) -> 105 | J14: =SUM(IF($A14=SoilCat,IF($B14=DrainCat,IF(J$3=ESALCat,Design!$N$34:$W$57)))) -> 105 | K14: =SUM(IF($A14=SoilCat,IF($B14=DrainCat,IF(K$3=ESALCat,Design!$N$34:$W$57)))) -> 105 | L14: =SUM(IF($A14=SoilCat,IF($B14=DrainCat,IF(L$3=ESALCat,Design!$N$34:$W$57)))) -> 105 | M14: =SUM(IF($A14=SoilCat,IF($B14=DrainCat,IF(M$3=ESALCat,Design!$N$34:$W$57)))) -> 105 | N14: =SUM(IF($A14=SoilCat,IF($B14=DrainCat,IF(N$3=ESALCat,Design!$N$34:$W$57)))) -> 105 | O14: =SUM(IF($A14=SoilCat,IF($B14=DrainCat,IF(O$3=ESALCat,Design!$N$34:$W$57)))) -> 105
A15: 1 | B15: Poor | E15: Asphalt Treated Base | F15: =SUM(IF($A15=SoilCat,IF($B15=DrainCat,IF(F$3=ESALCat,Design!$AH$34:$AQ$57)))) -> 100 | G15: =SUM(IF($A15=SoilCat,IF($B15=DrainCat,IF(G$3=ESALCat,Design!$AH$34:$AQ$57)))) -> 100 | H15: =SUM(IF($A15=SoilCat,IF($B15=DrainCat,IF(H$3=ESALCat,Design!$AH$34:$AQ$57)))) -> 100 | I15: =SUM(IF($A15=SoilCat,IF($B15=DrainCat,IF(I$3=ESALCat,Design!$AH$34:$AQ$57)))) -> 100 | J15: =SUM(IF($A15=SoilCat,IF($B15=DrainCat,IF(J$3=ESALCat,Design!$AH$34:$AQ$57)))) -> 100 | K15: =SUM(IF($A15=SoilCat,IF($B15=DrainCat,IF(K$3=ESALCat,Design!$AH$34:$AQ$57)))) -> 100 | L15: =SUM(IF($A15=SoilCat,IF($B15=DrainCat,IF(L$3=ESALCat,Design!$AH$34:$AQ$57)))) -> 100 | M15: =SUM(IF($A15=SoilCat,IF($B15=DrainCat,IF(M$3=ESALCat,Design!$AH$34:$AQ$57)))) -> 100 | N15: =SUM(IF($A15=SoilCat,IF($B15=DrainCat,IF(N$3=ESALCat,Design!$AH$34:$AQ$57)))) -> 100 | O15: =SUM(IF($A15=SoilCat,IF($B15=DrainCat,IF(O$3=ESALCat,Design!$AH$34:$AQ$57)))) -> 100
A16: 1 | B16: Poor | E16: Unbound Dense Graded Base | F16: =SUM(IF($A16=SoilCat,IF($B16=DrainCat,IF(F$3=ESALCat,Design!$BB$34:$BK$57)))) -> 100 | G16: =SUM(IF($A16=SoilCat,IF($B16=DrainCat,IF(G$3=ESALCat,Design!$BB$34:$BK$57)))) -> 100 | H16: =SUM(IF($A16=SoilCat,IF($B16=DrainCat,IF(H$3=ESALCat,Design!$BB$34:$BK$57)))) -> 100 | I16: =SUM(IF($A16=SoilCat,IF($B16=DrainCat,IF(I$3=ESALCat,Design!$BB$34:$BK$57)))) -> 100 | J16: =SUM(IF($A16=SoilCat,IF($B16=DrainCat,IF(J$3=ESALCat,Design!$BB$34:$BK$57)))) -> 100 | K16: =SUM(IF($A16=SoilCat,IF($B16=DrainCat,IF(K$3=ESALCat,Design!$BB$34:$BK$57)))) -> 150 | L16: =SUM(IF($A16=SoilCat,IF($B16=DrainCat,IF(L$3=ESALCat,Design!$BB$34:$BK$57)))) -> 150 | M16: =SUM(IF($A16=SoilCat,IF($B16=DrainCat,IF(M$3=ESALCat,Design!$BB$34:$BK$57)))) -> 150 | N16: =SUM(IF($A16=SoilCat,IF($B16=DrainCat,IF(N$3=ESALCat,Design!$BB$34:$BK$57)))) -> 150 | O16: =SUM(IF($A16=SoilCat,IF($B16=DrainCat,IF(O$3=ESALCat,Design!$BB$34:$BK$57)))) -> 150
A17: 1 | B17: Poor | E17: Unbound Dense Graded Subbase | F17: =SUM(IF($A17=SoilCat,IF($B17=DrainCat,IF(F$3=ESALCat,Design!$BV$34:$CE$57)))) -> 0 | G17: =SUM(IF($A17=SoilCat,IF($B17=DrainCat,IF(G$3=ESALCat,Design!$BV$34:$CE$57)))) -> 0 | H17: =SUM(IF($A17=SoilCat,IF($B17=DrainCat,IF(H$3=ESALCat,Design!$BV$34:$CE$57)))) -> 0 | I17: =SUM(IF($A17=SoilCat,IF($B17=DrainCat,IF(I$3=ESALCat,Design!$BV$34:$CE$57)))) -> 0 | J17: =SUM(IF($A17=SoilCat,IF($B17=DrainCat,IF(J$3=ESALCat,Design!$BV$34:$CE$57)))) -> 0 | K17: =SUM(IF($A17=SoilCat,IF($B17=DrainCat,IF(K$3=ESALCat,Design!$BV$34:$CE$57)))) -> 0 | L17: =SUM(IF($A17=SoilCat,IF($B17=DrainCat,IF(L$3=ESALCat,Design!$BV$34:$CE$57)))) -> 0 | M17: =SUM(IF($A17=SoilCat,IF($B17=DrainCat,IF(M$3=ESALCat,Design!$BV$34:$CE$57)))) -> 0 | N17: =SUM(IF($A17=SoilCat,IF($B17=DrainCat,IF(N$3=ESALCat,Design!$BV$34:$CE$57)))) -> 0 | O17: =SUM(IF($A17=SoilCat,IF($B17=DrainCat,IF(O$3=ESALCat,Design!$BV$34:$CE$57)))) -> 150
A18: 2 | B18: Good | C18: Category 2 | D18: Good | E18: Pavers and Bedding | F18: =SUM(IF($A18=SoilCat,IF($B18=DrainCat,IF(F$3=ESALCat,Design!$N$34:$W$57)))) -> 105 | G18: =SUM(IF($A18=SoilCat,IF($B18=DrainCat,IF(G$3=ESALCat,Design!$N$34:$W$57)))) -> 105 | H18: =SUM(IF($A18=SoilCat,IF($B18=DrainCat,IF(H$3=ESALCat,Design!$N$34:$W$57)))) -> 105 | I18: =SUM(IF($A18=SoilCat,IF($B18=DrainCat,IF(I$3=ESALCat,Design!$N$34:$W$57)))) -> 105 | J18: =SUM(IF($A18=SoilCat,IF($B18=DrainCat,IF(J$3=ESALCat,Design!$N$34:$W$57)))) -> 105 | K18: =SUM(IF($A18=SoilCat,IF($B18=DrainCat,IF(K$3=ESALCat,Design!$N$34:$W$57)))) -> 105 | L18: =SUM(IF($A18=SoilCat,IF($B18=DrainCat,IF(L$3=ESALCat,Design!$N$34:$W$57)))) -> 105 | M18: =SUM(IF($A18=SoilCat,IF($B18=DrainCat,IF(M$3=ESALCat,Design!$N$34:$W$57)))) -> 105 | N18: =SUM(IF($A18=SoilCat,IF($B18=DrainCat,IF(N$3=ESALCat,Design!$N$34:$W$57)))) -> 105 | O18: =SUM(IF($A18=SoilCat,IF($B18=DrainCat,IF(O$3=ESALCat,Design!$N$34:$W$57)))) -> 105
A19: 2 | B19: Good | E19: Asphalt Treated Base | F19: =SUM(IF($A19=SoilCat,IF($B19=DrainCat,IF(F$3=ESALCat,Design!$AH$34:$AQ$57)))) -> 100 | G19: =SUM(IF($A19=SoilCat,IF($B19=DrainCat,IF(G$3=ESALCat,Design!$AH$34:$AQ$57)))) -> 100 | H19: =SUM(IF($A19=SoilCat,IF($B19=DrainCat,IF(H$3=ESALCat,Design!$AH$34:$AQ$57)))) -> 100 | I19: =SUM(IF($A19=SoilCat,IF($B19=DrainCat,IF(I$3=ESALCat,Design!$AH$34:$AQ$57)))) -> 100 | J19: =SUM(IF($A19=SoilCat,IF($B19=DrainCat,IF(J$3=ESALCat,Design!$AH$34:$AQ$57)))) -> 100 | K19: =SUM(IF($A19=SoilCat,IF($B19=DrainCat,IF(K$3=ESALCat,Design!$AH$34:$AQ$57)))) -> 100 | L19: =SUM(IF($A19=SoilCat,IF($B19=DrainCat,IF(L$3=ESALCat,Design!$AH$34:$AQ$57)))) -> 100 | M19: =SUM(IF($A19=SoilCat,IF($B19=DrainCat,IF(M$3=ESALCat,Design!$AH$34:$AQ$57)))) -> 100 | N19: =SUM(IF($A19=SoilCat,IF($B19=DrainCat,IF(N$3=ESALCat,Design!$AH$34:$AQ$57)))) -> 100 | O19: =SUM(IF($A19=SoilCat,IF($B19=DrainCat,IF(O$3=ESALCat,Design!$AH$34:$AQ$57)))) -> 100
A20: 2 | B20: Good | E20: Unbound Dense Graded Base | F20: =SUM(IF($A20=SoilCat,IF($B20=DrainCat,IF(F$3=ESALCat,Design!$BB$34:$BK$57)))) -> 100 | G20: =SUM(IF($A20=SoilCat,IF($B20=DrainCat,IF(G$3=ESALCat,Design!$BB$34:$BK$57)))) -> 100 | H20: =SUM(IF($A20=SoilCat,IF($B20=DrainCat,IF(H$3=ESALCat,Design!$BB$34:$BK$57)))) -> 100 | I20: =SUM(IF($A20=SoilCat,IF($B20=DrainCat,IF(I$3=ESALCat,Design!$BB$34:$BK$57)))) -> 100 | J20: =SUM(IF($A20=SoilCat,IF($B20=DrainCat,IF(J$3=ESALCat,Design!$BB$34:$BK$57)))) -> 100 | K20: =SUM(IF($A20=SoilCat,IF($B20=DrainCat,IF(K$3=ESALCat,Design!$BB$34:$BK$57)))) -> 150 | L20: =SUM(IF($A20=SoilCat,IF($B20=DrainCat,IF(L$3=ESALCat,Design!$BB$34:$BK$57)))) -> 150 | M20: =SUM(IF($A20=SoilCat,IF($B20=DrainCat,IF(M$3=ESALCat,Design!$BB$34:$BK$57)))) -> 150 | N20: =SUM(IF($A20=SoilCat,IF($B20=DrainCat,IF(N$3=ESALCat,Design!$BB$34:$BK$57)))) -> 150 | O20: =SUM(IF($A20=SoilCat,IF($B20=DrainCat,IF(O$3=ESALCat,Design!$BB$34:$BK$57)))) -> 175
A21: 2 | B21: Good | E21: Unbound Dense Graded Subbase | F21: =SUM(IF($A21=SoilCat,IF($B21=DrainCat,IF(F$3=ESALCat,Design!$BV$34:$CE$57)))) -> 0 | G21: =SUM(IF($A21=SoilCat,IF($B21=DrainCat,IF(G$3=ESALCat,Design!$BV$34:$CE$57)))) -> 0 | H21: =SUM(IF($A21=SoilCat,IF($B21=DrainCat,IF(H$3=ESALCat,Design!$BV$34:$CE$57)))) -> 0 | I21: =SUM(IF($A21=SoilCat,IF($B21=DrainCat,IF(I$3=ESALCat,Design!$BV$34:$CE$57)))) -> 0 | J21: =SUM(IF($A21=SoilCat,IF($B21=DrainCat,IF(J$3=ESALCat,Design!$BV$34:$CE$57)))) -> 0 | K21: =SUM(IF($A21=SoilCat,IF($B21=DrainCat,IF(K$3=ESALCat,Design!$BV$34:$CE$57)))) -> 0 | L21: =SUM(IF($A21=SoilCat,IF($B21=DrainCat,IF(L$3=ESALCat,Design!$BV$34:$CE$57)))) -> 0 | M21: =SUM(IF($A21=SoilCat,IF($B21=DrainCat,IF(M$3=ESALCat,Design!$BV$34:$CE$57)))) -> 0 | N21: =SUM(IF($A21=SoilCat,IF($B21=DrainCat,IF(N$3=ESALCat,Design!$BV$34:$CE$57)))) -> 0 | O21: =SUM(IF($A21=SoilCat,IF($B21=DrainCat,IF(O$3=ESALCat,Design!$BV$34:$CE$57)))) -> 0
A22: 2 | B22: Fair | D22: Fair | E22: Pavers and Bedding | F22: =SUM(IF($A22=SoilCat,IF($B22=DrainCat,IF(F$3=ESALCat,Design!$N$34:$W$57)))) -> 105 | G22: =SUM(IF($A22=SoilCat,IF($B22=DrainCat,IF(G$3=ESALCat,Design!$N$34:$W$57)))) -> 105 | H22: =SUM(IF($A22=SoilCat,IF($B22=DrainCat,IF(H$3=ESALCat,Design!$N$34:$W$57)))) -> 105 | I22: =SUM(IF($A22=SoilCat,IF($B22=DrainCat,IF(I$3=ESALCat,Design!$N$34:$W$57)))) -> 105 | J22: =SUM(IF($A22=SoilCat,IF($B22=DrainCat,IF(J$3=ESALCat,Design!$N$34:$W$57)))) -> 105 | K22: =SUM(IF($A22=SoilCat,IF($B22=DrainCat,IF(K$3=ESALCat,Design!$N$34:$W$57)))) -> 105 | L22: =SUM(IF($A22=SoilCat,IF($B22=DrainCat,IF(L$3=ESALCat,Design!$N$34:$W$57)))) -> 105 | M22: =SUM(IF($A22=SoilCat,IF($B22=DrainCat,IF(M$3=ESALCat,Design!$N$34:$W$57)))) -> 105 | N22: =SUM(IF($A22=SoilCat,IF($B22=DrainCat,IF(N$3=ESALCat,Design!$N$34:$W$57)))) -> 105 | O22: =SUM(IF($A22=SoilCat,IF($B22=DrainCat,IF(O$3=ESALCat,Design!$N$34:$W$57)))) -> 105
A23: 2 | B23: Fair | E23: Asphalt Treated Base | F23: =SUM(IF($A23=SoilCat,IF($B23=DrainCat,IF(F$3=ESALCat,Design!$AH$34:$AQ$57)))) -> 100 | G23: =SUM(IF($A23=SoilCat,IF($B23=DrainCat,IF(G$3=ESALCat,Design!$AH$34:$AQ$57)))) -> 100 | H23: =SUM(IF($A23=SoilCat,IF($B23=DrainCat,IF(H$3=ESALCat,Design!$AH$34:$AQ$57)))) -> 100 | I23: =SUM(IF($A23=SoilCat,IF($B23=DrainCat,IF(I$3=ESALCat,Design!$AH$34:$AQ$57)))) -> 100 | J23: =SUM(IF($A23=SoilCat,IF($B23=DrainCat,IF(J$3=ESALCat,Design!$AH$34:$AQ$57)))) -> 100 | K23: =SUM(IF($A23=SoilCat,IF($B23=DrainCat,IF(K$3=ESALCat,Design!$AH$34:$AQ$57)))) -> 100 | L23: =SUM(IF($A23=SoilCat,IF($B23=DrainCat,IF(L$3=ESALCat,Design!$AH$34:$AQ$57)))) -> 100 | M23: =SUM(IF($A23=SoilCat,IF($B23=DrainCat,IF(M$3=ESALCat,Design!$AH$34:$AQ$57)))) -> 100 | N23: =SUM(IF($A23=SoilCat,IF($B23=DrainCat,IF(N$3=ESALCat,Design!$AH$34:$AQ$57)))) -> 100 | O23: =SUM(IF($A23=SoilCat,IF($B23=DrainCat,IF(O$3=ESALCat,Design!$AH$34:$AQ$57)))) -> 100
A24: 2 | B24: Fair | E24: Unbound Dense Graded Base | F24: =SUM(IF($A24=SoilCat,IF($B24=DrainCat,IF(F$3=ESALCat,Design!$BB$34:$BK$57)))) -> 100 | G24: =SUM(IF($A24=SoilCat,IF($B24=DrainCat,IF(G$3=ESALCat,Design!$BB$34:$BK$57)))) -> 100 | H24: =SUM(IF($A24=SoilCat,IF($B24=DrainCat,IF(H$3=ESALCat,Design!$BB$34:$BK$57)))) -> 100 | I24: =SUM(IF($A24=SoilCat,IF($B24=DrainCat,IF(I$3=ESALCat,Design!$BB$34:$BK$57)))) -> 100 | J24: =SUM(IF($A24=SoilCat,IF($B24=DrainCat,IF(J$3=ESALCat,Design!$BB$34:$BK$57)))) -> 100 | K24: =SUM(IF($A24=SoilCat,IF($B24=DrainCat,IF(K$3=ESALCat,Design!$BB$34:$BK$57)))) -> 150 | L24: =SUM(IF($A24=SoilCat,IF($B24=DrainCat,IF(L$3=ESALCat,Design!$BB$34:$BK$57)))) -> 150 | M24: =SUM(IF($A24=SoilCat,IF($B24=DrainCat,IF(M$3=ESALCat,Design!$BB$34:$BK$57)))) -> 150 | N24: =SUM(IF($A24=SoilCat,IF($B24=DrainCat,IF(N$3=ESALCat,Design!$BB$34:$BK$57)))) -> 150 | O24: =SUM(IF($A24=SoilCat,IF($B24=DrainCat,IF(O$3=ESALCat,Design!$BB$34:$BK$57)))) -> 150
A25: 2 | B25: Fair | E25: Unbound Dense Graded Subbase | F25: =SUM(IF($A25=SoilCat,IF($B25=DrainCat,IF(F$3=ESALCat,Design!$BV$34:$CE$57)))) -> 0 | G25: =SUM(IF($A25=SoilCat,IF($B25=DrainCat,IF(G$3=ESALCat,Design!$BV$34:$CE$57)))) -> 0 | H25: =SUM(IF($A25=SoilCat,IF($B25=DrainCat,IF(H$3=ESALCat,Design!$BV$34:$CE$57)))) -> 0 | I25: =SUM(IF($A25=SoilCat,IF($B25=DrainCat,IF(I$3=ESALCat,Design!$BV$34:$CE$57)))) -> 0 | J25: =SUM(IF($A25=SoilCat,IF($B25=DrainCat,IF(J$3=ESALCat,Design!$BV$34:$CE$57)))) -> 0 | K25: =SUM(IF($A25=SoilCat,IF($B25=DrainCat,IF(K$3=ESALCat,Design!$BV$34:$CE$57)))) -> 0 | L25: =SUM(IF($A25=SoilCat,IF($B25=DrainCat,IF(L$3=ESALCat,Design!$BV$34:$CE$57)))) -> 0 | M25: =SUM(IF($A25=SoilCat,IF($B25=DrainCat,IF(M$3=ESALCat,Design!$BV$34:$CE$57)))) -> 0 | N25: =SUM(IF($A25=SoilCat,IF($B25=DrainCat,IF(N$3=ESALCat,Design!$BV$34:$CE$57)))) -> 0 | O25: =SUM(IF($A25=SoilCat,IF($B25=DrainCat,IF(O$3=ESALCat,Design!$BV$34:$CE$57)))) -> 150
A26: 2 | B26: Poor | D26: Poor | E26: Pavers and Bedding | F26: =SUM(IF($A26=SoilCat,IF($B26=DrainCat,IF(F$3=ESALCat,Design!$N$34:$W$57)))) -> 105 | G26: =SUM(IF($A26=SoilCat,IF($B26=DrainCat,IF(G$3=ESALCat,Design!$N$34:$W$57)))) -> 105 | H26: =SUM(IF($A26=SoilCat,IF($B26=DrainCat,IF(H$3=ESALCat,Design!$N$34:$W$57)))) -> 105 | I26: =SUM(IF($A26=SoilCat,IF($B26=DrainCat,IF(I$3=ESALCat,Design!$N$34:$W$57)))) -> 105 | J26: =SUM(IF($A26=SoilCat,IF($B26=DrainCat,IF(J$3=ESALCat,Design!$N$34:$W$57)))) -> 105 | K26: =SUM(IF($A26=SoilCat,IF($B26=DrainCat,IF(K$3=ESALCat,Design!$N$34:$W$57)))) -> 105 | L26: =SUM(IF($A26=SoilCat,IF($B26=DrainCat,IF(L$3=ESALCat,Design!$N$34:$W$57)))) -> 105 | M26: =SUM(IF($A26=SoilCat,IF($B26=DrainCat,IF(M$3=ESALCat,Design!$N$34:$W$57)))) -> 105 | N26: =SUM(IF($A26=SoilCat,IF($B26=DrainCat,IF(N$3=ESALCat,Design!$N$34:$W$57)))) -> 105 | O26: =SUM(IF($A26=SoilCat,IF($B26=DrainCat,IF(O$3=ESALCat,Design!$N$34:$W$57)))) -> 105
A27: 2 | B27: Poor | E27: Asphalt Treated Base | F27: =SUM(IF($A27=SoilCat,IF($B27=DrainCat,IF(F$3=ESALCat,Design!$AH$34:$AQ$57)))) -> 100 | G27: =SUM(IF($A27=SoilCat,IF($B27=DrainCat,IF(G$3=ESALCat,Design!$AH$34:$AQ$57)))) -> 100 | H27: =SUM(IF($A27=SoilCat,IF($B27=DrainCat,IF(H$3=ESALCat,Design!$AH$34:$AQ$57)))) -> 100 | I27: =SUM(IF($A27=SoilCat,IF($B27=DrainCat,IF(I$3=ESALCat,Design!$AH$34:$AQ$57)))) -> 100 | J27: =SUM(IF($A27=SoilCat,IF($B27=DrainCat,IF(J$3=ESALCat,Design!$AH$34:$AQ$57)))) -> 100 | K27: =SUM(IF($A27=SoilCat,IF($B27=DrainCat,IF(K$3=ESALCat,Design!$AH$34:$AQ$57)))) -> 100 | L27: =SUM(IF($A27=SoilCat,IF($B27=DrainCat,IF(L$3=ESALCat,Design!$AH$34:$AQ$57)))) -> 100 | M27: =SUM(IF($A27=SoilCat,IF($B27=DrainCat,IF(M$3=ESALCat,Design!$AH$34:$AQ$57)))) -> 100 | N27: =SUM(IF($A27=SoilCat,IF($B27=DrainCat,IF(N$3=ESALCat,Design!$AH$34:$AQ$57)))) -> 100 | O27: =SUM(IF($A27=SoilCat,IF($B27=DrainCat,IF(O$3=ESALCat,Design!$AH$34:$AQ$57)))) -> 100
A28: 2 | B28: Poor | E28: Unbound Dense Graded Base | F28: =SUM(IF($A28=SoilCat,IF($B28=DrainCat,IF(F$3=ESALCat,Design!$BB$34:$BK$57)))) -> 100 | G28: =SUM(IF($A28=SoilCat,IF($B28=DrainCat,IF(G$3=ESALCat,Design!$BB$34:$BK$57)))) -> 100 | H28: =SUM(IF($A28=SoilCat,IF($B28=DrainCat,IF(H$3=ESALCat,Design!$BB$34:$BK$57)))) -> 100 | I28: =SUM(IF($A28=SoilCat,IF($B28=DrainCat,IF(I$3=ESALCat,Design!$BB$34:$BK$57)))) -> 100 | J28: =SUM(IF($A28=SoilCat,IF($B28=DrainCat,IF(J$3=ESALCat,Design!$BB$34:$BK$57)))) -> 100 | K28: =SUM(IF($A28=SoilCat,IF($B28=DrainCat,IF(K$3=ESALCat,Design!$BB$34:$BK$57)))) -> 150 | L28: =SUM(IF($A28=SoilCat,IF($B28=DrainCat,IF(L$3=ESALCat,Design!$BB$34:$BK$57)))) -> 150 | M28: =SUM(IF($A28=SoilCat,IF($B28=DrainCat,IF(M$3=ESALCat,Design!$BB$34:$BK$57)))) -> 150 | N28: =SUM(IF($A28=SoilCat,IF($B28=DrainCat,IF(N$3=ESALCat,Design!$BB$34:$BK$57)))) -> 150 | O28: =SUM(IF($A28=SoilCat,IF($B28=DrainCat,IF(O$3=ESALCat,Design!$BB$34:$BK$57)))) -> 150
A29: 2 | B29: Poor | E29: Unbound Dense Graded Subbase | F29: =SUM(IF($A29=SoilCat,IF($B29=DrainCat,IF(F$3=ESALCat,Design!$BV$34:$CE$57)))) -> 0 | G29: =SUM(IF($A29=SoilCat,IF($B29=DrainCat,IF(G$3=ESALCat,Design!$BV$34:$CE$57)))) -> 0 | H29: =SUM(IF($A29=SoilCat,IF($B29=DrainCat,IF(H$3=ESALCat,Design!$BV$34:$CE$57)))) -> 0 | I29: =SUM(IF($A29=SoilCat,IF($B29=DrainCat,IF(I$3=ESALCat,Design!$BV$34:$CE$57)))) -> 0 | J29: =SUM(IF($A29=SoilCat,IF($B29=DrainCat,IF(J$3=ESALCat,Design!$BV$34:$CE$57)))) -> 0 | K29: =SUM(IF($A29=SoilCat,IF($B29=DrainCat,IF(K$3=ESALCat,Design!$BV$34:$CE$57)))) -> 0 | L29: =SUM(IF($A29=SoilCat,IF($B29=DrainCat,IF(L$3=ESALCat,Design!$BV$34:$CE$57)))) -> 0 | M29: =SUM(IF($A29=SoilCat,IF($B29=DrainCat,IF(M$3=ESALCat,Design!$BV$34:$CE$57)))) -> 0 | N29: =SUM(IF($A29=SoilCat,IF($B29=DrainCat,IF(N$3=ESALCat,Design!$BV$34:$CE$57)))) -> 150 | O29: =SUM(IF($A29=SoilCat,IF($B29=DrainCat,IF(O$3=ESALCat,Design!$BV$34:$CE$57)))) -> 250
A30: 3 | B30: Good | C30: Category 3 | D30: Good | E30: Pavers and Bedding | F30: =SUM(IF($A30=SoilCat,IF($B30=DrainCat,IF(F$3=ESALCat,Design!$N$34:$W$57)))) -> 105 | G30: =SUM(IF($A30=SoilCat,IF($B30=DrainCat,IF(G$3=ESALCat,Design!$N$34:$W$57)))) -> 105 | H30: =SUM(IF($A30=SoilCat,IF($B30=DrainCat,IF(H$3=ESALCat,Design!$N$34:$W$57)))) -> 105 | I30: =SUM(IF($A30=SoilCat,IF($B30=DrainCat,IF(I$3=ESALCat,Design!$N$34:$W$57)))) -> 105 | J30: =SUM(IF($A30=SoilCat,IF($B30=DrainCat,IF(J$3=ESALCat,Design!$N$34:$W$57)))) -> 105 | K30: =SUM(IF($A30=SoilCat,IF($B30=DrainCat,IF(K$3=ESALCat,Design!$N$34:$W$57)))) -> 105 | L30: =SUM(IF($A30=SoilCat,IF($B30=DrainCat,IF(L$3=ESALCat,Design!$N$34:$W$57)))) -> 105 | M30: =SUM(IF($A30=SoilCat,IF($B30=DrainCat,IF(M$3=ESALCat,Design!$N$34:$W$57)))) -> 105 | N30: =SUM(IF($A30=SoilCat,IF($B30=DrainCat,IF(N$3=ESALCat,Design!$N$34:$W$57)))) -> 105 | O30: =SUM(IF($A30=SoilCat,IF($B30=DrainCat,IF(O$3=ESALCat,Design!$N$34:$W$57)))) -> 105
A31: 3 | B31: Good | E31: Asphalt Treated Base | F31: =SUM(IF($A31=SoilCat,IF($B31=DrainCat,IF(F$3=ESALCat,Design!$AH$34:$AQ$57)))) -> 100 | G31: =SUM(IF($A31=SoilCat,IF($B31=DrainCat,IF(G$3=ESALCat,Design!$AH$34:$AQ$57)))) -> 100 | H31: =SUM(IF($A31=SoilCat,IF($B31=DrainCat,IF(H$3=ESALCat,Design!$AH$34:$AQ$57)))) -> 100 | I31: =SUM(IF($A31=SoilCat,IF($B31=DrainCat,IF(I$3=ESALCat,Design!$AH$34:$AQ$57)))) -> 100 | J31: =SUM(IF($A31=SoilCat,IF($B31=DrainCat,IF(J$3=ESALCat,Design!$AH$34:$AQ$57)))) -> 100 | K31: =SUM(IF($A31=SoilCat,IF($B31=DrainCat,IF(K$3=ESALCat,Design!$AH$34:$AQ$57)))) -> 100 | L31: =SUM(IF($A31=SoilCat,IF($B31=DrainCat,IF(L$3=ESALCat,Design!$AH$34:$AQ$57)))) -> 100 | M31: =SUM(IF($A31=SoilCat,IF($B31=DrainCat,IF(M$3=ESALCat,Design!$AH$34:$AQ$57)))) -> 100 | N31: =SUM(IF($A31=SoilCat,IF($B31=DrainCat,IF(N$3=ESALCat,Design!$AH$34:$AQ$57)))) -> 100 | O31: =SUM(IF($A31=SoilCat,IF($B31=DrainCat,IF(O$3=ESALCat,Design!$AH$34:$AQ$57)))) -> 100
A32: 3 | B32: Good | E32: Unbound Dense Graded Base | F32: =SUM(IF($A32=SoilCat,IF($B32=DrainCat,IF(F$3=ESALCat,Design!$BB$34:$BK$57)))) -> 100 | G32: =SUM(IF($A32=SoilCat,IF($B32=DrainCat,IF(G$3=ESALCat,Design!$BB$34:$BK$57)))) -> 100 | H32: =SUM(IF($A32=SoilCat,IF($B32=DrainCat,IF(H$3=ESALCat,Design!$BB$34:$BK$57)))) -> 100 | I32: =SUM(IF($A32=SoilCat,IF($B32=DrainCat,IF(I$3=ESALCat,Design!$BB$34:$BK$57)))) -> 100 | J32: =SUM(IF($A32=SoilCat,IF($B32=DrainCat,IF(J$3=ESALCat,Design!$BB$34:$BK$57)))) -> 100 | K32: =SUM(IF($A32=SoilCat,IF($B32=DrainCat,IF(K$3=ESALCat,Design!$BB$34:$BK$57)))) -> 150 | L32: =SUM(IF($A32=SoilCat,IF($B32=DrainCat,IF(L$3=ESALCat,Design!$BB$34:$BK$57)))) -> 150 | M32: =SUM(IF($A32=SoilCat,IF($B32=DrainCat,IF(M$3=ESALCat,Design!$BB$34:$BK$57)))) -> 150 | N32: =SUM(IF($A32=SoilCat,IF($B32=DrainCat,IF(N$3=ESALCat,Design!$BB$34:$BK$57)))) -> 150 | O32: =SUM(IF($A32=SoilCat,IF($B32=DrainCat,IF(O$3=ESALCat,Design!$BB$34:$BK$57)))) -> 150
A33: 3 | B33: Good | E33: Unbound Dense Graded Subbase | F33: =SUM(IF($A33=SoilCat,IF($B33=DrainCat,IF(F$3=ESALCat,Design!$BV$34:$CE$57)))) -> 0 | G33: =SUM(IF($A33=SoilCat,IF($B33=DrainCat,IF(G$3=ESALCat,Design!$BV$34:$CE$57)))) -> 0 | H33: =SUM(IF($A33=SoilCat,IF($B33=DrainCat,IF(H$3=ESALCat,Design!$BV$34:$CE$57)))) -> 0 | I33: =SUM(IF($A33=SoilCat,IF($B33=DrainCat,IF(I$3=ESALCat,Design!$BV$34:$CE$57)))) -> 0 | J33: =SUM(IF($A33=SoilCat,IF($B33=DrainCat,IF(J$3=ESALCat,Design!$BV$34:$CE$57)))) -> 0 | K33: =SUM(IF($A33=SoilCat,IF($B33=DrainCat,IF(K$3=ESALCat,Design!$BV$34:$CE$57)))) -> 0 | L33: =SUM(IF($A33=SoilCat,IF($B33=DrainCat,IF(L$3=ESALCat,Design!$BV$34:$CE$57)))) -> 0 | M33: =SUM(IF($A33=SoilCat,IF($B33=DrainCat,IF(M$3=ESALCat,Design!$BV$34:$CE$57)))) -> 0 | N33: =SUM(IF($A33=SoilCat,IF($B33=DrainCat,IF(N$3=ESALCat,Design!$BV$34:$CE$57)))) -> 0 | O33: =SUM(IF($A33=SoilCat,IF($B33=DrainCat,IF(O$3=ESALCat,Design!$BV$34:$CE$57)))) -> 150
A34: 3 | B34: Fair | D34: Fair | E34: Pavers and Bedding | F34: =SUM(IF($A34=SoilCat,IF($B34=DrainCat,IF(F$3=ESALCat,Design!$N$34:$W$57)))) -> 105 | G34: =SUM(IF($A34=SoilCat,IF($B34=DrainCat,IF(G$3=ESALCat,Design!$N$34:$W$57)))) -> 105 | H34: =SUM(IF($A34=SoilCat,IF($B34=DrainCat,IF(H$3=ESALCat,Design!$N$34:$W$57)))) -> 105 | I34: =SUM(IF($A34=SoilCat,IF($B34=DrainCat,IF(I$3=ESALCat,Design!$N$34:$W$57)))) -> 105 | J34: =SUM(IF($A34=SoilCat,IF($B34=DrainCat,IF(J$3=ESALCat,Design!$N$34:$W$57)))) -> 105 | K34: =SUM(IF($A34=SoilCat,IF($B34=DrainCat,IF(K$3=ESALCat,Design!$N$34:$W$57)))) -> 105 | L34: =SUM(IF($A34=SoilCat,IF($B34=DrainCat,IF(L$3=ESALCat,Design!$N$34:$W$57)))) -> 105 | M34: =SUM(IF($A34=SoilCat,IF($B34=DrainCat,IF(M$3=ESALCat,Design!$N$34:$W$57)))) -> 105 | N34: =SUM(IF($A34=SoilCat,IF($B34=DrainCat,IF(N$3=ESALCat,Design!$N$34:$W$57)))) -> 105 | O34: =SUM(IF($A34=SoilCat,IF($B34=DrainCat,IF(O$3=ESALCat,Design!$N$34:$W$57)))) -> 105
A35: 3 | B35: Fair | E35: Asphalt Treated Base | F35: =SUM(IF($A35=SoilCat,IF($B35=DrainCat,IF(F$3=ESALCat,Design!$AH$34:$AQ$57)))) -> 100 | G35: =SUM(IF($A35=SoilCat,IF($B35=DrainCat,IF(G$3=ESALCat,Design!$AH$34:$AQ$57)))) -> 100 | H35: =SUM(IF($A35=SoilCat,IF($B35=DrainCat,IF(H$3=ESALCat,Design!$AH$34:$AQ$57)))) -> 100 | I35: =SUM(IF($A35=SoilCat,IF($B35=DrainCat,IF(I$3=ESALCat,Design!$AH$34:$AQ$57)))) -> 100 | J35: =SUM(IF($A35=SoilCat,IF($B35=DrainCat,IF(J$3=ESALCat,Design!$AH$34:$AQ$57)))) -> 100 | K35: =SUM(IF($A35=SoilCat,IF($B35=DrainCat,IF(K$3=ESALCat,Design!$AH$34:$AQ$57)))) -> 100 | L35: =SUM(IF($A35=SoilCat,IF($B35=DrainCat,IF(L$3=ESALCat,Design!$AH$34:$AQ$57)))) -> 100 | M35: =SUM(IF($A35=SoilCat,IF($B35=DrainCat,IF(M$3=ESALCat,Design!$AH$34:$AQ$57)))) -> 100 | N35: =SUM(IF($A35=SoilCat,IF($B35=DrainCat,IF(N$3=ESALCat,Design!$AH$34:$AQ$57)))) -> 100 | O35: =SUM(IF($A35=SoilCat,IF($B35=DrainCat,IF(O$3=ESALCat,Design!$AH$34:$AQ$57)))) -> 100
A36: 3 | B36: Fair | E36: Unbound Dense Graded Base | F36: =SUM(IF($A36=SoilCat,IF($B36=DrainCat,IF(F$3=ESALCat,Design!$BB$34:$BK$57)))) -> 100 | G36: =SUM(IF($A36=SoilCat,IF($B36=DrainCat,IF(G$3=ESALCat,Design!$BB$34:$BK$57)))) -> 100 | H36: =SUM(IF($A36=SoilCat,IF($B36=DrainCat,IF(H$3=ESALCat,Design!$BB$34:$BK$57)))) -> 100 | I36: =SUM(IF($A36=SoilCat,IF($B36=DrainCat,IF(I$3=ESALCat,Design!$BB$34:$BK$57)))) -> 100 | J36: =SUM(IF($A36=SoilCat,IF($B36=DrainCat,IF(J$3=ESALCat,Design!$BB$34:$BK$57)))) -> 100 | K36: =SUM(IF($A36=SoilCat,IF($B36=DrainCat,IF(K$3=ESALCat,Design!$BB$34:$BK$57)))) -> 150 | L36: =SUM(IF($A36=SoilCat,IF($B36=DrainCat,IF(L$3=ESALCat,Design!$BB$34:$BK$57)))) -> 150 | M36: =SUM(IF($A36=SoilCat,IF($B36=DrainCat,IF(M$3=ESALCat,Design!$BB$34:$BK$57)))) -> 150 | N36: =SUM(IF($A36=SoilCat,IF($B36=DrainCat,IF(N$3=ESALCat,Design!$BB$34:$BK$57)))) -> 150 | O36: =SUM(IF($A36=SoilCat,IF($B36=DrainCat,IF(O$3=ESALCat,Design!$BB$34:$BK$57)))) -> 150
A37: 3 | B37: Fair | E37: Unbound Dense Graded Subbase | F37: =SUM(IF($A37=SoilCat,IF($B37=DrainCat,IF(F$3=ESALCat,Design!$BV$34:$CE$57)))) -> 0 | G37: =SUM(IF($A37=SoilCat,IF($B37=DrainCat,IF(G$3=ESALCat,Design!$BV$34:$CE$57)))) -> 0 | H37: =SUM(IF($A37=SoilCat,IF($B37=DrainCat,IF(H$3=ESALCat,Design!$BV$34:$CE$57)))) -> 0 | I37: =SUM(IF($A37=SoilCat,IF($B37=DrainCat,IF(I$3=ESALCat,Design!$BV$34:$CE$57)))) -> 0 | J37: =SUM(IF($A37=SoilCat,IF($B37=DrainCat,IF(J$3=ESALCat,Design!$BV$34:$CE$57)))) -> 0 | K37: =SUM(IF($A37=SoilCat,IF($B37=DrainCat,IF(K$3=ESALCat,Design!$BV$34:$CE$57)))) -> 0 | L37: =SUM(IF($A37=SoilCat,IF($B37=DrainCat,IF(L$3=ESALCat,Design!$BV$34:$CE$57)))) -> 0 | M37: =SUM(IF($A37=SoilCat,IF($B37=DrainCat,IF(M$3=ESALCat,Design!$BV$34:$CE$57)))) -> 0 | N37: =SUM(IF($A37=SoilCat,IF($B37=DrainCat,IF(N$3=ESALCat,Design!$BV$34:$CE$57)))) -> 150 | O37: =SUM(IF($A37=SoilCat,IF($B37=DrainCat,IF(O$3=ESALCat,Design!$BV$34:$CE$57)))) -> 250
A38: 3 | B38: Poor | D38: Poor | E38: Pavers and Bedding | F38: =SUM(IF($A38=SoilCat,IF($B38=DrainCat,IF(F$3=ESALCat,Design!$N$34:$W$57)))) -> 105 | G38: =SUM(IF($A38=SoilCat,IF($B38=DrainCat,IF(G$3=ESALCat,Design!$N$34:$W$57)))) -> 105 | H38: =SUM(IF($A38=SoilCat,IF($B38=DrainCat,IF(H$3=ESALCat,Design!$N$34:$W$57)))) -> 105 | I38: =SUM(IF($A38=SoilCat,IF($B38=DrainCat,IF(I$3=ESALCat,Design!$N$34:$W$57)))) -> 105 | J38: =SUM(IF($A38=SoilCat,IF($B38=DrainCat,IF(J$3=ESALCat,Design!$N$34:$W$57)))) -> 105 | K38: =SUM(IF($A38=SoilCat,IF($B38=DrainCat,IF(K$3=ESALCat,Design!$N$34:$W$57)))) -> 105 | L38: =SUM(IF($A38=SoilCat,IF($B38=DrainCat,IF(L$3=ESALCat,Design!$N$34:$W$57)))) -> 105 | M38: =SUM(IF($A38=SoilCat,IF($B38=DrainCat,IF(M$3=ESALCat,Design!$N$34:$W$57)))) -> 105 | N38: =SUM(IF($A38=SoilCat,IF($B38=DrainCat,IF(N$3=ESALCat,Design!$N$34:$W$57)))) -> 105 | O38: =SUM(IF($A38=SoilCat,IF($B38=DrainCat,IF(O$3=ESALCat,Design!$N$34:$W$57)))) -> 105
A39: 3 | B39: Poor | E39: Asphalt Treated Base | F39: =SUM(IF($A39=SoilCat,IF($B39=DrainCat,IF(F$3=ESALCat,Design!$AH$34:$AQ$57)))) -> 100 | G39: =SUM(IF($A39=SoilCat,IF($B39=DrainCat,IF(G$3=ESALCat,Design!$AH$34:$AQ$57)))) -> 100 | H39: =SUM(IF($A39=SoilCat,IF($B39=DrainCat,IF(H$3=ESALCat,Design!$AH$34:$AQ$57)))) -> 100 | I39: =SUM(IF($A39=SoilCat,IF($B39=DrainCat,IF(I$3=ESALCat,Design!$AH$34:$AQ$57)))) -> 100 | J39: =SUM(IF($A39=SoilCat,IF($B39=DrainCat,IF(J$3=ESALCat,Design!$AH$34:$AQ$57)))) -> 100 | K39: =SUM(IF($A39=SoilCat,IF($B39=DrainCat,IF(K$3=ESALCat,Design!$AH$34:$AQ$57)))) -> 100 | L39: =SUM(IF($A39=SoilCat,IF($B39=DrainCat,IF(L$3=ESALCat,Design!$AH$34:$AQ$57)))) -> 100 | M39: =SUM(IF($A39=SoilCat,IF($B39=DrainCat,IF(M$3=ESALCat,Design!$AH$34:$AQ$57)))) -> 100 | N39: =SUM(IF($A39=SoilCat,IF($B39=DrainCat,IF(N$3=ESALCat,Design!$AH$34:$AQ$57)))) -> 100 | O39: =SUM(IF($A39=SoilCat,IF($B39=DrainCat,IF(O$3=ESALCat,Design!$AH$34:$AQ$57)))) -> 100
A40: 3 | B40: Poor | E40: Unbound Dense Graded Base | F40: =SUM(IF($A40=SoilCat,IF($B40=DrainCat,IF(F$3=ESALCat,Design!$BB$34:$BK$57)))) -> 100 | G40: =SUM(IF($A40=SoilCat,IF($B40=DrainCat,IF(G$3=ESALCat,Design!$BB$34:$BK$57)))) -> 100 | H40: =SUM(IF($A40=SoilCat,IF($B40=DrainCat,IF(H$3=ESALCat,Design!$BB$34:$BK$57)))) -> 100 | I40: =SUM(IF($A40=SoilCat,IF($B40=DrainCat,IF(I$3=ESALCat,Design!$BB$34:$BK$57)))) -> 100 | J40: =SUM(IF($A40=SoilCat,IF($B40=DrainCat,IF(J$3=ESALCat,Design!$BB$34:$BK$57)))) -> 100 | K40: =SUM(IF($A40=SoilCat,IF($B40=DrainCat,IF(K$3=ESALCat,Design!$BB$34:$BK$57)))) -> 150 | L40: =SUM(IF($A40=SoilCat,IF($B40=DrainCat,IF(L$3=ESALCat,Design!$BB$34:$BK$57)))) -> 150 | M40: =SUM(IF($A40=SoilCat,IF($B40=DrainCat,IF(M$3=ESALCat,Design!$BB$34:$BK$57)))) -> 150 | N40: =SUM(IF($A40=SoilCat,IF($B40=DrainCat,IF(N$3=ESALCat,Design!$BB$34:$BK$57)))) -> 150 | O40: =SUM(IF($A40=SoilCat,IF($B40=DrainCat,IF(O$3=ESALCat,Design!$BB$34:$BK$57)))) -> 150
A41: 3 | B41: Poor | E41: Unbound Dense Graded Subbase | F41: =SUM(IF($A41=SoilCat,IF($B41=DrainCat,IF(F$3=ESALCat,Design!$BV$34:$CE$57)))) -> 0 | G41: =SUM(IF($A41=SoilCat,IF($B41=DrainCat,IF(G$3=ESALCat,Design!$BV$34:$CE$57)))) -> 0 | H41: =SUM(IF($A41=SoilCat,IF($B41=DrainCat,IF(H$3=ESALCat,Design!$BV$34:$CE$57)))) -> 0 | I41: =SUM(IF($A41=SoilCat,IF($B41=DrainCat,IF(I$3=ESALCat,Design!$BV$34:$CE$57)))) -> 0 | J41: =SUM(IF($A41=SoilCat,IF($B41=DrainCat,IF(J$3=ESALCat,Design!$BV$34:$CE$57)))) -> 0 | K41: =SUM(IF($A41=SoilCat,IF($B41=DrainCat,IF(K$3=ESALCat,Design!$BV$34:$CE$57)))) -> 0 | L41: =SUM(IF($A41=SoilCat,IF($B41=DrainCat,IF(L$3=ESALCat,Design!$BV$34:$CE$57)))) -> 0 | M41: =SUM(IF($A41=SoilCat,IF($B41=DrainCat,IF(M$3=ESALCat,Design!$BV$34:$CE$57)))) -> 150 | N41: =SUM(IF($A41=SoilCat,IF($B41=DrainCat,IF(N$3=ESALCat,Design!$BV$34:$CE$57)))) -> 275 | O41: =SUM(IF($A41=SoilCat,IF($B41=DrainCat,IF(O$3=ESALCat,Design!$BV$34:$CE$57)))) -> 400
A42: 4 | B42: Good | C42: Category 4 | D42: Good | E42: Pavers and Bedding | F42: =SUM(IF($A42=SoilCat,IF($B42=DrainCat,IF(F$3=ESALCat,Design!$N$34:$W$57)))) -> 105 | G42: =SUM(IF($A42=SoilCat,IF($B42=DrainCat,IF(G$3=ESALCat,Design!$N$34:$W$57)))) -> 105 | H42: =SUM(IF($A42=SoilCat,IF($B42=DrainCat,IF(H$3=ESALCat,Design!$N$34:$W$57)))) -> 105 | I42: =SUM(IF($A42=SoilCat,IF($B42=DrainCat,IF(I$3=ESALCat,Design!$N$34:$W$57)))) -> 105 | J42: =SUM(IF($A42=SoilCat,IF($B42=DrainCat,IF(J$3=ESALCat,Design!$N$34:$W$57)))) -> 105 | K42: =SUM(IF($A42=SoilCat,IF($B42=DrainCat,IF(K$3=ESALCat,Design!$N$34:$W$57)))) -> 105 | L42: =SUM(IF($A42=SoilCat,IF($B42=DrainCat,IF(L$3=ESALCat,Design!$N$34:$W$57)))) -> 105 | M42: =SUM(IF($A42=SoilCat,IF($B42=DrainCat,IF(M$3=ESALCat,Design!$N$34:$W$57)))) -> 105 | N42: =SUM(IF($A42=SoilCat,IF($B42=DrainCat,IF(N$3=ESALCat,Design!$N$34:$W$57)))) -> 105 | O42: =SUM(IF($A42=SoilCat,IF($B42=DrainCat,IF(O$3=ESALCat,Design!$N$34:$W$57)))) -> 105
A43: 4 | B43: Good | E43: Asphalt Treated Base | F43: =SUM(IF($A43=SoilCat,IF($B43=DrainCat,IF(F$3=ESALCat,Design!$AH$34:$AQ$57)))) -> 100 | G43: =SUM(IF($A43=SoilCat,IF($B43=DrainCat,IF(G$3=ESALCat,Design!$AH$34:$AQ$57)))) -> 100 | H43: =SUM(IF($A43=SoilCat,IF($B43=DrainCat,IF(H$3=ESALCat,Design!$AH$34:$AQ$57)))) -> 100 | I43: =SUM(IF($A43=SoilCat,IF($B43=DrainCat,IF(I$3=ESALCat,Design!$AH$34:$AQ$57)))) -> 100 | J43: =SUM(IF($A43=SoilCat,IF($B43=DrainCat,IF(J$3=ESALCat,Design!$AH$34:$AQ$57)))) -> 100 | K43: =SUM(IF($A43=SoilCat,IF($B43=DrainCat,IF(K$3=ESALCat,Design!$AH$34:$AQ$57)))) -> 100 | L43: =SUM(IF($A43=SoilCat,IF($B43=DrainCat,IF(L$3=ESALCat,Design!$AH$34:$AQ$57)))) -> 100 | M43: =SUM(IF($A43=SoilCat,IF($B43=DrainCat,IF(M$3=ESALCat,Design!$AH$34:$AQ$57)))) -> 100 | N43: =SUM(IF($A43=SoilCat,IF($B43=DrainCat,IF(N$3=ESALCat,Design!$AH$34:$AQ$57)))) -> 100 | O43: =SUM(IF($A43=SoilCat,IF($B43=DrainCat,IF(O$3=ESALCat,Design!$AH$34:$AQ$57)))) -> 100
A44: 4 | B44: Good | E44: Unbound Dense Graded Base | F44: =SUM(IF($A44=SoilCat,IF($B44=DrainCat,IF(F$3=ESALCat,Design!$BB$34:$BK$57)))) -> 100 | G44: =SUM(IF($A44=SoilCat,IF($B44=DrainCat,IF(G$3=ESALCat,Design!$BB$34:$BK$57)))) -> 100 | H44: =SUM(IF($A44=SoilCat,IF($B44=DrainCat,IF(H$3=ESALCat,Design!$BB$34:$BK$57)))) -> 100 | I44: =SUM(IF($A44=SoilCat,IF($B44=DrainCat,IF(I$3=ESALCat,Design!$BB$34:$BK$57)))) -> 100 | J44: =SUM(IF($A44=SoilCat,IF($B44=DrainCat,IF(J$3=ESALCat,Design!$BB$34:$BK$57)))) -> 100 | K44: =SUM(IF($A44=SoilCat,IF($B44=DrainCat,IF(K$3=ESALCat,Design!$BB$34:$BK$57)))) -> 150 | L44: =SUM(IF($A44=SoilCat,IF($B44=DrainCat,IF(L$3=ESALCat,Design!$BB$34:$BK$57)))) -> 150 | M44: =SUM(IF($A44=SoilCat,IF($B44=DrainCat,IF(M$3=ESALCat,Design!$BB$34:$BK$57)))) -> 150 | N44: =SUM(IF($A44=SoilCat,IF($B44=DrainCat,IF(N$3=ESALCat,Design!$BB$34:$BK$57)))) -> 150 | O44: =SUM(IF($A44=SoilCat,IF($B44=DrainCat,IF(O$3=ESALCat,Design!$BB$34:$BK$57)))) -> 150
A45: 4 | B45: Good | E45: Unbound Dense Graded Subbase | F45: =SUM(IF($A45=SoilCat,IF($B45=DrainCat,IF(F$3=ESALCat,Design!$BV$34:$CE$57)))) -> 0 | G45: =SUM(IF($A45=SoilCat,IF($B45=DrainCat,IF(G$3=ESALCat,Design!$BV$34:$CE$57)))) -> 0 | H45: =SUM(IF($A45=SoilCat,IF($B45=DrainCat,IF(H$3=ESALCat,Design!$BV$34:$CE$57)))) -> 0 | I45: =SUM(IF($A45=SoilCat,IF($B45=DrainCat,IF(I$3=ESALCat,Design!$BV$34:$CE$57)))) -> 0 | J45: =SUM(IF($A45=SoilCat,IF($B45=DrainCat,IF(J$3=ESALCat,Design!$BV$34:$CE$57)))) -> 0 | K45: =SUM(IF($A45=SoilCat,IF($B45=DrainCat,IF(K$3=ESALCat,Design!$BV$34:$CE$57)))) -> 0 | L45: =SUM(IF($A45=SoilCat,IF($B45=DrainCat,IF(L$3=ESALCat,Design!$BV$34:$CE$57)))) -> 0 | M45: =SUM(IF($A45=SoilCat,IF($B45=DrainCat,IF(M$3=ESALCat,Design!$BV$34:$CE$57)))) -> 0 | N45: =SUM(IF($A45=SoilCat,IF($B45=DrainCat,IF(N$3=ESALCat,Design!$BV$34:$CE$57)))) -> 150 | O45: =SUM(IF($A45=SoilCat,IF($B45=DrainCat,IF(O$3=ESALCat,Design!$BV$34:$CE$57)))) -> 250
A46: 4 | B46: Fair | D46: Fair | E46: Pavers and Bedding | F46: =SUM(IF($A46=SoilCat,IF($B46=DrainCat,IF(F$3=ESALCat,Design!$N$34:$W$57)))) -> 105 | G46: =SUM(IF($A46=SoilCat,IF($B46=DrainCat,IF(G$3=ESALCat,Design!$N$34:$W$57)))) -> 105 | H46: =SUM(IF($A46=SoilCat,IF($B46=DrainCat,IF(H$3=ESALCat,Design!$N$34:$W$57)))) -> 105 | I46: =SUM(IF($A46=SoilCat,IF($B46=DrainCat,IF(I$3=ESALCat,Design!$N$34:$W$57)))) -> 105 | J46: =SUM(IF($A46=SoilCat,IF($B46=DrainCat,IF(J$3=ESALCat,Design!$N$34:$W$57)))) -> 105 | K46: =SUM(IF($A46=SoilCat,IF($B46=DrainCat,IF(K$3=ESALCat,Design!$N$34:$W$57)))) -> 105 | L46: =SUM(IF($A46=SoilCat,IF($B46=DrainCat,IF(L$3=ESALCat,Design!$N$34:$W$57)))) -> 105 | M46: =SUM(IF($A46=SoilCat,IF($B46=DrainCat,IF(M$3=ESALCat,Design!$N$34:$W$57)))) -> 105 | N46: =SUM(IF($A46=SoilCat,IF($B46=DrainCat,IF(N$3=ESALCat,Design!$N$34:$W$57)))) -> 105 | O46: =SUM(IF($A46=SoilCat,IF($B46=DrainCat,IF(O$3=ESALCat,Design!$N$34:$W$57)))) -> 105
A47: 4 | B47: Fair | E47: Asphalt Treated Base | F47: =SUM(IF($A47=SoilCat,IF($B47=DrainCat,IF(F$3=ESALCat,Design!$AH$34:$AQ$57)))) -> 100 | G47: =SUM(IF($A47=SoilCat,IF($B47=DrainCat,IF(G$3=ESALCat,Design!$AH$34:$AQ$57)))) -> 100 | H47: =SUM(IF($A47=SoilCat,IF($B47=DrainCat,IF(H$3=ESALCat,Design!$AH$34:$AQ$57)))) -> 100 | I47: =SUM(IF($A47=SoilCat,IF($B47=DrainCat,IF(I$3=ESALCat,Design!$AH$34:$AQ$57)))) -> 100 | J47: =SUM(IF($A47=SoilCat,IF($B47=DrainCat,IF(J$3=ESALCat,Design!$AH$34:$AQ$57)))) -> 100 | K47: =SUM(IF($A47=SoilCat,IF($B47=DrainCat,IF(K$3=ESALCat,Design!$AH$34:$AQ$57)))) -> 100 | L47: =SUM(IF($A47=SoilCat,IF($B47=DrainCat,IF(L$3=ESALCat,Design!$AH$34:$AQ$57)))) -> 100 | M47: =SUM(IF($A47=SoilCat,IF($B47=DrainCat,IF(M$3=ESALCat,Design!$AH$34:$AQ$57)))) -> 100 | N47: =SUM(IF($A47=SoilCat,IF($B47=DrainCat,IF(N$3=ESALCat,Design!$AH$34:$AQ$57)))) -> 100 | O47: =SUM(IF($A47=SoilCat,IF($B47=DrainCat,IF(O$3=ESALCat,Design!$AH$34:$AQ$57)))) -> 100
A48: 4 | B48: Fair | E48: Unbound Dense Graded Base | F48: =SUM(IF($A48=SoilCat,IF($B48=DrainCat,IF(F$3=ESALCat,Design!$BB$34:$BK$57)))) -> 100 | G48: =SUM(IF($A48=SoilCat,IF($B48=DrainCat,IF(G$3=ESALCat,Design!$BB$34:$BK$57)))) -> 100 | H48: =SUM(IF($A48=SoilCat,IF($B48=DrainCat,IF(H$3=ESALCat,Design!$BB$34:$BK$57)))) -> 100 | I48: =SUM(IF($A48=SoilCat,IF($B48=DrainCat,IF(I$3=ESALCat,Design!$BB$34:$BK$57)))) -> 100 | J48: =SUM(IF($A48=SoilCat,IF($B48=DrainCat,IF(J$3=ESALCat,Design!$BB$34:$BK$57)))) -> 100 | K48: =SUM(IF($A48=SoilCat,IF($B48=DrainCat,IF(K$3=ESALCat,Design!$BB$34:$BK$57)))) -> 150 | L48: =SUM(IF($A48=SoilCat,IF($B48=DrainCat,IF(L$3=ESALCat,Design!$BB$34:$BK$57)))) -> 150 | M48: =SUM(IF($A48=SoilCat,IF($B48=DrainCat,IF(M$3=ESALCat,Design!$BB$34:$BK$57)))) -> 150 | N48: =SUM(IF($A48=SoilCat,IF($B48=DrainCat,IF(N$3=ESALCat,Design!$BB$34:$BK$57)))) -> 150 | O48: =SUM(IF($A48=SoilCat,IF($B48=DrainCat,IF(O$3=ESALCat,Design!$BB$34:$BK$57)))) -> 150
A49: 4 | B49: Fair | E49: Unbound Dense Graded Subbase | F49: =SUM(IF($A49=SoilCat,IF($B49=DrainCat,IF(F$3=ESALCat,Design!$BV$34:$CE$57)))) -> 0 | G49: =SUM(IF($A49=SoilCat,IF($B49=DrainCat,IF(G$3=ESALCat,Design!$BV$34:$CE$57)))) -> 0 | H49: =SUM(IF($A49=SoilCat,IF($B49=DrainCat,IF(H$3=ESALCat,Design!$BV$34:$CE$57)))) -> 0 | I49: =SUM(IF($A49=SoilCat,IF($B49=DrainCat,IF(I$3=ESALCat,Design!$BV$34:$CE$57)))) -> 0 | J49: =SUM(IF($A49=SoilCat,IF($B49=DrainCat,IF(J$3=ESALCat,Design!$BV$34:$CE$57)))) -> 0 | K49: =SUM(IF($A49=SoilCat,IF($B49=DrainCat,IF(K$3=ESALCat,Design!$BV$34:$CE$57)))) -> 0 | L49: =SUM(IF($A49=SoilCat,IF($B49=DrainCat,IF(L$3=ESALCat,Design!$BV$34:$CE$57)))) -> 0 | M49: =SUM(IF($A49=SoilCat,IF($B49=DrainCat,IF(M$3=ESALCat,Design!$BV$34:$CE$57)))) -> 150 | N49: =SUM(IF($A49=SoilCat,IF($B49=DrainCat,IF(N$3=ESALCat,Design!$BV$34:$CE$57)))) -> 275 | O49: =SUM(IF($A49=SoilCat,IF($B49=DrainCat,IF(O$3=ESALCat,Design!$BV$34:$CE$57)))) -> 400
A50: 4 | B50: Poor | D50: Poor | E50: Pavers and Bedding | F50: =SUM(IF($A50=SoilCat,IF($B50=DrainCat,IF(F$3=ESALCat,Design!$N$34:$W$57)))) -> 105 | G50: =SUM(IF($A50=SoilCat,IF($B50=DrainCat,IF(G$3=ESALCat,Design!$N$34:$W$57)))) -> 105 | H50: =SUM(IF($A50=SoilCat,IF($B50=DrainCat,IF(H$3=ESALCat,Design!$N$34:$W$57)))) -> 105 | I50: =SUM(IF($A50=SoilCat,IF($B50=DrainCat,IF(I$3=ESALCat,Design!$N$34:$W$57)))) -> 105 | J50: =SUM(IF($A50=SoilCat,IF($B50=DrainCat,IF(J$3=ESALCat,Design!$N$34:$W$57)))) -> 105 | K50: =SUM(IF($A50=SoilCat,IF($B50=DrainCat,IF(K$3=ESALCat,Design!$N$34:$W$57)))) -> 105 | L50: =SUM(IF($A50=SoilCat,IF($B50=DrainCat,IF(L$3=ESALCat,Design!$N$34:$W$57)))) -> 105 | M50: =SUM(IF($A50=SoilCat,IF($B50=DrainCat,IF(M$3=ESALCat,Design!$N$34:$W$57)))) -> 105 | N50: =SUM(IF($A50=SoilCat,IF($B50=DrainCat,IF(N$3=ESALCat,Design!$N$34:$W$57)))) -> 105 | O50: =SUM(IF($A50=SoilCat,IF($B50=DrainCat,IF(O$3=ESALCat,Design!$N$34:$W$57)))) -> 105
A51: 4 | B51: Poor | E51: Asphalt Treated Base | F51: =SUM(IF($A51=SoilCat,IF($B51=DrainCat,IF(F$3=ESALCat,Design!$AH$34:$AQ$57)))) -> 100 | G51: =SUM(IF($A51=SoilCat,IF($B51=DrainCat,IF(G$3=ESALCat,Design!$AH$34:$AQ$57)))) -> 100 | H51: =SUM(IF($A51=SoilCat,IF($B51=DrainCat,IF(H$3=ESALCat,Design!$AH$34:$AQ$57)))) -> 100 | I51: =SUM(IF($A51=SoilCat,IF($B51=DrainCat,IF(I$3=ESALCat,Design!$AH$34:$AQ$57)))) -> 100 | J51: =SUM(IF($A51=SoilCat,IF($B51=DrainCat,IF(J$3=ESALCat,Design!$AH$34:$AQ$57)))) -> 100 | K51: =SUM(IF($A51=SoilCat,IF($B51=DrainCat,IF(K$3=ESALCat,Design!$AH$34:$AQ$57)))) -> 100 | L51: =SUM(IF($A51=SoilCat,IF($B51=DrainCat,IF(L$3=ESALCat,Design!$AH$34:$AQ$57)))) -> 100 | M51: =SUM(IF($A51=SoilCat,IF($B51=DrainCat,IF(M$3=ESALCat,Design!$AH$34:$AQ$57)))) -> 100 | N51: =SUM(IF($A51=SoilCat,IF($B51=DrainCat,IF(N$3=ESALCat,Design!$AH$34:$AQ$57)))) -> 100 | O51: =SUM(IF($A51=SoilCat,IF($B51=DrainCat,IF(O$3=ESALCat,Design!$AH$34:$AQ$57)))) -> 100
A52: 4 | B52: Poor | E52: Unbound Dense Graded Base | F52: =SUM(IF($A52=SoilCat,IF($B52=DrainCat,IF(F$3=ESALCat,Design!$BB$34:$BK$57)))) -> 100 | G52: =SUM(IF($A52=SoilCat,IF($B52=DrainCat,IF(G$3=ESALCat,Design!$BB$34:$BK$57)))) -> 100 | H52: =SUM(IF($A52=SoilCat,IF($B52=DrainCat,IF(H$3=ESALCat,Design!$BB$34:$BK$57)))) -> 100 | I52: =SUM(IF($A52=SoilCat,IF($B52=DrainCat,IF(I$3=ESALCat,Design!$BB$34:$BK$57)))) -> 100 | J52: =SUM(IF($A52=SoilCat,IF($B52=DrainCat,IF(J$3=ESALCat,Design!$BB$34:$BK$57)))) -> 100 | K52: =SUM(IF($A52=SoilCat,IF($B52=DrainCat,IF(K$3=ESALCat,Design!$BB$34:$BK$57)))) -> 150 | L52: =SUM(IF($A52=SoilCat,IF($B52=DrainCat,IF(L$3=ESALCat,Design!$BB$34:$BK$57)))) -> 175 | M52: =SUM(IF($A52=SoilCat,IF($B52=DrainCat,IF(M$3=ESALCat,Design!$BB$34:$BK$57)))) -> 150 | N52: =SUM(IF($A52=SoilCat,IF($B52=DrainCat,IF(N$3=ESALCat,Design!$BB$34:$BK$57)))) -> 150 | O52: =SUM(IF($A52=SoilCat,IF($B52=DrainCat,IF(O$3=ESALCat,Design!$BB$34:$BK$57)))) -> 150
A53: 4 | B53: Poor | E53: Unbound Dense Graded Subbase | F53: =SUM(IF($A53=SoilCat,IF($B53=DrainCat,IF(F$3=ESALCat,Design!$BV$34:$CE$57)))) -> 0 | G53: =SUM(IF($A53=SoilCat,IF($B53=DrainCat,IF(G$3=ESALCat,Design!$BV$34:$CE$57)))) -> 0 | H53: =SUM(IF($A53=SoilCat,IF($B53=DrainCat,IF(H$3=ESALCat,Design!$BV$34:$CE$57)))) -> 0 | I53: =SUM(IF($A53=SoilCat,IF($B53=DrainCat,IF(I$3=ESALCat,Design!$BV$34:$CE$57)))) -> 0 | J53: =SUM(IF($A53=SoilCat,IF($B53=DrainCat,IF(J$3=ESALCat,Design!$BV$34:$CE$57)))) -> 0 | K53: =SUM(IF($A53=SoilCat,IF($B53=DrainCat,IF(K$3=ESALCat,Design!$BV$34:$CE$57)))) -> 0 | L53: =SUM(IF($A53=SoilCat,IF($B53=DrainCat,IF(L$3=ESALCat,Design!$BV$34:$CE$57)))) -> 0 | M53: =SUM(IF($A53=SoilCat,IF($B53=DrainCat,IF(M$3=ESALCat,Design!$BV$34:$CE$57)))) -> 175 | N53: =SUM(IF($A53=SoilCat,IF($B53=DrainCat,IF(N$3=ESALCat,Design!$BV$34:$CE$57)))) -> 350 | O53: =SUM(IF($A53=SoilCat,IF($B53=DrainCat,IF(O$3=ESALCat,Design!$BV$34:$CE$57)))) -> 475
A54: 5 | B54: Good | C54: Category 5 | D54: Good | E54: Pavers and Bedding | F54: =SUM(IF($A54=SoilCat,IF($B54=DrainCat,IF(F$3=ESALCat,Design!$N$34:$W$57)))) -> 105 | G54: =SUM(IF($A54=SoilCat,IF($B54=DrainCat,IF(G$3=ESALCat,Design!$N$34:$W$57)))) -> 105 | H54: =SUM(IF($A54=SoilCat,IF($B54=DrainCat,IF(H$3=ESALCat,Design!$N$34:$W$57)))) -> 105 | I54: =SUM(IF($A54=SoilCat,IF($B54=DrainCat,IF(I$3=ESALCat,Design!$N$34:$W$57)))) -> 105 | J54: =SUM(IF($A54=SoilCat,IF($B54=DrainCat,IF(J$3=ESALCat,Design!$N$34:$W$57)))) -> 105 | K54: =SUM(IF($A54=SoilCat,IF($B54=DrainCat,IF(K$3=ESALCat,Design!$N$34:$W$57)))) -> 105 | L54: =SUM(IF($A54=SoilCat,IF($B54=DrainCat,IF(L$3=ESALCat,Design!$N$34:$W$57)))) -> 105 | M54: =SUM(IF($A54=SoilCat,IF($B54=DrainCat,IF(M$3=ESALCat,Design!$N$34:$W$57)))) -> 105 | N54: =SUM(IF($A54=SoilCat,IF($B54=DrainCat,IF(N$3=ESALCat,Design!$N$34:$W$57)))) -> 105 | O54: =SUM(IF($A54=SoilCat,IF($B54=DrainCat,IF(O$3=ESALCat,Design!$N$34:$W$57)))) -> 105
A55: 5 | B55: Good | E55: Asphalt Treated Base | F55: =SUM(IF($A55=SoilCat,IF($B55=DrainCat,IF(F$3=ESALCat,Design!$AH$34:$AQ$57)))) -> 100 | G55: =SUM(IF($A55=SoilCat,IF($B55=DrainCat,IF(G$3=ESALCat,Design!$AH$34:$AQ$57)))) -> 100 | H55: =SUM(IF($A55=SoilCat,IF($B55=DrainCat,IF(H$3=ESALCat,Design!$AH$34:$AQ$57)))) -> 100 | I55: =SUM(IF($A55=SoilCat,IF($B55=DrainCat,IF(I$3=ESALCat,Design!$AH$34:$AQ$57)))) -> 100 | J55: =SUM(IF($A55=SoilCat,IF($B55=DrainCat,IF(J$3=ESALCat,Design!$AH$34:$AQ$57)))) -> 100 | K55: =SUM(IF($A55=SoilCat,IF($B55=DrainCat,IF(K$3=ESALCat,Design!$AH$34:$AQ$57)))) -> 100 | L55: =SUM(IF($A55=SoilCat,IF($B55=DrainCat,IF(L$3=ESALCat,Design!$AH$34:$AQ$57)))) -> 100 | M55: =SUM(IF($A55=SoilCat,IF($B55=DrainCat,IF(M$3=ESALCat,Design!$AH$34:$AQ$57)))) -> 100 | N55: =SUM(IF($A55=SoilCat,IF($B55=DrainCat,IF(N$3=ESALCat,Design!$AH$34:$AQ$57)))) -> 100 | O55: =SUM(IF($A55=SoilCat,IF($B55=DrainCat,IF(O$3=ESALCat,Design!$AH$34:$AQ$57)))) -> 100
A56: 5 | B56: Good | E56: Unbound Dense Graded Base | F56: =SUM(IF($A56=SoilCat,IF($B56=DrainCat,IF(F$3=ESALCat,Design!$BB$34:$BK$57)))) -> 100 | G56: =SUM(IF($A56=SoilCat,IF($B56=DrainCat,IF(G$3=ESALCat,Design!$BB$34:$BK$57)))) -> 100 | H56: =SUM(IF($A56=SoilCat,IF($B56=DrainCat,IF(H$3=ESALCat,Design!$BB$34:$BK$57)))) -> 100 | I56: =SUM(IF($A56=SoilCat,IF($B56=DrainCat,IF(I$3=ESALCat,Design!$BB$34:$BK$57)))) -> 100 | J56: =SUM(IF($A56=SoilCat,IF($B56=DrainCat,IF(J$3=ESALCat,Design!$BB$34:$BK$57)))) -> 100 | K56: =SUM(IF($A56=SoilCat,IF($B56=DrainCat,IF(K$3=ESALCat,Design!$BB$34:$BK$57)))) -> 150 | L56: =SUM(IF($A56=SoilCat,IF($B56=DrainCat,IF(L$3=ESALCat,Design!$BB$34:$BK$57)))) -> 150 | M56: =SUM(IF($A56=SoilCat,IF($B56=DrainCat,IF(M$3=ESALCat,Design!$BB$34:$BK$57)))) -> 175 | N56: =SUM(IF($A56=SoilCat,IF($B56=DrainCat,IF(N$3=ESALCat,Design!$BB$34:$BK$57)))) -> 150 | O56: =SUM(IF($A56=SoilCat,IF($B56=DrainCat,IF(O$3=ESALCat,Design!$BB$34:$BK$57)))) -> 150
A57: 5 | B57: Good | E57: Unbound Dense Graded Subbase | F57: =SUM(IF($A57=SoilCat,IF($B57=DrainCat,IF(F$3=ESALCat,Design!$BV$34:$CE$57)))) -> 0 | G57: =SUM(IF($A57=SoilCat,IF($B57=DrainCat,IF(G$3=ESALCat,Design!$BV$34:$CE$57)))) -> 0 | H57: =SUM(IF($A57=SoilCat,IF($B57=DrainCat,IF(H$3=ESALCat,Design!$BV$34:$CE$57)))) -> 0 | I57: =SUM(IF($A57=SoilCat,IF($B57=DrainCat,IF(I$3=ESALCat,Design!$BV$34:$CE$57)))) -> 0 | J57: =SUM(IF($A57=SoilCat,IF($B57=DrainCat,IF(J$3=ESALCat,Design!$BV$34:$CE$57)))) -> 0 | K57: =SUM(IF($A57=SoilCat,IF($B57=DrainCat,IF(K$3=ESALCat,Design!$BV$34:$CE$57)))) -> 0 | L57: =SUM(IF($A57=SoilCat,IF($B57=DrainCat,IF(L$3=ESALCat,Design!$BV$34:$CE$57)))) -> 0 | M57: =SUM(IF($A57=SoilCat,IF($B57=DrainCat,IF(M$3=ESALCat,Design!$BV$34:$CE$57)))) -> 0 | N57: =SUM(IF($A57=SoilCat,IF($B57=DrainCat,IF(N$3=ESALCat,Design!$BV$34:$CE$57)))) -> 200 | O57: =SUM(IF($A57=SoilCat,IF($B57=DrainCat,IF(O$3=ESALCat,Design!$BV$34:$CE$57)))) -> 350
A58: 5 | B58: Fair | D58: Fair | E58: Pavers and Bedding | F58: =SUM(IF($A58=SoilCat,IF($B58=DrainCat,IF(F$3=ESALCat,Design!$N$34:$W$57)))) -> 105 | G58: =SUM(IF($A58=SoilCat,IF($B58=DrainCat,IF(G$3=ESALCat,Design!$N$34:$W$57)))) -> 105 | H58: =SUM(IF($A58=SoilCat,IF($B58=DrainCat,IF(H$3=ESALCat,Design!$N$34:$W$57)))) -> 105 | I58: =SUM(IF($A58=SoilCat,IF($B58=DrainCat,IF(I$3=ESALCat,Design!$N$34:$W$57)))) -> 105 | J58: =SUM(IF($A58=SoilCat,IF($B58=DrainCat,IF(J$3=ESALCat,Design!$N$34:$W$57)))) -> 105 | K58: =SUM(IF($A58=SoilCat,IF($B58=DrainCat,IF(K$3=ESALCat,Design!$N$34:$W$57)))) -> 105 | L58: =SUM(IF($A58=SoilCat,IF($B58=DrainCat,IF(L$3=ESALCat,Design!$N$34:$W$57)))) -> 105 | M58: =SUM(IF($A58=SoilCat,IF($B58=DrainCat,IF(M$3=ESALCat,Design!$N$34:$W$57)))) -> 105 | N58: =SUM(IF($A58=SoilCat,IF($B58=DrainCat,IF(N$3=ESALCat,Design!$N$34:$W$57)))) -> 105 | O58: =SUM(IF($A58=SoilCat,IF($B58=DrainCat,IF(O$3=ESALCat,Design!$N$34:$W$57)))) -> 105
A59: 5 | B59: Fair | E59: Asphalt Treated Base | F59: =SUM(IF($A59=SoilCat,IF($B59=DrainCat,IF(F$3=ESALCat,Design!$AH$34:$AQ$57)))) -> 100 | G59: =SUM(IF($A59=SoilCat,IF($B59=DrainCat,IF(G$3=ESALCat,Design!$AH$34:$AQ$57)))) -> 100 | H59: =SUM(IF($A59=SoilCat,IF($B59=DrainCat,IF(H$3=ESALCat,Design!$AH$34:$AQ$57)))) -> 100 | I59: =SUM(IF($A59=SoilCat,IF($B59=DrainCat,IF(I$3=ESALCat,Design!$AH$34:$AQ$57)))) -> 100 | J59: =SUM(IF($A59=SoilCat,IF($B59=DrainCat,IF(J$3=ESALCat,Design!$AH$34:$AQ$57)))) -> 100 | K59: =SUM(IF($A59=SoilCat,IF($B59=DrainCat,IF(K$3=ESALCat,Design!$AH$34:$AQ$57)))) -> 100 | L59: =SUM(IF($A59=SoilCat,IF($B59=DrainCat,IF(L$3=ESALCat,Design!$AH$34:$AQ$57)))) -> 100 | M59: =SUM(IF($A59=SoilCat,IF($B59=DrainCat,IF(M$3=ESALCat,Design!$AH$34:$AQ$57)))) -> 100 | N59: =SUM(IF($A59=SoilCat,IF($B59=DrainCat,IF(N$3=ESALCat,Design!$AH$34:$AQ$57)))) -> 100 | O59: =SUM(IF($A59=SoilCat,IF($B59=DrainCat,IF(O$3=ESALCat,Design!$AH$34:$AQ$57)))) -> 100
A60: 5 | B60: Fair | E60: Unbound Dense Graded Base | F60: =SUM(IF($A60=SoilCat,IF($B60=DrainCat,IF(F$3=ESALCat,Design!$BB$34:$BK$57)))) -> 100 | G60: =SUM(IF($A60=SoilCat,IF($B60=DrainCat,IF(G$3=ESALCat,Design!$BB$34:$BK$57)))) -> 100 | H60: =SUM(IF($A60=SoilCat,IF($B60=DrainCat,IF(H$3=ESALCat,Design!$BB$34:$BK$57)))) -> 100 | I60: =SUM(IF($A60=SoilCat,IF($B60=DrainCat,IF(I$3=ESALCat,Design!$BB$34:$BK$57)))) -> 100 | J60: =SUM(IF($A60=SoilCat,IF($B60=DrainCat,IF(J$3=ESALCat,Design!$BB$34:$BK$57)))) -> 100 | K60: =SUM(IF($A60=SoilCat,IF($B60=DrainCat,IF(K$3=ESALCat,Design!$BB$34:$BK$57)))) -> 150 | L60: =SUM(IF($A60=SoilCat,IF($B60=DrainCat,IF(L$3=ESALCat,Design!$BB$34:$BK$57)))) -> 175 | M60: =SUM(IF($A60=SoilCat,IF($B60=DrainCat,IF(M$3=ESALCat,Design!$BB$34:$BK$57)))) -> 150 | N60: =SUM(IF($A60=SoilCat,IF($B60=DrainCat,IF(N$3=ESALCat,Design!$BB$34:$BK$57)))) -> 150 | O60: =SUM(IF($A60=SoilCat,IF($B60=DrainCat,IF(O$3=ESALCat,Design!$BB$34:$BK$57)))) -> 150
A61: 5 | B61: Fair | E61: Unbound Dense Graded Subbase | F61: =SUM(IF($A61=SoilCat,IF($B61=DrainCat,IF(F$3=ESALCat,Design!$BV$34:$CE$57)))) -> 0 | G61: =SUM(IF($A61=SoilCat,IF($B61=DrainCat,IF(G$3=ESALCat,Design!$BV$34:$CE$57)))) -> 0 | H61: =SUM(IF($A61=SoilCat,IF($B61=DrainCat,IF(H$3=ESALCat,Design!$BV$34:$CE$57)))) -> 0 | I61: =SUM(IF($A61=SoilCat,IF($B61=DrainCat,IF(I$3=ESALCat,Design!$BV$34:$CE$57)))) -> 0 | J61: =SUM(IF($A61=SoilCat,IF($B61=DrainCat,IF(J$3=ESALCat,Design!$BV$34:$CE$57)))) -> 0 | K61: =SUM(IF($A61=SoilCat,IF($B61=DrainCat,IF(K$3=ESALCat,Design!$BV$34:$CE$57)))) -> 0 | L61: =SUM(IF($A61=SoilCat,IF($B61=DrainCat,IF(L$3=ESALCat,Design!$BV$34:$CE$57)))) -> 0 | M61: =SUM(IF($A61=SoilCat,IF($B61=DrainCat,IF(M$3=ESALCat,Design!$BV$34:$CE$57)))) -> 175 | N61: =SUM(IF($A61=SoilCat,IF($B61=DrainCat,IF(N$3=ESALCat,Design!$BV$34:$CE$57)))) -> 350 | O61: =SUM(IF($A61=SoilCat,IF($B61=DrainCat,IF(O$3=ESALCat,Design!$BV$34:$CE$57)))) -> 475
A62: 5 | B62: Poor | D62: Poor | E62: Pavers and Bedding | F62: =SUM(IF($A62=SoilCat,IF($B62=DrainCat,IF(F$3=ESALCat,Design!$N$34:$W$57)))) -> 105 | G62: =SUM(IF($A62=SoilCat,IF($B62=DrainCat,IF(G$3=ESALCat,Design!$N$34:$W$57)))) -> 105 | H62: =SUM(IF($A62=SoilCat,IF($B62=DrainCat,IF(H$3=ESALCat,Design!$N$34:$W$57)))) -> 105 | I62: =SUM(IF($A62=SoilCat,IF($B62=DrainCat,IF(I$3=ESALCat,Design!$N$34:$W$57)))) -> 105 | J62: =SUM(IF($A62=SoilCat,IF($B62=DrainCat,IF(J$3=ESALCat,Design!$N$34:$W$57)))) -> 105 | K62: =SUM(IF($A62=SoilCat,IF($B62=DrainCat,IF(K$3=ESALCat,Design!$N$34:$W$57)))) -> 105 | L62: =SUM(IF($A62=SoilCat,IF($B62=DrainCat,IF(L$3=ESALCat,Design!$N$34:$W$57)))) -> 105 | M62: =SUM(IF($A62=SoilCat,IF($B62=DrainCat,IF(M$3=ESALCat,Design!$N$34:$W$57)))) -> 105 | N62: =SUM(IF($A62=SoilCat,IF($B62=DrainCat,IF(N$3=ESALCat,Design!$N$34:$W$57)))) -> 105 | O62: =SUM(IF($A62=SoilCat,IF($B62=DrainCat,IF(O$3=ESALCat,Design!$N$34:$W$57)))) -> 105
A63: 5 | B63: Poor | E63: Asphalt Treated Base | F63: =SUM(IF($A63=SoilCat,IF($B63=DrainCat,IF(F$3=ESALCat,Design!$AH$34:$AQ$57)))) -> 100 | G63: =SUM(IF($A63=SoilCat,IF($B63=DrainCat,IF(G$3=ESALCat,Design!$AH$34:$AQ$57)))) -> 100 | H63: =SUM(IF($A63=SoilCat,IF($B63=DrainCat,IF(H$3=ESALCat,Design!$AH$34:$AQ$57)))) -> 100 | I63: =SUM(IF($A63=SoilCat,IF($B63=DrainCat,IF(I$3=ESALCat,Design!$AH$34:$AQ$57)))) -> 100 | J63: =SUM(IF($A63=SoilCat,IF($B63=DrainCat,IF(J$3=ESALCat,Design!$AH$34:$AQ$57)))) -> 100 | K63: =SUM(IF($A63=SoilCat,IF($B63=DrainCat,IF(K$3=ESALCat,Design!$AH$34:$AQ$57)))) -> 100 | L63: =SUM(IF($A63=SoilCat,IF($B63=DrainCat,IF(L$3=ESALCat,Design!$AH$34:$AQ$57)))) -> 100 | M63: =SUM(IF($A63=SoilCat,IF($B63=DrainCat,IF(M$3=ESALCat,Design!$AH$34:$AQ$57)))) -> 100 | N63: =SUM(IF($A63=SoilCat,IF($B63=DrainCat,IF(N$3=ESALCat,Design!$AH$34:$AQ$57)))) -> 100 | O63: =SUM(IF($A63=SoilCat,IF($B63=DrainCat,IF(O$3=ESALCat,Design!$AH$34:$AQ$57)))) -> 100
A64: 5 | B64: Poor | E64: Unbound Dense Graded Base | F64: =SUM(IF($A64=SoilCat,IF($B64=DrainCat,IF(F$3=ESALCat,Design!$BB$34:$BK$57)))) -> 100 | G64: =SUM(IF($A64=SoilCat,IF($B64=DrainCat,IF(G$3=ESALCat,Design!$BB$34:$BK$57)))) -> 100 | H64: =SUM(IF($A64=SoilCat,IF($B64=DrainCat,IF(H$3=ESALCat,Design!$BB$34:$BK$57)))) -> 100 | I64: =SUM(IF($A64=SoilCat,IF($B64=DrainCat,IF(I$3=ESALCat,Design!$BB$34:$BK$57)))) -> 100 | J64: =SUM(IF($A64=SoilCat,IF($B64=DrainCat,IF(J$3=ESALCat,Design!$BB$34:$BK$57)))) -> 100 | K64: =SUM(IF($A64=SoilCat,IF($B64=DrainCat,IF(K$3=ESALCat,Design!$BB$34:$BK$57)))) -> 150 | L64: =SUM(IF($A64=SoilCat,IF($B64=DrainCat,IF(L$3=ESALCat,Design!$BB$34:$BK$57)))) -> 150 | M64: =SUM(IF($A64=SoilCat,IF($B64=DrainCat,IF(M$3=ESALCat,Design!$BB$34:$BK$57)))) -> 150 | N64: =SUM(IF($A64=SoilCat,IF($B64=DrainCat,IF(N$3=ESALCat,Design!$BB$34:$BK$57)))) -> 150 | O64: =SUM(IF($A64=SoilCat,IF($B64=DrainCat,IF(O$3=ESALCat,Design!$BB$34:$BK$57)))) -> 150
A65: 5 | B65: Poor | E65: Unbound Dense Graded Subbase | F65: =SUM(IF($A65=SoilCat,IF($B65=DrainCat,IF(F$3=ESALCat,Design!$BV$34:$CE$57)))) -> 0 | G65: =SUM(IF($A65=SoilCat,IF($B65=DrainCat,IF(G$3=ESALCat,Design!$BV$34:$CE$57)))) -> 0 | H65: =SUM(IF($A65=SoilCat,IF($B65=DrainCat,IF(H$3=ESALCat,Design!$BV$34:$CE$57)))) -> 0 | I65: =SUM(IF($A65=SoilCat,IF($B65=DrainCat,IF(I$3=ESALCat,Design!$BV$34:$CE$57)))) -> 0 | J65: =SUM(IF($A65=SoilCat,IF($B65=DrainCat,IF(J$3=ESALCat,Design!$BV$34:$CE$57)))) -> 0 | K65: =SUM(IF($A65=SoilCat,IF($B65=DrainCat,IF(K$3=ESALCat,Design!$BV$34:$CE$57)))) -> 0 | L65: =SUM(IF($A65=SoilCat,IF($B65=DrainCat,IF(L$3=ESALCat,Design!$BV$34:$CE$57)))) -> 150 | M65: =SUM(IF($A65=SoilCat,IF($B65=DrainCat,IF(M$3=ESALCat,Design!$BV$34:$CE$57)))) -> 250 | N65: =SUM(IF($A65=SoilCat,IF($B65=DrainCat,IF(N$3=ESALCat,Design!$BV$34:$CE$57)))) -> 425 | O65: =SUM(IF($A65=SoilCat,IF($B65=DrainCat,IF(O$3=ESALCat,Design!$BV$34:$CE$57)))) -> 575
A66: 6 | B66: Good | C66: Category 6 | D66: Good | E66: Pavers and Bedding | F66: =SUM(IF($A66=SoilCat,IF($B66=DrainCat,IF(F$3=ESALCat,Design!$N$34:$W$57)))) -> 105 | G66: =SUM(IF($A66=SoilCat,IF($B66=DrainCat,IF(G$3=ESALCat,Design!$N$34:$W$57)))) -> 105 | H66: =SUM(IF($A66=SoilCat,IF($B66=DrainCat,IF(H$3=ESALCat,Design!$N$34:$W$57)))) -> 105 | I66: =SUM(IF($A66=SoilCat,IF($B66=DrainCat,IF(I$3=ESALCat,Design!$N$34:$W$57)))) -> 105 | J66: =SUM(IF($A66=SoilCat,IF($B66=DrainCat,IF(J$3=ESALCat,Design!$N$34:$W$57)))) -> 105 | K66: =SUM(IF($A66=SoilCat,IF($B66=DrainCat,IF(K$3=ESALCat,Design!$N$34:$W$57)))) -> 105 | L66: =SUM(IF($A66=SoilCat,IF($B66=DrainCat,IF(L$3=ESALCat,Design!$N$34:$W$57)))) -> 105 | M66: =SUM(IF($A66=SoilCat,IF($B66=DrainCat,IF(M$3=ESALCat,Design!$N$34:$W$57)))) -> 105 | N66: =SUM(IF($A66=SoilCat,IF($B66=DrainCat,IF(N$3=ESALCat,Design!$N$34:$W$57)))) -> 105 | O66: =SUM(IF($A66=SoilCat,IF($B66=DrainCat,IF(O$3=ESALCat,Design!$N$34:$W$57)))) -> 105
A67: 6 | B67: Good | E67: Asphalt Treated Base | F67: =SUM(IF($A67=SoilCat,IF($B67=DrainCat,IF(F$3=ESALCat,Design!$AH$34:$AQ$57)))) -> 100 | G67: =SUM(IF($A67=SoilCat,IF($B67=DrainCat,IF(G$3=ESALCat,Design!$AH$34:$AQ$57)))) -> 100 | H67: =SUM(IF($A67=SoilCat,IF($B67=DrainCat,IF(H$3=ESALCat,Design!$AH$34:$AQ$57)))) -> 100 | I67: =SUM(IF($A67=SoilCat,IF($B67=DrainCat,IF(I$3=ESALCat,Design!$AH$34:$AQ$57)))) -> 100 | J67: =SUM(IF($A67=SoilCat,IF($B67=DrainCat,IF(J$3=ESALCat,Design!$AH$34:$AQ$57)))) -> 100 | K67: =SUM(IF($A67=SoilCat,IF($B67=DrainCat,IF(K$3=ESALCat,Design!$AH$34:$AQ$57)))) -> 100 | L67: =SUM(IF($A67=SoilCat,IF($B67=DrainCat,IF(L$3=ESALCat,Design!$AH$34:$AQ$57)))) -> 100 | M67: =SUM(IF($A67=SoilCat,IF($B67=DrainCat,IF(M$3=ESALCat,Design!$AH$34:$AQ$57)))) -> 100 | N67: =SUM(IF($A67=SoilCat,IF($B67=DrainCat,IF(N$3=ESALCat,Design!$AH$34:$AQ$57)))) -> 100 | O67: =SUM(IF($A67=SoilCat,IF($B67=DrainCat,IF(O$3=ESALCat,Design!$AH$34:$AQ$57)))) -> 100
A68: 6 | B68: Good | E68: Unbound Dense Graded Base | F68: =SUM(IF($A68=SoilCat,IF($B68=DrainCat,IF(F$3=ESALCat,Design!$BB$34:$BK$57)))) -> 100 | G68: =SUM(IF($A68=SoilCat,IF($B68=DrainCat,IF(G$3=ESALCat,Design!$BB$34:$BK$57)))) -> 100 | H68: =SUM(IF($A68=SoilCat,IF($B68=DrainCat,IF(H$3=ESALCat,Design!$BB$34:$BK$57)))) -> 100 | I68: =SUM(IF($A68=SoilCat,IF($B68=DrainCat,IF(I$3=ESALCat,Design!$BB$34:$BK$57)))) -> 100 | J68: =SUM(IF($A68=SoilCat,IF($B68=DrainCat,IF(J$3=ESALCat,Design!$BB$34:$BK$57)))) -> 100 | K68: =SUM(IF($A68=SoilCat,IF($B68=DrainCat,IF(K$3=ESALCat,Design!$BB$34:$BK$57)))) -> 150 | L68: =SUM(IF($A68=SoilCat,IF($B68=DrainCat,IF(L$3=ESALCat,Design!$BB$34:$BK$57)))) -> 175 | M68: =SUM(IF($A68=SoilCat,IF($B68=DrainCat,IF(M$3=ESALCat,Design!$BB$34:$BK$57)))) -> 150 | N68: =SUM(IF($A68=SoilCat,IF($B68=DrainCat,IF(N$3=ESALCat,Design!$BB$34:$BK$57)))) -> 150 | O68: =SUM(IF($A68=SoilCat,IF($B68=DrainCat,IF(O$3=ESALCat,Design!$BB$34:$BK$57)))) -> 150
A69: 6 | B69: Good | E69: Unbound Dense Graded Subbase | F69: =SUM(IF($A69=SoilCat,IF($B69=DrainCat,IF(F$3=ESALCat,Design!$BV$34:$CE$57)))) -> 0 | G69: =SUM(IF($A69=SoilCat,IF($B69=DrainCat,IF(G$3=ESALCat,Design!$BV$34:$CE$57)))) -> 0 | H69: =SUM(IF($A69=SoilCat,IF($B69=DrainCat,IF(H$3=ESALCat,Design!$BV$34:$CE$57)))) -> 0 | I69: =SUM(IF($A69=SoilCat,IF($B69=DrainCat,IF(I$3=ESALCat,Design!$BV$34:$CE$57)))) -> 0 | J69: =SUM(IF($A69=SoilCat,IF($B69=DrainCat,IF(J$3=ESALCat,Design!$BV$34:$CE$57)))) -> 0 | K69: =SUM(IF($A69=SoilCat,IF($B69=DrainCat,IF(K$3=ESALCat,Design!$BV$34:$CE$57)))) -> 0 | L69: =SUM(IF($A69=SoilCat,IF($B69=DrainCat,IF(L$3=ESALCat,Design!$BV$34:$CE$57)))) -> 0 | M69: =SUM(IF($A69=SoilCat,IF($B69=DrainCat,IF(M$3=ESALCat,Design!$BV$34:$CE$57)))) -> 175 | N69: =SUM(IF($A69=SoilCat,IF($B69=DrainCat,IF(N$3=ESALCat,Design!$BV$34:$CE$57)))) -> 350 | O69: =SUM(IF($A69=SoilCat,IF($B69=DrainCat,IF(O$3=ESALCat,Design!$BV$34:$CE$57)))) -> 475
A70: 6 | B70: Fair | D70: Fair | E70: Pavers and Bedding | F70: =SUM(IF($A70=SoilCat,IF($B70=DrainCat,IF(F$3=ESALCat,Design!$N$34:$W$57)))) -> 105 | G70: =SUM(IF($A70=SoilCat,IF($B70=DrainCat,IF(G$3=ESALCat,Design!$N$34:$W$57)))) -> 105 | H70: =SUM(IF($A70=SoilCat,IF($B70=DrainCat,IF(H$3=ESALCat,Design!$N$34:$W$57)))) -> 105 | I70: =SUM(IF($A70=SoilCat,IF($B70=DrainCat,IF(I$3=ESALCat,Design!$N$34:$W$57)))) -> 105 | J70: =SUM(IF($A70=SoilCat,IF($B70=DrainCat,IF(J$3=ESALCat,Design!$N$34:$W$57)))) -> 105 | K70: =SUM(IF($A70=SoilCat,IF($B70=DrainCat,IF(K$3=ESALCat,Design!$N$34:$W$57)))) -> 105 | L70: =SUM(IF($A70=SoilCat,IF($B70=DrainCat,IF(L$3=ESALCat,Design!$N$34:$W$57)))) -> 105 | M70: =SUM(IF($A70=SoilCat,IF($B70=DrainCat,IF(M$3=ESALCat,Design!$N$34:$W$57)))) -> 105 | N70: =SUM(IF($A70=SoilCat,IF($B70=DrainCat,IF(N$3=ESALCat,Design!$N$34:$W$57)))) -> 105 | O70: =SUM(IF($A70=SoilCat,IF($B70=DrainCat,IF(O$3=ESALCat,Design!$N$34:$W$57)))) -> 105
A71: 6 | B71: Fair | E71: Asphalt Treated Base | F71: =SUM(IF($A71=SoilCat,IF($B71=DrainCat,IF(F$3=ESALCat,Design!$AH$34:$AQ$57)))) -> 100 | G71: =SUM(IF($A71=SoilCat,IF($B71=DrainCat,IF(G$3=ESALCat,Design!$AH$34:$AQ$57)))) -> 100 | H71: =SUM(IF($A71=SoilCat,IF($B71=DrainCat,IF(H$3=ESALCat,Design!$AH$34:$AQ$57)))) -> 100 | I71: =SUM(IF($A71=SoilCat,IF($B71=DrainCat,IF(I$3=ESALCat,Design!$AH$34:$AQ$57)))) -> 100 | J71: =SUM(IF($A71=SoilCat,IF($B71=DrainCat,IF(J$3=ESALCat,Design!$AH$34:$AQ$57)))) -> 100 | K71: =SUM(IF($A71=SoilCat,IF($B71=DrainCat,IF(K$3=ESALCat,Design!$AH$34:$AQ$57)))) -> 100 | L71: =SUM(IF($A71=SoilCat,IF($B71=DrainCat,IF(L$3=ESALCat,Design!$AH$34:$AQ$57)))) -> 100 | M71: =SUM(IF($A71=SoilCat,IF($B71=DrainCat,IF(M$3=ESALCat,Design!$AH$34:$AQ$57)))) -> 100 | N71: =SUM(IF($A71=SoilCat,IF($B71=DrainCat,IF(N$3=ESALCat,Design!$AH$34:$AQ$57)))) -> 100 | O71: =SUM(IF($A71=SoilCat,IF($B71=DrainCat,IF(O$3=ESALCat,Design!$AH$34:$AQ$57)))) -> 100
A72: 6 | B72: Fair | E72: Unbound Dense Graded Base | F72: =SUM(IF($A72=SoilCat,IF($B72=DrainCat,IF(F$3=ESALCat,Design!$BB$34:$BK$57)))) -> 100 | G72: =SUM(IF($A72=SoilCat,IF($B72=DrainCat,IF(G$3=ESALCat,Design!$BB$34:$BK$57)))) -> 100 | H72: =SUM(IF($A72=SoilCat,IF($B72=DrainCat,IF(H$3=ESALCat,Design!$BB$34:$BK$57)))) -> 100 | I72: =SUM(IF($A72=SoilCat,IF($B72=DrainCat,IF(I$3=ESALCat,Design!$BB$34:$BK$57)))) -> 100 | J72: =SUM(IF($A72=SoilCat,IF($B72=DrainCat,IF(J$3=ESALCat,Design!$BB$34:$BK$57)))) -> 100 | K72: =SUM(IF($A72=SoilCat,IF($B72=DrainCat,IF(K$3=ESALCat,Design!$BB$34:$BK$57)))) -> 150 | L72: =SUM(IF($A72=SoilCat,IF($B72=DrainCat,IF(L$3=ESALCat,Design!$BB$34:$BK$57)))) -> 150 | M72: =SUM(IF($A72=SoilCat,IF($B72=DrainCat,IF(M$3=ESALCat,Design!$BB$34:$BK$57)))) -> 150 | N72: =SUM(IF($A72=SoilCat,IF($B72=DrainCat,IF(N$3=ESALCat,Design!$BB$34:$BK$57)))) -> 150 | O72: =SUM(IF($A72=SoilCat,IF($B72=DrainCat,IF(O$3=ESALCat,Design!$BB$34:$BK$57)))) -> 150
A73: 6 | B73: Fair | E73: Unbound Dense Graded Subbase | F73: =SUM(IF($A73=SoilCat,IF($B73=DrainCat,IF(F$3=ESALCat,Design!$BV$34:$CE$57)))) -> 0 | G73: =SUM(IF($A73=SoilCat,IF($B73=DrainCat,IF(G$3=ESALCat,Design!$BV$34:$CE$57)))) -> 0 | H73: =SUM(IF($A73=SoilCat,IF($B73=DrainCat,IF(H$3=ESALCat,Design!$BV$34:$CE$57)))) -> 0 | I73: =SUM(IF($A73=SoilCat,IF($B73=DrainCat,IF(I$3=ESALCat,Design!$BV$34:$CE$57)))) -> 0 | J73: =SUM(IF($A73=SoilCat,IF($B73=DrainCat,IF(J$3=ESALCat,Design!$BV$34:$CE$57)))) -> 0 | K73: =SUM(IF($A73=SoilCat,IF($B73=DrainCat,IF(K$3=ESALCat,Design!$BV$34:$CE$57)))) -> 0 | L73: =SUM(IF($A73=SoilCat,IF($B73=DrainCat,IF(L$3=ESALCat,Design!$BV$34:$CE$57)))) -> 150 | M73: =SUM(IF($A73=SoilCat,IF($B73=DrainCat,IF(M$3=ESALCat,Design!$BV$34:$CE$57)))) -> 250 | N73: =SUM(IF($A73=SoilCat,IF($B73=DrainCat,IF(N$3=ESALCat,Design!$BV$34:$CE$57)))) -> 425 | O73: =SUM(IF($A73=SoilCat,IF($B73=DrainCat,IF(O$3=ESALCat,Design!$BV$34:$CE$57)))) -> 575
A74: 6 | B74: Poor | D74: Poor | E74: Pavers and Bedding | F74: =SUM(IF($A74=SoilCat,IF($B74=DrainCat,IF(F$3=ESALCat,Design!$N$34:$W$57)))) -> 105 | G74: =SUM(IF($A74=SoilCat,IF($B74=DrainCat,IF(G$3=ESALCat,Design!$N$34:$W$57)))) -> 105 | H74: =SUM(IF($A74=SoilCat,IF($B74=DrainCat,IF(H$3=ESALCat,Design!$N$34:$W$57)))) -> 105 | I74: =SUM(IF($A74=SoilCat,IF($B74=DrainCat,IF(I$3=ESALCat,Design!$N$34:$W$57)))) -> 105 | J74: =SUM(IF($A74=SoilCat,IF($B74=DrainCat,IF(J$3=ESALCat,Design!$N$34:$W$57)))) -> 105 | K74: =SUM(IF($A74=SoilCat,IF($B74=DrainCat,IF(K$3=ESALCat,Design!$N$34:$W$57)))) -> 105 | L74: =SUM(IF($A74=SoilCat,IF($B74=DrainCat,IF(L$3=ESALCat,Design!$N$34:$W$57)))) -> 105 | M74: =SUM(IF($A74=SoilCat,IF($B74=DrainCat,IF(M$3=ESALCat,Design!$N$34:$W$57)))) -> 105 | N74: =SUM(IF($A74=SoilCat,IF($B74=DrainCat,IF(N$3=ESALCat,Design!$N$34:$W$57)))) -> 105 | O74: =SUM(IF($A74=SoilCat,IF($B74=DrainCat,IF(O$3=ESALCat,Design!$N$34:$W$57)))) -> 105
A75: 6 | B75: Poor | E75: Asphalt Treated Base | F75: =SUM(IF($A75=SoilCat,IF($B75=DrainCat,IF(F$3=ESALCat,Design!$AH$34:$AQ$57)))) -> 100 | G75: =SUM(IF($A75=SoilCat,IF($B75=DrainCat,IF(G$3=ESALCat,Design!$AH$34:$AQ$57)))) -> 100 | H75: =SUM(IF($A75=SoilCat,IF($B75=DrainCat,IF(H$3=ESALCat,Design!$AH$34:$AQ$57)))) -> 100 | I75: =SUM(IF($A75=SoilCat,IF($B75=DrainCat,IF(I$3=ESALCat,Design!$AH$34:$AQ$57)))) -> 100 | J75: =SUM(IF($A75=SoilCat,IF($B75=DrainCat,IF(J$3=ESALCat,Design!$AH$34:$AQ$57)))) -> 100 | K75: =SUM(IF($A75=SoilCat,IF($B75=DrainCat,IF(K$3=ESALCat,Design!$AH$34:$AQ$57)))) -> 100 | L75: =SUM(IF($A75=SoilCat,IF($B75=DrainCat,IF(L$3=ESALCat,Design!$AH$34:$AQ$57)))) -> 100 | M75: =SUM(IF($A75=SoilCat,IF($B75=DrainCat,IF(M$3=ESALCat,Design!$AH$34:$AQ$57)))) -> 100 | N75: =SUM(IF($A75=SoilCat,IF($B75=DrainCat,IF(N$3=ESALCat,Design!$AH$34:$AQ$57)))) -> 100 | O75: =SUM(IF($A75=SoilCat,IF($B75=DrainCat,IF(O$3=ESALCat,Design!$AH$34:$AQ$57)))) -> 100
A76: 6 | B76: Poor | E76: Unbound Dense Graded Base | F76: =SUM(IF($A76=SoilCat,IF($B76=DrainCat,IF(F$3=ESALCat,Design!$BB$34:$BK$57)))) -> 100 | G76: =SUM(IF($A76=SoilCat,IF($B76=DrainCat,IF(G$3=ESALCat,Design!$BB$34:$BK$57)))) -> 100 | H76: =SUM(IF($A76=SoilCat,IF($B76=DrainCat,IF(H$3=ESALCat,Design!$BB$34:$BK$57)))) -> 100 | I76: =SUM(IF($A76=SoilCat,IF($B76=DrainCat,IF(I$3=ESALCat,Design!$BB$34:$BK$57)))) -> 100 | J76: =SUM(IF($A76=SoilCat,IF($B76=DrainCat,IF(J$3=ESALCat,Design!$BB$34:$BK$57)))) -> 125 | K76: =SUM(IF($A76=SoilCat,IF($B76=DrainCat,IF(K$3=ESALCat,Design!$BB$34:$BK$57)))) -> 150 | L76: =SUM(IF($A76=SoilCat,IF($B76=DrainCat,IF(L$3=ESALCat,Design!$BB$34:$BK$57)))) -> 150 | M76: =SUM(IF($A76=SoilCat,IF($B76=DrainCat,IF(M$3=ESALCat,Design!$BB$34:$BK$57)))) -> 150 | N76: =SUM(IF($A76=SoilCat,IF($B76=DrainCat,IF(N$3=ESALCat,Design!$BB$34:$BK$57)))) -> 150 | O76: =SUM(IF($A76=SoilCat,IF($B76=DrainCat,IF(O$3=ESALCat,Design!$BB$34:$BK$57)))) -> 150
A77: 6 | B77: Poor | E77: Unbound Dense Graded Subbase | F77: =SUM(IF($A77=SoilCat,IF($B77=DrainCat,IF(F$3=ESALCat,Design!$BV$34:$CE$57)))) -> 0 | G77: =SUM(IF($A77=SoilCat,IF($B77=DrainCat,IF(G$3=ESALCat,Design!$BV$34:$CE$57)))) -> 0 | H77: =SUM(IF($A77=SoilCat,IF($B77=DrainCat,IF(H$3=ESALCat,Design!$BV$34:$CE$57)))) -> 0 | I77: =SUM(IF($A77=SoilCat,IF($B77=DrainCat,IF(I$3=ESALCat,Design!$BV$34:$CE$57)))) -> 0 | J77: =SUM(IF($A77=SoilCat,IF($B77=DrainCat,IF(J$3=ESALCat,Design!$BV$34:$CE$57)))) -> 0 | K77: =SUM(IF($A77=SoilCat,IF($B77=DrainCat,IF(K$3=ESALCat,Design!$BV$34:$CE$57)))) -> 150 | L77: =SUM(IF($A77=SoilCat,IF($B77=DrainCat,IF(L$3=ESALCat,Design!$BV$34:$CE$57)))) -> 250 | M77: =SUM(IF($A77=SoilCat,IF($B77=DrainCat,IF(M$3=ESALCat,Design!$BV$34:$CE$57)))) -> 400 | N77: =SUM(IF($A77=SoilCat,IF($B77=DrainCat,IF(N$3=ESALCat,Design!$BV$34:$CE$57)))) -> 600 | O77: =SUM(IF($A77=SoilCat,IF($B77=DrainCat,IF(O$3=ESALCat,Design!$BV$34:$CE$57)))) -> 750
A78: 7 | B78: Good | C78: Category 7 | D78: Good | E78: Pavers and Bedding | F78: =SUM(IF($A78=SoilCat,IF($B78=DrainCat,IF(F$3=ESALCat,Design!$N$34:$W$57)))) -> 105 | G78: =SUM(IF($A78=SoilCat,IF($B78=DrainCat,IF(G$3=ESALCat,Design!$N$34:$W$57)))) -> 105 | H78: =SUM(IF($A78=SoilCat,IF($B78=DrainCat,IF(H$3=ESALCat,Design!$N$34:$W$57)))) -> 105 | I78: =SUM(IF($A78=SoilCat,IF($B78=DrainCat,IF(I$3=ESALCat,Design!$N$34:$W$57)))) -> 105 | J78: =SUM(IF($A78=SoilCat,IF($B78=DrainCat,IF(J$3=ESALCat,Design!$N$34:$W$57)))) -> 105 | K78: =SUM(IF($A78=SoilCat,IF($B78=DrainCat,IF(K$3=ESALCat,Design!$N$34:$W$57)))) -> 105 | L78: =SUM(IF($A78=SoilCat,IF($B78=DrainCat,IF(L$3=ESALCat,Design!$N$34:$W$57)))) -> 105 | M78: =SUM(IF($A78=SoilCat,IF($B78=DrainCat,IF(M$3=ESALCat,Design!$N$34:$W$57)))) -> 105 | N78: =SUM(IF($A78=SoilCat,IF($B78=DrainCat,IF(N$3=ESALCat,Design!$N$34:$W$57)))) -> 105 | O78: =SUM(IF($A78=SoilCat,IF($B78=DrainCat,IF(O$3=ESALCat,Design!$N$34:$W$57)))) -> 105
A79: 7 | B79: Good | E79: Asphalt Treated Base | F79: =SUM(IF($A79=SoilCat,IF($B79=DrainCat,IF(F$3=ESALCat,Design!$AH$34:$AQ$57)))) -> 100 | G79: =SUM(IF($A79=SoilCat,IF($B79=DrainCat,IF(G$3=ESALCat,Design!$AH$34:$AQ$57)))) -> 100 | H79: =SUM(IF($A79=SoilCat,IF($B79=DrainCat,IF(H$3=ESALCat,Design!$AH$34:$AQ$57)))) -> 100 | I79: =SUM(IF($A79=SoilCat,IF($B79=DrainCat,IF(I$3=ESALCat,Design!$AH$34:$AQ$57)))) -> 100 | J79: =SUM(IF($A79=SoilCat,IF($B79=DrainCat,IF(J$3=ESALCat,Design!$AH$34:$AQ$57)))) -> 100 | K79: =SUM(IF($A79=SoilCat,IF($B79=DrainCat,IF(K$3=ESALCat,Design!$AH$34:$AQ$57)))) -> 100 | L79: =SUM(IF($A79=SoilCat,IF($B79=DrainCat,IF(L$3=ESALCat,Design!$AH$34:$AQ$57)))) -> 100 | M79: =SUM(IF($A79=SoilCat,IF($B79=DrainCat,IF(M$3=ESALCat,Design!$AH$34:$AQ$57)))) -> 100 | N79: =SUM(IF($A79=SoilCat,IF($B79=DrainCat,IF(N$3=ESALCat,Design!$AH$34:$AQ$57)))) -> 100 | O79: =SUM(IF($A79=SoilCat,IF($B79=DrainCat,IF(O$3=ESALCat,Design!$AH$34:$AQ$57)))) -> 100
A80: 7 | B80: Good | E80: Unbound Dense Graded Base | F80: =SUM(IF($A80=SoilCat,IF($B80=DrainCat,IF(F$3=ESALCat,Design!$BB$34:$BK$57)))) -> 100 | G80: =SUM(IF($A80=SoilCat,IF($B80=DrainCat,IF(G$3=ESALCat,Design!$BB$34:$BK$57)))) -> 100 | H80: =SUM(IF($A80=SoilCat,IF($B80=DrainCat,IF(H$3=ESALCat,Design!$BB$34:$BK$57)))) -> 100 | I80: =SUM(IF($A80=SoilCat,IF($B80=DrainCat,IF(I$3=ESALCat,Design!$BB$34:$BK$57)))) -> 100 | J80: =SUM(IF($A80=SoilCat,IF($B80=DrainCat,IF(J$3=ESALCat,Design!$BB$34:$BK$57)))) -> 100 | K80: =SUM(IF($A80=SoilCat,IF($B80=DrainCat,IF(K$3=ESALCat,Design!$BB$34:$BK$57)))) -> 150 | L80: =SUM(IF($A80=SoilCat,IF($B80=DrainCat,IF(L$3=ESALCat,Design!$BB$34:$BK$57)))) -> 200 | M80: =SUM(IF($A80=SoilCat,IF($B80=DrainCat,IF(M$3=ESALCat,Design!$BB$34:$BK$57)))) -> 150 | N80: =SUM(IF($A80=SoilCat,IF($B80=DrainCat,IF(N$3=ESALCat,Design!$BB$34:$BK$57)))) -> 150 | O80: =SUM(IF($A80=SoilCat,IF($B80=DrainCat,IF(O$3=ESALCat,Design!$BB$34:$BK$57)))) -> 150
A81: 7 | B81: Good | E81: Unbound Dense Graded Subbase | F81: =SUM(IF($A81=SoilCat,IF($B81=DrainCat,IF(F$3=ESALCat,Design!$BV$34:$CE$57)))) -> 0 | G81: =SUM(IF($A81=SoilCat,IF($B81=DrainCat,IF(G$3=ESALCat,Design!$BV$34:$CE$57)))) -> 0 | H81: =SUM(IF($A81=SoilCat,IF($B81=DrainCat,IF(H$3=ESALCat,Design!$BV$34:$CE$57)))) -> 0 | I81: =SUM(IF($A81=SoilCat,IF($B81=DrainCat,IF(I$3=ESALCat,Design!$BV$34:$CE$57)))) -> 0 | J81: =SUM(IF($A81=SoilCat,IF($B81=DrainCat,IF(J$3=ESALCat,Design!$BV$34:$CE$57)))) -> 0 | K81: =SUM(IF($A81=SoilCat,IF($B81=DrainCat,IF(K$3=ESALCat,Design!$BV$34:$CE$57)))) -> 0 | L81: =SUM(IF($A81=SoilCat,IF($B81=DrainCat,IF(L$3=ESALCat,Design!$BV$34:$CE$57)))) -> 0 | M81: =SUM(IF($A81=SoilCat,IF($B81=DrainCat,IF(M$3=ESALCat,Design!$BV$34:$CE$57)))) -> 200 | N81: =SUM(IF($A81=SoilCat,IF($B81=DrainCat,IF(N$3=ESALCat,Design!$BV$34:$CE$57)))) -> 400 | O81: =SUM(IF($A81=SoilCat,IF($B81=DrainCat,IF(O$3=ESALCat,Design!$BV$34:$CE$57)))) -> 525
A82: 7 | B82: Fair | D82: Fair | E82: Pavers and Bedding | F82: =SUM(IF($A82=SoilCat,IF($B82=DrainCat,IF(F$3=ESALCat,Design!$N$34:$W$57)))) -> 105 | G82: =SUM(IF($A82=SoilCat,IF($B82=DrainCat,IF(G$3=ESALCat,Design!$N$34:$W$57)))) -> 105 | H82: =SUM(IF($A82=SoilCat,IF($B82=DrainCat,IF(H$3=ESALCat,Design!$N$34:$W$57)))) -> 105 | I82: =SUM(IF($A82=SoilCat,IF($B82=DrainCat,IF(I$3=ESALCat,Design!$N$34:$W$57)))) -> 105 | J82: =SUM(IF($A82=SoilCat,IF($B82=DrainCat,IF(J$3=ESALCat,Design!$N$34:$W$57)))) -> 105 | K82: =SUM(IF($A82=SoilCat,IF($B82=DrainCat,IF(K$3=ESALCat,Design!$N$34:$W$57)))) -> 105 | L82: =SUM(IF($A82=SoilCat,IF($B82=DrainCat,IF(L$3=ESALCat,Design!$N$34:$W$57)))) -> 105 | M82: =SUM(IF($A82=SoilCat,IF($B82=DrainCat,IF(M$3=ESALCat,Design!$N$34:$W$57)))) -> 105 | N82: =SUM(IF($A82=SoilCat,IF($B82=DrainCat,IF(N$3=ESALCat,Design!$N$34:$W$57)))) -> 105 | O82: =SUM(IF($A82=SoilCat,IF($B82=DrainCat,IF(O$3=ESALCat,Design!$N$34:$W$57)))) -> 105
A83: 7 | B83: Fair | E83: Asphalt Treated Base | F83: =SUM(IF($A83=SoilCat,IF($B83=DrainCat,IF(F$3=ESALCat,Design!$AH$34:$AQ$57)))) -> 100 | G83: =SUM(IF($A83=SoilCat,IF($B83=DrainCat,IF(G$3=ESALCat,Design!$AH$34:$AQ$57)))) -> 100 | H83: =SUM(IF($A83=SoilCat,IF($B83=DrainCat,IF(H$3=ESALCat,Design!$AH$34:$AQ$57)))) -> 100 | I83: =SUM(IF($A83=SoilCat,IF($B83=DrainCat,IF(I$3=ESALCat,Design!$AH$34:$AQ$57)))) -> 100 | J83: =SUM(IF($A83=SoilCat,IF($B83=DrainCat,IF(J$3=ESALCat,Design!$AH$34:$AQ$57)))) -> 100 | K83: =SUM(IF($A83=SoilCat,IF($B83=DrainCat,IF(K$3=ESALCat,Design!$AH$34:$AQ$57)))) -> 100 | L83: =SUM(IF($A83=SoilCat,IF($B83=DrainCat,IF(L$3=ESALCat,Design!$AH$34:$AQ$57)))) -> 100 | M83: =SUM(IF($A83=SoilCat,IF($B83=DrainCat,IF(M$3=ESALCat,Design!$AH$34:$AQ$57)))) -> 100 | N83: =SUM(IF($A83=SoilCat,IF($B83=DrainCat,IF(N$3=ESALCat,Design!$AH$34:$AQ$57)))) -> 100 | O83: =SUM(IF($A83=SoilCat,IF($B83=DrainCat,IF(O$3=ESALCat,Design!$AH$34:$AQ$57)))) -> 100
A84: 7 | B84: Fair | E84: Unbound Dense Graded Base | F84: =SUM(IF($A84=SoilCat,IF($B84=DrainCat,IF(F$3=ESALCat,Design!$BB$34:$BK$57)))) -> 100 | G84: =SUM(IF($A84=SoilCat,IF($B84=DrainCat,IF(G$3=ESALCat,Design!$BB$34:$BK$57)))) -> 100 | H84: =SUM(IF($A84=SoilCat,IF($B84=DrainCat,IF(H$3=ESALCat,Design!$BB$34:$BK$57)))) -> 100 | I84: =SUM(IF($A84=SoilCat,IF($B84=DrainCat,IF(I$3=ESALCat,Design!$BB$34:$BK$57)))) -> 100 | J84: =SUM(IF($A84=SoilCat,IF($B84=DrainCat,IF(J$3=ESALCat,Design!$BB$34:$BK$57)))) -> 100 | K84: =SUM(IF($A84=SoilCat,IF($B84=DrainCat,IF(K$3=ESALCat,Design!$BB$34:$BK$57)))) -> 200 | L84: =SUM(IF($A84=SoilCat,IF($B84=DrainCat,IF(L$3=ESALCat,Design!$BB$34:$BK$57)))) -> 150 | M84: =SUM(IF($A84=SoilCat,IF($B84=DrainCat,IF(M$3=ESALCat,Design!$BB$34:$BK$57)))) -> 150 | N84: =SUM(IF($A84=SoilCat,IF($B84=DrainCat,IF(N$3=ESALCat,Design!$BB$34:$BK$57)))) -> 150 | O84: =SUM(IF($A84=SoilCat,IF($B84=DrainCat,IF(O$3=ESALCat,Design!$BB$34:$BK$57)))) -> 150
A85: 7 | B85: Fair | E85: Unbound Dense Graded Subbase | F85: =SUM(IF($A85=SoilCat,IF($B85=DrainCat,IF(F$3=ESALCat,Design!$BV$34:$CE$57)))) -> 0 | G85: =SUM(IF($A85=SoilCat,IF($B85=DrainCat,IF(G$3=ESALCat,Design!$BV$34:$CE$57)))) -> 0 | H85: =SUM(IF($A85=SoilCat,IF($B85=DrainCat,IF(H$3=ESALCat,Design!$BV$34:$CE$57)))) -> 0 | I85: =SUM(IF($A85=SoilCat,IF($B85=DrainCat,IF(I$3=ESALCat,Design!$BV$34:$CE$57)))) -> 0 | J85: =SUM(IF($A85=SoilCat,IF($B85=DrainCat,IF(J$3=ESALCat,Design!$BV$34:$CE$57)))) -> 0 | K85: =SUM(IF($A85=SoilCat,IF($B85=DrainCat,IF(K$3=ESALCat,Design!$BV$34:$CE$57)))) -> 0 | L85: =SUM(IF($A85=SoilCat,IF($B85=DrainCat,IF(L$3=ESALCat,Design!$BV$34:$CE$57)))) -> 200 | M85: =SUM(IF($A85=SoilCat,IF($B85=DrainCat,IF(M$3=ESALCat,Design!$BV$34:$CE$57)))) -> 350 | N85: =SUM(IF($A85=SoilCat,IF($B85=DrainCat,IF(N$3=ESALCat,Design!$BV$34:$CE$57)))) -> 525 | O85: =SUM(IF($A85=SoilCat,IF($B85=DrainCat,IF(O$3=ESALCat,Design!$BV$34:$CE$57)))) -> 700
A86: 7 | B86: Poor | D86: Poor | E86: Pavers and Bedding | F86: =SUM(IF($A86=SoilCat,IF($B86=DrainCat,IF(F$3=ESALCat,Design!$N$34:$W$57)))) -> 105 | G86: =SUM(IF($A86=SoilCat,IF($B86=DrainCat,IF(G$3=ESALCat,Design!$N$34:$W$57)))) -> 105 | H86: =SUM(IF($A86=SoilCat,IF($B86=DrainCat,IF(H$3=ESALCat,Design!$N$34:$W$57)))) -> 105 | I86: =SUM(IF($A86=SoilCat,IF($B86=DrainCat,IF(I$3=ESALCat,Design!$N$34:$W$57)))) -> 105 | J86: =SUM(IF($A86=SoilCat,IF($B86=DrainCat,IF(J$3=ESALCat,Design!$N$34:$W$57)))) -> 105 | K86: =SUM(IF($A86=SoilCat,IF($B86=DrainCat,IF(K$3=ESALCat,Design!$N$34:$W$57)))) -> 105 | L86: =SUM(IF($A86=SoilCat,IF($B86=DrainCat,IF(L$3=ESALCat,Design!$N$34:$W$57)))) -> 105 | M86: =SUM(IF($A86=SoilCat,IF($B86=DrainCat,IF(M$3=ESALCat,Design!$N$34:$W$57)))) -> 105 | N86: =SUM(IF($A86=SoilCat,IF($B86=DrainCat,IF(N$3=ESALCat,Design!$N$34:$W$57)))) -> 105 | O86: =SUM(IF($A86=SoilCat,IF($B86=DrainCat,IF(O$3=ESALCat,Design!$N$34:$W$57)))) -> 105
A87: 7 | B87: Poor | E87: Asphalt Treated Base | F87: =SUM(IF($A87=SoilCat,IF($B87=DrainCat,IF(F$3=ESALCat,Design!$AH$34:$AQ$57)))) -> 100 | G87: =SUM(IF($A87=SoilCat,IF($B87=DrainCat,IF(G$3=ESALCat,Design!$AH$34:$AQ$57)))) -> 100 | H87: =SUM(IF($A87=SoilCat,IF($B87=DrainCat,IF(H$3=ESALCat,Design!$AH$34:$AQ$57)))) -> 100 | I87: =SUM(IF($A87=SoilCat,IF($B87=DrainCat,IF(I$3=ESALCat,Design!$AH$34:$AQ$57)))) -> 100 | J87: =SUM(IF($A87=SoilCat,IF($B87=DrainCat,IF(J$3=ESALCat,Design!$AH$34:$AQ$57)))) -> 100 | K87: =SUM(IF($A87=SoilCat,IF($B87=DrainCat,IF(K$3=ESALCat,Design!$AH$34:$AQ$57)))) -> 100 | L87: =SUM(IF($A87=SoilCat,IF($B87=DrainCat,IF(L$3=ESALCat,Design!$AH$34:$AQ$57)))) -> 100 | M87: =SUM(IF($A87=SoilCat,IF($B87=DrainCat,IF(M$3=ESALCat,Design!$AH$34:$AQ$57)))) -> 100 | N87: =SUM(IF($A87=SoilCat,IF($B87=DrainCat,IF(N$3=ESALCat,Design!$AH$34:$AQ$57)))) -> 100 | O87: =SUM(IF($A87=SoilCat,IF($B87=DrainCat,IF(O$3=ESALCat,Design!$AH$34:$AQ$57)))) -> 100
A88: 7 | B88: Poor | E88: Unbound Dense Graded Base | F88: =SUM(IF($A88=SoilCat,IF($B88=DrainCat,IF(F$3=ESALCat,Design!$BB$34:$BK$57)))) -> 100 | G88: =SUM(IF($A88=SoilCat,IF($B88=DrainCat,IF(G$3=ESALCat,Design!$BB$34:$BK$57)))) -> 100 | H88: =SUM(IF($A88=SoilCat,IF($B88=DrainCat,IF(H$3=ESALCat,Design!$BB$34:$BK$57)))) -> 100 | I88: =SUM(IF($A88=SoilCat,IF($B88=DrainCat,IF(I$3=ESALCat,Design!$BB$34:$BK$57)))) -> 100 | J88: =SUM(IF($A88=SoilCat,IF($B88=DrainCat,IF(J$3=ESALCat,Design!$BB$34:$BK$57)))) -> 175 | K88: =SUM(IF($A88=SoilCat,IF($B88=DrainCat,IF(K$3=ESALCat,Design!$BB$34:$BK$57)))) -> 150 | L88: =SUM(IF($A88=SoilCat,IF($B88=DrainCat,IF(L$3=ESALCat,Design!$BB$34:$BK$57)))) -> 150 | M88: =SUM(IF($A88=SoilCat,IF($B88=DrainCat,IF(M$3=ESALCat,Design!$BB$34:$BK$57)))) -> 150 | N88: =SUM(IF($A88=SoilCat,IF($B88=DrainCat,IF(N$3=ESALCat,Design!$BB$34:$BK$57)))) -> 150 | O88: =SUM(IF($A88=SoilCat,IF($B88=DrainCat,IF(O$3=ESALCat,Design!$BB$34:$BK$57)))) -> 150
A89: 7 | B89: Poor | E89: Unbound Dense Graded Subbase | F89: =SUM(IF($A89=SoilCat,IF($B89=DrainCat,IF(F$3=ESALCat,Design!$BV$34:$CE$57)))) -> 0 | G89: =SUM(IF($A89=SoilCat,IF($B89=DrainCat,IF(G$3=ESALCat,Design!$BV$34:$CE$57)))) -> 0 | H89: =SUM(IF($A89=SoilCat,IF($B89=DrainCat,IF(H$3=ESALCat,Design!$BV$34:$CE$57)))) -> 0 | I89: =SUM(IF($A89=SoilCat,IF($B89=DrainCat,IF(I$3=ESALCat,Design!$BV$34:$CE$57)))) -> 0 | J89: =SUM(IF($A89=SoilCat,IF($B89=DrainCat,IF(J$3=ESALCat,Design!$BV$34:$CE$57)))) -> 0 | K89: =SUM(IF($A89=SoilCat,IF($B89=DrainCat,IF(K$3=ESALCat,Design!$BV$34:$CE$57)))) -> 200 | L89: =SUM(IF($A89=SoilCat,IF($B89=DrainCat,IF(L$3=ESALCat,Design!$BV$34:$CE$57)))) -> 350 | M89: =SUM(IF($A89=SoilCat,IF($B89=DrainCat,IF(M$3=ESALCat,Design!$BV$34:$CE$57)))) -> 475 | N89: =SUM(IF($A89=SoilCat,IF($B89=DrainCat,IF(N$3=ESALCat,Design!$BV$34:$CE$57)))) -> 675 | O89: =SUM(IF($A89=SoilCat,IF($B89=DrainCat,IF(O$3=ESALCat,Design!$BV$34:$CE$57)))) -> 850
A90: 8 | B90: Good | C90: Category 8 | D90: Good | E90: Pavers and Bedding | F90: =SUM(IF($A90=SoilCat,IF($B90=DrainCat,IF(F$3=ESALCat,Design!$N$34:$W$57)))) -> 105 | G90: =SUM(IF($A90=SoilCat,IF($B90=DrainCat,IF(G$3=ESALCat,Design!$N$34:$W$57)))) -> 105 | H90: =SUM(IF($A90=SoilCat,IF($B90=DrainCat,IF(H$3=ESALCat,Design!$N$34:$W$57)))) -> 105 | I90: =SUM(IF($A90=SoilCat,IF($B90=DrainCat,IF(I$3=ESALCat,Design!$N$34:$W$57)))) -> 105 | J90: =SUM(IF($A90=SoilCat,IF($B90=DrainCat,IF(J$3=ESALCat,Design!$N$34:$W$57)))) -> 105 | K90: =SUM(IF($A90=SoilCat,IF($B90=DrainCat,IF(K$3=ESALCat,Design!$N$34:$W$57)))) -> 105 | L90: =SUM(IF($A90=SoilCat,IF($B90=DrainCat,IF(L$3=ESALCat,Design!$N$34:$W$57)))) -> 105 | M90: =SUM(IF($A90=SoilCat,IF($B90=DrainCat,IF(M$3=ESALCat,Design!$N$34:$W$57)))) -> 105 | N90: =SUM(IF($A90=SoilCat,IF($B90=DrainCat,IF(N$3=ESALCat,Design!$N$34:$W$57)))) -> 105 | O90: =SUM(IF($A90=SoilCat,IF($B90=DrainCat,IF(O$3=ESALCat,Design!$N$34:$W$57)))) -> 105
A91: 8 | B91: Good | E91: Asphalt Treated Base | F91: =SUM(IF($A91=SoilCat,IF($B91=DrainCat,IF(F$3=ESALCat,Design!$AH$34:$AQ$57)))) -> 100 | G91: =SUM(IF($A91=SoilCat,IF($B91=DrainCat,IF(G$3=ESALCat,Design!$AH$34:$AQ$57)))) -> 100 | H91: =SUM(IF($A91=SoilCat,IF($B91=DrainCat,IF(H$3=ESALCat,Design!$AH$34:$AQ$57)))) -> 100 | I91: =SUM(IF($A91=SoilCat,IF($B91=DrainCat,IF(I$3=ESALCat,Design!$AH$34:$AQ$57)))) -> 100 | J91: =SUM(IF($A91=SoilCat,IF($B91=DrainCat,IF(J$3=ESALCat,Design!$AH$34:$AQ$57)))) -> 100 | K91: =SUM(IF($A91=SoilCat,IF($B91=DrainCat,IF(K$3=ESALCat,Design!$AH$34:$AQ$57)))) -> 100 | L91: =SUM(IF($A91=SoilCat,IF($B91=DrainCat,IF(L$3=ESALCat,Design!$AH$34:$AQ$57)))) -> 100 | M91: =SUM(IF($A91=SoilCat,IF($B91=DrainCat,IF(M$3=ESALCat,Design!$AH$34:$AQ$57)))) -> 100 | N91: =SUM(IF($A91=SoilCat,IF($B91=DrainCat,IF(N$3=ESALCat,Design!$AH$34:$AQ$57)))) -> 100 | O91: =SUM(IF($A91=SoilCat,IF($B91=DrainCat,IF(O$3=ESALCat,Design!$AH$34:$AQ$57)))) -> 100
A92: 8 | B92: Good | E92: Unbound Dense Graded Base | F92: =SUM(IF($A92=SoilCat,IF($B92=DrainCat,IF(F$3=ESALCat,Design!$BB$34:$BK$57)))) -> 100 | G92: =SUM(IF($A92=SoilCat,IF($B92=DrainCat,IF(G$3=ESALCat,Design!$BB$34:$BK$57)))) -> 100 | H92: =SUM(IF($A92=SoilCat,IF($B92=DrainCat,IF(H$3=ESALCat,Design!$BB$34:$BK$57)))) -> 100 | I92: =SUM(IF($A92=SoilCat,IF($B92=DrainCat,IF(I$3=ESALCat,Design!$BB$34:$BK$57)))) -> 100 | J92: =SUM(IF($A92=SoilCat,IF($B92=DrainCat,IF(J$3=ESALCat,Design!$BB$34:$BK$57)))) -> 100 | K92: =SUM(IF($A92=SoilCat,IF($B92=DrainCat,IF(K$3=ESALCat,Design!$BB$34:$BK$57)))) -> 150 | L92: =SUM(IF($A92=SoilCat,IF($B92=DrainCat,IF(L$3=ESALCat,Design!$BB$34:$BK$57)))) -> 150 | M92: =SUM(IF($A92=SoilCat,IF($B92=DrainCat,IF(M$3=ESALCat,Design!$BB$34:$BK$57)))) -> 150 | N92: =SUM(IF($A92=SoilCat,IF($B92=DrainCat,IF(N$3=ESALCat,Design!$BB$34:$BK$57)))) -> 150 | O92: =SUM(IF($A92=SoilCat,IF($B92=DrainCat,IF(O$3=ESALCat,Design!$BB$34:$BK$57)))) -> 150
A93: 8 | B93: Good | E93: Unbound Dense Graded Subbase | F93: =SUM(IF($A93=SoilCat,IF($B93=DrainCat,IF(F$3=ESALCat,Design!$BV$34:$CE$57)))) -> 0 | G93: =SUM(IF($A93=SoilCat,IF($B93=DrainCat,IF(G$3=ESALCat,Design!$BV$34:$CE$57)))) -> 0 | H93: =SUM(IF($A93=SoilCat,IF($B93=DrainCat,IF(H$3=ESALCat,Design!$BV$34:$CE$57)))) -> 0 | I93: =SUM(IF($A93=SoilCat,IF($B93=DrainCat,IF(I$3=ESALCat,Design!$BV$34:$CE$57)))) -> 0 | J93: =SUM(IF($A93=SoilCat,IF($B93=DrainCat,IF(J$3=ESALCat,Design!$BV$34:$CE$57)))) -> 0 | K93: =SUM(IF($A93=SoilCat,IF($B93=DrainCat,IF(K$3=ESALCat,Design!$BV$34:$CE$57)))) -> 0 | L93: =SUM(IF($A93=SoilCat,IF($B93=DrainCat,IF(L$3=ESALCat,Design!$BV$34:$CE$57)))) -> 150 | M93: =SUM(IF($A93=SoilCat,IF($B93=DrainCat,IF(M$3=ESALCat,Design!$BV$34:$CE$57)))) -> 250 | N93: =SUM(IF($A93=SoilCat,IF($B93=DrainCat,IF(N$3=ESALCat,Design!$BV$34:$CE$57)))) -> 425 | O93: =SUM(IF($A93=SoilCat,IF($B93=DrainCat,IF(O$3=ESALCat,Design!$BV$34:$CE$57)))) -> 575
